Workbook

Sheet Title page
A1: Access agreement monitoring return academic year 2016-17
A2: Institution name: | B2: Anglia Ruskin University
A3: Institution UKPRN | B3: =VLOOKUP(B2,control[],2,FALSE) -> 10000291
A5: Notes
A6: Table 7: contains a report from the institution on its progress against the milestones and targets set out in its 2017-18 access agreement. Table 7a) looks at statistical milestones/targets relating to the institution's applicants, entrants or student body - for example those relating to the numbers of applicants/entrants from lower income backgrounds or under-represented groups. Table 7b) looks at other milestones and targets, such as the number of schools an institution is aiming to work with, or the number of students involved in outreach activities, as well as the measurable success of those activities, for example in raising aspiration and attainment or in influencing choices around GCSE subject, or about whether and where to go to higher education. Table 8: provides the institution's commentary on their progress against their milestones and targets. Access agreement targets cover a five year period and we are interested in monitoring trends over time, rather than year-on-year changes.

Sheet Table 7a
A1: Table 7a - Statistical milestones and targets relating to institution's applicants, entrants or student body
A2: =CONCATENATE("Institution name: ",'Title page'!B2) -> Institution name: Anglia Ruskin University
A4: Number | B4: Lifecycle stage | C4: Main target category | D4: Statistical milestone/target type | E4: Description (500 characters maximum) | F4: Is this a collaborative target? | G4: Baseline data | H4: Baseline year (please use form 20XX-XX) | I4: Target (number or percentage) | J4: Target year (please use form 20XX-XX) | K4: Progress to date, by academic year (numeric where possible, however you may use text) | P4: Performance summary
K5: 2012-13 | L5: 2013-14 | M5: 2014-15 | N5: 2015-16 | O5: 2016-17
A6: =IF(LEN(B6)<1,"",Q6) -> 1 | B6: =_xlfn.IFNA(VLOOKUP(CONCATENATE('Title page'!B3,"-","7a","-",'Table 7a'!$Q6),Targets!$E:$T,15,FALSE),"") -> Access and Student Success | C6: =_xlfn.IFNA(VLOOKUP(CONCATENATE('Title page'!B3,"-","7a","-",'Table 7a'!$Q6),Targets!$E:$T,16,FALSE),"") -> Low participation neighbourhood (LPN) | D6: =_xlfn.IFNA(VLOOKUP(CONCATENATE('Title page'!B3,"-","7a","-",'Table 7a'!$Q6),Targets!$E:$T,2,FALSE),"") -> HESA T3b - No longer in HE after 1 year & in low participation neighbourhoods (POLAR 3) (Young, full-time, first degree entrants) | E6: =_xlfn.IFNA(VLOOKUP(CONCATENATE('Title page'!B3,"-","7a","-",'Table 7a'!$Q6),Targets!$E:$T,3,FALSE),"") -> Non-continuation rate for young full-time first degree entrants from low participation neighbourhoods | F6: =_xlfn.IFNA(VLOOKUP(CONCATENATE('Title page'!B3,"-","7a","-",'Table 7a'!$Q6),Targets!$E:$T,4,FALSE),"") -> No | G6: =_xlfn.IFNA(VLOOKUP(CONCATENATE('Title page'!B3,"-","7a","-",'Table 7a'!$Q6),Targets!$E:$T,5,FALSE),"") -> 0.121 | H6: =_xlfn.IFNA(VLOOKUP(CONCATENATE('Title page'!B3,"-","7a","-",'Table 7a'!$Q6),Targets!$E:$T,6,FALSE),"") -> 2012-13 | I6: =_xlfn.IFNA(VLOOKUP(CONCATENATE('Title page'!B3,"-","7a","-",'Table 7a'!$Q6),Targets!$E:$T,7,FALSE),"") -> 0.08 | J6: =_xlfn.IFNA(VLOOKUP(CONCATENATE('Title page'!B3,"-","7a","-",'Table 7a'!$Q6),Targets!$E:$T,8,FALSE),"") -> 2019-20 | K6: =_xlfn.IFNA(VLOOKUP(CONCATENATE('Title page'!B3,"-","7a","-",'Table 7a'!$Q6),Targets!$E:$T,9,FALSE),"") -> 0.121 | L6: =_xlfn.IFNA(VLOOKUP(CONCATENATE('Title page'!B3,"-","7a","-",'Table 7a'!$Q6),Targets!$E:$T,10,FALSE),"") -> 0.139 | M6: =_xlfn.IFNA(VLOOKUP(CONCATENATE('Title page'!B3,"-","7a","-",'Table 7a'!$Q6),Targets!$E:$T,11,FALSE),"") -> 0.124 | N6: =_xlfn.IFNA(VLOOKUP(CONCATENATE('Title page'!B3,"-","7a","-",'Table 7a'!$Q6),Targets!$E:$T,12,FALSE),"") -> - | O6: =_xlfn.IFNA(VLOOKUP(CONCATENATE('Title page'!B3,"-","7a","-",'Table 7a'!$Q6),Targets!$E:$T,13,FALSE),"") -> - | P6: =_xlfn.IFNA(VLOOKUP(CONCATENATE('Title page'!B3,"-","7a","-",'Table 7a'!$Q6),Targets!$E:$T,14,FALSE),"") -> e) Performance is below baseline | Q6: 1
A7: =IF(LEN(B7)<1,"",Q7) -> 2 | B7: =_xlfn.IFNA(VLOOKUP(CONCATENATE('Title page'!B3,"-","7a","-",'Table 7a'!$Q7),Targets!$E:$T,15,FALSE),"") -> Access and Student Success | C7: =_xlfn.IFNA(VLOOKUP(CONCATENATE('Title page'!B3,"-","7a","-",'Table 7a'!$Q7),Targets!$E:$T,16,FALSE),"") -> Mature | D7: =_xlfn.IFNA(VLOOKUP(CONCATENATE('Title page'!B3,"-","7a","-",'Table 7a'!$Q7),Targets!$E:$T,2,FALSE),"") -> HESA T3c - No longer in HE after 1 year & no previous HE qualification (Mature, full-time, first degree entrants) | E7: =_xlfn.IFNA(VLOOKUP(CONCATENATE('Title page'!B3,"-","7a","-",'Table 7a'!$Q7),Targets!$E:$T,3,FALSE),"") -> Non-continuation rate for mature full-time first degree entrants with no previous HE qualification | F7: =_xlfn.IFNA(VLOOKUP(CONCATENATE('Title page'!B3,"-","7a","-",'Table 7a'!$Q7),Targets!$E:$T,4,FALSE),"") -> No | G7: =_xlfn.IFNA(VLOOKUP(CONCATENATE('Title page'!B3,"-","7a","-",'Table 7a'!$Q7),Targets!$E:$T,5,FALSE),"") -> 0.155 | H7: =_xlfn.IFNA(VLOOKUP(CONCATENATE('Title page'!B3,"-","7a","-",'Table 7a'!$Q7),Targets!$E:$T,6,FALSE),"") -> 2012-13 | I7: =_xlfn.IFNA(VLOOKUP(CONCATENATE('Title page'!B3,"-","7a","-",'Table 7a'!$Q7),Targets!$E:$T,7,FALSE),"") -> 9.5 | J7: =_xlfn.IFNA(VLOOKUP(CONCATENATE('Title page'!B3,"-","7a","-",'Table 7a'!$Q7),Targets!$E:$T,8,FALSE),"") -> 2019-20 | K7: =_xlfn.IFNA(VLOOKUP(CONCATENATE('Title page'!B3,"-","7a","-",'Table 7a'!$Q7),Targets!$E:$T,9,FALSE),"") -> 0.155 | L7: =_xlfn.IFNA(VLOOKUP(CONCATENATE('Title page'!B3,"-","7a","-",'Table 7a'!$Q7),Targets!$E:$T,10,FALSE),"") -> 0.138 | M7: =_xlfn.IFNA(VLOOKUP(CONCATENATE('Title page'!B3,"-","7a","-",'Table 7a'!$Q7),Targets!$E:$T,11,FALSE),"") -> 0.176 | N7: =_xlfn.IFNA(VLOOKUP(CONCATENATE('Title page'!B3,"-","7a","-",'Table 7a'!$Q7),Targets!$E:$T,12,FALSE),"") -> - | O7: =_xlfn.IFNA(VLOOKUP(CONCATENATE('Title page'!B3,"-","7a","-",'Table 7a'!$Q7),Targets!$E:$T,13,FALSE),"") -> - | P7: =_xlfn.IFNA(VLOOKUP(CONCATENATE('Title page'!B3,"-","7a","-",'Table 7a'!$Q7),Targets!$E:$T,14,FALSE),"") -> e) Performance is below baseline | Q7: 2
A8: 3 | B8: =_xlfn.IFNA(VLOOKUP(CONCATENATE('Title page'!B3,"-","7a","-",'Table 7a'!$Q8),Targets!$E:$T,15,FALSE),"") -> Access | C8: =_xlfn.IFNA(VLOOKUP(CONCATENATE('Title page'!B3,"-","7a","-",'Table 7a'!$Q8),Targets!$E:$T,16,FALSE),"") -> Low participation neighbourhood (LPN) | D8: =_xlfn.IFNA(VLOOKUP(CONCATENATE('Title page'!B3,"-","7a","-",'Table 7a'!$Q8),Targets!$E:$T,2,FALSE),"") -> HESA T1b - Low participation neighbourhoods (POLAR3) (Young, full-time, undergraduate entrants) | E8: =_xlfn.IFNA(VLOOKUP(CONCATENATE('Title page'!B3,"-","7a","-",'Table 7a'!$Q8),Targets!$E:$T,3,FALSE),"") -> Participation of young students from lower participation neighbourhoods (all entrants) | F8: =_xlfn.IFNA(VLOOKUP(CONCATENATE('Title page'!B3,"-","7a","-",'Table 7a'!$Q8),Targets!$E:$T,4,FALSE),"") -> No | G8: =_xlfn.IFNA(VLOOKUP(CONCATENATE('Title page'!B3,"-","7a","-",'Table 7a'!$Q8),Targets!$E:$T,5,FALSE),"") -> 0.14 | H8: =_xlfn.IFNA(VLOOKUP(CONCATENATE('Title page'!B3,"-","7a","-",'Table 7a'!$Q8),Targets!$E:$T,6,FALSE),"") -> 2013-14 | I8: =_xlfn.IFNA(VLOOKUP(CONCATENATE('Title page'!B3,"-","7a","-",'Table 7a'!$Q8),Targets!$E:$T,7,FALSE),"") -> 0.2 | J8: =_xlfn.IFNA(VLOOKUP(CONCATENATE('Title page'!B3,"-","7a","-",'Table 7a'!$Q8),Targets!$E:$T,8,FALSE),"") -> 2019-20 | K8: =_xlfn.IFNA(VLOOKUP(CONCATENATE('Title page'!B3,"-","7a","-",'Table 7a'!$Q8),Targets!$E:$T,9,FALSE),"") -> 0.136 | L8: =_xlfn.IFNA(VLOOKUP(CONCATENATE('Title page'!B3,"-","7a","-",'Table 7a'!$Q8),Targets!$E:$T,10,FALSE),"") -> 0.14 | M8: =_xlfn.IFNA(VLOOKUP(CONCATENATE('Title page'!B3,"-","7a","-",'Table 7a'!$Q8),Targets!$E:$T,11,FALSE),"") -> 0.14 | N8: =_xlfn.IFNA(VLOOKUP(CONCATENATE('Title page'!B3,"-","7a","-",'Table 7a'!$Q8),Targets!$E:$T,12,FALSE),"") -> 0.136 | O8: =_xlfn.IFNA(VLOOKUP(CONCATENATE('Title page'!B3,"-","7a","-",'Table 7a'!$Q8),Targets!$E:$T,13,FALSE),"") -> - | P8: =_xlfn.IFNA(VLOOKUP(CONCATENATE('Title page'!B3,"-","7a","-",'Table 7a'!$Q8),Targets!$E:$T,14,FALSE),"") -> e) Performance is below baseline | Q8: 3
A9: 4 | B9: =_xlfn.IFNA(VLOOKUP(CONCATENATE('Title page'!B3,"-","7a","-",'Table 7a'!$Q9),Targets!$E:$T,15,FALSE),"") -> Access | C9: =_xlfn.IFNA(VLOOKUP(CONCATENATE('Title page'!B3,"-","7a","-",'Table 7a'!$Q9),Targets!$E:$T,16,FALSE),"") -> State school | D9: =_xlfn.IFNA(VLOOKUP(CONCATENATE('Title page'!B3,"-","7a","-",'Table 7a'!$Q9),Targets!$E:$T,2,FALSE),"") -> HESA T1b - State School (Young, full-time, undergraduate entrants) | E9: =_xlfn.IFNA(VLOOKUP(CONCATENATE('Title page'!B3,"-","7a","-",'Table 7a'!$Q9),Targets!$E:$T,3,FALSE),"") -> Participation of young students from state schools and colleges (all entrants) | F9: =_xlfn.IFNA(VLOOKUP(CONCATENATE('Title page'!B3,"-","7a","-",'Table 7a'!$Q9),Targets!$E:$T,4,FALSE),"") -> No | G9: =_xlfn.IFNA(VLOOKUP(CONCATENATE('Title page'!B3,"-","7a","-",'Table 7a'!$Q9),Targets!$E:$T,5,FALSE),"") -> 0.965 | H9: =_xlfn.IFNA(VLOOKUP(CONCATENATE('Title page'!B3,"-","7a","-",'Table 7a'!$Q9),Targets!$E:$T,6,FALSE),"") -> 2013-14 | I9: =_xlfn.IFNA(VLOOKUP(CONCATENATE('Title page'!B3,"-","7a","-",'Table 7a'!$Q9),Targets!$E:$T,7,FALSE),"") -> 0.985 | J9: =_xlfn.IFNA(VLOOKUP(CONCATENATE('Title page'!B3,"-","7a","-",'Table 7a'!$Q9),Targets!$E:$T,8,FALSE),"") -> 2019-20 | K9: =_xlfn.IFNA(VLOOKUP(CONCATENATE('Title page'!B3,"-","7a","-",'Table 7a'!$Q9),Targets!$E:$T,9,FALSE),"") -> 0.963 | L9: =_xlfn.IFNA(VLOOKUP(CONCATENATE('Title page'!B3,"-","7a","-",'Table 7a'!$Q9),Targets!$E:$T,10,FALSE),"") -> 0.965 | M9: =_xlfn.IFNA(VLOOKUP(CONCATENATE('Title page'!B3,"-","7a","-",'Table 7a'!$Q9),Targets!$E:$T,11,FALSE),"") -> 0.971 | N9: =_xlfn.IFNA(VLOOKUP(CONCATENATE('Title page'!B3,"-","7a","-",'Table 7a'!$Q9),Targets!$E:$T,12,FALSE),"") -> 0.964 | O9: =_xlfn.IFNA(VLOOKUP(CONCATENATE('Title page'!B3,"-","7a","-",'Table 7a'!$Q9),Targets!$E:$T,13,FALSE),"") -> - | P9: =_xlfn.IFNA(VLOOKUP(CONCATENATE('Title page'!B3,"-","7a","-",'Table 7a'!$Q9),Targets!$E:$T,14,FALSE),"") -> e) Performance is below baseline | Q9: 4
A10: 5 | B10: =_xlfn.IFNA(VLOOKUP(CONCATENATE('Title page'!B3,"-","7a","-",'Table 7a'!$Q10),Targets!$E:$T,15,FALSE),"") -> Access | C10: =_xlfn.IFNA(VLOOKUP(CONCATENATE('Title page'!B3,"-","7a","-",'Table 7a'!$Q10),Targets!$E:$T,16,FALSE),"") -> Mature | D10: =_xlfn.IFNA(VLOOKUP(CONCATENATE('Title page'!B3,"-","7a","-",'Table 7a'!$Q10),Targets!$E:$T,2,FALSE),"") -> HESA T2a - (Mature, full-time, all undergraduate entrants) | E10: =_xlfn.IFNA(VLOOKUP(CONCATENATE('Title page'!B3,"-","7a","-",'Table 7a'!$Q10),Targets!$E:$T,3,FALSE),"") -> Participation of mature students with no previous HE experience from low participation neighbourhoods (all entrants) | F10: =_xlfn.IFNA(VLOOKUP(CONCATENATE('Title page'!B3,"-","7a","-",'Table 7a'!$Q10),Targets!$E:$T,4,FALSE),"") -> No | G10: =_xlfn.IFNA(VLOOKUP(CONCATENATE('Title page'!B3,"-","7a","-",'Table 7a'!$Q10),Targets!$E:$T,5,FALSE),"") -> 0.136 | H10: =_xlfn.IFNA(VLOOKUP(CONCATENATE('Title page'!B3,"-","7a","-",'Table 7a'!$Q10),Targets!$E:$T,6,FALSE),"") -> 2013-14 | I10: =_xlfn.IFNA(VLOOKUP(CONCATENATE('Title page'!B3,"-","7a","-",'Table 7a'!$Q10),Targets!$E:$T,7,FALSE),"") -> 0.16 | J10: =_xlfn.IFNA(VLOOKUP(CONCATENATE('Title page'!B3,"-","7a","-",'Table 7a'!$Q10),Targets!$E:$T,8,FALSE),"") -> 2019-20 | K10: =_xlfn.IFNA(VLOOKUP(CONCATENATE('Title page'!B3,"-","7a","-",'Table 7a'!$Q10),Targets!$E:$T,9,FALSE),"") -> 0.142 | L10: =_xlfn.IFNA(VLOOKUP(CONCATENATE('Title page'!B3,"-","7a","-",'Table 7a'!$Q10),Targets!$E:$T,10,FALSE),"") -> 0.136 | M10: =_xlfn.IFNA(VLOOKUP(CONCATENATE('Title page'!B3,"-","7a","-",'Table 7a'!$Q10),Targets!$E:$T,11,FALSE),"") -> 0.137 | N10: =_xlfn.IFNA(VLOOKUP(CONCATENATE('Title page'!B3,"-","7a","-",'Table 7a'!$Q10),Targets!$E:$T,12,FALSE),"") -> 0.104 | O10: =_xlfn.IFNA(VLOOKUP(CONCATENATE('Title page'!B3,"-","7a","-",'Table 7a'!$Q10),Targets!$E:$T,13,FALSE),"") -> - | P10: =_xlfn.IFNA(VLOOKUP(CONCATENATE('Title page'!B3,"-","7a","-",'Table 7a'!$Q10),Targets!$E:$T,14,FALSE),"") -> e) Performance is below baseline | Q10: 5
A11: 6 | B11: =_xlfn.IFNA(VLOOKUP(CONCATENATE('Title page'!B3,"-","7a","-",'Table 7a'!$Q11),Targets!$E:$T,15,FALSE),"") -> Access | C11: =_xlfn.IFNA(VLOOKUP(CONCATENATE('Title page'!B3,"-","7a","-",'Table 7a'!$Q11),Targets!$E:$T,16,FALSE),"") -> Low participation neighbourhood (LPN) | D11: =_xlfn.IFNA(VLOOKUP(CONCATENATE('Title page'!B3,"-","7a","-",'Table 7a'!$Q11),Targets!$E:$T,2,FALSE),"") -> HESA T2b - Low participation neighbourhoods (POLAR3) (All, part-time, entrants) | E11: =_xlfn.IFNA(VLOOKUP(CONCATENATE('Title page'!B3,"-","7a","-",'Table 7a'!$Q11),Targets!$E:$T,3,FALSE),"") -> Participation of PT students with no previous HE experience from low participation neighbourhoods | F11: =_xlfn.IFNA(VLOOKUP(CONCATENATE('Title page'!B3,"-","7a","-",'Table 7a'!$Q11),Targets!$E:$T,4,FALSE),"") -> No | G11: =_xlfn.IFNA(VLOOKUP(CONCATENATE('Title page'!B3,"-","7a","-",'Table 7a'!$Q11),Targets!$E:$T,5,FALSE),"") -> 0.056 | H11: =_xlfn.IFNA(VLOOKUP(CONCATENATE('Title page'!B3,"-","7a","-",'Table 7a'!$Q11),Targets!$E:$T,6,FALSE),"") -> 2013-14 | I11: =_xlfn.IFNA(VLOOKUP(CONCATENATE('Title page'!B3,"-","7a","-",'Table 7a'!$Q11),Targets!$E:$T,7,FALSE),"") -> 0.078 | J11: =_xlfn.IFNA(VLOOKUP(CONCATENATE('Title page'!B3,"-","7a","-",'Table 7a'!$Q11),Targets!$E:$T,8,FALSE),"") -> 2019-20 | K11: =_xlfn.IFNA(VLOOKUP(CONCATENATE('Title page'!B3,"-","7a","-",'Table 7a'!$Q11),Targets!$E:$T,9,FALSE),"") -> 0.052 | L11: =_xlfn.IFNA(VLOOKUP(CONCATENATE('Title page'!B3,"-","7a","-",'Table 7a'!$Q11),Targets!$E:$T,10,FALSE),"") -> 0.056 | M11: =_xlfn.IFNA(VLOOKUP(CONCATENATE('Title page'!B3,"-","7a","-",'Table 7a'!$Q11),Targets!$E:$T,11,FALSE),"") -> 0.062 | N11: =_xlfn.IFNA(VLOOKUP(CONCATENATE('Title page'!B3,"-","7a","-",'Table 7a'!$Q11),Targets!$E:$T,12,FALSE),"") -> 0.046 | O11: =_xlfn.IFNA(VLOOKUP(CONCATENATE('Title page'!B3,"-","7a","-",'Table 7a'!$Q11),Targets!$E:$T,13,FALSE),"") -> - | P11: =_xlfn.IFNA(VLOOKUP(CONCATENATE('Title page'!B3,"-","7a","-",'Table 7a'!$Q11),Targets!$E:$T,14,FALSE),"") -> e) Performance is below baseline | Q11: 6
A12: 7 | B12: =_xlfn.IFNA(VLOOKUP(CONCATENATE('Title page'!B3,"-","7a","-",'Table 7a'!$Q12),Targets!$E:$T,15,FALSE),"") -> Student Success | C12: =_xlfn.IFNA(VLOOKUP(CONCATENATE('Title page'!B3,"-","7a","-",'Table 7a'!$Q12),Targets!$E:$T,16,FALSE),"") -> Ethnicity | D12: =_xlfn.IFNA(VLOOKUP(CONCATENATE('Title page'!B3,"-","7a","-",'Table 7a'!$Q12),Targets!$E:$T,2,FALSE),"") -> Other statistic - Ethnicity (please give details in the next column) | E12: =_xlfn.IFNA(VLOOKUP(CONCATENATE('Title page'!B3,"-","7a","-",'Table 7a'!$Q12),Targets!$E:$T,3,FALSE),"") -> Reduce the gap between % of white and BME students achieving good honour degrees (1st or 2:1) | F12: =_xlfn.IFNA(VLOOKUP(CONCATENATE('Title page'!B3,"-","7a","-",'Table 7a'!$Q12),Targets!$E:$T,4,FALSE),"") -> No | G12: =_xlfn.IFNA(VLOOKUP(CONCATENATE('Title page'!B3,"-","7a","-",'Table 7a'!$Q12),Targets!$E:$T,5,FALSE),"") -> 0.17 | H12: =_xlfn.IFNA(VLOOKUP(CONCATENATE('Title page'!B3,"-","7a","-",'Table 7a'!$Q12),Targets!$E:$T,6,FALSE),"") -> 2014-15 | I12: =_xlfn.IFNA(VLOOKUP(CONCATENATE('Title page'!B3,"-","7a","-",'Table 7a'!$Q12),Targets!$E:$T,7,FALSE),"") -> 0.09 | J12: =_xlfn.IFNA(VLOOKUP(CONCATENATE('Title page'!B3,"-","7a","-",'Table 7a'!$Q12),Targets!$E:$T,8,FALSE),"") -> 2019-20 | K12: =_xlfn.IFNA(VLOOKUP(CONCATENATE('Title page'!B3,"-","7a","-",'Table 7a'!$Q12),Targets!$E:$T,9,FALSE),"") -> - | L12: =_xlfn.IFNA(VLOOKUP(CONCATENATE('Title page'!B3,"-","7a","-",'Table 7a'!$Q12),Targets!$E:$T,10,FALSE),"") -> - | M12: =_xlfn.IFNA(VLOOKUP(CONCATENATE('Title page'!B3,"-","7a","-",'Table 7a'!$Q12),Targets!$E:$T,11,FALSE),"") -> 0.19 | N12: =_xlfn.IFNA(VLOOKUP(CONCATENATE('Title page'!B3,"-","7a","-",'Table 7a'!$Q12),Targets!$E:$T,12,FALSE),"") -> 0.162 | O12: =_xlfn.IFNA(VLOOKUP(CONCATENATE('Title page'!B3,"-","7a","-",'Table 7a'!$Q12),Targets!$E:$T,13,FALSE),"") -> - | P12: =_xlfn.IFNA(VLOOKUP(CONCATENATE('Title page'!B3,"-","7a","-",'Table 7a'!$Q12),Targets!$E:$T,14,FALSE),"") -> b) Yearly milestone met | Q12: 7
A13: 8 | B13: =_xlfn.IFNA(VLOOKUP(CONCATENATE('Title page'!B3,"-","7a","-",'Table 7a'!$Q13),Targets!$E:$T,15,FALSE),"") -> Access | C13: =_xlfn.IFNA(VLOOKUP(CONCATENATE('Title page'!B3,"-","7a","-",'Table 7a'!$Q13),Targets!$E:$T,16,FALSE),"") -> Part-time | D13: =_xlfn.IFNA(VLOOKUP(CONCATENATE('Title page'!B3,"-","7a","-",'Table 7a'!$Q13),Targets!$E:$T,2,FALSE),"") -> Other statistic - Part-time (please give details in the next column) | E13: =_xlfn.IFNA(VLOOKUP(CONCATENATE('Title page'!B3,"-","7a","-",'Table 7a'!$Q13),Targets!$E:$T,3,FALSE),"") -> Reduce the decline in part time student numbers (UK Domicile) | F13: =_xlfn.IFNA(VLOOKUP(CONCATENATE('Title page'!B3,"-","7a","-",'Table 7a'!$Q13),Targets!$E:$T,4,FALSE),"") -> No | G13: =_xlfn.IFNA(VLOOKUP(CONCATENATE('Title page'!B3,"-","7a","-",'Table 7a'!$Q13),Targets!$E:$T,5,FALSE),"") -> 0.08 | H13: =_xlfn.IFNA(VLOOKUP(CONCATENATE('Title page'!B3,"-","7a","-",'Table 7a'!$Q13),Targets!$E:$T,6,FALSE),"") -> 2014-15 | I13: =_xlfn.IFNA(VLOOKUP(CONCATENATE('Title page'!B3,"-","7a","-",'Table 7a'!$Q13),Targets!$E:$T,7,FALSE),"") -> 0 | J13: =_xlfn.IFNA(VLOOKUP(CONCATENATE('Title page'!B3,"-","7a","-",'Table 7a'!$Q13),Targets!$E:$T,8,FALSE),"") -> 2019-20 | K13: =_xlfn.IFNA(VLOOKUP(CONCATENATE('Title page'!B3,"-","7a","-",'Table 7a'!$Q13),Targets!$E:$T,9,FALSE),"") -> - | L13: =_xlfn.IFNA(VLOOKUP(CONCATENATE('Title page'!B3,"-","7a","-",'Table 7a'!$Q13),Targets!$E:$T,10,FALSE),"") -> - | M13: =_xlfn.IFNA(VLOOKUP(CONCATENATE('Title page'!B3,"-","7a","-",'Table 7a'!$Q13),Targets!$E:$T,11,FALSE),"") -> 0.08 | N13: =_xlfn.IFNA(VLOOKUP(CONCATENATE('Title page'!B3,"-","7a","-",'Table 7a'!$Q13),Targets!$E:$T,12,FALSE),"") -> 0.04 | O13: =_xlfn.IFNA(VLOOKUP(CONCATENATE('Title page'!B3,"-","7a","-",'Table 7a'!$Q13),Targets!$E:$T,13,FALSE),"") -> - | P13: =_xlfn.IFNA(VLOOKUP(CONCATENATE('Title page'!B3,"-","7a","-",'Table 7a'!$Q13),Targets!$E:$T,14,FALSE),"") -> b) Yearly milestone met | Q13: 8
A14: 9 | B14: =_xlfn.IFNA(VLOOKUP(CONCATENATE('Title page'!B3,"-","7a","-",'Table 7a'!$Q14),Targets!$E:$T,15,FALSE),"") -> Student success | C14: =_xlfn.IFNA(VLOOKUP(CONCATENATE('Title page'!B3,"-","7a","-",'Table 7a'!$Q14),Targets!$E:$T,16,FALSE),"") -> Disability | D14: =_xlfn.IFNA(VLOOKUP(CONCATENATE('Title page'!B3,"-","7a","-",'Table 7a'!$Q14),Targets!$E:$T,2,FALSE),"") -> Other statistic - Disabled (please give details in the next column) | E14: =_xlfn.IFNA(VLOOKUP(CONCATENATE('Title page'!B3,"-","7a","-",'Table 7a'!$Q14),Targets!$E:$T,3,FALSE),"") -> Reduce the degree attainment gap between disabled students and those who do not declare a disability | F14: =_xlfn.IFNA(VLOOKUP(CONCATENATE('Title page'!B3,"-","7a","-",'Table 7a'!$Q14),Targets!$E:$T,4,FALSE),"") -> No | G14: =_xlfn.IFNA(VLOOKUP(CONCATENATE('Title page'!B3,"-","7a","-",'Table 7a'!$Q14),Targets!$E:$T,5,FALSE),"") -> 0.01 | H14: =_xlfn.IFNA(VLOOKUP(CONCATENATE('Title page'!B3,"-","7a","-",'Table 7a'!$Q14),Targets!$E:$T,6,FALSE),"") -> 2014-15 | I14: =_xlfn.IFNA(VLOOKUP(CONCATENATE('Title page'!B3,"-","7a","-",'Table 7a'!$Q14),Targets!$E:$T,7,FALSE),"") -> 0 | J14: =_xlfn.IFNA(VLOOKUP(CONCATENATE('Title page'!B3,"-","7a","-",'Table 7a'!$Q14),Targets!$E:$T,8,FALSE),"") -> 2019-20 | K14: =_xlfn.IFNA(VLOOKUP(CONCATENATE('Title page'!B3,"-","7a","-",'Table 7a'!$Q14),Targets!$E:$T,9,FALSE),"") -> - | L14: =_xlfn.IFNA(VLOOKUP(CONCATENATE('Title page'!B3,"-","7a","-",'Table 7a'!$Q14),Targets!$E:$T,10,FALSE),"") -> - | M14: =_xlfn.IFNA(VLOOKUP(CONCATENATE('Title page'!B3,"-","7a","-",'Table 7a'!$Q14),Targets!$E:$T,11,FALSE),"") -> 0.01 | N14: =_xlfn.IFNA(VLOOKUP(CONCATENATE('Title page'!B3,"-","7a","-",'Table 7a'!$Q14),Targets!$E:$T,12,FALSE),"") -> 0.01 | O14: =_xlfn.IFNA(VLOOKUP(CONCATENATE('Title page'!B3,"-","7a","-",'Table 7a'!$Q14),Targets!$E:$T,13,FALSE),"") -> - | P14: =_xlfn.IFNA(VLOOKUP(CONCATENATE('Title page'!B3,"-","7a","-",'Table 7a'!$Q14),Targets!$E:$T,14,FALSE),"") -> b) Yearly milestone met | Q14: 9
A15: 10 | B15: =_xlfn.IFNA(VLOOKUP(CONCATENATE('Title page'!B3,"-","7a","-",'Table 7a'!$Q15),Targets!$E:$T,15,FALSE),"") -> Progression | C15: =_xlfn.IFNA(VLOOKUP(CONCATENATE('Title page'!B3,"-","7a","-",'Table 7a'!$Q15),Targets!$E:$T,16,FALSE),"") -> Part-time | D15: =_xlfn.IFNA(VLOOKUP(CONCATENATE('Title page'!B3,"-","7a","-",'Table 7a'!$Q15),Targets!$E:$T,2,FALSE),"") -> Other statistic - Part-time (please give details in the next column) | E15: =_xlfn.IFNA(VLOOKUP(CONCATENATE('Title page'!B3,"-","7a","-",'Table 7a'!$Q15),Targets!$E:$T,3,FALSE),"") -> HESA Table E1b - Employment indicator (employed or studying): UK domiciled leavers obtaining first degree qualifications from part-time courses (New indicator in 2017/18 Access Agreement). | F15: =_xlfn.IFNA(VLOOKUP(CONCATENATE('Title page'!B3,"-","7a","-",'Table 7a'!$Q15),Targets!$E:$T,4,FALSE),"") -> No | G15: =_xlfn.IFNA(VLOOKUP(CONCATENATE('Title page'!B3,"-","7a","-",'Table 7a'!$Q15),Targets!$E:$T,5,FALSE),"") -> 0.98 | H15: =_xlfn.IFNA(VLOOKUP(CONCATENATE('Title page'!B3,"-","7a","-",'Table 7a'!$Q15),Targets!$E:$T,6,FALSE),"") -> 2013-14 | I15: =_xlfn.IFNA(VLOOKUP(CONCATENATE('Title page'!B3,"-","7a","-",'Table 7a'!$Q15),Targets!$E:$T,7,FALSE),"") -> 0.99 | J15: =_xlfn.IFNA(VLOOKUP(CONCATENATE('Title page'!B3,"-","7a","-",'Table 7a'!$Q15),Targets!$E:$T,8,FALSE),"") -> 2021-22 | K15: =_xlfn.IFNA(VLOOKUP(CONCATENATE('Title page'!B3,"-","7a","-",'Table 7a'!$Q15),Targets!$E:$T,9,FALSE),"") -> - | L15: =_xlfn.IFNA(VLOOKUP(CONCATENATE('Title page'!B3,"-","7a","-",'Table 7a'!$Q15),Targets!$E:$T,10,FALSE),"") -> - | M15: =_xlfn.IFNA(VLOOKUP(CONCATENATE('Title page'!B3,"-","7a","-",'Table 7a'!$Q15),Targets!$E:$T,11,FALSE),"") -> 0.987 | N15: =_xlfn.IFNA(VLOOKUP(CONCATENATE('Title page'!B3,"-","7a","-",'Table 7a'!$Q15),Targets!$E:$T,12,FALSE),"") -> 0.976 | O15: =_xlfn.IFNA(VLOOKUP(CONCATENATE('Title page'!B3,"-","7a","-",'Table 7a'!$Q15),Targets!$E:$T,13,FALSE),"") -> - | P15: =_xlfn.IFNA(VLOOKUP(CONCATENATE('Title page'!B3,"-","7a","-",'Table 7a'!$Q15),Targets!$E:$T,14,FALSE),"") -> d) No progress made against baseline | Q15: 10
B16: =_xlfn.IFNA(VLOOKUP(CONCATENATE('Title page'!B$3,"-","7a","-",'Table 7a'!$Q16),Targets!$E:$T,15,FALSE),"") ->  | C16: =_xlfn.IFNA(VLOOKUP(CONCATENATE('Title page'!B$3,"-","7a","-",'Table 7a'!$Q16),Targets!$E:$T,16,FALSE),"") ->  | D16: =_xlfn.IFNA(VLOOKUP(CONCATENATE('Title page'!B$3,"-","7a","-",'Table 7a'!$Q16),Targets!$E:$T,2,FALSE),"") ->  | E16: =_xlfn.IFNA(VLOOKUP(CONCATENATE('Title page'!B$3,"-","7a","-",'Table 7a'!$Q16),Targets!$E:$T,3,FALSE),"") ->  | F16: =_xlfn.IFNA(VLOOKUP(CONCATENATE('Title page'!B$3,"-","7a","-",'Table 7a'!$Q16),Targets!$E:$T,4,FALSE),"") ->  | G16: =_xlfn.IFNA(VLOOKUP(CONCATENATE('Title page'!B$3,"-","7a","-",'Table 7a'!$Q16),Targets!$E:$T,5,FALSE),"") ->  | H16: =_xlfn.IFNA(VLOOKUP(CONCATENATE('Title page'!B$3,"-","7a","-",'Table 7a'!$Q16),Targets!$E:$T,6,FALSE),"") ->  | I16: =_xlfn.IFNA(VLOOKUP(CONCATENATE('Title page'!B$3,"-","7a","-",'Table 7a'!$Q16),Targets!$E:$T,7,FALSE),"") ->  | J16: =_xlfn.IFNA(VLOOKUP(CONCATENATE('Title page'!B$3,"-","7a","-",'Table 7a'!$Q16),Targets!$E:$T,8,FALSE),"") ->  | K16: =_xlfn.IFNA(VLOOKUP(CONCATENATE('Title page'!B$3,"-","7a","-",'Table 7a'!$Q16),Targets!$E:$T,9,FALSE),"") ->  | L16: =_xlfn.IFNA(VLOOKUP(CONCATENATE('Title page'!B$3,"-","7a","-",'Table 7a'!$Q16),Targets!$E:$T,10,FALSE),"") ->  | M16: =_xlfn.IFNA(VLOOKUP(CONCATENATE('Title page'!B$3,"-","7a","-",'Table 7a'!$Q16),Targets!$E:$T,11,FALSE),"") ->  | N16: =_xlfn.IFNA(VLOOKUP(CONCATENATE('Title page'!B$3,"-","7a","-",'Table 7a'!$Q16),Targets!$E:$T,12,FALSE),"") ->  | O16: =_xlfn.IFNA(VLOOKUP(CONCATENATE('Title page'!B$3,"-","7a","-",'Table 7a'!$Q16),Targets!$E:$T,13,FALSE),"") ->  | P16: =_xlfn.IFNA(VLOOKUP(CONCATENATE('Title page'!B$3,"-","7a","-",'Table 7a'!$Q16),Targets!$E:$T,14,FALSE),"") ->  | Q16: 11
A17: =IF(LEN(B17)<1,"",Q17) ->  | B17: =_xlfn.IFNA(VLOOKUP(CONCATENATE('Title page'!B$3,"-","7a","-",'Table 7a'!$Q17),Targets!$E:$T,15,FALSE),"") ->  | C17: =_xlfn.IFNA(VLOOKUP(CONCATENATE('Title page'!B$3,"-","7a","-",'Table 7a'!$Q17),Targets!$E:$T,16,FALSE),"") ->  | D17: =_xlfn.IFNA(VLOOKUP(CONCATENATE('Title page'!B$3,"-","7a","-",'Table 7a'!$Q17),Targets!$E:$T,2,FALSE),"") ->  | E17: =_xlfn.IFNA(VLOOKUP(CONCATENATE('Title page'!B$3,"-","7a","-",'Table 7a'!$Q17),Targets!$E:$T,3,FALSE),"") ->  | F17: =_xlfn.IFNA(VLOOKUP(CONCATENATE('Title page'!B$3,"-","7a","-",'Table 7a'!$Q17),Targets!$E:$T,4,FALSE),"") ->  | G17: =_xlfn.IFNA(VLOOKUP(CONCATENATE('Title page'!B$3,"-","7a","-",'Table 7a'!$Q17),Targets!$E:$T,5,FALSE),"") ->  | H17: =_xlfn.IFNA(VLOOKUP(CONCATENATE('Title page'!B$3,"-","7a","-",'Table 7a'!$Q17),Targets!$E:$T,6,FALSE),"") ->  | I17: =_xlfn.IFNA(VLOOKUP(CONCATENATE('Title page'!B$3,"-","7a","-",'Table 7a'!$Q17),Targets!$E:$T,7,FALSE),"") ->  | J17: =_xlfn.IFNA(VLOOKUP(CONCATENATE('Title page'!B$3,"-","7a","-",'Table 7a'!$Q17),Targets!$E:$T,8,FALSE),"") ->  | K17: =_xlfn.IFNA(VLOOKUP(CONCATENATE('Title page'!B$3,"-","7a","-",'Table 7a'!$Q17),Targets!$E:$T,9,FALSE),"") ->  | L17: =_xlfn.IFNA(VLOOKUP(CONCATENATE('Title page'!B$3,"-","7a","-",'Table 7a'!$Q17),Targets!$E:$T,10,FALSE),"") ->  | M17: =_xlfn.IFNA(VLOOKUP(CONCATENATE('Title page'!B$3,"-","7a","-",'Table 7a'!$Q17),Targets!$E:$T,11,FALSE),"") ->  | N17: =_xlfn.IFNA(VLOOKUP(CONCATENATE('Title page'!B$3,"-","7a","-",'Table 7a'!$Q17),Targets!$E:$T,12,FALSE),"") ->  | O17: =_xlfn.IFNA(VLOOKUP(CONCATENATE('Title page'!B$3,"-","7a","-",'Table 7a'!$Q17),Targets!$E:$T,13,FALSE),"") ->  | P17: =_xlfn.IFNA(VLOOKUP(CONCATENATE('Title page'!B$3,"-","7a","-",'Table 7a'!$Q17),Targets!$E:$T,14,FALSE),"") ->  | Q17: 12
B18: =_xlfn.IFNA(VLOOKUP(CONCATENATE('Title page'!B$3,"-","7a","-",'Table 7a'!$Q18),Targets!$E:$T,15,FALSE),"") ->  | C18: =_xlfn.IFNA(VLOOKUP(CONCATENATE('Title page'!B$3,"-","7a","-",'Table 7a'!$Q18),Targets!$E:$T,16,FALSE),"") ->  | D18: =_xlfn.IFNA(VLOOKUP(CONCATENATE('Title page'!B$3,"-","7a","-",'Table 7a'!$Q18),Targets!$E:$T,2,FALSE),"") ->  | E18: =_xlfn.IFNA(VLOOKUP(CONCATENATE('Title page'!B$3,"-","7a","-",'Table 7a'!$Q18),Targets!$E:$T,3,FALSE),"") ->  | F18: =_xlfn.IFNA(VLOOKUP(CONCATENATE('Title page'!B$3,"-","7a","-",'Table 7a'!$Q18),Targets!$E:$T,4,FALSE),"") ->  | G18: =_xlfn.IFNA(VLOOKUP(CONCATENATE('Title page'!B$3,"-","7a","-",'Table 7a'!$Q18),Targets!$E:$T,5,FALSE),"") ->  | H18: =_xlfn.IFNA(VLOOKUP(CONCATENATE('Title page'!B$3,"-","7a","-",'Table 7a'!$Q18),Targets!$E:$T,6,FALSE),"") ->  | I18: =_xlfn.IFNA(VLOOKUP(CONCATENATE('Title page'!B$3,"-","7a","-",'Table 7a'!$Q18),Targets!$E:$T,7,FALSE),"") ->  | J18: =_xlfn.IFNA(VLOOKUP(CONCATENATE('Title page'!B$3,"-","7a","-",'Table 7a'!$Q18),Targets!$E:$T,8,FALSE),"") ->  | K18: =_xlfn.IFNA(VLOOKUP(CONCATENATE('Title page'!B$3,"-","7a","-",'Table 7a'!$Q18),Targets!$E:$T,9,FALSE),"") ->  | L18: =_xlfn.IFNA(VLOOKUP(CONCATENATE('Title page'!B$3,"-","7a","-",'Table 7a'!$Q18),Targets!$E:$T,10,FALSE),"") ->  | M18: =_xlfn.IFNA(VLOOKUP(CONCATENATE('Title page'!B$3,"-","7a","-",'Table 7a'!$Q18),Targets!$E:$T,11,FALSE),"") ->  | N18: =_xlfn.IFNA(VLOOKUP(CONCATENATE('Title page'!B$3,"-","7a","-",'Table 7a'!$Q18),Targets!$E:$T,12,FALSE),"") ->  | O18: =_xlfn.IFNA(VLOOKUP(CONCATENATE('Title page'!B$3,"-","7a","-",'Table 7a'!$Q18),Targets!$E:$T,13,FALSE),"") ->  | P18: =_xlfn.IFNA(VLOOKUP(CONCATENATE('Title page'!B$3,"-","7a","-",'Table 7a'!$Q18),Targets!$E:$T,14,FALSE),"") ->  | Q18: 13
B19: =_xlfn.IFNA(VLOOKUP(CONCATENATE('Title page'!B$3,"-","7a","-",'Table 7a'!$Q19),Targets!$E:$T,15,FALSE),"") ->  | C19: =_xlfn.IFNA(VLOOKUP(CONCATENATE('Title page'!B$3,"-","7a","-",'Table 7a'!$Q19),Targets!$E:$T,16,FALSE),"") ->  | D19: =_xlfn.IFNA(VLOOKUP(CONCATENATE('Title page'!B$3,"-","7a","-",'Table 7a'!$Q19),Targets!$E:$T,2,FALSE),"") ->  | E19: =_xlfn.IFNA(VLOOKUP(CONCATENATE('Title page'!B$3,"-","7a","-",'Table 7a'!$Q19),Targets!$E:$T,3,FALSE),"") ->  | F19: =_xlfn.IFNA(VLOOKUP(CONCATENATE('Title page'!B$3,"-","7a","-",'Table 7a'!$Q19),Targets!$E:$T,4,FALSE),"") ->  | G19: =_xlfn.IFNA(VLOOKUP(CONCATENATE('Title page'!B$3,"-","7a","-",'Table 7a'!$Q19),Targets!$E:$T,5,FALSE),"") ->  | H19: =_xlfn.IFNA(VLOOKUP(CONCATENATE('Title page'!B$3,"-","7a","-",'Table 7a'!$Q19),Targets!$E:$T,6,FALSE),"") ->  | I19: =_xlfn.IFNA(VLOOKUP(CONCATENATE('Title page'!B$3,"-","7a","-",'Table 7a'!$Q19),Targets!$E:$T,7,FALSE),"") ->  | J19: =_xlfn.IFNA(VLOOKUP(CONCATENATE('Title page'!B$3,"-","7a","-",'Table 7a'!$Q19),Targets!$E:$T,8,FALSE),"") ->  | K19: =_xlfn.IFNA(VLOOKUP(CONCATENATE('Title page'!B$3,"-","7a","-",'Table 7a'!$Q19),Targets!$E:$T,9,FALSE),"") ->  | L19: =_xlfn.IFNA(VLOOKUP(CONCATENATE('Title page'!B$3,"-","7a","-",'Table 7a'!$Q19),Targets!$E:$T,10,FALSE),"") ->  | M19: =_xlfn.IFNA(VLOOKUP(CONCATENATE('Title page'!B$3,"-","7a","-",'Table 7a'!$Q19),Targets!$E:$T,11,FALSE),"") ->  | N19: =_xlfn.IFNA(VLOOKUP(CONCATENATE('Title page'!B$3,"-","7a","-",'Table 7a'!$Q19),Targets!$E:$T,12,FALSE),"") ->  | O19: =_xlfn.IFNA(VLOOKUP(CONCATENATE('Title page'!B$3,"-","7a","-",'Table 7a'!$Q19),Targets!$E:$T,13,FALSE),"") ->  | P19: =_xlfn.IFNA(VLOOKUP(CONCATENATE('Title page'!B$3,"-","7a","-",'Table 7a'!$Q19),Targets!$E:$T,14,FALSE),"") ->  | Q19: 14
B20: =_xlfn.IFNA(VLOOKUP(CONCATENATE('Title page'!B$3,"-","7a","-",'Table 7a'!$Q20),Targets!$E:$T,15,FALSE),"") ->  | C20: =_xlfn.IFNA(VLOOKUP(CONCATENATE('Title page'!B$3,"-","7a","-",'Table 7a'!$Q20),Targets!$E:$T,16,FALSE),"") ->  | D20: =_xlfn.IFNA(VLOOKUP(CONCATENATE('Title page'!B$3,"-","7a","-",'Table 7a'!$Q20),Targets!$E:$T,2,FALSE),"") ->  | E20: =_xlfn.IFNA(VLOOKUP(CONCATENATE('Title page'!B$3,"-","7a","-",'Table 7a'!$Q20),Targets!$E:$T,3,FALSE),"") ->  | F20: =_xlfn.IFNA(VLOOKUP(CONCATENATE('Title page'!B$3,"-","7a","-",'Table 7a'!$Q20),Targets!$E:$T,4,FALSE),"") ->  | G20: =_xlfn.IFNA(VLOOKUP(CONCATENATE('Title page'!B$3,"-","7a","-",'Table 7a'!$Q20),Targets!$E:$T,5,FALSE),"") ->  | H20: =_xlfn.IFNA(VLOOKUP(CONCATENATE('Title page'!B$3,"-","7a","-",'Table 7a'!$Q20),Targets!$E:$T,6,FALSE),"") ->  | I20: =_xlfn.IFNA(VLOOKUP(CONCATENATE('Title page'!B$3,"-","7a","-",'Table 7a'!$Q20),Targets!$E:$T,7,FALSE),"") ->  | J20: =_xlfn.IFNA(VLOOKUP(CONCATENATE('Title page'!B$3,"-","7a","-",'Table 7a'!$Q20),Targets!$E:$T,8,FALSE),"") ->  | K20: =_xlfn.IFNA(VLOOKUP(CONCATENATE('Title page'!B$3,"-","7a","-",'Table 7a'!$Q20),Targets!$E:$T,9,FALSE),"") ->  | L20: =_xlfn.IFNA(VLOOKUP(CONCATENATE('Title page'!B$3,"-","7a","-",'Table 7a'!$Q20),Targets!$E:$T,10,FALSE),"") ->  | M20: =_xlfn.IFNA(VLOOKUP(CONCATENATE('Title page'!B$3,"-","7a","-",'Table 7a'!$Q20),Targets!$E:$T,11,FALSE),"") ->  | N20: =_xlfn.IFNA(VLOOKUP(CONCATENATE('Title page'!B$3,"-","7a","-",'Table 7a'!$Q20),Targets!$E:$T,12,FALSE),"") ->  | O20: =_xlfn.IFNA(VLOOKUP(CONCATENATE('Title page'!B$3,"-","7a","-",'Table 7a'!$Q20),Targets!$E:$T,13,FALSE),"") ->  | P20: =_xlfn.IFNA(VLOOKUP(CONCATENATE('Title page'!B$3,"-","7a","-",'Table 7a'!$Q20),Targets!$E:$T,14,FALSE),"") ->  | Q20: 15
B21: =_xlfn.IFNA(VLOOKUP(CONCATENATE('Title page'!B$3,"-","7a","-",'Table 7a'!$Q21),Targets!$E:$T,15,FALSE),"") ->  | C21: =_xlfn.IFNA(VLOOKUP(CONCATENATE('Title page'!B$3,"-","7a","-",'Table 7a'!$Q21),Targets!$E:$T,16,FALSE),"") ->  | D21: =_xlfn.IFNA(VLOOKUP(CONCATENATE('Title page'!B$3,"-","7a","-",'Table 7a'!$Q21),Targets!$E:$T,2,FALSE),"") ->  | E21: =_xlfn.IFNA(VLOOKUP(CONCATENATE('Title page'!B$3,"-","7a","-",'Table 7a'!$Q21),Targets!$E:$T,3,FALSE),"") ->  | F21: =_xlfn.IFNA(VLOOKUP(CONCATENATE('Title page'!B$3,"-","7a","-",'Table 7a'!$Q21),Targets!$E:$T,4,FALSE),"") ->  | G21: =_xlfn.IFNA(VLOOKUP(CONCATENATE('Title page'!B$3,"-","7a","-",'Table 7a'!$Q21),Targets!$E:$T,5,FALSE),"") ->  | H21: =_xlfn.IFNA(VLOOKUP(CONCATENATE('Title page'!B$3,"-","7a","-",'Table 7a'!$Q21),Targets!$E:$T,6,FALSE),"") ->  | I21: =_xlfn.IFNA(VLOOKUP(CONCATENATE('Title page'!B$3,"-","7a","-",'Table 7a'!$Q21),Targets!$E:$T,7,FALSE),"") ->  | J21: =_xlfn.IFNA(VLOOKUP(CONCATENATE('Title page'!B$3,"-","7a","-",'Table 7a'!$Q21),Targets!$E:$T,8,FALSE),"") ->  | K21: =_xlfn.IFNA(VLOOKUP(CONCATENATE('Title page'!B$3,"-","7a","-",'Table 7a'!$Q21),Targets!$E:$T,9,FALSE),"") ->  | L21: =_xlfn.IFNA(VLOOKUP(CONCATENATE('Title page'!B$3,"-","7a","-",'Table 7a'!$Q21),Targets!$E:$T,10,FALSE),"") ->  | M21: =_xlfn.IFNA(VLOOKUP(CONCATENATE('Title page'!B$3,"-","7a","-",'Table 7a'!$Q21),Targets!$E:$T,11,FALSE),"") ->  | N21: =_xlfn.IFNA(VLOOKUP(CONCATENATE('Title page'!B$3,"-","7a","-",'Table 7a'!$Q21),Targets!$E:$T,12,FALSE),"") ->  | O21: =_xlfn.IFNA(VLOOKUP(CONCATENATE('Title page'!B$3,"-","7a","-",'Table 7a'!$Q21),Targets!$E:$T,13,FALSE),"") ->  | P21: =_xlfn.IFNA(VLOOKUP(CONCATENATE('Title page'!B$3,"-","7a","-",'Table 7a'!$Q21),Targets!$E:$T,14,FALSE),"") ->  | Q21: 16
B22: =_xlfn.IFNA(VLOOKUP(CONCATENATE('Title page'!B$3,"-","7a","-",'Table 7a'!$Q22),Targets!$E:$T,15,FALSE),"") ->  | C22: =_xlfn.IFNA(VLOOKUP(CONCATENATE('Title page'!B$3,"-","7a","-",'Table 7a'!$Q22),Targets!$E:$T,16,FALSE),"") ->  | D22: =_xlfn.IFNA(VLOOKUP(CONCATENATE('Title page'!B$3,"-","7a","-",'Table 7a'!$Q22),Targets!$E:$T,2,FALSE),"") ->  | E22: =_xlfn.IFNA(VLOOKUP(CONCATENATE('Title page'!B$3,"-","7a","-",'Table 7a'!$Q22),Targets!$E:$T,3,FALSE),"") ->  | F22: =_xlfn.IFNA(VLOOKUP(CONCATENATE('Title page'!B$3,"-","7a","-",'Table 7a'!$Q22),Targets!$E:$T,4,FALSE),"") ->  | G22: =_xlfn.IFNA(VLOOKUP(CONCATENATE('Title page'!B$3,"-","7a","-",'Table 7a'!$Q22),Targets!$E:$T,5,FALSE),"") ->  | H22: =_xlfn.IFNA(VLOOKUP(CONCATENATE('Title page'!B$3,"-","7a","-",'Table 7a'!$Q22),Targets!$E:$T,6,FALSE),"") ->  | I22: =_xlfn.IFNA(VLOOKUP(CONCATENATE('Title page'!B$3,"-","7a","-",'Table 7a'!$Q22),Targets!$E:$T,7,FALSE),"") ->  | J22: =_xlfn.IFNA(VLOOKUP(CONCATENATE('Title page'!B$3,"-","7a","-",'Table 7a'!$Q22),Targets!$E:$T,8,FALSE),"") ->  | K22: =_xlfn.IFNA(VLOOKUP(CONCATENATE('Title page'!B$3,"-","7a","-",'Table 7a'!$Q22),Targets!$E:$T,9,FALSE),"") ->  | L22: =_xlfn.IFNA(VLOOKUP(CONCATENATE('Title page'!B$3,"-","7a","-",'Table 7a'!$Q22),Targets!$E:$T,10,FALSE),"") ->  | M22: =_xlfn.IFNA(VLOOKUP(CONCATENATE('Title page'!B$3,"-","7a","-",'Table 7a'!$Q22),Targets!$E:$T,11,FALSE),"") ->  | N22: =_xlfn.IFNA(VLOOKUP(CONCATENATE('Title page'!B$3,"-","7a","-",'Table 7a'!$Q22),Targets!$E:$T,12,FALSE),"") ->  | O22: =_xlfn.IFNA(VLOOKUP(CONCATENATE('Title page'!B$3,"-","7a","-",'Table 7a'!$Q22),Targets!$E:$T,13,FALSE),"") ->  | P22: =_xlfn.IFNA(VLOOKUP(CONCATENATE('Title page'!B$3,"-","7a","-",'Table 7a'!$Q22),Targets!$E:$T,14,FALSE),"") ->  | Q22: 17
B23: =_xlfn.IFNA(VLOOKUP(CONCATENATE('Title page'!B$3,"-","7a","-",'Table 7a'!$Q23),Targets!$E:$T,15,FALSE),"") ->  | C23: =_xlfn.IFNA(VLOOKUP(CONCATENATE('Title page'!B$3,"-","7a","-",'Table 7a'!$Q23),Targets!$E:$T,16,FALSE),"") ->  | D23: =_xlfn.IFNA(VLOOKUP(CONCATENATE('Title page'!B$3,"-","7a","-",'Table 7a'!$Q23),Targets!$E:$T,2,FALSE),"") ->  | E23: =_xlfn.IFNA(VLOOKUP(CONCATENATE('Title page'!B$3,"-","7a","-",'Table 7a'!$Q23),Targets!$E:$T,3,FALSE),"") ->  | F23: =_xlfn.IFNA(VLOOKUP(CONCATENATE('Title page'!B$3,"-","7a","-",'Table 7a'!$Q23),Targets!$E:$T,4,FALSE),"") ->  | G23: =_xlfn.IFNA(VLOOKUP(CONCATENATE('Title page'!B$3,"-","7a","-",'Table 7a'!$Q23),Targets!$E:$T,5,FALSE),"") ->  | H23: =_xlfn.IFNA(VLOOKUP(CONCATENATE('Title page'!B$3,"-","7a","-",'Table 7a'!$Q23),Targets!$E:$T,6,FALSE),"") ->  | I23: =_xlfn.IFNA(VLOOKUP(CONCATENATE('Title page'!B$3,"-","7a","-",'Table 7a'!$Q23),Targets!$E:$T,7,FALSE),"") ->  | J23: =_xlfn.IFNA(VLOOKUP(CONCATENATE('Title page'!B$3,"-","7a","-",'Table 7a'!$Q23),Targets!$E:$T,8,FALSE),"") ->  | K23: =_xlfn.IFNA(VLOOKUP(CONCATENATE('Title page'!B$3,"-","7a","-",'Table 7a'!$Q23),Targets!$E:$T,9,FALSE),"") ->  | L23: =_xlfn.IFNA(VLOOKUP(CONCATENATE('Title page'!B$3,"-","7a","-",'Table 7a'!$Q23),Targets!$E:$T,10,FALSE),"") ->  | M23: =_xlfn.IFNA(VLOOKUP(CONCATENATE('Title page'!B$3,"-","7a","-",'Table 7a'!$Q23),Targets!$E:$T,11,FALSE),"") ->  | N23: =_xlfn.IFNA(VLOOKUP(CONCATENATE('Title page'!B$3,"-","7a","-",'Table 7a'!$Q23),Targets!$E:$T,12,FALSE),"") ->  | O23: =_xlfn.IFNA(VLOOKUP(CONCATENATE('Title page'!B$3,"-","7a","-",'Table 7a'!$Q23),Targets!$E:$T,13,FALSE),"") ->  | P23: =_xlfn.IFNA(VLOOKUP(CONCATENATE('Title page'!B$3,"-","7a","-",'Table 7a'!$Q23),Targets!$E:$T,14,FALSE),"") ->  | Q23: 18
B24: =_xlfn.IFNA(VLOOKUP(CONCATENATE('Title page'!B$3,"-","7a","-",'Table 7a'!$Q24),Targets!$E:$T,15,FALSE),"") ->  | C24: =_xlfn.IFNA(VLOOKUP(CONCATENATE('Title page'!B$3,"-","7a","-",'Table 7a'!$Q24),Targets!$E:$T,16,FALSE),"") ->  | D24: =_xlfn.IFNA(VLOOKUP(CONCATENATE('Title page'!B$3,"-","7a","-",'Table 7a'!$Q24),Targets!$E:$T,2,FALSE),"") ->  | E24: =_xlfn.IFNA(VLOOKUP(CONCATENATE('Title page'!B$3,"-","7a","-",'Table 7a'!$Q24),Targets!$E:$T,3,FALSE),"") ->  | F24: =_xlfn.IFNA(VLOOKUP(CONCATENATE('Title page'!B$3,"-","7a","-",'Table 7a'!$Q24),Targets!$E:$T,4,FALSE),"") ->  | G24: =_xlfn.IFNA(VLOOKUP(CONCATENATE('Title page'!B$3,"-","7a","-",'Table 7a'!$Q24),Targets!$E:$T,5,FALSE),"") ->  | H24: =_xlfn.IFNA(VLOOKUP(CONCATENATE('Title page'!B$3,"-","7a","-",'Table 7a'!$Q24),Targets!$E:$T,6,FALSE),"") ->  | I24: =_xlfn.IFNA(VLOOKUP(CONCATENATE('Title page'!B$3,"-","7a","-",'Table 7a'!$Q24),Targets!$E:$T,7,FALSE),"") ->  | J24: =_xlfn.IFNA(VLOOKUP(CONCATENATE('Title page'!B$3,"-","7a","-",'Table 7a'!$Q24),Targets!$E:$T,8,FALSE),"") ->  | K24: =_xlfn.IFNA(VLOOKUP(CONCATENATE('Title page'!B$3,"-","7a","-",'Table 7a'!$Q24),Targets!$E:$T,9,FALSE),"") ->  | L24: =_xlfn.IFNA(VLOOKUP(CONCATENATE('Title page'!B$3,"-","7a","-",'Table 7a'!$Q24),Targets!$E:$T,10,FALSE),"") ->  | M24: =_xlfn.IFNA(VLOOKUP(CONCATENATE('Title page'!B$3,"-","7a","-",'Table 7a'!$Q24),Targets!$E:$T,11,FALSE),"") ->  | N24: =_xlfn.IFNA(VLOOKUP(CONCATENATE('Title page'!B$3,"-","7a","-",'Table 7a'!$Q24),Targets!$E:$T,12,FALSE),"") ->  | O24: =_xlfn.IFNA(VLOOKUP(CONCATENATE('Title page'!B$3,"-","7a","-",'Table 7a'!$Q24),Targets!$E:$T,13,FALSE),"") ->  | P24: =_xlfn.IFNA(VLOOKUP(CONCATENATE('Title page'!B$3,"-","7a","-",'Table 7a'!$Q24),Targets!$E:$T,14,FALSE),"") ->  | Q24: 19
B25: =_xlfn.IFNA(VLOOKUP(CONCATENATE('Title page'!B$3,"-","7a","-",'Table 7a'!$Q25),Targets!$E:$T,15,FALSE),"") ->  | C25: =_xlfn.IFNA(VLOOKUP(CONCATENATE('Title page'!B$3,"-","7a","-",'Table 7a'!$Q25),Targets!$E:$T,16,FALSE),"") ->  | D25: =_xlfn.IFNA(VLOOKUP(CONCATENATE('Title page'!B$3,"-","7a","-",'Table 7a'!$Q25),Targets!$E:$T,2,FALSE),"") ->  | E25: =_xlfn.IFNA(VLOOKUP(CONCATENATE('Title page'!B$3,"-","7a","-",'Table 7a'!$Q25),Targets!$E:$T,3,FALSE),"") ->  | F25: =_xlfn.IFNA(VLOOKUP(CONCATENATE('Title page'!B$3,"-","7a","-",'Table 7a'!$Q25),Targets!$E:$T,4,FALSE),"") ->  | G25: =_xlfn.IFNA(VLOOKUP(CONCATENATE('Title page'!B$3,"-","7a","-",'Table 7a'!$Q25),Targets!$E:$T,5,FALSE),"") ->  | H25: =_xlfn.IFNA(VLOOKUP(CONCATENATE('Title page'!B$3,"-","7a","-",'Table 7a'!$Q25),Targets!$E:$T,6,FALSE),"") ->  | I25: =_xlfn.IFNA(VLOOKUP(CONCATENATE('Title page'!B$3,"-","7a","-",'Table 7a'!$Q25),Targets!$E:$T,7,FALSE),"") ->  | J25: =_xlfn.IFNA(VLOOKUP(CONCATENATE('Title page'!B$3,"-","7a","-",'Table 7a'!$Q25),Targets!$E:$T,8,FALSE),"") ->  | K25: =_xlfn.IFNA(VLOOKUP(CONCATENATE('Title page'!B$3,"-","7a","-",'Table 7a'!$Q25),Targets!$E:$T,9,FALSE),"") ->  | L25: =_xlfn.IFNA(VLOOKUP(CONCATENATE('Title page'!B$3,"-","7a","-",'Table 7a'!$Q25),Targets!$E:$T,10,FALSE),"") ->  | M25: =_xlfn.IFNA(VLOOKUP(CONCATENATE('Title page'!B$3,"-","7a","-",'Table 7a'!$Q25),Targets!$E:$T,11,FALSE),"") ->  | N25: =_xlfn.IFNA(VLOOKUP(CONCATENATE('Title page'!B$3,"-","7a","-",'Table 7a'!$Q25),Targets!$E:$T,12,FALSE),"") ->  | O25: =_xlfn.IFNA(VLOOKUP(CONCATENATE('Title page'!B$3,"-","7a","-",'Table 7a'!$Q25),Targets!$E:$T,13,FALSE),"") ->  | P25: =_xlfn.IFNA(VLOOKUP(CONCATENATE('Title page'!B$3,"-","7a","-",'Table 7a'!$Q25),Targets!$E:$T,14,FALSE),"") ->  | Q25: 20
B26: =_xlfn.IFNA(VLOOKUP(CONCATENATE('Title page'!B$3,"-","7a","-",'Table 7a'!$Q26),Targets!$E:$T,15,FALSE),"") ->  | C26: =_xlfn.IFNA(VLOOKUP(CONCATENATE('Title page'!B$3,"-","7a","-",'Table 7a'!$Q26),Targets!$E:$T,16,FALSE),"") ->  | D26: =_xlfn.IFNA(VLOOKUP(CONCATENATE('Title page'!B$3,"-","7a","-",'Table 7a'!$Q26),Targets!$E:$T,2,FALSE),"") ->  | E26: =_xlfn.IFNA(VLOOKUP(CONCATENATE('Title page'!B$3,"-","7a","-",'Table 7a'!$Q26),Targets!$E:$T,3,FALSE),"") ->  | F26: =_xlfn.IFNA(VLOOKUP(CONCATENATE('Title page'!B$3,"-","7a","-",'Table 7a'!$Q26),Targets!$E:$T,4,FALSE),"") ->  | G26: =_xlfn.IFNA(VLOOKUP(CONCATENATE('Title page'!B$3,"-","7a","-",'Table 7a'!$Q26),Targets!$E:$T,5,FALSE),"") ->  | H26: =_xlfn.IFNA(VLOOKUP(CONCATENATE('Title page'!B$3,"-","7a","-",'Table 7a'!$Q26),Targets!$E:$T,6,FALSE),"") ->  | I26: =_xlfn.IFNA(VLOOKUP(CONCATENATE('Title page'!B$3,"-","7a","-",'Table 7a'!$Q26),Targets!$E:$T,7,FALSE),"") ->  | J26: =_xlfn.IFNA(VLOOKUP(CONCATENATE('Title page'!B$3,"-","7a","-",'Table 7a'!$Q26),Targets!$E:$T,8,FALSE),"") ->  | K26: =_xlfn.IFNA(VLOOKUP(CONCATENATE('Title page'!B$3,"-","7a","-",'Table 7a'!$Q26),Targets!$E:$T,9,FALSE),"") ->  | L26: =_xlfn.IFNA(VLOOKUP(CONCATENATE('Title page'!B$3,"-","7a","-",'Table 7a'!$Q26),Targets!$E:$T,10,FALSE),"") ->  | M26: =_xlfn.IFNA(VLOOKUP(CONCATENATE('Title page'!B$3,"-","7a","-",'Table 7a'!$Q26),Targets!$E:$T,11,FALSE),"") ->  | N26: =_xlfn.IFNA(VLOOKUP(CONCATENATE('Title page'!B$3,"-","7a","-",'Table 7a'!$Q26),Targets!$E:$T,12,FALSE),"") ->  | O26: =_xlfn.IFNA(VLOOKUP(CONCATENATE('Title page'!B$3,"-","7a","-",'Table 7a'!$Q26),Targets!$E:$T,13,FALSE),"") ->  | P26: =_xlfn.IFNA(VLOOKUP(CONCATENATE('Title page'!B$3,"-","7a","-",'Table 7a'!$Q26),Targets!$E:$T,14,FALSE),"") ->  | Q26: 21
B27: =_xlfn.IFNA(VLOOKUP(CONCATENATE('Title page'!B$3,"-","7a","-",'Table 7a'!$Q27),Targets!$E:$T,15,FALSE),"") ->  | C27: =_xlfn.IFNA(VLOOKUP(CONCATENATE('Title page'!B$3,"-","7a","-",'Table 7a'!$Q27),Targets!$E:$T,16,FALSE),"") ->  | D27: =_xlfn.IFNA(VLOOKUP(CONCATENATE('Title page'!B$3,"-","7a","-",'Table 7a'!$Q27),Targets!$E:$T,2,FALSE),"") ->  | E27: =_xlfn.IFNA(VLOOKUP(CONCATENATE('Title page'!B$3,"-","7a","-",'Table 7a'!$Q27),Targets!$E:$T,3,FALSE),"") ->  | F27: =_xlfn.IFNA(VLOOKUP(CONCATENATE('Title page'!B$3,"-","7a","-",'Table 7a'!$Q27),Targets!$E:$T,4,FALSE),"") ->  | G27: =_xlfn.IFNA(VLOOKUP(CONCATENATE('Title page'!B$3,"-","7a","-",'Table 7a'!$Q27),Targets!$E:$T,5,FALSE),"") ->  | H27: =_xlfn.IFNA(VLOOKUP(CONCATENATE('Title page'!B$3,"-","7a","-",'Table 7a'!$Q27),Targets!$E:$T,6,FALSE),"") ->  | I27: =_xlfn.IFNA(VLOOKUP(CONCATENATE('Title page'!B$3,"-","7a","-",'Table 7a'!$Q27),Targets!$E:$T,7,FALSE),"") ->  | J27: =_xlfn.IFNA(VLOOKUP(CONCATENATE('Title page'!B$3,"-","7a","-",'Table 7a'!$Q27),Targets!$E:$T,8,FALSE),"") ->  | K27: =_xlfn.IFNA(VLOOKUP(CONCATENATE('Title page'!B$3,"-","7a","-",'Table 7a'!$Q27),Targets!$E:$T,9,FALSE),"") ->  | L27: =_xlfn.IFNA(VLOOKUP(CONCATENATE('Title page'!B$3,"-","7a","-",'Table 7a'!$Q27),Targets!$E:$T,10,FALSE),"") ->  | M27: =_xlfn.IFNA(VLOOKUP(CONCATENATE('Title page'!B$3,"-","7a","-",'Table 7a'!$Q27),Targets!$E:$T,11,FALSE),"") ->  | N27: =_xlfn.IFNA(VLOOKUP(CONCATENATE('Title page'!B$3,"-","7a","-",'Table 7a'!$Q27),Targets!$E:$T,12,FALSE),"") ->  | O27: =_xlfn.IFNA(VLOOKUP(CONCATENATE('Title page'!B$3,"-","7a","-",'Table 7a'!$Q27),Targets!$E:$T,13,FALSE),"") ->  | P27: =_xlfn.IFNA(VLOOKUP(CONCATENATE('Title page'!B$3,"-","7a","-",'Table 7a'!$Q27),Targets!$E:$T,14,FALSE),"") ->  | Q27: 22
B28: =_xlfn.IFNA(VLOOKUP(CONCATENATE('Title page'!B$3,"-","7a","-",'Table 7a'!$Q28),Targets!$E:$T,15,FALSE),"") ->  | C28: =_xlfn.IFNA(VLOOKUP(CONCATENATE('Title page'!B$3,"-","7a","-",'Table 7a'!$Q28),Targets!$E:$T,16,FALSE),"") ->  | D28: =_xlfn.IFNA(VLOOKUP(CONCATENATE('Title page'!B$3,"-","7a","-",'Table 7a'!$Q28),Targets!$E:$T,2,FALSE),"") ->  | E28: =_xlfn.IFNA(VLOOKUP(CONCATENATE('Title page'!B$3,"-","7a","-",'Table 7a'!$Q28),Targets!$E:$T,3,FALSE),"") ->  | F28: =_xlfn.IFNA(VLOOKUP(CONCATENATE('Title page'!B$3,"-","7a","-",'Table 7a'!$Q28),Targets!$E:$T,4,FALSE),"") ->  | G28: =_xlfn.IFNA(VLOOKUP(CONCATENATE('Title page'!B$3,"-","7a","-",'Table 7a'!$Q28),Targets!$E:$T,5,FALSE),"") ->  | H28: =_xlfn.IFNA(VLOOKUP(CONCATENATE('Title page'!B$3,"-","7a","-",'Table 7a'!$Q28),Targets!$E:$T,6,FALSE),"") ->  | I28: =_xlfn.IFNA(VLOOKUP(CONCATENATE('Title page'!B$3,"-","7a","-",'Table 7a'!$Q28),Targets!$E:$T,7,FALSE),"") ->  | J28: =_xlfn.IFNA(VLOOKUP(CONCATENATE('Title page'!B$3,"-","7a","-",'Table 7a'!$Q28),Targets!$E:$T,8,FALSE),"") ->  | K28: =_xlfn.IFNA(VLOOKUP(CONCATENATE('Title page'!B$3,"-","7a","-",'Table 7a'!$Q28),Targets!$E:$T,9,FALSE),"") ->  | L28: =_xlfn.IFNA(VLOOKUP(CONCATENATE('Title page'!B$3,"-","7a","-",'Table 7a'!$Q28),Targets!$E:$T,10,FALSE),"") ->  | M28: =_xlfn.IFNA(VLOOKUP(CONCATENATE('Title page'!B$3,"-","7a","-",'Table 7a'!$Q28),Targets!$E:$T,11,FALSE),"") ->  | N28: =_xlfn.IFNA(VLOOKUP(CONCATENATE('Title page'!B$3,"-","7a","-",'Table 7a'!$Q28),Targets!$E:$T,12,FALSE),"") ->  | O28: =_xlfn.IFNA(VLOOKUP(CONCATENATE('Title page'!B$3,"-","7a","-",'Table 7a'!$Q28),Targets!$E:$T,13,FALSE),"") ->  | P28: =_xlfn.IFNA(VLOOKUP(CONCATENATE('Title page'!B$3,"-","7a","-",'Table 7a'!$Q28),Targets!$E:$T,14,FALSE),"") ->  | Q28: 23
B29: =_xlfn.IFNA(VLOOKUP(CONCATENATE('Title page'!B$3,"-","7a","-",'Table 7a'!$Q29),Targets!$E:$T,15,FALSE),"") ->  | C29: =_xlfn.IFNA(VLOOKUP(CONCATENATE('Title page'!B$3,"-","7a","-",'Table 7a'!$Q29),Targets!$E:$T,16,FALSE),"") ->  | D29: =_xlfn.IFNA(VLOOKUP(CONCATENATE('Title page'!B$3,"-","7a","-",'Table 7a'!$Q29),Targets!$E:$T,2,FALSE),"") ->  | E29: =_xlfn.IFNA(VLOOKUP(CONCATENATE('Title page'!B$3,"-","7a","-",'Table 7a'!$Q29),Targets!$E:$T,3,FALSE),"") ->  | F29: =_xlfn.IFNA(VLOOKUP(CONCATENATE('Title page'!B$3,"-","7a","-",'Table 7a'!$Q29),Targets!$E:$T,4,FALSE),"") ->  | G29: =_xlfn.IFNA(VLOOKUP(CONCATENATE('Title page'!B$3,"-","7a","-",'Table 7a'!$Q29),Targets!$E:$T,5,FALSE),"") ->  | H29: =_xlfn.IFNA(VLOOKUP(CONCATENATE('Title page'!B$3,"-","7a","-",'Table 7a'!$Q29),Targets!$E:$T,6,FALSE),"") ->  | I29: =_xlfn.IFNA(VLOOKUP(CONCATENATE('Title page'!B$3,"-","7a","-",'Table 7a'!$Q29),Targets!$E:$T,7,FALSE),"") ->  | J29: =_xlfn.IFNA(VLOOKUP(CONCATENATE('Title page'!B$3,"-","7a","-",'Table 7a'!$Q29),Targets!$E:$T,8,FALSE),"") ->  | K29: =_xlfn.IFNA(VLOOKUP(CONCATENATE('Title page'!B$3,"-","7a","-",'Table 7a'!$Q29),Targets!$E:$T,9,FALSE),"") ->  | L29: =_xlfn.IFNA(VLOOKUP(CONCATENATE('Title page'!B$3,"-","7a","-",'Table 7a'!$Q29),Targets!$E:$T,10,FALSE),"") ->  | M29: =_xlfn.IFNA(VLOOKUP(CONCATENATE('Title page'!B$3,"-","7a","-",'Table 7a'!$Q29),Targets!$E:$T,11,FALSE),"") ->  | N29: =_xlfn.IFNA(VLOOKUP(CONCATENATE('Title page'!B$3,"-","7a","-",'Table 7a'!$Q29),Targets!$E:$T,12,FALSE),"") ->  | O29: =_xlfn.IFNA(VLOOKUP(CONCATENATE('Title page'!B$3,"-","7a","-",'Table 7a'!$Q29),Targets!$E:$T,13,FALSE),"") ->  | P29: =_xlfn.IFNA(VLOOKUP(CONCATENATE('Title page'!B$3,"-","7a","-",'Table 7a'!$Q29),Targets!$E:$T,14,FALSE),"") ->  | Q29: 24
B30: =_xlfn.IFNA(VLOOKUP(CONCATENATE('Title page'!B$3,"-","7a","-",'Table 7a'!$Q30),Targets!$E:$T,15,FALSE),"") ->  | C30: =_xlfn.IFNA(VLOOKUP(CONCATENATE('Title page'!B$3,"-","7a","-",'Table 7a'!$Q30),Targets!$E:$T,16,FALSE),"") ->  | D30: =_xlfn.IFNA(VLOOKUP(CONCATENATE('Title page'!B$3,"-","7a","-",'Table 7a'!$Q30),Targets!$E:$T,2,FALSE),"") ->  | E30: =_xlfn.IFNA(VLOOKUP(CONCATENATE('Title page'!B$3,"-","7a","-",'Table 7a'!$Q30),Targets!$E:$T,3,FALSE),"") ->  | F30: =_xlfn.IFNA(VLOOKUP(CONCATENATE('Title page'!B$3,"-","7a","-",'Table 7a'!$Q30),Targets!$E:$T,4,FALSE),"") ->  | G30: =_xlfn.IFNA(VLOOKUP(CONCATENATE('Title page'!B$3,"-","7a","-",'Table 7a'!$Q30),Targets!$E:$T,5,FALSE),"") ->  | H30: =_xlfn.IFNA(VLOOKUP(CONCATENATE('Title page'!B$3,"-","7a","-",'Table 7a'!$Q30),Targets!$E:$T,6,FALSE),"") ->  | I30: =_xlfn.IFNA(VLOOKUP(CONCATENATE('Title page'!B$3,"-","7a","-",'Table 7a'!$Q30),Targets!$E:$T,7,FALSE),"") ->  | J30: =_xlfn.IFNA(VLOOKUP(CONCATENATE('Title page'!B$3,"-","7a","-",'Table 7a'!$Q30),Targets!$E:$T,8,FALSE),"") ->  | K30: =_xlfn.IFNA(VLOOKUP(CONCATENATE('Title page'!B$3,"-","7a","-",'Table 7a'!$Q30),Targets!$E:$T,9,FALSE),"") ->  | L30: =_xlfn.IFNA(VLOOKUP(CONCATENATE('Title page'!B$3,"-","7a","-",'Table 7a'!$Q30),Targets!$E:$T,10,FALSE),"") ->  | M30: =_xlfn.IFNA(VLOOKUP(CONCATENATE('Title page'!B$3,"-","7a","-",'Table 7a'!$Q30),Targets!$E:$T,11,FALSE),"") ->  | N30: =_xlfn.IFNA(VLOOKUP(CONCATENATE('Title page'!B$3,"-","7a","-",'Table 7a'!$Q30),Targets!$E:$T,12,FALSE),"") ->  | O30: =_xlfn.IFNA(VLOOKUP(CONCATENATE('Title page'!B$3,"-","7a","-",'Table 7a'!$Q30),Targets!$E:$T,13,FALSE),"") ->  | P30: =_xlfn.IFNA(VLOOKUP(CONCATENATE('Title page'!B$3,"-","7a","-",'Table 7a'!$Q30),Targets!$E:$T,14,FALSE),"") ->  | Q30: 25
B31: =_xlfn.IFNA(VLOOKUP(CONCATENATE('Title page'!B$3,"-","7a","-",'Table 7a'!$Q31),Targets!$E:$T,15,FALSE),"") ->  | C31: =_xlfn.IFNA(VLOOKUP(CONCATENATE('Title page'!B$3,"-","7a","-",'Table 7a'!$Q31),Targets!$E:$T,16,FALSE),"") ->  | D31: =_xlfn.IFNA(VLOOKUP(CONCATENATE('Title page'!B$3,"-","7a","-",'Table 7a'!$Q31),Targets!$E:$T,2,FALSE),"") ->  | E31: =_xlfn.IFNA(VLOOKUP(CONCATENATE('Title page'!B$3,"-","7a","-",'Table 7a'!$Q31),Targets!$E:$T,3,FALSE),"") ->  | F31: =_xlfn.IFNA(VLOOKUP(CONCATENATE('Title page'!B$3,"-","7a","-",'Table 7a'!$Q31),Targets!$E:$T,4,FALSE),"") ->  | G31: =_xlfn.IFNA(VLOOKUP(CONCATENATE('Title page'!B$3,"-","7a","-",'Table 7a'!$Q31),Targets!$E:$T,5,FALSE),"") ->  | H31: =_xlfn.IFNA(VLOOKUP(CONCATENATE('Title page'!B$3,"-","7a","-",'Table 7a'!$Q31),Targets!$E:$T,6,FALSE),"") ->  | I31: =_xlfn.IFNA(VLOOKUP(CONCATENATE('Title page'!B$3,"-","7a","-",'Table 7a'!$Q31),Targets!$E:$T,7,FALSE),"") ->  | J31: =_xlfn.IFNA(VLOOKUP(CONCATENATE('Title page'!B$3,"-","7a","-",'Table 7a'!$Q31),Targets!$E:$T,8,FALSE),"") ->  | K31: =_xlfn.IFNA(VLOOKUP(CONCATENATE('Title page'!B$3,"-","7a","-",'Table 7a'!$Q31),Targets!$E:$T,9,FALSE),"") ->  | L31: =_xlfn.IFNA(VLOOKUP(CONCATENATE('Title page'!B$3,"-","7a","-",'Table 7a'!$Q31),Targets!$E:$T,10,FALSE),"") ->  | M31: =_xlfn.IFNA(VLOOKUP(CONCATENATE('Title page'!B$3,"-","7a","-",'Table 7a'!$Q31),Targets!$E:$T,11,FALSE),"") ->  | N31: =_xlfn.IFNA(VLOOKUP(CONCATENATE('Title page'!B$3,"-","7a","-",'Table 7a'!$Q31),Targets!$E:$T,12,FALSE),"") ->  | O31: =_xlfn.IFNA(VLOOKUP(CONCATENATE('Title page'!B$3,"-","7a","-",'Table 7a'!$Q31),Targets!$E:$T,13,FALSE),"") ->  | P31: =_xlfn.IFNA(VLOOKUP(CONCATENATE('Title page'!B$3,"-","7a","-",'Table 7a'!$Q31),Targets!$E:$T,14,FALSE),"") ->  | Q31: 26
B32: =_xlfn.IFNA(VLOOKUP(CONCATENATE('Title page'!B$3,"-","7a","-",'Table 7a'!$Q32),Targets!$E:$T,15,FALSE),"") ->  | C32: =_xlfn.IFNA(VLOOKUP(CONCATENATE('Title page'!B$3,"-","7a","-",'Table 7a'!$Q32),Targets!$E:$T,16,FALSE),"") ->  | D32: =_xlfn.IFNA(VLOOKUP(CONCATENATE('Title page'!B$3,"-","7a","-",'Table 7a'!$Q32),Targets!$E:$T,2,FALSE),"") ->  | E32: =_xlfn.IFNA(VLOOKUP(CONCATENATE('Title page'!B$3,"-","7a","-",'Table 7a'!$Q32),Targets!$E:$T,3,FALSE),"") ->  | F32: =_xlfn.IFNA(VLOOKUP(CONCATENATE('Title page'!B$3,"-","7a","-",'Table 7a'!$Q32),Targets!$E:$T,4,FALSE),"") ->  | G32: =_xlfn.IFNA(VLOOKUP(CONCATENATE('Title page'!B$3,"-","7a","-",'Table 7a'!$Q32),Targets!$E:$T,5,FALSE),"") ->  | H32: =_xlfn.IFNA(VLOOKUP(CONCATENATE('Title page'!B$3,"-","7a","-",'Table 7a'!$Q32),Targets!$E:$T,6,FALSE),"") ->  | I32: =_xlfn.IFNA(VLOOKUP(CONCATENATE('Title page'!B$3,"-","7a","-",'Table 7a'!$Q32),Targets!$E:$T,7,FALSE),"") ->  | J32: =_xlfn.IFNA(VLOOKUP(CONCATENATE('Title page'!B$3,"-","7a","-",'Table 7a'!$Q32),Targets!$E:$T,8,FALSE),"") ->  | K32: =_xlfn.IFNA(VLOOKUP(CONCATENATE('Title page'!B$3,"-","7a","-",'Table 7a'!$Q32),Targets!$E:$T,9,FALSE),"") ->  | L32: =_xlfn.IFNA(VLOOKUP(CONCATENATE('Title page'!B$3,"-","7a","-",'Table 7a'!$Q32),Targets!$E:$T,10,FALSE),"") ->  | M32: =_xlfn.IFNA(VLOOKUP(CONCATENATE('Title page'!B$3,"-","7a","-",'Table 7a'!$Q32),Targets!$E:$T,11,FALSE),"") ->  | N32: =_xlfn.IFNA(VLOOKUP(CONCATENATE('Title page'!B$3,"-","7a","-",'Table 7a'!$Q32),Targets!$E:$T,12,FALSE),"") ->  | O32: =_xlfn.IFNA(VLOOKUP(CONCATENATE('Title page'!B$3,"-","7a","-",'Table 7a'!$Q32),Targets!$E:$T,13,FALSE),"") ->  | P32: =_xlfn.IFNA(VLOOKUP(CONCATENATE('Title page'!B$3,"-","7a","-",'Table 7a'!$Q32),Targets!$E:$T,14,FALSE),"") ->  | Q32: 27
B33: =_xlfn.IFNA(VLOOKUP(CONCATENATE('Title page'!B$3,"-","7a","-",'Table 7a'!$Q33),Targets!$E:$T,15,FALSE),"") ->  | C33: =_xlfn.IFNA(VLOOKUP(CONCATENATE('Title page'!B$3,"-","7a","-",'Table 7a'!$Q33),Targets!$E:$T,16,FALSE),"") ->  | D33: =_xlfn.IFNA(VLOOKUP(CONCATENATE('Title page'!B$3,"-","7a","-",'Table 7a'!$Q33),Targets!$E:$T,2,FALSE),"") ->  | E33: =_xlfn.IFNA(VLOOKUP(CONCATENATE('Title page'!B$3,"-","7a","-",'Table 7a'!$Q33),Targets!$E:$T,3,FALSE),"") ->  | F33: =_xlfn.IFNA(VLOOKUP(CONCATENATE('Title page'!B$3,"-","7a","-",'Table 7a'!$Q33),Targets!$E:$T,4,FALSE),"") ->  | G33: =_xlfn.IFNA(VLOOKUP(CONCATENATE('Title page'!B$3,"-","7a","-",'Table 7a'!$Q33),Targets!$E:$T,5,FALSE),"") ->  | H33: =_xlfn.IFNA(VLOOKUP(CONCATENATE('Title page'!B$3,"-","7a","-",'Table 7a'!$Q33),Targets!$E:$T,6,FALSE),"") ->  | I33: =_xlfn.IFNA(VLOOKUP(CONCATENATE('Title page'!B$3,"-","7a","-",'Table 7a'!$Q33),Targets!$E:$T,7,FALSE),"") ->  | J33: =_xlfn.IFNA(VLOOKUP(CONCATENATE('Title page'!B$3,"-","7a","-",'Table 7a'!$Q33),Targets!$E:$T,8,FALSE),"") ->  | K33: =_xlfn.IFNA(VLOOKUP(CONCATENATE('Title page'!B$3,"-","7a","-",'Table 7a'!$Q33),Targets!$E:$T,9,FALSE),"") ->  | L33: =_xlfn.IFNA(VLOOKUP(CONCATENATE('Title page'!B$3,"-","7a","-",'Table 7a'!$Q33),Targets!$E:$T,10,FALSE),"") ->  | M33: =_xlfn.IFNA(VLOOKUP(CONCATENATE('Title page'!B$3,"-","7a","-",'Table 7a'!$Q33),Targets!$E:$T,11,FALSE),"") ->  | N33: =_xlfn.IFNA(VLOOKUP(CONCATENATE('Title page'!B$3,"-","7a","-",'Table 7a'!$Q33),Targets!$E:$T,12,FALSE),"") ->  | O33: =_xlfn.IFNA(VLOOKUP(CONCATENATE('Title page'!B$3,"-","7a","-",'Table 7a'!$Q33),Targets!$E:$T,13,FALSE),"") ->  | P33: =_xlfn.IFNA(VLOOKUP(CONCATENATE('Title page'!B$3,"-","7a","-",'Table 7a'!$Q33),Targets!$E:$T,14,FALSE),"") ->  | Q33: 28
B34: =_xlfn.IFNA(VLOOKUP(CONCATENATE('Title page'!B$3,"-","7a","-",'Table 7a'!$Q34),Targets!$E:$T,15,FALSE),"") ->  | C34: =_xlfn.IFNA(VLOOKUP(CONCATENATE('Title page'!B$3,"-","7a","-",'Table 7a'!$Q34),Targets!$E:$T,16,FALSE),"") ->  | D34: =_xlfn.IFNA(VLOOKUP(CONCATENATE('Title page'!B$3,"-","7a","-",'Table 7a'!$Q34),Targets!$E:$T,2,FALSE),"") ->  | E34: =_xlfn.IFNA(VLOOKUP(CONCATENATE('Title page'!B$3,"-","7a","-",'Table 7a'!$Q34),Targets!$E:$T,3,FALSE),"") ->  | F34: =_xlfn.IFNA(VLOOKUP(CONCATENATE('Title page'!B$3,"-","7a","-",'Table 7a'!$Q34),Targets!$E:$T,4,FALSE),"") ->  | G34: =_xlfn.IFNA(VLOOKUP(CONCATENATE('Title page'!B$3,"-","7a","-",'Table 7a'!$Q34),Targets!$E:$T,5,FALSE),"") ->  | H34: =_xlfn.IFNA(VLOOKUP(CONCATENATE('Title page'!B$3,"-","7a","-",'Table 7a'!$Q34),Targets!$E:$T,6,FALSE),"") ->  | I34: =_xlfn.IFNA(VLOOKUP(CONCATENATE('Title page'!B$3,"-","7a","-",'Table 7a'!$Q34),Targets!$E:$T,7,FALSE),"") ->  | J34: =_xlfn.IFNA(VLOOKUP(CONCATENATE('Title page'!B$3,"-","7a","-",'Table 7a'!$Q34),Targets!$E:$T,8,FALSE),"") ->  | K34: =_xlfn.IFNA(VLOOKUP(CONCATENATE('Title page'!B$3,"-","7a","-",'Table 7a'!$Q34),Targets!$E:$T,9,FALSE),"") ->  | L34: =_xlfn.IFNA(VLOOKUP(CONCATENATE('Title page'!B$3,"-","7a","-",'Table 7a'!$Q34),Targets!$E:$T,10,FALSE),"") ->  | M34: =_xlfn.IFNA(VLOOKUP(CONCATENATE('Title page'!B$3,"-","7a","-",'Table 7a'!$Q34),Targets!$E:$T,11,FALSE),"") ->  | N34: =_xlfn.IFNA(VLOOKUP(CONCATENATE('Title page'!B$3,"-","7a","-",'Table 7a'!$Q34),Targets!$E:$T,12,FALSE),"") ->  | O34: =_xlfn.IFNA(VLOOKUP(CONCATENATE('Title page'!B$3,"-","7a","-",'Table 7a'!$Q34),Targets!$E:$T,13,FALSE),"") ->  | P34: =_xlfn.IFNA(VLOOKUP(CONCATENATE('Title page'!B$3,"-","7a","-",'Table 7a'!$Q34),Targets!$E:$T,14,FALSE),"") ->  | Q34: 29
B35: =_xlfn.IFNA(VLOOKUP(CONCATENATE('Title page'!B$3,"-","7a","-",'Table 7a'!$Q35),Targets!$E:$T,15,FALSE),"") ->  | C35: =_xlfn.IFNA(VLOOKUP(CONCATENATE('Title page'!B$3,"-","7a","-",'Table 7a'!$Q35),Targets!$E:$T,16,FALSE),"") ->  | D35: =_xlfn.IFNA(VLOOKUP(CONCATENATE('Title page'!B$3,"-","7a","-",'Table 7a'!$Q35),Targets!$E:$T,2,FALSE),"") ->  | E35: =_xlfn.IFNA(VLOOKUP(CONCATENATE('Title page'!B$3,"-","7a","-",'Table 7a'!$Q35),Targets!$E:$T,3,FALSE),"") ->  | F35: =_xlfn.IFNA(VLOOKUP(CONCATENATE('Title page'!B$3,"-","7a","-",'Table 7a'!$Q35),Targets!$E:$T,4,FALSE),"") ->  | G35: =_xlfn.IFNA(VLOOKUP(CONCATENATE('Title page'!B$3,"-","7a","-",'Table 7a'!$Q35),Targets!$E:$T,5,FALSE),"") ->  | H35: =_xlfn.IFNA(VLOOKUP(CONCATENATE('Title page'!B$3,"-","7a","-",'Table 7a'!$Q35),Targets!$E:$T,6,FALSE),"") ->  | I35: =_xlfn.IFNA(VLOOKUP(CONCATENATE('Title page'!B$3,"-","7a","-",'Table 7a'!$Q35),Targets!$E:$T,7,FALSE),"") ->  | J35: =_xlfn.IFNA(VLOOKUP(CONCATENATE('Title page'!B$3,"-","7a","-",'Table 7a'!$Q35),Targets!$E:$T,8,FALSE),"") ->  | K35: =_xlfn.IFNA(VLOOKUP(CONCATENATE('Title page'!B$3,"-","7a","-",'Table 7a'!$Q35),Targets!$E:$T,9,FALSE),"") ->  | L35: =_xlfn.IFNA(VLOOKUP(CONCATENATE('Title page'!B$3,"-","7a","-",'Table 7a'!$Q35),Targets!$E:$T,10,FALSE),"") ->  | M35: =_xlfn.IFNA(VLOOKUP(CONCATENATE('Title page'!B$3,"-","7a","-",'Table 7a'!$Q35),Targets!$E:$T,11,FALSE),"") ->  | N35: =_xlfn.IFNA(VLOOKUP(CONCATENATE('Title page'!B$3,"-","7a","-",'Table 7a'!$Q35),Targets!$E:$T,12,FALSE),"") ->  | O35: =_xlfn.IFNA(VLOOKUP(CONCATENATE('Title page'!B$3,"-","7a","-",'Table 7a'!$Q35),Targets!$E:$T,13,FALSE),"") ->  | P35: =_xlfn.IFNA(VLOOKUP(CONCATENATE('Title page'!B$3,"-","7a","-",'Table 7a'!$Q35),Targets!$E:$T,14,FALSE),"") ->  | Q35: 30
B36: =_xlfn.IFNA(VLOOKUP(CONCATENATE('Title page'!B$3,"-","7a","-",'Table 7a'!$Q36),Targets!$E:$T,15,FALSE),"") ->  | C36: =_xlfn.IFNA(VLOOKUP(CONCATENATE('Title page'!B$3,"-","7a","-",'Table 7a'!$Q36),Targets!$E:$T,16,FALSE),"") ->  | D36: =_xlfn.IFNA(VLOOKUP(CONCATENATE('Title page'!B$3,"-","7a","-",'Table 7a'!$Q36),Targets!$E:$T,2,FALSE),"") ->  | E36: =_xlfn.IFNA(VLOOKUP(CONCATENATE('Title page'!B$3,"-","7a","-",'Table 7a'!$Q36),Targets!$E:$T,3,FALSE),"") ->  | F36: =_xlfn.IFNA(VLOOKUP(CONCATENATE('Title page'!B$3,"-","7a","-",'Table 7a'!$Q36),Targets!$E:$T,4,FALSE),"") ->  | G36: =_xlfn.IFNA(VLOOKUP(CONCATENATE('Title page'!B$3,"-","7a","-",'Table 7a'!$Q36),Targets!$E:$T,5,FALSE),"") ->  | H36: =_xlfn.IFNA(VLOOKUP(CONCATENATE('Title page'!B$3,"-","7a","-",'Table 7a'!$Q36),Targets!$E:$T,6,FALSE),"") ->  | I36: =_xlfn.IFNA(VLOOKUP(CONCATENATE('Title page'!B$3,"-","7a","-",'Table 7a'!$Q36),Targets!$E:$T,7,FALSE),"") ->  | J36: =_xlfn.IFNA(VLOOKUP(CONCATENATE('Title page'!B$3,"-","7a","-",'Table 7a'!$Q36),Targets!$E:$T,8,FALSE),"") ->  | K36: =_xlfn.IFNA(VLOOKUP(CONCATENATE('Title page'!B$3,"-","7a","-",'Table 7a'!$Q36),Targets!$E:$T,9,FALSE),"") ->  | L36: =_xlfn.IFNA(VLOOKUP(CONCATENATE('Title page'!B$3,"-","7a","-",'Table 7a'!$Q36),Targets!$E:$T,10,FALSE),"") ->  | M36: =_xlfn.IFNA(VLOOKUP(CONCATENATE('Title page'!B$3,"-","7a","-",'Table 7a'!$Q36),Targets!$E:$T,11,FALSE),"") ->  | N36: =_xlfn.IFNA(VLOOKUP(CONCATENATE('Title page'!B$3,"-","7a","-",'Table 7a'!$Q36),Targets!$E:$T,12,FALSE),"") ->  | O36: =_xlfn.IFNA(VLOOKUP(CONCATENATE('Title page'!B$3,"-","7a","-",'Table 7a'!$Q36),Targets!$E:$T,13,FALSE),"") ->  | P36: =_xlfn.IFNA(VLOOKUP(CONCATENATE('Title page'!B$3,"-","7a","-",'Table 7a'!$Q36),Targets!$E:$T,14,FALSE),"") ->  | Q36: 31
B37: =_xlfn.IFNA(VLOOKUP(CONCATENATE('Title page'!B$3,"-","7a","-",'Table 7a'!$Q37),Targets!$E:$T,15,FALSE),"") ->  | C37: =_xlfn.IFNA(VLOOKUP(CONCATENATE('Title page'!B$3,"-","7a","-",'Table 7a'!$Q37),Targets!$E:$T,16,FALSE),"") ->  | D37: =_xlfn.IFNA(VLOOKUP(CONCATENATE('Title page'!B$3,"-","7a","-",'Table 7a'!$Q37),Targets!$E:$T,2,FALSE),"") ->  | E37: =_xlfn.IFNA(VLOOKUP(CONCATENATE('Title page'!B$3,"-","7a","-",'Table 7a'!$Q37),Targets!$E:$T,3,FALSE),"") ->  | F37: =_xlfn.IFNA(VLOOKUP(CONCATENATE('Title page'!B$3,"-","7a","-",'Table 7a'!$Q37),Targets!$E:$T,4,FALSE),"") ->  | G37: =_xlfn.IFNA(VLOOKUP(CONCATENATE('Title page'!B$3,"-","7a","-",'Table 7a'!$Q37),Targets!$E:$T,5,FALSE),"") ->  | H37: =_xlfn.IFNA(VLOOKUP(CONCATENATE('Title page'!B$3,"-","7a","-",'Table 7a'!$Q37),Targets!$E:$T,6,FALSE),"") ->  | I37: =_xlfn.IFNA(VLOOKUP(CONCATENATE('Title page'!B$3,"-","7a","-",'Table 7a'!$Q37),Targets!$E:$T,7,FALSE),"") ->  | J37: =_xlfn.IFNA(VLOOKUP(CONCATENATE('Title page'!B$3,"-","7a","-",'Table 7a'!$Q37),Targets!$E:$T,8,FALSE),"") ->  | K37: =_xlfn.IFNA(VLOOKUP(CONCATENATE('Title page'!B$3,"-","7a","-",'Table 7a'!$Q37),Targets!$E:$T,9,FALSE),"") ->  | L37: =_xlfn.IFNA(VLOOKUP(CONCATENATE('Title page'!B$3,"-","7a","-",'Table 7a'!$Q37),Targets!$E:$T,10,FALSE),"") ->  | M37: =_xlfn.IFNA(VLOOKUP(CONCATENATE('Title page'!B$3,"-","7a","-",'Table 7a'!$Q37),Targets!$E:$T,11,FALSE),"") ->  | N37: =_xlfn.IFNA(VLOOKUP(CONCATENATE('Title page'!B$3,"-","7a","-",'Table 7a'!$Q37),Targets!$E:$T,12,FALSE),"") ->  | O37: =_xlfn.IFNA(VLOOKUP(CONCATENATE('Title page'!B$3,"-","7a","-",'Table 7a'!$Q37),Targets!$E:$T,13,FALSE),"") ->  | P37: =_xlfn.IFNA(VLOOKUP(CONCATENATE('Title page'!B$3,"-","7a","-",'Table 7a'!$Q37),Targets!$E:$T,14,FALSE),"") ->  | Q37: 32
B38: =_xlfn.IFNA(VLOOKUP(CONCATENATE('Title page'!B$3,"-","7a","-",'Table 7a'!$Q38),Targets!$E:$T,15,FALSE),"") ->  | C38: =_xlfn.IFNA(VLOOKUP(CONCATENATE('Title page'!B$3,"-","7a","-",'Table 7a'!$Q38),Targets!$E:$T,16,FALSE),"") ->  | D38: =_xlfn.IFNA(VLOOKUP(CONCATENATE('Title page'!B$3,"-","7a","-",'Table 7a'!$Q38),Targets!$E:$T,2,FALSE),"") ->  | E38: =_xlfn.IFNA(VLOOKUP(CONCATENATE('Title page'!B$3,"-","7a","-",'Table 7a'!$Q38),Targets!$E:$T,3,FALSE),"") ->  | F38: =_xlfn.IFNA(VLOOKUP(CONCATENATE('Title page'!B$3,"-","7a","-",'Table 7a'!$Q38),Targets!$E:$T,4,FALSE),"") ->  | G38: =_xlfn.IFNA(VLOOKUP(CONCATENATE('Title page'!B$3,"-","7a","-",'Table 7a'!$Q38),Targets!$E:$T,5,FALSE),"") ->  | H38: =_xlfn.IFNA(VLOOKUP(CONCATENATE('Title page'!B$3,"-","7a","-",'Table 7a'!$Q38),Targets!$E:$T,6,FALSE),"") ->  | I38: =_xlfn.IFNA(VLOOKUP(CONCATENATE('Title page'!B$3,"-","7a","-",'Table 7a'!$Q38),Targets!$E:$T,7,FALSE),"") ->  | J38: =_xlfn.IFNA(VLOOKUP(CONCATENATE('Title page'!B$3,"-","7a","-",'Table 7a'!$Q38),Targets!$E:$T,8,FALSE),"") ->  | K38: =_xlfn.IFNA(VLOOKUP(CONCATENATE('Title page'!B$3,"-","7a","-",'Table 7a'!$Q38),Targets!$E:$T,9,FALSE),"") ->  | L38: =_xlfn.IFNA(VLOOKUP(CONCATENATE('Title page'!B$3,"-","7a","-",'Table 7a'!$Q38),Targets!$E:$T,10,FALSE),"") ->  | M38: =_xlfn.IFNA(VLOOKUP(CONCATENATE('Title page'!B$3,"-","7a","-",'Table 7a'!$Q38),Targets!$E:$T,11,FALSE),"") ->  | N38: =_xlfn.IFNA(VLOOKUP(CONCATENATE('Title page'!B$3,"-","7a","-",'Table 7a'!$Q38),Targets!$E:$T,12,FALSE),"") ->  | O38: =_xlfn.IFNA(VLOOKUP(CONCATENATE('Title page'!B$3,"-","7a","-",'Table 7a'!$Q38),Targets!$E:$T,13,FALSE),"") ->  | P38: =_xlfn.IFNA(VLOOKUP(CONCATENATE('Title page'!B$3,"-","7a","-",'Table 7a'!$Q38),Targets!$E:$T,14,FALSE),"") ->  | Q38: 33
B39: =_xlfn.IFNA(VLOOKUP(CONCATENATE('Title page'!B$3,"-","7a","-",'Table 7a'!$Q39),Targets!$E:$T,15,FALSE),"") ->  | C39: =_xlfn.IFNA(VLOOKUP(CONCATENATE('Title page'!B$3,"-","7a","-",'Table 7a'!$Q39),Targets!$E:$T,16,FALSE),"") ->  | D39: =_xlfn.IFNA(VLOOKUP(CONCATENATE('Title page'!B$3,"-","7a","-",'Table 7a'!$Q39),Targets!$E:$T,2,FALSE),"") ->  | E39: =_xlfn.IFNA(VLOOKUP(CONCATENATE('Title page'!B$3,"-","7a","-",'Table 7a'!$Q39),Targets!$E:$T,3,FALSE),"") ->  | F39: =_xlfn.IFNA(VLOOKUP(CONCATENATE('Title page'!B$3,"-","7a","-",'Table 7a'!$Q39),Targets!$E:$T,4,FALSE),"") ->  | G39: =_xlfn.IFNA(VLOOKUP(CONCATENATE('Title page'!B$3,"-","7a","-",'Table 7a'!$Q39),Targets!$E:$T,5,FALSE),"") ->  | H39: =_xlfn.IFNA(VLOOKUP(CONCATENATE('Title page'!B$3,"-","7a","-",'Table 7a'!$Q39),Targets!$E:$T,6,FALSE),"") ->  | I39: =_xlfn.IFNA(VLOOKUP(CONCATENATE('Title page'!B$3,"-","7a","-",'Table 7a'!$Q39),Targets!$E:$T,7,FALSE),"") ->  | J39: =_xlfn.IFNA(VLOOKUP(CONCATENATE('Title page'!B$3,"-","7a","-",'Table 7a'!$Q39),Targets!$E:$T,8,FALSE),"") ->  | K39: =_xlfn.IFNA(VLOOKUP(CONCATENATE('Title page'!B$3,"-","7a","-",'Table 7a'!$Q39),Targets!$E:$T,9,FALSE),"") ->  | L39: =_xlfn.IFNA(VLOOKUP(CONCATENATE('Title page'!B$3,"-","7a","-",'Table 7a'!$Q39),Targets!$E:$T,10,FALSE),"") ->  | M39: =_xlfn.IFNA(VLOOKUP(CONCATENATE('Title page'!B$3,"-","7a","-",'Table 7a'!$Q39),Targets!$E:$T,11,FALSE),"") ->  | N39: =_xlfn.IFNA(VLOOKUP(CONCATENATE('Title page'!B$3,"-","7a","-",'Table 7a'!$Q39),Targets!$E:$T,12,FALSE),"") ->  | O39: =_xlfn.IFNA(VLOOKUP(CONCATENATE('Title page'!B$3,"-","7a","-",'Table 7a'!$Q39),Targets!$E:$T,13,FALSE),"") ->  | P39: =_xlfn.IFNA(VLOOKUP(CONCATENATE('Title page'!B$3,"-","7a","-",'Table 7a'!$Q39),Targets!$E:$T,14,FALSE),"") ->  | Q39: 34
B40: =_xlfn.IFNA(VLOOKUP(CONCATENATE('Title page'!B$3,"-","7a","-",'Table 7a'!$Q40),Targets!$E:$T,15,FALSE),"") ->  | C40: =_xlfn.IFNA(VLOOKUP(CONCATENATE('Title page'!B$3,"-","7a","-",'Table 7a'!$Q40),Targets!$E:$T,16,FALSE),"") ->  | D40: =_xlfn.IFNA(VLOOKUP(CONCATENATE('Title page'!B$3,"-","7a","-",'Table 7a'!$Q40),Targets!$E:$T,2,FALSE),"") ->  | E40: =_xlfn.IFNA(VLOOKUP(CONCATENATE('Title page'!B$3,"-","7a","-",'Table 7a'!$Q40),Targets!$E:$T,3,FALSE),"") ->  | F40: =_xlfn.IFNA(VLOOKUP(CONCATENATE('Title page'!B$3,"-","7a","-",'Table 7a'!$Q40),Targets!$E:$T,4,FALSE),"") ->  | G40: =_xlfn.IFNA(VLOOKUP(CONCATENATE('Title page'!B$3,"-","7a","-",'Table 7a'!$Q40),Targets!$E:$T,5,FALSE),"") ->  | H40: =_xlfn.IFNA(VLOOKUP(CONCATENATE('Title page'!B$3,"-","7a","-",'Table 7a'!$Q40),Targets!$E:$T,6,FALSE),"") ->  | I40: =_xlfn.IFNA(VLOOKUP(CONCATENATE('Title page'!B$3,"-","7a","-",'Table 7a'!$Q40),Targets!$E:$T,7,FALSE),"") ->  | J40: =_xlfn.IFNA(VLOOKUP(CONCATENATE('Title page'!B$3,"-","7a","-",'Table 7a'!$Q40),Targets!$E:$T,8,FALSE),"") ->  | K40: =_xlfn.IFNA(VLOOKUP(CONCATENATE('Title page'!B$3,"-","7a","-",'Table 7a'!$Q40),Targets!$E:$T,9,FALSE),"") ->  | L40: =_xlfn.IFNA(VLOOKUP(CONCATENATE('Title page'!B$3,"-","7a","-",'Table 7a'!$Q40),Targets!$E:$T,10,FALSE),"") ->  | M40: =_xlfn.IFNA(VLOOKUP(CONCATENATE('Title page'!B$3,"-","7a","-",'Table 7a'!$Q40),Targets!$E:$T,11,FALSE),"") ->  | N40: =_xlfn.IFNA(VLOOKUP(CONCATENATE('Title page'!B$3,"-","7a","-",'Table 7a'!$Q40),Targets!$E:$T,12,FALSE),"") ->  | O40: =_xlfn.IFNA(VLOOKUP(CONCATENATE('Title page'!B$3,"-","7a","-",'Table 7a'!$Q40),Targets!$E:$T,13,FALSE),"") ->  | P40: =_xlfn.IFNA(VLOOKUP(CONCATENATE('Title page'!B$3,"-","7a","-",'Table 7a'!$Q40),Targets!$E:$T,14,FALSE),"") ->  | Q40: 35
B41: =_xlfn.IFNA(VLOOKUP(CONCATENATE('Title page'!B$3,"-","7a","-",'Table 7a'!$Q41),Targets!$E:$T,15,FALSE),"") ->  | C41: =_xlfn.IFNA(VLOOKUP(CONCATENATE('Title page'!B$3,"-","7a","-",'Table 7a'!$Q41),Targets!$E:$T,16,FALSE),"") ->  | D41: =_xlfn.IFNA(VLOOKUP(CONCATENATE('Title page'!B$3,"-","7a","-",'Table 7a'!$Q41),Targets!$E:$T,2,FALSE),"") ->  | E41: =_xlfn.IFNA(VLOOKUP(CONCATENATE('Title page'!B$3,"-","7a","-",'Table 7a'!$Q41),Targets!$E:$T,3,FALSE),"") ->  | F41: =_xlfn.IFNA(VLOOKUP(CONCATENATE('Title page'!B$3,"-","7a","-",'Table 7a'!$Q41),Targets!$E:$T,4,FALSE),"") ->  | G41: =_xlfn.IFNA(VLOOKUP(CONCATENATE('Title page'!B$3,"-","7a","-",'Table 7a'!$Q41),Targets!$E:$T,5,FALSE),"") ->  | H41: =_xlfn.IFNA(VLOOKUP(CONCATENATE('Title page'!B$3,"-","7a","-",'Table 7a'!$Q41),Targets!$E:$T,6,FALSE),"") ->  | I41: =_xlfn.IFNA(VLOOKUP(CONCATENATE('Title page'!B$3,"-","7a","-",'Table 7a'!$Q41),Targets!$E:$T,7,FALSE),"") ->  | J41: =_xlfn.IFNA(VLOOKUP(CONCATENATE('Title page'!B$3,"-","7a","-",'Table 7a'!$Q41),Targets!$E:$T,8,FALSE),"") ->  | K41: =_xlfn.IFNA(VLOOKUP(CONCATENATE('Title page'!B$3,"-","7a","-",'Table 7a'!$Q41),Targets!$E:$T,9,FALSE),"") ->  | L41: =_xlfn.IFNA(VLOOKUP(CONCATENATE('Title page'!B$3,"-","7a","-",'Table 7a'!$Q41),Targets!$E:$T,10,FALSE),"") ->  | M41: =_xlfn.IFNA(VLOOKUP(CONCATENATE('Title page'!B$3,"-","7a","-",'Table 7a'!$Q41),Targets!$E:$T,11,FALSE),"") ->  | N41: =_xlfn.IFNA(VLOOKUP(CONCATENATE('Title page'!B$3,"-","7a","-",'Table 7a'!$Q41),Targets!$E:$T,12,FALSE),"") ->  | O41: =_xlfn.IFNA(VLOOKUP(CONCATENATE('Title page'!B$3,"-","7a","-",'Table 7a'!$Q41),Targets!$E:$T,13,FALSE),"") ->  | P41: =_xlfn.IFNA(VLOOKUP(CONCATENATE('Title page'!B$3,"-","7a","-",'Table 7a'!$Q41),Targets!$E:$T,14,FALSE),"") ->  | Q41: 36
B42: =_xlfn.IFNA(VLOOKUP(CONCATENATE('Title page'!B$3,"-","7a","-",'Table 7a'!$Q42),Targets!$E:$T,15,FALSE),"") ->  | C42: =_xlfn.IFNA(VLOOKUP(CONCATENATE('Title page'!B$3,"-","7a","-",'Table 7a'!$Q42),Targets!$E:$T,16,FALSE),"") ->  | D42: =_xlfn.IFNA(VLOOKUP(CONCATENATE('Title page'!B$3,"-","7a","-",'Table 7a'!$Q42),Targets!$E:$T,2,FALSE),"") ->  | E42: =_xlfn.IFNA(VLOOKUP(CONCATENATE('Title page'!B$3,"-","7a","-",'Table 7a'!$Q42),Targets!$E:$T,3,FALSE),"") ->  | F42: =_xlfn.IFNA(VLOOKUP(CONCATENATE('Title page'!B$3,"-","7a","-",'Table 7a'!$Q42),Targets!$E:$T,4,FALSE),"") ->  | G42: =_xlfn.IFNA(VLOOKUP(CONCATENATE('Title page'!B$3,"-","7a","-",'Table 7a'!$Q42),Targets!$E:$T,5,FALSE),"") ->  | H42: =_xlfn.IFNA(VLOOKUP(CONCATENATE('Title page'!B$3,"-","7a","-",'Table 7a'!$Q42),Targets!$E:$T,6,FALSE),"") ->  | I42: =_xlfn.IFNA(VLOOKUP(CONCATENATE('Title page'!B$3,"-","7a","-",'Table 7a'!$Q42),Targets!$E:$T,7,FALSE),"") ->  | J42: =_xlfn.IFNA(VLOOKUP(CONCATENATE('Title page'!B$3,"-","7a","-",'Table 7a'!$Q42),Targets!$E:$T,8,FALSE),"") ->  | K42: =_xlfn.IFNA(VLOOKUP(CONCATENATE('Title page'!B$3,"-","7a","-",'Table 7a'!$Q42),Targets!$E:$T,9,FALSE),"") ->  | L42: =_xlfn.IFNA(VLOOKUP(CONCATENATE('Title page'!B$3,"-","7a","-",'Table 7a'!$Q42),Targets!$E:$T,10,FALSE),"") ->  | M42: =_xlfn.IFNA(VLOOKUP(CONCATENATE('Title page'!B$3,"-","7a","-",'Table 7a'!$Q42),Targets!$E:$T,11,FALSE),"") ->  | N42: =_xlfn.IFNA(VLOOKUP(CONCATENATE('Title page'!B$3,"-","7a","-",'Table 7a'!$Q42),Targets!$E:$T,12,FALSE),"") ->  | O42: =_xlfn.IFNA(VLOOKUP(CONCATENATE('Title page'!B$3,"-","7a","-",'Table 7a'!$Q42),Targets!$E:$T,13,FALSE),"") ->  | P42: =_xlfn.IFNA(VLOOKUP(CONCATENATE('Title page'!B$3,"-","7a","-",'Table 7a'!$Q42),Targets!$E:$T,14,FALSE),"") ->  | Q42: 37
B43: =_xlfn.IFNA(VLOOKUP(CONCATENATE('Title page'!B$3,"-","7a","-",'Table 7a'!$Q43),Targets!$E:$T,15,FALSE),"") ->  | C43: =_xlfn.IFNA(VLOOKUP(CONCATENATE('Title page'!B$3,"-","7a","-",'Table 7a'!$Q43),Targets!$E:$T,16,FALSE),"") ->  | D43: =_xlfn.IFNA(VLOOKUP(CONCATENATE('Title page'!B$3,"-","7a","-",'Table 7a'!$Q43),Targets!$E:$T,2,FALSE),"") ->  | E43: =_xlfn.IFNA(VLOOKUP(CONCATENATE('Title page'!B$3,"-","7a","-",'Table 7a'!$Q43),Targets!$E:$T,3,FALSE),"") ->  | F43: =_xlfn.IFNA(VLOOKUP(CONCATENATE('Title page'!B$3,"-","7a","-",'Table 7a'!$Q43),Targets!$E:$T,4,FALSE),"") ->  | G43: =_xlfn.IFNA(VLOOKUP(CONCATENATE('Title page'!B$3,"-","7a","-",'Table 7a'!$Q43),Targets!$E:$T,5,FALSE),"") ->  | H43: =_xlfn.IFNA(VLOOKUP(CONCATENATE('Title page'!B$3,"-","7a","-",'Table 7a'!$Q43),Targets!$E:$T,6,FALSE),"") ->  | I43: =_xlfn.IFNA(VLOOKUP(CONCATENATE('Title page'!B$3,"-","7a","-",'Table 7a'!$Q43),Targets!$E:$T,7,FALSE),"") ->  | J43: =_xlfn.IFNA(VLOOKUP(CONCATENATE('Title page'!B$3,"-","7a","-",'Table 7a'!$Q43),Targets!$E:$T,8,FALSE),"") ->  | K43: =_xlfn.IFNA(VLOOKUP(CONCATENATE('Title page'!B$3,"-","7a","-",'Table 7a'!$Q43),Targets!$E:$T,9,FALSE),"") ->  | L43: =_xlfn.IFNA(VLOOKUP(CONCATENATE('Title page'!B$3,"-","7a","-",'Table 7a'!$Q43),Targets!$E:$T,10,FALSE),"") ->  | M43: =_xlfn.IFNA(VLOOKUP(CONCATENATE('Title page'!B$3,"-","7a","-",'Table 7a'!$Q43),Targets!$E:$T,11,FALSE),"") ->  | N43: =_xlfn.IFNA(VLOOKUP(CONCATENATE('Title page'!B$3,"-","7a","-",'Table 7a'!$Q43),Targets!$E:$T,12,FALSE),"") ->  | O43: =_xlfn.IFNA(VLOOKUP(CONCATENATE('Title page'!B$3,"-","7a","-",'Table 7a'!$Q43),Targets!$E:$T,13,FALSE),"") ->  | P43: =_xlfn.IFNA(VLOOKUP(CONCATENATE('Title page'!B$3,"-","7a","-",'Table 7a'!$Q43),Targets!$E:$T,14,FALSE),"") ->  | Q43: 38
B44: =_xlfn.IFNA(VLOOKUP(CONCATENATE('Title page'!B$3,"-","7a","-",'Table 7a'!$Q44),Targets!$E:$T,15,FALSE),"") ->  | C44: =_xlfn.IFNA(VLOOKUP(CONCATENATE('Title page'!B$3,"-","7a","-",'Table 7a'!$Q44),Targets!$E:$T,16,FALSE),"") ->  | D44: =_xlfn.IFNA(VLOOKUP(CONCATENATE('Title page'!B$3,"-","7a","-",'Table 7a'!$Q44),Targets!$E:$T,2,FALSE),"") ->  | E44: =_xlfn.IFNA(VLOOKUP(CONCATENATE('Title page'!B$3,"-","7a","-",'Table 7a'!$Q44),Targets!$E:$T,3,FALSE),"") ->  | F44: =_xlfn.IFNA(VLOOKUP(CONCATENATE('Title page'!B$3,"-","7a","-",'Table 7a'!$Q44),Targets!$E:$T,4,FALSE),"") ->  | G44: =_xlfn.IFNA(VLOOKUP(CONCATENATE('Title page'!B$3,"-","7a","-",'Table 7a'!$Q44),Targets!$E:$T,5,FALSE),"") ->  | H44: =_xlfn.IFNA(VLOOKUP(CONCATENATE('Title page'!B$3,"-","7a","-",'Table 7a'!$Q44),Targets!$E:$T,6,FALSE),"") ->  | I44: =_xlfn.IFNA(VLOOKUP(CONCATENATE('Title page'!B$3,"-","7a","-",'Table 7a'!$Q44),Targets!$E:$T,7,FALSE),"") ->  | J44: =_xlfn.IFNA(VLOOKUP(CONCATENATE('Title page'!B$3,"-","7a","-",'Table 7a'!$Q44),Targets!$E:$T,8,FALSE),"") ->  | K44: =_xlfn.IFNA(VLOOKUP(CONCATENATE('Title page'!B$3,"-","7a","-",'Table 7a'!$Q44),Targets!$E:$T,9,FALSE),"") ->  | L44: =_xlfn.IFNA(VLOOKUP(CONCATENATE('Title page'!B$3,"-","7a","-",'Table 7a'!$Q44),Targets!$E:$T,10,FALSE),"") ->  | M44: =_xlfn.IFNA(VLOOKUP(CONCATENATE('Title page'!B$3,"-","7a","-",'Table 7a'!$Q44),Targets!$E:$T,11,FALSE),"") ->  | N44: =_xlfn.IFNA(VLOOKUP(CONCATENATE('Title page'!B$3,"-","7a","-",'Table 7a'!$Q44),Targets!$E:$T,12,FALSE),"") ->  | O44: =_xlfn.IFNA(VLOOKUP(CONCATENATE('Title page'!B$3,"-","7a","-",'Table 7a'!$Q44),Targets!$E:$T,13,FALSE),"") ->  | P44: =_xlfn.IFNA(VLOOKUP(CONCATENATE('Title page'!B$3,"-","7a","-",'Table 7a'!$Q44),Targets!$E:$T,14,FALSE),"") ->  | Q44: 39
B45: =_xlfn.IFNA(VLOOKUP(CONCATENATE('Title page'!B$3,"-","7a","-",'Table 7a'!$Q45),Targets!$E:$T,15,FALSE),"") ->  | C45: =_xlfn.IFNA(VLOOKUP(CONCATENATE('Title page'!B$3,"-","7a","-",'Table 7a'!$Q45),Targets!$E:$T,16,FALSE),"") ->  | D45: =_xlfn.IFNA(VLOOKUP(CONCATENATE('Title page'!B$3,"-","7a","-",'Table 7a'!$Q45),Targets!$E:$T,2,FALSE),"") ->  | E45: =_xlfn.IFNA(VLOOKUP(CONCATENATE('Title page'!B$3,"-","7a","-",'Table 7a'!$Q45),Targets!$E:$T,3,FALSE),"") ->  | F45: =_xlfn.IFNA(VLOOKUP(CONCATENATE('Title page'!B$3,"-","7a","-",'Table 7a'!$Q45),Targets!$E:$T,4,FALSE),"") ->  | G45: =_xlfn.IFNA(VLOOKUP(CONCATENATE('Title page'!B$3,"-","7a","-",'Table 7a'!$Q45),Targets!$E:$T,5,FALSE),"") ->  | H45: =_xlfn.IFNA(VLOOKUP(CONCATENATE('Title page'!B$3,"-","7a","-",'Table 7a'!$Q45),Targets!$E:$T,6,FALSE),"") ->  | I45: =_xlfn.IFNA(VLOOKUP(CONCATENATE('Title page'!B$3,"-","7a","-",'Table 7a'!$Q45),Targets!$E:$T,7,FALSE),"") ->  | J45: =_xlfn.IFNA(VLOOKUP(CONCATENATE('Title page'!B$3,"-","7a","-",'Table 7a'!$Q45),Targets!$E:$T,8,FALSE),"") ->  | K45: =_xlfn.IFNA(VLOOKUP(CONCATENATE('Title page'!B$3,"-","7a","-",'Table 7a'!$Q45),Targets!$E:$T,9,FALSE),"") ->  | L45: =_xlfn.IFNA(VLOOKUP(CONCATENATE('Title page'!B$3,"-","7a","-",'Table 7a'!$Q45),Targets!$E:$T,10,FALSE),"") ->  | M45: =_xlfn.IFNA(VLOOKUP(CONCATENATE('Title page'!B$3,"-","7a","-",'Table 7a'!$Q45),Targets!$E:$T,11,FALSE),"") ->  | N45: =_xlfn.IFNA(VLOOKUP(CONCATENATE('Title page'!B$3,"-","7a","-",'Table 7a'!$Q45),Targets!$E:$T,12,FALSE),"") ->  | O45: =_xlfn.IFNA(VLOOKUP(CONCATENATE('Title page'!B$3,"-","7a","-",'Table 7a'!$Q45),Targets!$E:$T,13,FALSE),"") ->  | P45: =_xlfn.IFNA(VLOOKUP(CONCATENATE('Title page'!B$3,"-","7a","-",'Table 7a'!$Q45),Targets!$E:$T,14,FALSE),"") ->  | Q45: 40
B46: =_xlfn.IFNA(VLOOKUP(CONCATENATE('Title page'!B$3,"-","7a","-",'Table 7a'!$Q46),Targets!$E:$T,15,FALSE),"") ->  | C46: =_xlfn.IFNA(VLOOKUP(CONCATENATE('Title page'!B$3,"-","7a","-",'Table 7a'!$Q46),Targets!$E:$T,16,FALSE),"") ->  | D46: =_xlfn.IFNA(VLOOKUP(CONCATENATE('Title page'!B$3,"-","7a","-",'Table 7a'!$Q46),Targets!$E:$T,2,FALSE),"") ->  | E46: =_xlfn.IFNA(VLOOKUP(CONCATENATE('Title page'!B$3,"-","7a","-",'Table 7a'!$Q46),Targets!$E:$T,3,FALSE),"") ->  | F46: =_xlfn.IFNA(VLOOKUP(CONCATENATE('Title page'!B$3,"-","7a","-",'Table 7a'!$Q46),Targets!$E:$T,4,FALSE),"") ->  | G46: =_xlfn.IFNA(VLOOKUP(CONCATENATE('Title page'!B$3,"-","7a","-",'Table 7a'!$Q46),Targets!$E:$T,5,FALSE),"") ->  | H46: =_xlfn.IFNA(VLOOKUP(CONCATENATE('Title page'!B$3,"-","7a","-",'Table 7a'!$Q46),Targets!$E:$T,6,FALSE),"") ->  | I46: =_xlfn.IFNA(VLOOKUP(CONCATENATE('Title page'!B$3,"-","7a","-",'Table 7a'!$Q46),Targets!$E:$T,7,FALSE),"") ->  | J46: =_xlfn.IFNA(VLOOKUP(CONCATENATE('Title page'!B$3,"-","7a","-",'Table 7a'!$Q46),Targets!$E:$T,8,FALSE),"") ->  | K46: =_xlfn.IFNA(VLOOKUP(CONCATENATE('Title page'!B$3,"-","7a","-",'Table 7a'!$Q46),Targets!$E:$T,9,FALSE),"") ->  | L46: =_xlfn.IFNA(VLOOKUP(CONCATENATE('Title page'!B$3,"-","7a","-",'Table 7a'!$Q46),Targets!$E:$T,10,FALSE),"") ->  | M46: =_xlfn.IFNA(VLOOKUP(CONCATENATE('Title page'!B$3,"-","7a","-",'Table 7a'!$Q46),Targets!$E:$T,11,FALSE),"") ->  | N46: =_xlfn.IFNA(VLOOKUP(CONCATENATE('Title page'!B$3,"-","7a","-",'Table 7a'!$Q46),Targets!$E:$T,12,FALSE),"") ->  | O46: =_xlfn.IFNA(VLOOKUP(CONCATENATE('Title page'!B$3,"-","7a","-",'Table 7a'!$Q46),Targets!$E:$T,13,FALSE),"") ->  | P46: =_xlfn.IFNA(VLOOKUP(CONCATENATE('Title page'!B$3,"-","7a","-",'Table 7a'!$Q46),Targets!$E:$T,14,FALSE),"") -> 
A47: =IF(LEN(B47)<1,"",Q47) ->  | B47: =_xlfn.IFNA(VLOOKUP(CONCATENATE('Title page'!B$3,"-","7a","-",'Table 7a'!$Q47),Targets!$E:$T,15,FALSE),"") ->  | C47: =_xlfn.IFNA(VLOOKUP(CONCATENATE('Title page'!B$3,"-","7a","-",'Table 7a'!$Q47),Targets!$E:$T,16,FALSE),"") ->  | D47: =_xlfn.IFNA(VLOOKUP(CONCATENATE('Title page'!B$3,"-","7a","-",'Table 7a'!$Q47),Targets!$E:$T,2,FALSE),"") ->  | E47: =_xlfn.IFNA(VLOOKUP(CONCATENATE('Title page'!B$3,"-","7a","-",'Table 7a'!$Q47),Targets!$E:$T,3,FALSE),"") ->  | F47: =_xlfn.IFNA(VLOOKUP(CONCATENATE('Title page'!B$3,"-","7a","-",'Table 7a'!$Q47),Targets!$E:$T,4,FALSE),"") ->  | G47: =_xlfn.IFNA(VLOOKUP(CONCATENATE('Title page'!B$3,"-","7a","-",'Table 7a'!$Q47),Targets!$E:$T,5,FALSE),"") ->  | H47: =_xlfn.IFNA(VLOOKUP(CONCATENATE('Title page'!B$3,"-","7a","-",'Table 7a'!$Q47),Targets!$E:$T,6,FALSE),"") ->  | I47: =_xlfn.IFNA(VLOOKUP(CONCATENATE('Title page'!B$3,"-","7a","-",'Table 7a'!$Q47),Targets!$E:$T,7,FALSE),"") ->  | J47: =_xlfn.IFNA(VLOOKUP(CONCATENATE('Title page'!B$3,"-","7a","-",'Table 7a'!$Q47),Targets!$E:$T,8,FALSE),"") ->  | K47: =_xlfn.IFNA(VLOOKUP(CONCATENATE('Title page'!B$3,"-","7a","-",'Table 7a'!$Q47),Targets!$E:$T,9,FALSE),"") ->  | L47: =_xlfn.IFNA(VLOOKUP(CONCATENATE('Title page'!B$3,"-","7a","-",'Table 7a'!$Q47),Targets!$E:$T,10,FALSE),"") ->  | M47: =_xlfn.IFNA(VLOOKUP(CONCATENATE('Title page'!B$3,"-","7a","-",'Table 7a'!$Q47),Targets!$E:$T,11,FALSE),"") ->  | N47: =_xlfn.IFNA(VLOOKUP(CONCATENATE('Title page'!B$3,"-","7a","-",'Table 7a'!$Q47),Targets!$E:$T,12,FALSE),"") ->  | O47: =_xlfn.IFNA(VLOOKUP(CONCATENATE('Title page'!B$3,"-","7a","-",'Table 7a'!$Q47),Targets!$E:$T,13,FALSE),"") ->  | P47: =_xlfn.IFNA(VLOOKUP(CONCATENATE('Title page'!B$3,"-","7a","-",'Table 7a'!$Q47),Targets!$E:$T,14,FALSE),"") -> 
B48: =_xlfn.IFNA(VLOOKUP(CONCATENATE('Title page'!B$3,"-","7a","-",'Table 7a'!$Q48),Targets!$E:$T,15,FALSE),"") ->  | C48: =_xlfn.IFNA(VLOOKUP(CONCATENATE('Title page'!B$3,"-","7a","-",'Table 7a'!$Q48),Targets!$E:$T,16,FALSE),"") ->  | D48: =_xlfn.IFNA(VLOOKUP(CONCATENATE('Title page'!B$3,"-","7a","-",'Table 7a'!$Q48),Targets!$E:$T,2,FALSE),"") ->  | E48: =_xlfn.IFNA(VLOOKUP(CONCATENATE('Title page'!B$3,"-","7a","-",'Table 7a'!$Q48),Targets!$E:$T,3,FALSE),"") ->  | F48: =_xlfn.IFNA(VLOOKUP(CONCATENATE('Title page'!B$3,"-","7a","-",'Table 7a'!$Q48),Targets!$E:$T,4,FALSE),"") ->  | G48: =_xlfn.IFNA(VLOOKUP(CONCATENATE('Title page'!B$3,"-","7a","-",'Table 7a'!$Q48),Targets!$E:$T,5,FALSE),"") ->  | H48: =_xlfn.IFNA(VLOOKUP(CONCATENATE('Title page'!B$3,"-","7a","-",'Table 7a'!$Q48),Targets!$E:$T,6,FALSE),"") ->  | I48: =_xlfn.IFNA(VLOOKUP(CONCATENATE('Title page'!B$3,"-","7a","-",'Table 7a'!$Q48),Targets!$E:$T,7,FALSE),"") ->  | J48: =_xlfn.IFNA(VLOOKUP(CONCATENATE('Title page'!B$3,"-","7a","-",'Table 7a'!$Q48),Targets!$E:$T,8,FALSE),"") ->  | K48: =_xlfn.IFNA(VLOOKUP(CONCATENATE('Title page'!B$3,"-","7a","-",'Table 7a'!$Q48),Targets!$E:$T,9,FALSE),"") ->  | L48: =_xlfn.IFNA(VLOOKUP(CONCATENATE('Title page'!B$3,"-","7a","-",'Table 7a'!$Q48),Targets!$E:$T,10,FALSE),"") ->  | M48: =_xlfn.IFNA(VLOOKUP(CONCATENATE('Title page'!B$3,"-","7a","-",'Table 7a'!$Q48),Targets!$E:$T,11,FALSE),"") ->  | N48: =_xlfn.IFNA(VLOOKUP(CONCATENATE('Title page'!B$3,"-","7a","-",'Table 7a'!$Q48),Targets!$E:$T,12,FALSE),"") ->  | O48: =_xlfn.IFNA(VLOOKUP(CONCATENATE('Title page'!B$3,"-","7a","-",'Table 7a'!$Q48),Targets!$E:$T,13,FALSE),"") ->  | P48: =_xlfn.IFNA(VLOOKUP(CONCATENATE('Title page'!B$3,"-","7a","-",'Table 7a'!$Q48),Targets!$E:$T,14,FALSE),"") -> 
B49: =_xlfn.IFNA(VLOOKUP(CONCATENATE('Title page'!B$3,"-","7a","-",'Table 7a'!$Q49),Targets!$E:$T,15,FALSE),"") ->  | C49: =_xlfn.IFNA(VLOOKUP(CONCATENATE('Title page'!B$3,"-","7a","-",'Table 7a'!$Q49),Targets!$E:$T,16,FALSE),"") ->  | D49: =_xlfn.IFNA(VLOOKUP(CONCATENATE('Title page'!B$3,"-","7a","-",'Table 7a'!$Q49),Targets!$E:$T,2,FALSE),"") ->  | E49: =_xlfn.IFNA(VLOOKUP(CONCATENATE('Title page'!B$3,"-","7a","-",'Table 7a'!$Q49),Targets!$E:$T,3,FALSE),"") ->  | F49: =_xlfn.IFNA(VLOOKUP(CONCATENATE('Title page'!B$3,"-","7a","-",'Table 7a'!$Q49),Targets!$E:$T,4,FALSE),"") ->  | G49: =_xlfn.IFNA(VLOOKUP(CONCATENATE('Title page'!B$3,"-","7a","-",'Table 7a'!$Q49),Targets!$E:$T,5,FALSE),"") ->  | H49: =_xlfn.IFNA(VLOOKUP(CONCATENATE('Title page'!B$3,"-","7a","-",'Table 7a'!$Q49),Targets!$E:$T,6,FALSE),"") ->  | I49: =_xlfn.IFNA(VLOOKUP(CONCATENATE('Title page'!B$3,"-","7a","-",'Table 7a'!$Q49),Targets!$E:$T,7,FALSE),"") ->  | J49: =_xlfn.IFNA(VLOOKUP(CONCATENATE('Title page'!B$3,"-","7a","-",'Table 7a'!$Q49),Targets!$E:$T,8,FALSE),"") ->  | K49: =_xlfn.IFNA(VLOOKUP(CONCATENATE('Title page'!B$3,"-","7a","-",'Table 7a'!$Q49),Targets!$E:$T,9,FALSE),"") ->  | L49: =_xlfn.IFNA(VLOOKUP(CONCATENATE('Title page'!B$3,"-","7a","-",'Table 7a'!$Q49),Targets!$E:$T,10,FALSE),"") ->  | M49: =_xlfn.IFNA(VLOOKUP(CONCATENATE('Title page'!B$3,"-","7a","-",'Table 7a'!$Q49),Targets!$E:$T,11,FALSE),"") ->  | N49: =_xlfn.IFNA(VLOOKUP(CONCATENATE('Title page'!B$3,"-","7a","-",'Table 7a'!$Q49),Targets!$E:$T,12,FALSE),"") ->  | O49: =_xlfn.IFNA(VLOOKUP(CONCATENATE('Title page'!B$3,"-","7a","-",'Table 7a'!$Q49),Targets!$E:$T,13,FALSE),"") ->  | P49: =_xlfn.IFNA(VLOOKUP(CONCATENATE('Title page'!B$3,"-","7a","-",'Table 7a'!$Q49),Targets!$E:$T,14,FALSE),"") -> 
B50: =_xlfn.IFNA(VLOOKUP(CONCATENATE('Title page'!B$3,"-","7a","-",'Table 7a'!$Q50),Targets!$E:$T,15,FALSE),"") ->  | C50: =_xlfn.IFNA(VLOOKUP(CONCATENATE('Title page'!B$3,"-","7a","-",'Table 7a'!$Q50),Targets!$E:$T,16,FALSE),"") ->  | D50: =_xlfn.IFNA(VLOOKUP(CONCATENATE('Title page'!B$3,"-","7a","-",'Table 7a'!$Q50),Targets!$E:$T,2,FALSE),"") ->  | E50: =_xlfn.IFNA(VLOOKUP(CONCATENATE('Title page'!B$3,"-","7a","-",'Table 7a'!$Q50),Targets!$E:$T,3,FALSE),"") ->  | F50: =_xlfn.IFNA(VLOOKUP(CONCATENATE('Title page'!B$3,"-","7a","-",'Table 7a'!$Q50),Targets!$E:$T,4,FALSE),"") ->  | G50: =_xlfn.IFNA(VLOOKUP(CONCATENATE('Title page'!B$3,"-","7a","-",'Table 7a'!$Q50),Targets!$E:$T,5,FALSE),"") ->  | H50: =_xlfn.IFNA(VLOOKUP(CONCATENATE('Title page'!B$3,"-","7a","-",'Table 7a'!$Q50),Targets!$E:$T,6,FALSE),"") ->  | I50: =_xlfn.IFNA(VLOOKUP(CONCATENATE('Title page'!B$3,"-","7a","-",'Table 7a'!$Q50),Targets!$E:$T,7,FALSE),"") ->  | J50: =_xlfn.IFNA(VLOOKUP(CONCATENATE('Title page'!B$3,"-","7a","-",'Table 7a'!$Q50),Targets!$E:$T,8,FALSE),"") ->  | K50: =_xlfn.IFNA(VLOOKUP(CONCATENATE('Title page'!B$3,"-","7a","-",'Table 7a'!$Q50),Targets!$E:$T,9,FALSE),"") ->  | L50: =_xlfn.IFNA(VLOOKUP(CONCATENATE('Title page'!B$3,"-","7a","-",'Table 7a'!$Q50),Targets!$E:$T,10,FALSE),"") ->  | M50: =_xlfn.IFNA(VLOOKUP(CONCATENATE('Title page'!B$3,"-","7a","-",'Table 7a'!$Q50),Targets!$E:$T,11,FALSE),"") ->  | N50: =_xlfn.IFNA(VLOOKUP(CONCATENATE('Title page'!B$3,"-","7a","-",'Table 7a'!$Q50),Targets!$E:$T,12,FALSE),"") ->  | O50: =_xlfn.IFNA(VLOOKUP(CONCATENATE('Title page'!B$3,"-","7a","-",'Table 7a'!$Q50),Targets!$E:$T,13,FALSE),"") ->  | P50: =_xlfn.IFNA(VLOOKUP(CONCATENATE('Title page'!B$3,"-","7a","-",'Table 7a'!$Q50),Targets!$E:$T,14,FALSE),"") -> 
B51: =_xlfn.IFNA(VLOOKUP(CONCATENATE('Title page'!B$3,"-","7a","-",'Table 7a'!$Q51),Targets!$E:$T,15,FALSE),"") ->  | C51: =_xlfn.IFNA(VLOOKUP(CONCATENATE('Title page'!B$3,"-","7a","-",'Table 7a'!$Q51),Targets!$E:$T,16,FALSE),"") ->  | D51: =_xlfn.IFNA(VLOOKUP(CONCATENATE('Title page'!B$3,"-","7a","-",'Table 7a'!$Q51),Targets!$E:$T,2,FALSE),"") ->  | E51: =_xlfn.IFNA(VLOOKUP(CONCATENATE('Title page'!B$3,"-","7a","-",'Table 7a'!$Q51),Targets!$E:$T,3,FALSE),"") ->  | F51: =_xlfn.IFNA(VLOOKUP(CONCATENATE('Title page'!B$3,"-","7a","-",'Table 7a'!$Q51),Targets!$E:$T,4,FALSE),"") ->  | G51: =_xlfn.IFNA(VLOOKUP(CONCATENATE('Title page'!B$3,"-","7a","-",'Table 7a'!$Q51),Targets!$E:$T,5,FALSE),"") ->  | H51: =_xlfn.IFNA(VLOOKUP(CONCATENATE('Title page'!B$3,"-","7a","-",'Table 7a'!$Q51),Targets!$E:$T,6,FALSE),"") ->  | I51: =_xlfn.IFNA(VLOOKUP(CONCATENATE('Title page'!B$3,"-","7a","-",'Table 7a'!$Q51),Targets!$E:$T,7,FALSE),"") ->  | J51: =_xlfn.IFNA(VLOOKUP(CONCATENATE('Title page'!B$3,"-","7a","-",'Table 7a'!$Q51),Targets!$E:$T,8,FALSE),"") ->  | K51: =_xlfn.IFNA(VLOOKUP(CONCATENATE('Title page'!B$3,"-","7a","-",'Table 7a'!$Q51),Targets!$E:$T,9,FALSE),"") ->  | L51: =_xlfn.IFNA(VLOOKUP(CONCATENATE('Title page'!B$3,"-","7a","-",'Table 7a'!$Q51),Targets!$E:$T,10,FALSE),"") ->  | M51: =_xlfn.IFNA(VLOOKUP(CONCATENATE('Title page'!B$3,"-","7a","-",'Table 7a'!$Q51),Targets!$E:$T,11,FALSE),"") ->  | N51: =_xlfn.IFNA(VLOOKUP(CONCATENATE('Title page'!B$3,"-","7a","-",'Table 7a'!$Q51),Targets!$E:$T,12,FALSE),"") ->  | O51: =_xlfn.IFNA(VLOOKUP(CONCATENATE('Title page'!B$3,"-","7a","-",'Table 7a'!$Q51),Targets!$E:$T,13,FALSE),"") ->  | P51: =_xlfn.IFNA(VLOOKUP(CONCATENATE('Title page'!B$3,"-","7a","-",'Table 7a'!$Q51),Targets!$E:$T,14,FALSE),"") -> 

Sheet Table 7b
A1: Table 7b - Other milestones and targets
A2: =CONCATENATE("Institution name: ",'Title page'!B2) -> Institution name: Anglia Ruskin University
A4: Number | B4: Lifecycle stage | C4: Main target type | D4: Milestone/target type | E4: Description (500 characters maximum) | F4: Is this a collaborative target? | G4: Baseline data | H4: Baseline year (please use form 20XX-XX) | I4: Target (number or percentage) | J4: Target year (please use form 20XX-XX) | K4: Progress to date, by academic year (numeric where possible, however you may use text) | P4: Performance summary
K5: 2012-13 | L5: 2013-14 | M5: 2014-15 | N5: 2015-16 | O5: 2016-17
A6: =IF(LEN(B6)<1,"",Q6) -> 1 | B6: =_xlfn.IFNA(VLOOKUP(CONCATENATE('Title page'!B$3,"-","7b","-",Q6),Targets!$E:$T,15,FALSE),"") -> Access | C6: =_xlfn.IFNA(VLOOKUP(CONCATENATE('Title page'!B$3,"-","7b","-",Q6),Targets!$E:$T,16,FALSE),"") -> Low participation neighbourhood (LPN) | D6: =_xlfn.IFNA(VLOOKUP(CONCATENATE('Title page'!B$3,"-","7b","-",Q6),Targets!$E:$T,2,FALSE),"") -> Outreach / WP activity (other - please give details in the next column) | E6: =_xlfn.IFNA(VLOOKUP(CONCATENATE('Title page'!B$3,"-","7b","-",$Q6),Targets!$E:$T,3,FALSE),"") -> Proactively engage with targeted state secondary schools using relevant outreach criteria including POLAR data, offering a portfolio of activity | F6: =_xlfn.IFNA(VLOOKUP(CONCATENATE('Title page'!B$3,"-","7b","-",$Q6),Targets!$E:$T,4,FALSE),"") -> No | G6: =_xlfn.IFNA(VLOOKUP(CONCATENATE('Title page'!B$3,"-","7b","-",$Q6),Targets!$E:$T,5,FALSE),"") -> We engaged with 96 schools during baseline year | H6: =_xlfn.IFNA(VLOOKUP(CONCATENATE('Title page'!B$3,"-","7b","-",$Q6),Targets!$E:$T,6,FALSE),"") -> 2012-13 | I6: =_xlfn.IFNA(VLOOKUP(CONCATENATE('Title page'!B$3,"-","7b","-",$Q6),Targets!$E:$T,7,FALSE),"") -> Engage with all schools in designated geographical area | J6: =_xlfn.IFNA(VLOOKUP(CONCATENATE('Title page'!B$3,"-","7b","-",$Q6),Targets!$E:$T,8,FALSE),"") -> 2019-20 | K6: =_xlfn.IFNA(VLOOKUP(CONCATENATE('Title page'!B$3,"-","7b","-",$Q6),Targets!$E:$T,9,FALSE),"") -> 96 | L6: =_xlfn.IFNA(VLOOKUP(CONCATENATE('Title page'!B$3,"-","7b","-",$Q6),Targets!$E:$T,10,FALSE),"") -> 93 | M6: =_xlfn.IFNA(VLOOKUP(CONCATENATE('Title page'!B$3,"-","7b","-",$Q6),Targets!$E:$T,11,FALSE),"") -> 98 | N6: =_xlfn.IFNA(VLOOKUP(CONCATENATE('Title page'!B$3,"-","7b","-",$Q6),Targets!$E:$T,12,FALSE),"") -> 126 schools engaged | O6: =_xlfn.IFNA(VLOOKUP(CONCATENATE('Title page'!B$3,"-","7b","-",$Q6),Targets!$E:$T,13,FALSE),"") -> 150 schools engaged | P6: =_xlfn.IFNA(VLOOKUP(CONCATENATE('Title page'!B$3,"-","7b","-",$Q6),Targets!$E:$T,14,FALSE),"") -> a) Overall target met/exceeded | Q6: 1
A7: =IF(LEN(B7)<1,"",Q7) -> 2 | B7: =_xlfn.IFNA(VLOOKUP(CONCATENATE('Title page'!B$3,"-","7b","-",Q7),Targets!$E:$T,15,FALSE),"") -> Access | C7: =_xlfn.IFNA(VLOOKUP(CONCATENATE('Title page'!B$3,"-","7b","-",Q7),Targets!$E:$T,16,FALSE),"") -> Mature | D7: =_xlfn.IFNA(VLOOKUP(CONCATENATE('Title page'!B$3,"-","7b","-",Q7),Targets!$E:$T,2,FALSE),"") -> Outreach / WP activity (other - please give details in the next column) | E7: =_xlfn.IFNA(VLOOKUP(CONCATENATE('Title page'!B$3,"-","7b","-",$Q7),Targets!$E:$T,3,FALSE),"") -> Provide targeted activity/events for Access/Mature learners | F7: =_xlfn.IFNA(VLOOKUP(CONCATENATE('Title page'!B$3,"-","7b","-",$Q7),Targets!$E:$T,4,FALSE),"") -> No | G7: =_xlfn.IFNA(VLOOKUP(CONCATENATE('Title page'!B$3,"-","7b","-",$Q7),Targets!$E:$T,5,FALSE),"") -> 150 | H7: =_xlfn.IFNA(VLOOKUP(CONCATENATE('Title page'!B$3,"-","7b","-",$Q7),Targets!$E:$T,6,FALSE),"") -> 2014-15 | I7: =_xlfn.IFNA(VLOOKUP(CONCATENATE('Title page'!B$3,"-","7b","-",$Q7),Targets!$E:$T,7,FALSE),"") -> 180 | J7: =_xlfn.IFNA(VLOOKUP(CONCATENATE('Title page'!B$3,"-","7b","-",$Q7),Targets!$E:$T,8,FALSE),"") -> 2019-20 | K7: =_xlfn.IFNA(VLOOKUP(CONCATENATE('Title page'!B$3,"-","7b","-",$Q7),Targets!$E:$T,9,FALSE),"") -> 5 Events / 312 learners | L7: =_xlfn.IFNA(VLOOKUP(CONCATENATE('Title page'!B$3,"-","7b","-",$Q7),Targets!$E:$T,10,FALSE),"") -> 207 | M7: =_xlfn.IFNA(VLOOKUP(CONCATENATE('Title page'!B$3,"-","7b","-",$Q7),Targets!$E:$T,11,FALSE),"") -> 131 (We experienced unusally low take up, which impacted on numbers) | N7: =_xlfn.IFNA(VLOOKUP(CONCATENATE('Title page'!B$3,"-","7b","-",$Q7),Targets!$E:$T,12,FALSE),"") -> 228 students | O7: =_xlfn.IFNA(VLOOKUP(CONCATENATE('Title page'!B$3,"-","7b","-",$Q7),Targets!$E:$T,13,FALSE),"") -> 207 students | P7: =_xlfn.IFNA(VLOOKUP(CONCATENATE('Title page'!B$3,"-","7b","-",$Q7),Targets!$E:$T,14,FALSE),"") -> a) Overall target met/exceeded | Q7: 2
A8: 3 | B8: =_xlfn.IFNA(VLOOKUP(CONCATENATE('Title page'!B$3,"-","7b","-",Q8),Targets!$E:$T,15,FALSE),"") -> Access | C8: =_xlfn.IFNA(VLOOKUP(CONCATENATE('Title page'!B$3,"-","7b","-",Q8),Targets!$E:$T,16,FALSE),"") -> Multiple | D8: =_xlfn.IFNA(VLOOKUP(CONCATENATE('Title page'!B$3,"-","7b","-",Q8),Targets!$E:$T,2,FALSE),"") -> Outreach / WP activity (other - please give details in the next column) | E8: =_xlfn.IFNA(VLOOKUP(CONCATENATE('Title page'!B$3,"-","7b","-",$Q8),Targets!$E:$T,3,FALSE),"") -> Provide activity/events for primary learners | F8: =_xlfn.IFNA(VLOOKUP(CONCATENATE('Title page'!B$3,"-","7b","-",$Q8),Targets!$E:$T,4,FALSE),"") -> No | G8: =_xlfn.IFNA(VLOOKUP(CONCATENATE('Title page'!B$3,"-","7b","-",$Q8),Targets!$E:$T,5,FALSE),"") -> 500 | H8: =_xlfn.IFNA(VLOOKUP(CONCATENATE('Title page'!B$3,"-","7b","-",$Q8),Targets!$E:$T,6,FALSE),"") -> 2012-13 | I8: =_xlfn.IFNA(VLOOKUP(CONCATENATE('Title page'!B$3,"-","7b","-",$Q8),Targets!$E:$T,7,FALSE),"") -> 500 | J8: =_xlfn.IFNA(VLOOKUP(CONCATENATE('Title page'!B$3,"-","7b","-",$Q8),Targets!$E:$T,8,FALSE),"") -> 2019-20 | K8: =_xlfn.IFNA(VLOOKUP(CONCATENATE('Title page'!B$3,"-","7b","-",$Q8),Targets!$E:$T,9,FALSE),"") -> 500 | L8: =_xlfn.IFNA(VLOOKUP(CONCATENATE('Title page'!B$3,"-","7b","-",$Q8),Targets!$E:$T,10,FALSE),"") -> 517 (with 89 pupils and parents returning for graduation) | M8: =_xlfn.IFNA(VLOOKUP(CONCATENATE('Title page'!B$3,"-","7b","-",$Q8),Targets!$E:$T,11,FALSE),"") -> 529 (102 students & parents returning for graduation) | N8: =_xlfn.IFNA(VLOOKUP(CONCATENATE('Title page'!B$3,"-","7b","-",$Q8),Targets!$E:$T,12,FALSE),"") -> 547 Pupils (656 including those re-attending for ‘graduation’) | O8: =_xlfn.IFNA(VLOOKUP(CONCATENATE('Title page'!B$3,"-","7b","-",$Q8),Targets!$E:$T,13,FALSE),"") -> 587 year 6 pupils (including those attending graduation) | P8: =_xlfn.IFNA(VLOOKUP(CONCATENATE('Title page'!B$3,"-","7b","-",$Q8),Targets!$E:$T,14,FALSE),"") -> a) Overall target met/exceeded | Q8: 3
A9: 4 | B9: =_xlfn.IFNA(VLOOKUP(CONCATENATE('Title page'!B$3,"-","7b","-",Q9),Targets!$E:$T,15,FALSE),"") -> Access | C9: =_xlfn.IFNA(VLOOKUP(CONCATENATE('Title page'!B$3,"-","7b","-",Q9),Targets!$E:$T,16,FALSE),"") -> State school | D9: =_xlfn.IFNA(VLOOKUP(CONCATENATE('Title page'!B$3,"-","7b","-",Q9),Targets!$E:$T,2,FALSE),"") -> Outreach / WP activity (collaborative - please give details in the next column) | E9: =_xlfn.IFNA(VLOOKUP(CONCATENATE('Title page'!B$3,"-","7b","-",$Q9),Targets!$E:$T,3,FALSE),"") -> Engage with students from state secondary schools through collaborative activity with other relevant organisations/bodies/networks | F9: =_xlfn.IFNA(VLOOKUP(CONCATENATE('Title page'!B$3,"-","7b","-",$Q9),Targets!$E:$T,4,FALSE),"") -> Yes | G9: =_xlfn.IFNA(VLOOKUP(CONCATENATE('Title page'!B$3,"-","7b","-",$Q9),Targets!$E:$T,5,FALSE),"") -> 929 | H9: =_xlfn.IFNA(VLOOKUP(CONCATENATE('Title page'!B$3,"-","7b","-",$Q9),Targets!$E:$T,6,FALSE),"") -> 2013-14 | I9: =_xlfn.IFNA(VLOOKUP(CONCATENATE('Title page'!B$3,"-","7b","-",$Q9),Targets!$E:$T,7,FALSE),"") -> 1400 | J9: =_xlfn.IFNA(VLOOKUP(CONCATENATE('Title page'!B$3,"-","7b","-",$Q9),Targets!$E:$T,8,FALSE),"") -> 2019-20 | K9: =_xlfn.IFNA(VLOOKUP(CONCATENATE('Title page'!B$3,"-","7b","-",$Q9),Targets!$E:$T,9,FALSE),"") -> 25 Events (post 2012-13 target changes to focus on number of visitors) | L9: =_xlfn.IFNA(VLOOKUP(CONCATENATE('Title page'!B$3,"-","7b","-",$Q9),Targets!$E:$T,10,FALSE),"") -> 25 events | M9: =_xlfn.IFNA(VLOOKUP(CONCATENATE('Title page'!B$3,"-","7b","-",$Q9),Targets!$E:$T,11,FALSE),"") -> 2955 students | N9: =_xlfn.IFNA(VLOOKUP(CONCATENATE('Title page'!B$3,"-","7b","-",$Q9),Targets!$E:$T,12,FALSE),"") -> 3598 students | O9: =_xlfn.IFNA(VLOOKUP(CONCATENATE('Title page'!B$3,"-","7b","-",$Q9),Targets!$E:$T,13,FALSE),"") -> 3950 students | P9: =_xlfn.IFNA(VLOOKUP(CONCATENATE('Title page'!B$3,"-","7b","-",$Q9),Targets!$E:$T,14,FALSE),"") -> a) Overall target met/exceeded | Q9: 4
A10: 5 | B10: =_xlfn.IFNA(VLOOKUP(CONCATENATE('Title page'!B$3,"-","7b","-",Q10),Targets!$E:$T,15,FALSE),"") -> Access | C10: =_xlfn.IFNA(VLOOKUP(CONCATENATE('Title page'!B$3,"-","7b","-",Q10),Targets!$E:$T,16,FALSE),"") -> Multiple | D10: =_xlfn.IFNA(VLOOKUP(CONCATENATE('Title page'!B$3,"-","7b","-",Q10),Targets!$E:$T,2,FALSE),"") -> Outreach / WP activity (other - please give details in the next column) | E10: =_xlfn.IFNA(VLOOKUP(CONCATENATE('Title page'!B$3,"-","7b","-",$Q10),Targets!$E:$T,3,FALSE),"") -> Deliver campus based activity targeting families | F10: =_xlfn.IFNA(VLOOKUP(CONCATENATE('Title page'!B$3,"-","7b","-",$Q10),Targets!$E:$T,4,FALSE),"") -> No | G10: =_xlfn.IFNA(VLOOKUP(CONCATENATE('Title page'!B$3,"-","7b","-",$Q10),Targets!$E:$T,5,FALSE),"") -> 396 | H10: =_xlfn.IFNA(VLOOKUP(CONCATENATE('Title page'!B$3,"-","7b","-",$Q10),Targets!$E:$T,6,FALSE),"") -> 2012-13 | I10: =_xlfn.IFNA(VLOOKUP(CONCATENATE('Title page'!B$3,"-","7b","-",$Q10),Targets!$E:$T,7,FALSE),"") -> 800 | J10: =_xlfn.IFNA(VLOOKUP(CONCATENATE('Title page'!B$3,"-","7b","-",$Q10),Targets!$E:$T,8,FALSE),"") -> 2019-20 | K10: =_xlfn.IFNA(VLOOKUP(CONCATENATE('Title page'!B$3,"-","7b","-",$Q10),Targets!$E:$T,9,FALSE),"") -> 382 Individuals | L10: =_xlfn.IFNA(VLOOKUP(CONCATENATE('Title page'!B$3,"-","7b","-",$Q10),Targets!$E:$T,10,FALSE),"") -> 1293 | M10: =_xlfn.IFNA(VLOOKUP(CONCATENATE('Title page'!B$3,"-","7b","-",$Q10),Targets!$E:$T,11,FALSE),"") -> 1190 | N10: =_xlfn.IFNA(VLOOKUP(CONCATENATE('Title page'!B$3,"-","7b","-",$Q10),Targets!$E:$T,12,FALSE),"") -> 1140 | O10: =_xlfn.IFNA(VLOOKUP(CONCATENATE('Title page'!B$3,"-","7b","-",$Q10),Targets!$E:$T,13,FALSE),"") -> 813 | P10: =_xlfn.IFNA(VLOOKUP(CONCATENATE('Title page'!B$3,"-","7b","-",$Q10),Targets!$E:$T,14,FALSE),"") -> a) Overall target met/exceeded | Q10: 5
A11: 6 | B11: =_xlfn.IFNA(VLOOKUP(CONCATENATE('Title page'!B$3,"-","7b","-",Q11),Targets!$E:$T,15,FALSE),"") -> Access | C11: =_xlfn.IFNA(VLOOKUP(CONCATENATE('Title page'!B$3,"-","7b","-",Q11),Targets!$E:$T,16,FALSE),"") -> Multiple | D11: =_xlfn.IFNA(VLOOKUP(CONCATENATE('Title page'!B$3,"-","7b","-",Q11),Targets!$E:$T,2,FALSE),"") -> Outreach / WP activity (other - please give details in the next column) | E11: =_xlfn.IFNA(VLOOKUP(CONCATENATE('Title page'!B$3,"-","7b","-",$Q11),Targets!$E:$T,3,FALSE),"") -> Host campus visits for students in state secondary schools/colleges focussing on introduction to HE, and the provision of age appropriate IAG. Priority given to targeted schools in POLAR 1&2 areas. | F11: =_xlfn.IFNA(VLOOKUP(CONCATENATE('Title page'!B$3,"-","7b","-",$Q11),Targets!$E:$T,4,FALSE),"") -> No | G11: =_xlfn.IFNA(VLOOKUP(CONCATENATE('Title page'!B$3,"-","7b","-",$Q11),Targets!$E:$T,5,FALSE),"") -> 1709 | H11: =_xlfn.IFNA(VLOOKUP(CONCATENATE('Title page'!B$3,"-","7b","-",$Q11),Targets!$E:$T,6,FALSE),"") -> 2012-13 | I11: =_xlfn.IFNA(VLOOKUP(CONCATENATE('Title page'!B$3,"-","7b","-",$Q11),Targets!$E:$T,7,FALSE),"") -> 2000 | J11: =_xlfn.IFNA(VLOOKUP(CONCATENATE('Title page'!B$3,"-","7b","-",$Q11),Targets!$E:$T,8,FALSE),"") -> 2019-20 | K11: =_xlfn.IFNA(VLOOKUP(CONCATENATE('Title page'!B$3,"-","7b","-",$Q11),Targets!$E:$T,9,FALSE),"") -> 1709 | L11: =_xlfn.IFNA(VLOOKUP(CONCATENATE('Title page'!B$3,"-","7b","-",$Q11),Targets!$E:$T,10,FALSE),"") -> 2047 | M11: =_xlfn.IFNA(VLOOKUP(CONCATENATE('Title page'!B$3,"-","7b","-",$Q11),Targets!$E:$T,11,FALSE),"") -> 3360 | N11: =_xlfn.IFNA(VLOOKUP(CONCATENATE('Title page'!B$3,"-","7b","-",$Q11),Targets!$E:$T,12,FALSE),"") -> 3488 students | O11: =_xlfn.IFNA(VLOOKUP(CONCATENATE('Title page'!B$3,"-","7b","-",$Q11),Targets!$E:$T,13,FALSE),"") -> 3248 students | P11: =_xlfn.IFNA(VLOOKUP(CONCATENATE('Title page'!B$3,"-","7b","-",$Q11),Targets!$E:$T,14,FALSE),"") -> a) Overall target met/exceeded | Q11: 6
B12: =_xlfn.IFNA(VLOOKUP(CONCATENATE('Title page'!B$3,"-","7b","-",Q12),Targets!$E:$T,15,FALSE),"") ->  | C12: =_xlfn.IFNA(VLOOKUP(CONCATENATE('Title page'!B$3,"-","7b","-",Q12),Targets!$E:$T,16,FALSE),"") ->  | D12: =_xlfn.IFNA(VLOOKUP(CONCATENATE('Title page'!B$3,"-","7b","-",Q12),Targets!$E:$T,2,FALSE),"") ->  | E12: =_xlfn.IFNA(VLOOKUP(CONCATENATE('Title page'!B$3,"-","7b","-",$Q12),Targets!$E:$T,3,FALSE),"") ->  | F12: =_xlfn.IFNA(VLOOKUP(CONCATENATE('Title page'!B$3,"-","7b","-",$Q12),Targets!$E:$T,4,FALSE),"") ->  | G12: =_xlfn.IFNA(VLOOKUP(CONCATENATE('Title page'!B$3,"-","7b","-",$Q12),Targets!$E:$T,5,FALSE),"") ->  | H12: =_xlfn.IFNA(VLOOKUP(CONCATENATE('Title page'!B$3,"-","7b","-",$Q12),Targets!$E:$T,6,FALSE),"") ->  | I12: =_xlfn.IFNA(VLOOKUP(CONCATENATE('Title page'!B$3,"-","7b","-",$Q12),Targets!$E:$T,7,FALSE),"") ->  | J12: =_xlfn.IFNA(VLOOKUP(CONCATENATE('Title page'!B$3,"-","7b","-",$Q12),Targets!$E:$T,8,FALSE),"") ->  | K12: =_xlfn.IFNA(VLOOKUP(CONCATENATE('Title page'!B$3,"-","7b","-",$Q12),Targets!$E:$T,9,FALSE),"") ->  | L12: =_xlfn.IFNA(VLOOKUP(CONCATENATE('Title page'!B$3,"-","7b","-",$Q12),Targets!$E:$T,10,FALSE),"") ->  | M12: =_xlfn.IFNA(VLOOKUP(CONCATENATE('Title page'!B$3,"-","7b","-",$Q12),Targets!$E:$T,11,FALSE),"") ->  | N12: =_xlfn.IFNA(VLOOKUP(CONCATENATE('Title page'!B$3,"-","7b","-",$Q12),Targets!$E:$T,12,FALSE),"") ->  | O12: =_xlfn.IFNA(VLOOKUP(CONCATENATE('Title page'!B$3,"-","7b","-",$Q12),Targets!$E:$T,13,FALSE),"") ->  | P12: =_xlfn.IFNA(VLOOKUP(CONCATENATE('Title page'!B$3,"-","7b","-",$Q12),Targets!$E:$T,14,FALSE),"") ->  | Q12: 7
B13: =_xlfn.IFNA(VLOOKUP(CONCATENATE('Title page'!B$3,"-","7b","-",Q13),Targets!$E:$T,15,FALSE),"") ->  | C13: =_xlfn.IFNA(VLOOKUP(CONCATENATE('Title page'!B$3,"-","7b","-",Q13),Targets!$E:$T,16,FALSE),"") ->  | D13: =_xlfn.IFNA(VLOOKUP(CONCATENATE('Title page'!B$3,"-","7b","-",Q13),Targets!$E:$T,2,FALSE),"") ->  | E13: =_xlfn.IFNA(VLOOKUP(CONCATENATE('Title page'!B$3,"-","7b","-",$Q13),Targets!$E:$T,3,FALSE),"") ->  | F13: =_xlfn.IFNA(VLOOKUP(CONCATENATE('Title page'!B$3,"-","7b","-",$Q13),Targets!$E:$T,4,FALSE),"") ->  | G13: =_xlfn.IFNA(VLOOKUP(CONCATENATE('Title page'!B$3,"-","7b","-",$Q13),Targets!$E:$T,5,FALSE),"") ->  | H13: =_xlfn.IFNA(VLOOKUP(CONCATENATE('Title page'!B$3,"-","7b","-",$Q13),Targets!$E:$T,6,FALSE),"") ->  | I13: =_xlfn.IFNA(VLOOKUP(CONCATENATE('Title page'!B$3,"-","7b","-",$Q13),Targets!$E:$T,7,FALSE),"") ->  | J13: =_xlfn.IFNA(VLOOKUP(CONCATENATE('Title page'!B$3,"-","7b","-",$Q13),Targets!$E:$T,8,FALSE),"") ->  | K13: =_xlfn.IFNA(VLOOKUP(CONCATENATE('Title page'!B$3,"-","7b","-",$Q13),Targets!$E:$T,9,FALSE),"") ->  | L13: =_xlfn.IFNA(VLOOKUP(CONCATENATE('Title page'!B$3,"-","7b","-",$Q13),Targets!$E:$T,10,FALSE),"") ->  | M13: =_xlfn.IFNA(VLOOKUP(CONCATENATE('Title page'!B$3,"-","7b","-",$Q13),Targets!$E:$T,11,FALSE),"") ->  | N13: =_xlfn.IFNA(VLOOKUP(CONCATENATE('Title page'!B$3,"-","7b","-",$Q13),Targets!$E:$T,12,FALSE),"") ->  | O13: =_xlfn.IFNA(VLOOKUP(CONCATENATE('Title page'!B$3,"-","7b","-",$Q13),Targets!$E:$T,13,FALSE),"") ->  | P13: =_xlfn.IFNA(VLOOKUP(CONCATENATE('Title page'!B$3,"-","7b","-",$Q13),Targets!$E:$T,14,FALSE),"") ->  | Q13: 8
B14: =_xlfn.IFNA(VLOOKUP(CONCATENATE('Title page'!B$3,"-","7b","-",Q14),Targets!$E:$T,15,FALSE),"") ->  | C14: =_xlfn.IFNA(VLOOKUP(CONCATENATE('Title page'!B$3,"-","7b","-",Q14),Targets!$E:$T,16,FALSE),"") ->  | D14: =_xlfn.IFNA(VLOOKUP(CONCATENATE('Title page'!B$3,"-","7b","-",Q14),Targets!$E:$T,2,FALSE),"") ->  | E14: =_xlfn.IFNA(VLOOKUP(CONCATENATE('Title page'!B$3,"-","7b","-",$Q14),Targets!$E:$T,3,FALSE),"") ->  | F14: =_xlfn.IFNA(VLOOKUP(CONCATENATE('Title page'!B$3,"-","7b","-",$Q14),Targets!$E:$T,4,FALSE),"") ->  | G14: =_xlfn.IFNA(VLOOKUP(CONCATENATE('Title page'!B$3,"-","7b","-",$Q14),Targets!$E:$T,5,FALSE),"") ->  | H14: =_xlfn.IFNA(VLOOKUP(CONCATENATE('Title page'!B$3,"-","7b","-",$Q14),Targets!$E:$T,6,FALSE),"") ->  | I14: =_xlfn.IFNA(VLOOKUP(CONCATENATE('Title page'!B$3,"-","7b","-",$Q14),Targets!$E:$T,7,FALSE),"") ->  | J14: =_xlfn.IFNA(VLOOKUP(CONCATENATE('Title page'!B$3,"-","7b","-",$Q14),Targets!$E:$T,8,FALSE),"") ->  | K14: =_xlfn.IFNA(VLOOKUP(CONCATENATE('Title page'!B$3,"-","7b","-",$Q14),Targets!$E:$T,9,FALSE),"") ->  | L14: =_xlfn.IFNA(VLOOKUP(CONCATENATE('Title page'!B$3,"-","7b","-",$Q14),Targets!$E:$T,10,FALSE),"") ->  | M14: =_xlfn.IFNA(VLOOKUP(CONCATENATE('Title page'!B$3,"-","7b","-",$Q14),Targets!$E:$T,11,FALSE),"") ->  | N14: =_xlfn.IFNA(VLOOKUP(CONCATENATE('Title page'!B$3,"-","7b","-",$Q14),Targets!$E:$T,12,FALSE),"") ->  | O14: =_xlfn.IFNA(VLOOKUP(CONCATENATE('Title page'!B$3,"-","7b","-",$Q14),Targets!$E:$T,13,FALSE),"") ->  | P14: =_xlfn.IFNA(VLOOKUP(CONCATENATE('Title page'!B$3,"-","7b","-",$Q14),Targets!$E:$T,14,FALSE),"") ->  | Q14: 9
B15: =_xlfn.IFNA(VLOOKUP(CONCATENATE('Title page'!B$3,"-","7b","-",Q15),Targets!$E:$T,15,FALSE),"") ->  | C15: =_xlfn.IFNA(VLOOKUP(CONCATENATE('Title page'!B$3,"-","7b","-",Q15),Targets!$E:$T,16,FALSE),"") ->  | D15: =_xlfn.IFNA(VLOOKUP(CONCATENATE('Title page'!B$3,"-","7b","-",Q15),Targets!$E:$T,2,FALSE),"") ->  | E15: =_xlfn.IFNA(VLOOKUP(CONCATENATE('Title page'!B$3,"-","7b","-",$Q15),Targets!$E:$T,3,FALSE),"") ->  | F15: =_xlfn.IFNA(VLOOKUP(CONCATENATE('Title page'!B$3,"-","7b","-",$Q15),Targets!$E:$T,4,FALSE),"") ->  | G15: =_xlfn.IFNA(VLOOKUP(CONCATENATE('Title page'!B$3,"-","7b","-",$Q15),Targets!$E:$T,5,FALSE),"") ->  | H15: =_xlfn.IFNA(VLOOKUP(CONCATENATE('Title page'!B$3,"-","7b","-",$Q15),Targets!$E:$T,6,FALSE),"") ->  | I15: =_xlfn.IFNA(VLOOKUP(CONCATENATE('Title page'!B$3,"-","7b","-",$Q15),Targets!$E:$T,7,FALSE),"") ->  | J15: =_xlfn.IFNA(VLOOKUP(CONCATENATE('Title page'!B$3,"-","7b","-",$Q15),Targets!$E:$T,8,FALSE),"") ->  | K15: =_xlfn.IFNA(VLOOKUP(CONCATENATE('Title page'!B$3,"-","7b","-",$Q15),Targets!$E:$T,9,FALSE),"") ->  | L15: =_xlfn.IFNA(VLOOKUP(CONCATENATE('Title page'!B$3,"-","7b","-",$Q15),Targets!$E:$T,10,FALSE),"") ->  | M15: =_xlfn.IFNA(VLOOKUP(CONCATENATE('Title page'!B$3,"-","7b","-",$Q15),Targets!$E:$T,11,FALSE),"") ->  | N15: =_xlfn.IFNA(VLOOKUP(CONCATENATE('Title page'!B$3,"-","7b","-",$Q15),Targets!$E:$T,12,FALSE),"") ->  | O15: =_xlfn.IFNA(VLOOKUP(CONCATENATE('Title page'!B$3,"-","7b","-",$Q15),Targets!$E:$T,13,FALSE),"") ->  | P15: =_xlfn.IFNA(VLOOKUP(CONCATENATE('Title page'!B$3,"-","7b","-",$Q15),Targets!$E:$T,14,FALSE),"") ->  | Q15: 10
B16: =_xlfn.IFNA(VLOOKUP(CONCATENATE('Title page'!B$3,"-","7b","-",Q16),Targets!$E:$T,15,FALSE),"") ->  | C16: =_xlfn.IFNA(VLOOKUP(CONCATENATE('Title page'!B$3,"-","7b","-",Q16),Targets!$E:$T,16,FALSE),"") ->  | D16: =_xlfn.IFNA(VLOOKUP(CONCATENATE('Title page'!B$3,"-","7b","-",Q16),Targets!$E:$T,2,FALSE),"") ->  | E16: =_xlfn.IFNA(VLOOKUP(CONCATENATE('Title page'!B$3,"-","7b","-",$Q16),Targets!$E:$T,3,FALSE),"") ->  | F16: =_xlfn.IFNA(VLOOKUP(CONCATENATE('Title page'!B$3,"-","7b","-",$Q16),Targets!$E:$T,4,FALSE),"") ->  | G16: =_xlfn.IFNA(VLOOKUP(CONCATENATE('Title page'!B$3,"-","7b","-",$Q16),Targets!$E:$T,5,FALSE),"") ->  | H16: =_xlfn.IFNA(VLOOKUP(CONCATENATE('Title page'!B$3,"-","7b","-",$Q16),Targets!$E:$T,6,FALSE),"") ->  | I16: =_xlfn.IFNA(VLOOKUP(CONCATENATE('Title page'!B$3,"-","7b","-",$Q16),Targets!$E:$T,7,FALSE),"") ->  | J16: =_xlfn.IFNA(VLOOKUP(CONCATENATE('Title page'!B$3,"-","7b","-",$Q16),Targets!$E:$T,8,FALSE),"") ->  | K16: =_xlfn.IFNA(VLOOKUP(CONCATENATE('Title page'!B$3,"-","7b","-",$Q16),Targets!$E:$T,9,FALSE),"") ->  | L16: =_xlfn.IFNA(VLOOKUP(CONCATENATE('Title page'!B$3,"-","7b","-",$Q16),Targets!$E:$T,10,FALSE),"") ->  | M16: =_xlfn.IFNA(VLOOKUP(CONCATENATE('Title page'!B$3,"-","7b","-",$Q16),Targets!$E:$T,11,FALSE),"") ->  | N16: =_xlfn.IFNA(VLOOKUP(CONCATENATE('Title page'!B$3,"-","7b","-",$Q16),Targets!$E:$T,12,FALSE),"") ->  | O16: =_xlfn.IFNA(VLOOKUP(CONCATENATE('Title page'!B$3,"-","7b","-",$Q16),Targets!$E:$T,13,FALSE),"") ->  | P16: =_xlfn.IFNA(VLOOKUP(CONCATENATE('Title page'!B$3,"-","7b","-",$Q16),Targets!$E:$T,14,FALSE),"") ->  | Q16: 11
B17: =_xlfn.IFNA(VLOOKUP(CONCATENATE('Title page'!B$3,"-","7b","-",Q17),Targets!$E:$T,15,FALSE),"") ->  | C17: =_xlfn.IFNA(VLOOKUP(CONCATENATE('Title page'!B$3,"-","7b","-",Q17),Targets!$E:$T,16,FALSE),"") ->  | D17: =_xlfn.IFNA(VLOOKUP(CONCATENATE('Title page'!B$3,"-","7b","-",Q17),Targets!$E:$T,2,FALSE),"") ->  | E17: =_xlfn.IFNA(VLOOKUP(CONCATENATE('Title page'!B$3,"-","7b","-",$Q17),Targets!$E:$T,3,FALSE),"") ->  | F17: =_xlfn.IFNA(VLOOKUP(CONCATENATE('Title page'!B$3,"-","7b","-",$Q17),Targets!$E:$T,4,FALSE),"") ->  | G17: =_xlfn.IFNA(VLOOKUP(CONCATENATE('Title page'!B$3,"-","7b","-",$Q17),Targets!$E:$T,5,FALSE),"") ->  | H17: =_xlfn.IFNA(VLOOKUP(CONCATENATE('Title page'!B$3,"-","7b","-",$Q17),Targets!$E:$T,6,FALSE),"") ->  | I17: =_xlfn.IFNA(VLOOKUP(CONCATENATE('Title page'!B$3,"-","7b","-",$Q17),Targets!$E:$T,7,FALSE),"") ->  | J17: =_xlfn.IFNA(VLOOKUP(CONCATENATE('Title page'!B$3,"-","7b","-",$Q17),Targets!$E:$T,8,FALSE),"") ->  | K17: =_xlfn.IFNA(VLOOKUP(CONCATENATE('Title page'!B$3,"-","7b","-",$Q17),Targets!$E:$T,9,FALSE),"") ->  | L17: =_xlfn.IFNA(VLOOKUP(CONCATENATE('Title page'!B$3,"-","7b","-",$Q17),Targets!$E:$T,10,FALSE),"") ->  | M17: =_xlfn.IFNA(VLOOKUP(CONCATENATE('Title page'!B$3,"-","7b","-",$Q17),Targets!$E:$T,11,FALSE),"") ->  | N17: =_xlfn.IFNA(VLOOKUP(CONCATENATE('Title page'!B$3,"-","7b","-",$Q17),Targets!$E:$T,12,FALSE),"") ->  | O17: =_xlfn.IFNA(VLOOKUP(CONCATENATE('Title page'!B$3,"-","7b","-",$Q17),Targets!$E:$T,13,FALSE),"") ->  | P17: =_xlfn.IFNA(VLOOKUP(CONCATENATE('Title page'!B$3,"-","7b","-",$Q17),Targets!$E:$T,14,FALSE),"") ->  | Q17: 12
B18: =_xlfn.IFNA(VLOOKUP(CONCATENATE('Title page'!B$3,"-","7b","-",Q18),Targets!$E:$T,15,FALSE),"") ->  | C18: =_xlfn.IFNA(VLOOKUP(CONCATENATE('Title page'!B$3,"-","7b","-",Q18),Targets!$E:$T,16,FALSE),"") ->  | D18: =_xlfn.IFNA(VLOOKUP(CONCATENATE('Title page'!B$3,"-","7b","-",Q18),Targets!$E:$T,2,FALSE),"") ->  | E18: =_xlfn.IFNA(VLOOKUP(CONCATENATE('Title page'!B$3,"-","7b","-",$Q18),Targets!$E:$T,3,FALSE),"") ->  | F18: =_xlfn.IFNA(VLOOKUP(CONCATENATE('Title page'!B$3,"-","7b","-",$Q18),Targets!$E:$T,4,FALSE),"") ->  | G18: =_xlfn.IFNA(VLOOKUP(CONCATENATE('Title page'!B$3,"-","7b","-",$Q18),Targets!$E:$T,5,FALSE),"") ->  | H18: =_xlfn.IFNA(VLOOKUP(CONCATENATE('Title page'!B$3,"-","7b","-",$Q18),Targets!$E:$T,6,FALSE),"") ->  | I18: =_xlfn.IFNA(VLOOKUP(CONCATENATE('Title page'!B$3,"-","7b","-",$Q18),Targets!$E:$T,7,FALSE),"") ->  | J18: =_xlfn.IFNA(VLOOKUP(CONCATENATE('Title page'!B$3,"-","7b","-",$Q18),Targets!$E:$T,8,FALSE),"") ->  | K18: =_xlfn.IFNA(VLOOKUP(CONCATENATE('Title page'!B$3,"-","7b","-",$Q18),Targets!$E:$T,9,FALSE),"") ->  | L18: =_xlfn.IFNA(VLOOKUP(CONCATENATE('Title page'!B$3,"-","7b","-",$Q18),Targets!$E:$T,10,FALSE),"") ->  | M18: =_xlfn.IFNA(VLOOKUP(CONCATENATE('Title page'!B$3,"-","7b","-",$Q18),Targets!$E:$T,11,FALSE),"") ->  | N18: =_xlfn.IFNA(VLOOKUP(CONCATENATE('Title page'!B$3,"-","7b","-",$Q18),Targets!$E:$T,12,FALSE),"") ->  | O18: =_xlfn.IFNA(VLOOKUP(CONCATENATE('Title page'!B$3,"-","7b","-",$Q18),Targets!$E:$T,13,FALSE),"") ->  | P18: =_xlfn.IFNA(VLOOKUP(CONCATENATE('Title page'!B$3,"-","7b","-",$Q18),Targets!$E:$T,14,FALSE),"") ->  | Q18: 13
B19: =_xlfn.IFNA(VLOOKUP(CONCATENATE('Title page'!B$3,"-","7b","-",Q19),Targets!$E:$T,15,FALSE),"") ->  | C19: =_xlfn.IFNA(VLOOKUP(CONCATENATE('Title page'!B$3,"-","7b","-",Q19),Targets!$E:$T,16,FALSE),"") ->  | D19: =_xlfn.IFNA(VLOOKUP(CONCATENATE('Title page'!B$3,"-","7b","-",Q19),Targets!$E:$T,2,FALSE),"") ->  | E19: =_xlfn.IFNA(VLOOKUP(CONCATENATE('Title page'!B$3,"-","7b","-",$Q19),Targets!$E:$T,3,FALSE),"") ->  | F19: =_xlfn.IFNA(VLOOKUP(CONCATENATE('Title page'!B$3,"-","7b","-",$Q19),Targets!$E:$T,4,FALSE),"") ->  | G19: =_xlfn.IFNA(VLOOKUP(CONCATENATE('Title page'!B$3,"-","7b","-",$Q19),Targets!$E:$T,5,FALSE),"") ->  | H19: =_xlfn.IFNA(VLOOKUP(CONCATENATE('Title page'!B$3,"-","7b","-",$Q19),Targets!$E:$T,6,FALSE),"") ->  | I19: =_xlfn.IFNA(VLOOKUP(CONCATENATE('Title page'!B$3,"-","7b","-",$Q19),Targets!$E:$T,7,FALSE),"") ->  | J19: =_xlfn.IFNA(VLOOKUP(CONCATENATE('Title page'!B$3,"-","7b","-",$Q19),Targets!$E:$T,8,FALSE),"") ->  | K19: =_xlfn.IFNA(VLOOKUP(CONCATENATE('Title page'!B$3,"-","7b","-",$Q19),Targets!$E:$T,9,FALSE),"") ->  | L19: =_xlfn.IFNA(VLOOKUP(CONCATENATE('Title page'!B$3,"-","7b","-",$Q19),Targets!$E:$T,10,FALSE),"") ->  | M19: =_xlfn.IFNA(VLOOKUP(CONCATENATE('Title page'!B$3,"-","7b","-",$Q19),Targets!$E:$T,11,FALSE),"") ->  | N19: =_xlfn.IFNA(VLOOKUP(CONCATENATE('Title page'!B$3,"-","7b","-",$Q19),Targets!$E:$T,12,FALSE),"") ->  | O19: =_xlfn.IFNA(VLOOKUP(CONCATENATE('Title page'!B$3,"-","7b","-",$Q19),Targets!$E:$T,13,FALSE),"") ->  | P19: =_xlfn.IFNA(VLOOKUP(CONCATENATE('Title page'!B$3,"-","7b","-",$Q19),Targets!$E:$T,14,FALSE),"") ->  | Q19: 14
B20: =_xlfn.IFNA(VLOOKUP(CONCATENATE('Title page'!B$3,"-","7b","-",Q20),Targets!$E:$T,15,FALSE),"") ->  | C20: =_xlfn.IFNA(VLOOKUP(CONCATENATE('Title page'!B$3,"-","7b","-",Q20),Targets!$E:$T,16,FALSE),"") ->  | D20: =_xlfn.IFNA(VLOOKUP(CONCATENATE('Title page'!B$3,"-","7b","-",Q20),Targets!$E:$T,2,FALSE),"") ->  | E20: =_xlfn.IFNA(VLOOKUP(CONCATENATE('Title page'!B$3,"-","7b","-",$Q20),Targets!$E:$T,3,FALSE),"") ->  | F20: =_xlfn.IFNA(VLOOKUP(CONCATENATE('Title page'!B$3,"-","7b","-",$Q20),Targets!$E:$T,4,FALSE),"") ->  | G20: =_xlfn.IFNA(VLOOKUP(CONCATENATE('Title page'!B$3,"-","7b","-",$Q20),Targets!$E:$T,5,FALSE),"") ->  | H20: =_xlfn.IFNA(VLOOKUP(CONCATENATE('Title page'!B$3,"-","7b","-",$Q20),Targets!$E:$T,6,FALSE),"") ->  | I20: =_xlfn.IFNA(VLOOKUP(CONCATENATE('Title page'!B$3,"-","7b","-",$Q20),Targets!$E:$T,7,FALSE),"") ->  | J20: =_xlfn.IFNA(VLOOKUP(CONCATENATE('Title page'!B$3,"-","7b","-",$Q20),Targets!$E:$T,8,FALSE),"") ->  | K20: =_xlfn.IFNA(VLOOKUP(CONCATENATE('Title page'!B$3,"-","7b","-",$Q20),Targets!$E:$T,9,FALSE),"") ->  | L20: =_xlfn.IFNA(VLOOKUP(CONCATENATE('Title page'!B$3,"-","7b","-",$Q20),Targets!$E:$T,10,FALSE),"") ->  | M20: =_xlfn.IFNA(VLOOKUP(CONCATENATE('Title page'!B$3,"-","7b","-",$Q20),Targets!$E:$T,11,FALSE),"") ->  | N20: =_xlfn.IFNA(VLOOKUP(CONCATENATE('Title page'!B$3,"-","7b","-",$Q20),Targets!$E:$T,12,FALSE),"") ->  | O20: =_xlfn.IFNA(VLOOKUP(CONCATENATE('Title page'!B$3,"-","7b","-",$Q20),Targets!$E:$T,13,FALSE),"") ->  | P20: =_xlfn.IFNA(VLOOKUP(CONCATENATE('Title page'!B$3,"-","7b","-",$Q20),Targets!$E:$T,14,FALSE),"") ->  | Q20: 15
B21: =_xlfn.IFNA(VLOOKUP(CONCATENATE('Title page'!B$3,"-","7b","-",Q21),Targets!$E:$T,15,FALSE),"") ->  | C21: =_xlfn.IFNA(VLOOKUP(CONCATENATE('Title page'!B$3,"-","7b","-",Q21),Targets!$E:$T,16,FALSE),"") ->  | D21: =_xlfn.IFNA(VLOOKUP(CONCATENATE('Title page'!B$3,"-","7b","-",Q21),Targets!$E:$T,2,FALSE),"") ->  | E21: =_xlfn.IFNA(VLOOKUP(CONCATENATE('Title page'!B$3,"-","7b","-",$Q21),Targets!$E:$T,3,FALSE),"") ->  | F21: =_xlfn.IFNA(VLOOKUP(CONCATENATE('Title page'!B$3,"-","7b","-",$Q21),Targets!$E:$T,4,FALSE),"") ->  | G21: =_xlfn.IFNA(VLOOKUP(CONCATENATE('Title page'!B$3,"-","7b","-",$Q21),Targets!$E:$T,5,FALSE),"") ->  | H21: =_xlfn.IFNA(VLOOKUP(CONCATENATE('Title page'!B$3,"-","7b","-",$Q21),Targets!$E:$T,6,FALSE),"") ->  | I21: =_xlfn.IFNA(VLOOKUP(CONCATENATE('Title page'!B$3,"-","7b","-",$Q21),Targets!$E:$T,7,FALSE),"") ->  | J21: =_xlfn.IFNA(VLOOKUP(CONCATENATE('Title page'!B$3,"-","7b","-",$Q21),Targets!$E:$T,8,FALSE),"") ->  | K21: =_xlfn.IFNA(VLOOKUP(CONCATENATE('Title page'!B$3,"-","7b","-",$Q21),Targets!$E:$T,9,FALSE),"") ->  | L21: =_xlfn.IFNA(VLOOKUP(CONCATENATE('Title page'!B$3,"-","7b","-",$Q21),Targets!$E:$T,10,FALSE),"") ->  | M21: =_xlfn.IFNA(VLOOKUP(CONCATENATE('Title page'!B$3,"-","7b","-",$Q21),Targets!$E:$T,11,FALSE),"") ->  | N21: =_xlfn.IFNA(VLOOKUP(CONCATENATE('Title page'!B$3,"-","7b","-",$Q21),Targets!$E:$T,12,FALSE),"") ->  | O21: =_xlfn.IFNA(VLOOKUP(CONCATENATE('Title page'!B$3,"-","7b","-",$Q21),Targets!$E:$T,13,FALSE),"") ->  | P21: =_xlfn.IFNA(VLOOKUP(CONCATENATE('Title page'!B$3,"-","7b","-",$Q21),Targets!$E:$T,14,FALSE),"") ->  | Q21: 16
B22: =_xlfn.IFNA(VLOOKUP(CONCATENATE('Title page'!B$3,"-","7b","-",Q22),Targets!$E:$T,15,FALSE),"") ->  | C22: =_xlfn.IFNA(VLOOKUP(CONCATENATE('Title page'!B$3,"-","7b","-",Q22),Targets!$E:$T,16,FALSE),"") ->  | D22: =_xlfn.IFNA(VLOOKUP(CONCATENATE('Title page'!B$3,"-","7b","-",Q22),Targets!$E:$T,2,FALSE),"") ->  | E22: =_xlfn.IFNA(VLOOKUP(CONCATENATE('Title page'!B$3,"-","7b","-",$Q22),Targets!$E:$T,3,FALSE),"") ->  | F22: =_xlfn.IFNA(VLOOKUP(CONCATENATE('Title page'!B$3,"-","7b","-",$Q22),Targets!$E:$T,4,FALSE),"") ->  | G22: =_xlfn.IFNA(VLOOKUP(CONCATENATE('Title page'!B$3,"-","7b","-",$Q22),Targets!$E:$T,5,FALSE),"") ->  | H22: =_xlfn.IFNA(VLOOKUP(CONCATENATE('Title page'!B$3,"-","7b","-",$Q22),Targets!$E:$T,6,FALSE),"") ->  | I22: =_xlfn.IFNA(VLOOKUP(CONCATENATE('Title page'!B$3,"-","7b","-",$Q22),Targets!$E:$T,7,FALSE),"") ->  | J22: =_xlfn.IFNA(VLOOKUP(CONCATENATE('Title page'!B$3,"-","7b","-",$Q22),Targets!$E:$T,8,FALSE),"") ->  | K22: =_xlfn.IFNA(VLOOKUP(CONCATENATE('Title page'!B$3,"-","7b","-",$Q22),Targets!$E:$T,9,FALSE),"") ->  | L22: =_xlfn.IFNA(VLOOKUP(CONCATENATE('Title page'!B$3,"-","7b","-",$Q22),Targets!$E:$T,10,FALSE),"") ->  | M22: =_xlfn.IFNA(VLOOKUP(CONCATENATE('Title page'!B$3,"-","7b","-",$Q22),Targets!$E:$T,11,FALSE),"") ->  | N22: =_xlfn.IFNA(VLOOKUP(CONCATENATE('Title page'!B$3,"-","7b","-",$Q22),Targets!$E:$T,12,FALSE),"") ->  | O22: =_xlfn.IFNA(VLOOKUP(CONCATENATE('Title page'!B$3,"-","7b","-",$Q22),Targets!$E:$T,13,FALSE),"") ->  | P22: =_xlfn.IFNA(VLOOKUP(CONCATENATE('Title page'!B$3,"-","7b","-",$Q22),Targets!$E:$T,14,FALSE),"") ->  | Q22: 17
B23: =_xlfn.IFNA(VLOOKUP(CONCATENATE('Title page'!B$3,"-","7b","-",Q23),Targets!$E:$T,15,FALSE),"") ->  | C23: =_xlfn.IFNA(VLOOKUP(CONCATENATE('Title page'!B$3,"-","7b","-",Q23),Targets!$E:$T,16,FALSE),"") ->  | D23: =_xlfn.IFNA(VLOOKUP(CONCATENATE('Title page'!B$3,"-","7b","-",Q23),Targets!$E:$T,2,FALSE),"") ->  | E23: =_xlfn.IFNA(VLOOKUP(CONCATENATE('Title page'!B$3,"-","7b","-",$Q23),Targets!$E:$T,3,FALSE),"") ->  | F23: =_xlfn.IFNA(VLOOKUP(CONCATENATE('Title page'!B$3,"-","7b","-",$Q23),Targets!$E:$T,4,FALSE),"") ->  | G23: =_xlfn.IFNA(VLOOKUP(CONCATENATE('Title page'!B$3,"-","7b","-",$Q23),Targets!$E:$T,5,FALSE),"") ->  | H23: =_xlfn.IFNA(VLOOKUP(CONCATENATE('Title page'!B$3,"-","7b","-",$Q23),Targets!$E:$T,6,FALSE),"") ->  | I23: =_xlfn.IFNA(VLOOKUP(CONCATENATE('Title page'!B$3,"-","7b","-",$Q23),Targets!$E:$T,7,FALSE),"") ->  | J23: =_xlfn.IFNA(VLOOKUP(CONCATENATE('Title page'!B$3,"-","7b","-",$Q23),Targets!$E:$T,8,FALSE),"") ->  | K23: =_xlfn.IFNA(VLOOKUP(CONCATENATE('Title page'!B$3,"-","7b","-",$Q23),Targets!$E:$T,9,FALSE),"") ->  | L23: =_xlfn.IFNA(VLOOKUP(CONCATENATE('Title page'!B$3,"-","7b","-",$Q23),Targets!$E:$T,10,FALSE),"") ->  | M23: =_xlfn.IFNA(VLOOKUP(CONCATENATE('Title page'!B$3,"-","7b","-",$Q23),Targets!$E:$T,11,FALSE),"") ->  | N23: =_xlfn.IFNA(VLOOKUP(CONCATENATE('Title page'!B$3,"-","7b","-",$Q23),Targets!$E:$T,12,FALSE),"") ->  | O23: =_xlfn.IFNA(VLOOKUP(CONCATENATE('Title page'!B$3,"-","7b","-",$Q23),Targets!$E:$T,13,FALSE),"") ->  | P23: =_xlfn.IFNA(VLOOKUP(CONCATENATE('Title page'!B$3,"-","7b","-",$Q23),Targets!$E:$T,14,FALSE),"") ->  | Q23: 18
B24: =_xlfn.IFNA(VLOOKUP(CONCATENATE('Title page'!B$3,"-","7b","-",Q24),Targets!$E:$T,15,FALSE),"") ->  | C24: =_xlfn.IFNA(VLOOKUP(CONCATENATE('Title page'!B$3,"-","7b","-",Q24),Targets!$E:$T,16,FALSE),"") ->  | D24: =_xlfn.IFNA(VLOOKUP(CONCATENATE('Title page'!B$3,"-","7b","-",Q24),Targets!$E:$T,2,FALSE),"") ->  | E24: =_xlfn.IFNA(VLOOKUP(CONCATENATE('Title page'!B$3,"-","7b","-",$Q24),Targets!$E:$T,3,FALSE),"") ->  | F24: =_xlfn.IFNA(VLOOKUP(CONCATENATE('Title page'!B$3,"-","7b","-",$Q24),Targets!$E:$T,4,FALSE),"") ->  | G24: =_xlfn.IFNA(VLOOKUP(CONCATENATE('Title page'!B$3,"-","7b","-",$Q24),Targets!$E:$T,5,FALSE),"") ->  | H24: =_xlfn.IFNA(VLOOKUP(CONCATENATE('Title page'!B$3,"-","7b","-",$Q24),Targets!$E:$T,6,FALSE),"") ->  | I24: =_xlfn.IFNA(VLOOKUP(CONCATENATE('Title page'!B$3,"-","7b","-",$Q24),Targets!$E:$T,7,FALSE),"") ->  | J24: =_xlfn.IFNA(VLOOKUP(CONCATENATE('Title page'!B$3,"-","7b","-",$Q24),Targets!$E:$T,8,FALSE),"") ->  | K24: =_xlfn.IFNA(VLOOKUP(CONCATENATE('Title page'!B$3,"-","7b","-",$Q24),Targets!$E:$T,9,FALSE),"") ->  | L24: =_xlfn.IFNA(VLOOKUP(CONCATENATE('Title page'!B$3,"-","7b","-",$Q24),Targets!$E:$T,10,FALSE),"") ->  | M24: =_xlfn.IFNA(VLOOKUP(CONCATENATE('Title page'!B$3,"-","7b","-",$Q24),Targets!$E:$T,11,FALSE),"") ->  | N24: =_xlfn.IFNA(VLOOKUP(CONCATENATE('Title page'!B$3,"-","7b","-",$Q24),Targets!$E:$T,12,FALSE),"") ->  | O24: =_xlfn.IFNA(VLOOKUP(CONCATENATE('Title page'!B$3,"-","7b","-",$Q24),Targets!$E:$T,13,FALSE),"") ->  | P24: =_xlfn.IFNA(VLOOKUP(CONCATENATE('Title page'!B$3,"-","7b","-",$Q24),Targets!$E:$T,14,FALSE),"") ->  | Q24: 19
B25: =_xlfn.IFNA(VLOOKUP(CONCATENATE('Title page'!B$3,"-","7b","-",Q25),Targets!$E:$T,15,FALSE),"") ->  | C25: =_xlfn.IFNA(VLOOKUP(CONCATENATE('Title page'!B$3,"-","7b","-",Q25),Targets!$E:$T,16,FALSE),"") ->  | D25: =_xlfn.IFNA(VLOOKUP(CONCATENATE('Title page'!B$3,"-","7b","-",Q25),Targets!$E:$T,2,FALSE),"") ->  | E25: =_xlfn.IFNA(VLOOKUP(CONCATENATE('Title page'!B$3,"-","7b","-",$Q25),Targets!$E:$T,3,FALSE),"") ->  | F25: =_xlfn.IFNA(VLOOKUP(CONCATENATE('Title page'!B$3,"-","7b","-",$Q25),Targets!$E:$T,4,FALSE),"") ->  | G25: =_xlfn.IFNA(VLOOKUP(CONCATENATE('Title page'!B$3,"-","7b","-",$Q25),Targets!$E:$T,5,FALSE),"") ->  | H25: =_xlfn.IFNA(VLOOKUP(CONCATENATE('Title page'!B$3,"-","7b","-",$Q25),Targets!$E:$T,6,FALSE),"") ->  | I25: =_xlfn.IFNA(VLOOKUP(CONCATENATE('Title page'!B$3,"-","7b","-",$Q25),Targets!$E:$T,7,FALSE),"") ->  | J25: =_xlfn.IFNA(VLOOKUP(CONCATENATE('Title page'!B$3,"-","7b","-",$Q25),Targets!$E:$T,8,FALSE),"") ->  | K25: =_xlfn.IFNA(VLOOKUP(CONCATENATE('Title page'!B$3,"-","7b","-",$Q25),Targets!$E:$T,9,FALSE),"") ->  | L25: =_xlfn.IFNA(VLOOKUP(CONCATENATE('Title page'!B$3,"-","7b","-",$Q25),Targets!$E:$T,10,FALSE),"") ->  | M25: =_xlfn.IFNA(VLOOKUP(CONCATENATE('Title page'!B$3,"-","7b","-",$Q25),Targets!$E:$T,11,FALSE),"") ->  | N25: =_xlfn.IFNA(VLOOKUP(CONCATENATE('Title page'!B$3,"-","7b","-",$Q25),Targets!$E:$T,12,FALSE),"") ->  | O25: =_xlfn.IFNA(VLOOKUP(CONCATENATE('Title page'!B$3,"-","7b","-",$Q25),Targets!$E:$T,13,FALSE),"") ->  | P25: =_xlfn.IFNA(VLOOKUP(CONCATENATE('Title page'!B$3,"-","7b","-",$Q25),Targets!$E:$T,14,FALSE),"") ->  | Q25: 20
B26: =_xlfn.IFNA(VLOOKUP(CONCATENATE('Title page'!B$3,"-","7b","-",Q26),Targets!$E:$T,15,FALSE),"") ->  | C26: =_xlfn.IFNA(VLOOKUP(CONCATENATE('Title page'!B$3,"-","7b","-",Q26),Targets!$E:$T,16,FALSE),"") ->  | D26: =_xlfn.IFNA(VLOOKUP(CONCATENATE('Title page'!B$3,"-","7b","-",Q26),Targets!$E:$T,2,FALSE),"") ->  | E26: =_xlfn.IFNA(VLOOKUP(CONCATENATE('Title page'!B$3,"-","7b","-",$Q26),Targets!$E:$T,3,FALSE),"") ->  | F26: =_xlfn.IFNA(VLOOKUP(CONCATENATE('Title page'!B$3,"-","7b","-",$Q26),Targets!$E:$T,4,FALSE),"") ->  | G26: =_xlfn.IFNA(VLOOKUP(CONCATENATE('Title page'!B$3,"-","7b","-",$Q26),Targets!$E:$T,5,FALSE),"") ->  | H26: =_xlfn.IFNA(VLOOKUP(CONCATENATE('Title page'!B$3,"-","7b","-",$Q26),Targets!$E:$T,6,FALSE),"") ->  | I26: =_xlfn.IFNA(VLOOKUP(CONCATENATE('Title page'!B$3,"-","7b","-",$Q26),Targets!$E:$T,7,FALSE),"") ->  | J26: =_xlfn.IFNA(VLOOKUP(CONCATENATE('Title page'!B$3,"-","7b","-",$Q26),Targets!$E:$T,8,FALSE),"") ->  | K26: =_xlfn.IFNA(VLOOKUP(CONCATENATE('Title page'!B$3,"-","7b","-",$Q26),Targets!$E:$T,9,FALSE),"") ->  | L26: =_xlfn.IFNA(VLOOKUP(CONCATENATE('Title page'!B$3,"-","7b","-",$Q26),Targets!$E:$T,10,FALSE),"") ->  | M26: =_xlfn.IFNA(VLOOKUP(CONCATENATE('Title page'!B$3,"-","7b","-",$Q26),Targets!$E:$T,11,FALSE),"") ->  | N26: =_xlfn.IFNA(VLOOKUP(CONCATENATE('Title page'!B$3,"-","7b","-",$Q26),Targets!$E:$T,12,FALSE),"") ->  | O26: =_xlfn.IFNA(VLOOKUP(CONCATENATE('Title page'!B$3,"-","7b","-",$Q26),Targets!$E:$T,13,FALSE),"") ->  | P26: =_xlfn.IFNA(VLOOKUP(CONCATENATE('Title page'!B$3,"-","7b","-",$Q26),Targets!$E:$T,14,FALSE),"") ->  | Q26: 21
B27: =_xlfn.IFNA(VLOOKUP(CONCATENATE('Title page'!B$3,"-","7b","-",Q27),Targets!$E:$T,15,FALSE),"") ->  | C27: =_xlfn.IFNA(VLOOKUP(CONCATENATE('Title page'!B$3,"-","7b","-",Q27),Targets!$E:$T,16,FALSE),"") ->  | D27: =_xlfn.IFNA(VLOOKUP(CONCATENATE('Title page'!B$3,"-","7b","-",Q27),Targets!$E:$T,2,FALSE),"") ->  | E27: =_xlfn.IFNA(VLOOKUP(CONCATENATE('Title page'!B$3,"-","7b","-",$Q27),Targets!$E:$T,3,FALSE),"") ->  | F27: =_xlfn.IFNA(VLOOKUP(CONCATENATE('Title page'!B$3,"-","7b","-",$Q27),Targets!$E:$T,4,FALSE),"") ->  | G27: =_xlfn.IFNA(VLOOKUP(CONCATENATE('Title page'!B$3,"-","7b","-",$Q27),Targets!$E:$T,5,FALSE),"") ->  | H27: =_xlfn.IFNA(VLOOKUP(CONCATENATE('Title page'!B$3,"-","7b","-",$Q27),Targets!$E:$T,6,FALSE),"") ->  | I27: =_xlfn.IFNA(VLOOKUP(CONCATENATE('Title page'!B$3,"-","7b","-",$Q27),Targets!$E:$T,7,FALSE),"") ->  | J27: =_xlfn.IFNA(VLOOKUP(CONCATENATE('Title page'!B$3,"-","7b","-",$Q27),Targets!$E:$T,8,FALSE),"") ->  | K27: =_xlfn.IFNA(VLOOKUP(CONCATENATE('Title page'!B$3,"-","7b","-",$Q27),Targets!$E:$T,9,FALSE),"") ->  | L27: =_xlfn.IFNA(VLOOKUP(CONCATENATE('Title page'!B$3,"-","7b","-",$Q27),Targets!$E:$T,10,FALSE),"") ->  | M27: =_xlfn.IFNA(VLOOKUP(CONCATENATE('Title page'!B$3,"-","7b","-",$Q27),Targets!$E:$T,11,FALSE),"") ->  | N27: =_xlfn.IFNA(VLOOKUP(CONCATENATE('Title page'!B$3,"-","7b","-",$Q27),Targets!$E:$T,12,FALSE),"") ->  | O27: =_xlfn.IFNA(VLOOKUP(CONCATENATE('Title page'!B$3,"-","7b","-",$Q27),Targets!$E:$T,13,FALSE),"") ->  | P27: =_xlfn.IFNA(VLOOKUP(CONCATENATE('Title page'!B$3,"-","7b","-",$Q27),Targets!$E:$T,14,FALSE),"") ->  | Q27: 22
B28: =_xlfn.IFNA(VLOOKUP(CONCATENATE('Title page'!B$3,"-","7b","-",Q28),Targets!$E:$T,15,FALSE),"") ->  | C28: =_xlfn.IFNA(VLOOKUP(CONCATENATE('Title page'!B$3,"-","7b","-",Q28),Targets!$E:$T,16,FALSE),"") ->  | D28: =_xlfn.IFNA(VLOOKUP(CONCATENATE('Title page'!B$3,"-","7b","-",Q28),Targets!$E:$T,2,FALSE),"") ->  | E28: =_xlfn.IFNA(VLOOKUP(CONCATENATE('Title page'!B$3,"-","7b","-",$Q28),Targets!$E:$T,3,FALSE),"") ->  | F28: =_xlfn.IFNA(VLOOKUP(CONCATENATE('Title page'!B$3,"-","7b","-",$Q28),Targets!$E:$T,4,FALSE),"") ->  | G28: =_xlfn.IFNA(VLOOKUP(CONCATENATE('Title page'!B$3,"-","7b","-",$Q28),Targets!$E:$T,5,FALSE),"") ->  | H28: =_xlfn.IFNA(VLOOKUP(CONCATENATE('Title page'!B$3,"-","7b","-",$Q28),Targets!$E:$T,6,FALSE),"") ->  | I28: =_xlfn.IFNA(VLOOKUP(CONCATENATE('Title page'!B$3,"-","7b","-",$Q28),Targets!$E:$T,7,FALSE),"") ->  | J28: =_xlfn.IFNA(VLOOKUP(CONCATENATE('Title page'!B$3,"-","7b","-",$Q28),Targets!$E:$T,8,FALSE),"") ->  | K28: =_xlfn.IFNA(VLOOKUP(CONCATENATE('Title page'!B$3,"-","7b","-",$Q28),Targets!$E:$T,9,FALSE),"") ->  | L28: =_xlfn.IFNA(VLOOKUP(CONCATENATE('Title page'!B$3,"-","7b","-",$Q28),Targets!$E:$T,10,FALSE),"") ->  | M28: =_xlfn.IFNA(VLOOKUP(CONCATENATE('Title page'!B$3,"-","7b","-",$Q28),Targets!$E:$T,11,FALSE),"") ->  | N28: =_xlfn.IFNA(VLOOKUP(CONCATENATE('Title page'!B$3,"-","7b","-",$Q28),Targets!$E:$T,12,FALSE),"") ->  | O28: =_xlfn.IFNA(VLOOKUP(CONCATENATE('Title page'!B$3,"-","7b","-",$Q28),Targets!$E:$T,13,FALSE),"") ->  | P28: =_xlfn.IFNA(VLOOKUP(CONCATENATE('Title page'!B$3,"-","7b","-",$Q28),Targets!$E:$T,14,FALSE),"") ->  | Q28: 23
B29: =_xlfn.IFNA(VLOOKUP(CONCATENATE('Title page'!B$3,"-","7b","-",Q29),Targets!$E:$T,15,FALSE),"") ->  | C29: =_xlfn.IFNA(VLOOKUP(CONCATENATE('Title page'!B$3,"-","7b","-",Q29),Targets!$E:$T,16,FALSE),"") ->  | D29: =_xlfn.IFNA(VLOOKUP(CONCATENATE('Title page'!B$3,"-","7b","-",Q29),Targets!$E:$T,2,FALSE),"") ->  | E29: =_xlfn.IFNA(VLOOKUP(CONCATENATE('Title page'!B$3,"-","7b","-",$Q29),Targets!$E:$T,3,FALSE),"") ->  | F29: =_xlfn.IFNA(VLOOKUP(CONCATENATE('Title page'!B$3,"-","7b","-",$Q29),Targets!$E:$T,4,FALSE),"") ->  | G29: =_xlfn.IFNA(VLOOKUP(CONCATENATE('Title page'!B$3,"-","7b","-",$Q29),Targets!$E:$T,5,FALSE),"") ->  | H29: =_xlfn.IFNA(VLOOKUP(CONCATENATE('Title page'!B$3,"-","7b","-",$Q29),Targets!$E:$T,6,FALSE),"") ->  | I29: =_xlfn.IFNA(VLOOKUP(CONCATENATE('Title page'!B$3,"-","7b","-",$Q29),Targets!$E:$T,7,FALSE),"") ->  | J29: =_xlfn.IFNA(VLOOKUP(CONCATENATE('Title page'!B$3,"-","7b","-",$Q29),Targets!$E:$T,8,FALSE),"") ->  | K29: =_xlfn.IFNA(VLOOKUP(CONCATENATE('Title page'!B$3,"-","7b","-",$Q29),Targets!$E:$T,9,FALSE),"") ->  | L29: =_xlfn.IFNA(VLOOKUP(CONCATENATE('Title page'!B$3,"-","7b","-",$Q29),Targets!$E:$T,10,FALSE),"") ->  | M29: =_xlfn.IFNA(VLOOKUP(CONCATENATE('Title page'!B$3,"-","7b","-",$Q29),Targets!$E:$T,11,FALSE),"") ->  | N29: =_xlfn.IFNA(VLOOKUP(CONCATENATE('Title page'!B$3,"-","7b","-",$Q29),Targets!$E:$T,12,FALSE),"") ->  | O29: =_xlfn.IFNA(VLOOKUP(CONCATENATE('Title page'!B$3,"-","7b","-",$Q29),Targets!$E:$T,13,FALSE),"") ->  | P29: =_xlfn.IFNA(VLOOKUP(CONCATENATE('Title page'!B$3,"-","7b","-",$Q29),Targets!$E:$T,14,FALSE),"") ->  | Q29: 24
B30: =_xlfn.IFNA(VLOOKUP(CONCATENATE('Title page'!B$3,"-","7b","-",Q30),Targets!$E:$T,15,FALSE),"") ->  | C30: =_xlfn.IFNA(VLOOKUP(CONCATENATE('Title page'!B$3,"-","7b","-",Q30),Targets!$E:$T,16,FALSE),"") ->  | D30: =_xlfn.IFNA(VLOOKUP(CONCATENATE('Title page'!B$3,"-","7b","-",Q30),Targets!$E:$T,2,FALSE),"") ->  | E30: =_xlfn.IFNA(VLOOKUP(CONCATENATE('Title page'!B$3,"-","7b","-",$Q30),Targets!$E:$T,3,FALSE),"") ->  | F30: =_xlfn.IFNA(VLOOKUP(CONCATENATE('Title page'!B$3,"-","7b","-",$Q30),Targets!$E:$T,4,FALSE),"") ->  | G30: =_xlfn.IFNA(VLOOKUP(CONCATENATE('Title page'!B$3,"-","7b","-",$Q30),Targets!$E:$T,5,FALSE),"") ->  | H30: =_xlfn.IFNA(VLOOKUP(CONCATENATE('Title page'!B$3,"-","7b","-",$Q30),Targets!$E:$T,6,FALSE),"") ->  | I30: =_xlfn.IFNA(VLOOKUP(CONCATENATE('Title page'!B$3,"-","7b","-",$Q30),Targets!$E:$T,7,FALSE),"") ->  | J30: =_xlfn.IFNA(VLOOKUP(CONCATENATE('Title page'!B$3,"-","7b","-",$Q30),Targets!$E:$T,8,FALSE),"") ->  | K30: =_xlfn.IFNA(VLOOKUP(CONCATENATE('Title page'!B$3,"-","7b","-",$Q30),Targets!$E:$T,9,FALSE),"") ->  | L30: =_xlfn.IFNA(VLOOKUP(CONCATENATE('Title page'!B$3,"-","7b","-",$Q30),Targets!$E:$T,10,FALSE),"") ->  | M30: =_xlfn.IFNA(VLOOKUP(CONCATENATE('Title page'!B$3,"-","7b","-",$Q30),Targets!$E:$T,11,FALSE),"") ->  | N30: =_xlfn.IFNA(VLOOKUP(CONCATENATE('Title page'!B$3,"-","7b","-",$Q30),Targets!$E:$T,12,FALSE),"") ->  | O30: =_xlfn.IFNA(VLOOKUP(CONCATENATE('Title page'!B$3,"-","7b","-",$Q30),Targets!$E:$T,13,FALSE),"") ->  | P30: =_xlfn.IFNA(VLOOKUP(CONCATENATE('Title page'!B$3,"-","7b","-",$Q30),Targets!$E:$T,14,FALSE),"") ->  | Q30: 25
B31: =_xlfn.IFNA(VLOOKUP(CONCATENATE('Title page'!B$3,"-","7b","-",Q31),Targets!$E:$T,15,FALSE),"") ->  | C31: =_xlfn.IFNA(VLOOKUP(CONCATENATE('Title page'!B$3,"-","7b","-",Q31),Targets!$E:$T,16,FALSE),"") ->  | D31: =_xlfn.IFNA(VLOOKUP(CONCATENATE('Title page'!B$3,"-","7b","-",Q31),Targets!$E:$T,2,FALSE),"") ->  | E31: =_xlfn.IFNA(VLOOKUP(CONCATENATE('Title page'!B$3,"-","7b","-",$Q31),Targets!$E:$T,3,FALSE),"") ->  | F31: =_xlfn.IFNA(VLOOKUP(CONCATENATE('Title page'!B$3,"-","7b","-",$Q31),Targets!$E:$T,4,FALSE),"") ->  | G31: =_xlfn.IFNA(VLOOKUP(CONCATENATE('Title page'!B$3,"-","7b","-",$Q31),Targets!$E:$T,5,FALSE),"") ->  | H31: =_xlfn.IFNA(VLOOKUP(CONCATENATE('Title page'!B$3,"-","7b","-",$Q31),Targets!$E:$T,6,FALSE),"") ->  | I31: =_xlfn.IFNA(VLOOKUP(CONCATENATE('Title page'!B$3,"-","7b","-",$Q31),Targets!$E:$T,7,FALSE),"") ->  | J31: =_xlfn.IFNA(VLOOKUP(CONCATENATE('Title page'!B$3,"-","7b","-",$Q31),Targets!$E:$T,8,FALSE),"") ->  | K31: =_xlfn.IFNA(VLOOKUP(CONCATENATE('Title page'!B$3,"-","7b","-",$Q31),Targets!$E:$T,9,FALSE),"") ->  | L31: =_xlfn.IFNA(VLOOKUP(CONCATENATE('Title page'!B$3,"-","7b","-",$Q31),Targets!$E:$T,10,FALSE),"") ->  | M31: =_xlfn.IFNA(VLOOKUP(CONCATENATE('Title page'!B$3,"-","7b","-",$Q31),Targets!$E:$T,11,FALSE),"") ->  | N31: =_xlfn.IFNA(VLOOKUP(CONCATENATE('Title page'!B$3,"-","7b","-",$Q31),Targets!$E:$T,12,FALSE),"") ->  | O31: =_xlfn.IFNA(VLOOKUP(CONCATENATE('Title page'!B$3,"-","7b","-",$Q31),Targets!$E:$T,13,FALSE),"") ->  | P31: =_xlfn.IFNA(VLOOKUP(CONCATENATE('Title page'!B$3,"-","7b","-",$Q31),Targets!$E:$T,14,FALSE),"") ->  | Q31: 26
B32: =_xlfn.IFNA(VLOOKUP(CONCATENATE('Title page'!B$3,"-","7b","-",Q32),Targets!$E:$T,15,FALSE),"") ->  | C32: =_xlfn.IFNA(VLOOKUP(CONCATENATE('Title page'!B$3,"-","7b","-",Q32),Targets!$E:$T,16,FALSE),"") ->  | D32: =_xlfn.IFNA(VLOOKUP(CONCATENATE('Title page'!B$3,"-","7b","-",Q32),Targets!$E:$T,2,FALSE),"") ->  | E32: =_xlfn.IFNA(VLOOKUP(CONCATENATE('Title page'!B$3,"-","7b","-",$Q32),Targets!$E:$T,3,FALSE),"") ->  | F32: =_xlfn.IFNA(VLOOKUP(CONCATENATE('Title page'!B$3,"-","7b","-",$Q32),Targets!$E:$T,4,FALSE),"") ->  | G32: =_xlfn.IFNA(VLOOKUP(CONCATENATE('Title page'!B$3,"-","7b","-",$Q32),Targets!$E:$T,5,FALSE),"") ->  | H32: =_xlfn.IFNA(VLOOKUP(CONCATENATE('Title page'!B$3,"-","7b","-",$Q32),Targets!$E:$T,6,FALSE),"") ->  | I32: =_xlfn.IFNA(VLOOKUP(CONCATENATE('Title page'!B$3,"-","7b","-",$Q32),Targets!$E:$T,7,FALSE),"") ->  | J32: =_xlfn.IFNA(VLOOKUP(CONCATENATE('Title page'!B$3,"-","7b","-",$Q32),Targets!$E:$T,8,FALSE),"") ->  | K32: =_xlfn.IFNA(VLOOKUP(CONCATENATE('Title page'!B$3,"-","7b","-",$Q32),Targets!$E:$T,9,FALSE),"") ->  | L32: =_xlfn.IFNA(VLOOKUP(CONCATENATE('Title page'!B$3,"-","7b","-",$Q32),Targets!$E:$T,10,FALSE),"") ->  | M32: =_xlfn.IFNA(VLOOKUP(CONCATENATE('Title page'!B$3,"-","7b","-",$Q32),Targets!$E:$T,11,FALSE),"") ->  | N32: =_xlfn.IFNA(VLOOKUP(CONCATENATE('Title page'!B$3,"-","7b","-",$Q32),Targets!$E:$T,12,FALSE),"") ->  | O32: =_xlfn.IFNA(VLOOKUP(CONCATENATE('Title page'!B$3,"-","7b","-",$Q32),Targets!$E:$T,13,FALSE),"") ->  | P32: =_xlfn.IFNA(VLOOKUP(CONCATENATE('Title page'!B$3,"-","7b","-",$Q32),Targets!$E:$T,14,FALSE),"") ->  | Q32: 27
B33: =_xlfn.IFNA(VLOOKUP(CONCATENATE('Title page'!B$3,"-","7b","-",Q33),Targets!$E:$T,15,FALSE),"") ->  | C33: =_xlfn.IFNA(VLOOKUP(CONCATENATE('Title page'!B$3,"-","7b","-",Q33),Targets!$E:$T,16,FALSE),"") ->  | D33: =_xlfn.IFNA(VLOOKUP(CONCATENATE('Title page'!B$3,"-","7b","-",Q33),Targets!$E:$T,2,FALSE),"") ->  | E33: =_xlfn.IFNA(VLOOKUP(CONCATENATE('Title page'!B$3,"-","7b","-",$Q33),Targets!$E:$T,3,FALSE),"") ->  | F33: =_xlfn.IFNA(VLOOKUP(CONCATENATE('Title page'!B$3,"-","7b","-",$Q33),Targets!$E:$T,4,FALSE),"") ->  | G33: =_xlfn.IFNA(VLOOKUP(CONCATENATE('Title page'!B$3,"-","7b","-",$Q33),Targets!$E:$T,5,FALSE),"") ->  | H33: =_xlfn.IFNA(VLOOKUP(CONCATENATE('Title page'!B$3,"-","7b","-",$Q33),Targets!$E:$T,6,FALSE),"") ->  | I33: =_xlfn.IFNA(VLOOKUP(CONCATENATE('Title page'!B$3,"-","7b","-",$Q33),Targets!$E:$T,7,FALSE),"") ->  | J33: =_xlfn.IFNA(VLOOKUP(CONCATENATE('Title page'!B$3,"-","7b","-",$Q33),Targets!$E:$T,8,FALSE),"") ->  | K33: =_xlfn.IFNA(VLOOKUP(CONCATENATE('Title page'!B$3,"-","7b","-",$Q33),Targets!$E:$T,9,FALSE),"") ->  | L33: =_xlfn.IFNA(VLOOKUP(CONCATENATE('Title page'!B$3,"-","7b","-",$Q33),Targets!$E:$T,10,FALSE),"") ->  | M33: =_xlfn.IFNA(VLOOKUP(CONCATENATE('Title page'!B$3,"-","7b","-",$Q33),Targets!$E:$T,11,FALSE),"") ->  | N33: =_xlfn.IFNA(VLOOKUP(CONCATENATE('Title page'!B$3,"-","7b","-",$Q33),Targets!$E:$T,12,FALSE),"") ->  | O33: =_xlfn.IFNA(VLOOKUP(CONCATENATE('Title page'!B$3,"-","7b","-",$Q33),Targets!$E:$T,13,FALSE),"") ->  | P33: =_xlfn.IFNA(VLOOKUP(CONCATENATE('Title page'!B$3,"-","7b","-",$Q33),Targets!$E:$T,14,FALSE),"") ->  | Q33: 28
B34: =_xlfn.IFNA(VLOOKUP(CONCATENATE('Title page'!B$3,"-","7b","-",Q34),Targets!$E:$T,15,FALSE),"") ->  | C34: =_xlfn.IFNA(VLOOKUP(CONCATENATE('Title page'!B$3,"-","7b","-",Q34),Targets!$E:$T,16,FALSE),"") ->  | D34: =_xlfn.IFNA(VLOOKUP(CONCATENATE('Title page'!B$3,"-","7b","-",Q34),Targets!$E:$T,2,FALSE),"") ->  | E34: =_xlfn.IFNA(VLOOKUP(CONCATENATE('Title page'!B$3,"-","7b","-",$Q34),Targets!$E:$T,3,FALSE),"") ->  | F34: =_xlfn.IFNA(VLOOKUP(CONCATENATE('Title page'!B$3,"-","7b","-",$Q34),Targets!$E:$T,4,FALSE),"") ->  | G34: =_xlfn.IFNA(VLOOKUP(CONCATENATE('Title page'!B$3,"-","7b","-",$Q34),Targets!$E:$T,5,FALSE),"") ->  | H34: =_xlfn.IFNA(VLOOKUP(CONCATENATE('Title page'!B$3,"-","7b","-",$Q34),Targets!$E:$T,6,FALSE),"") ->  | I34: =_xlfn.IFNA(VLOOKUP(CONCATENATE('Title page'!B$3,"-","7b","-",$Q34),Targets!$E:$T,7,FALSE),"") ->  | J34: =_xlfn.IFNA(VLOOKUP(CONCATENATE('Title page'!B$3,"-","7b","-",$Q34),Targets!$E:$T,8,FALSE),"") ->  | K34: =_xlfn.IFNA(VLOOKUP(CONCATENATE('Title page'!B$3,"-","7b","-",$Q34),Targets!$E:$T,9,FALSE),"") ->  | L34: =_xlfn.IFNA(VLOOKUP(CONCATENATE('Title page'!B$3,"-","7b","-",$Q34),Targets!$E:$T,10,FALSE),"") ->  | M34: =_xlfn.IFNA(VLOOKUP(CONCATENATE('Title page'!B$3,"-","7b","-",$Q34),Targets!$E:$T,11,FALSE),"") ->  | N34: =_xlfn.IFNA(VLOOKUP(CONCATENATE('Title page'!B$3,"-","7b","-",$Q34),Targets!$E:$T,12,FALSE),"") ->  | O34: =_xlfn.IFNA(VLOOKUP(CONCATENATE('Title page'!B$3,"-","7b","-",$Q34),Targets!$E:$T,13,FALSE),"") ->  | P34: =_xlfn.IFNA(VLOOKUP(CONCATENATE('Title page'!B$3,"-","7b","-",$Q34),Targets!$E:$T,14,FALSE),"") ->  | Q34: 29
B35: =_xlfn.IFNA(VLOOKUP(CONCATENATE('Title page'!B$3,"-","7b","-",Q35),Targets!$E:$T,15,FALSE),"") ->  | C35: =_xlfn.IFNA(VLOOKUP(CONCATENATE('Title page'!B$3,"-","7b","-",Q35),Targets!$E:$T,16,FALSE),"") ->  | D35: =_xlfn.IFNA(VLOOKUP(CONCATENATE('Title page'!B$3,"-","7b","-",Q35),Targets!$E:$T,2,FALSE),"") ->  | E35: =_xlfn.IFNA(VLOOKUP(CONCATENATE('Title page'!B$3,"-","7b","-",$Q35),Targets!$E:$T,3,FALSE),"") ->  | F35: =_xlfn.IFNA(VLOOKUP(CONCATENATE('Title page'!B$3,"-","7b","-",$Q35),Targets!$E:$T,4,FALSE),"") ->  | G35: =_xlfn.IFNA(VLOOKUP(CONCATENATE('Title page'!B$3,"-","7b","-",$Q35),Targets!$E:$T,5,FALSE),"") ->  | H35: =_xlfn.IFNA(VLOOKUP(CONCATENATE('Title page'!B$3,"-","7b","-",$Q35),Targets!$E:$T,6,FALSE),"") ->  | I35: =_xlfn.IFNA(VLOOKUP(CONCATENATE('Title page'!B$3,"-","7b","-",$Q35),Targets!$E:$T,7,FALSE),"") ->  | J35: =_xlfn.IFNA(VLOOKUP(CONCATENATE('Title page'!B$3,"-","7b","-",$Q35),Targets!$E:$T,8,FALSE),"") ->  | K35: =_xlfn.IFNA(VLOOKUP(CONCATENATE('Title page'!B$3,"-","7b","-",$Q35),Targets!$E:$T,9,FALSE),"") ->  | L35: =_xlfn.IFNA(VLOOKUP(CONCATENATE('Title page'!B$3,"-","7b","-",$Q35),Targets!$E:$T,10,FALSE),"") ->  | M35: =_xlfn.IFNA(VLOOKUP(CONCATENATE('Title page'!B$3,"-","7b","-",$Q35),Targets!$E:$T,11,FALSE),"") ->  | N35: =_xlfn.IFNA(VLOOKUP(CONCATENATE('Title page'!B$3,"-","7b","-",$Q35),Targets!$E:$T,12,FALSE),"") ->  | O35: =_xlfn.IFNA(VLOOKUP(CONCATENATE('Title page'!B$3,"-","7b","-",$Q35),Targets!$E:$T,13,FALSE),"") ->  | P35: =_xlfn.IFNA(VLOOKUP(CONCATENATE('Title page'!B$3,"-","7b","-",$Q35),Targets!$E:$T,14,FALSE),"") ->  | Q35: 30
B36: =_xlfn.IFNA(VLOOKUP(CONCATENATE('Title page'!B$3,"-","7b","-",Q36),Targets!$E:$T,15,FALSE),"") ->  | C36: =_xlfn.IFNA(VLOOKUP(CONCATENATE('Title page'!B$3,"-","7b","-",Q36),Targets!$E:$T,16,FALSE),"") ->  | D36: =_xlfn.IFNA(VLOOKUP(CONCATENATE('Title page'!B$3,"-","7b","-",Q36),Targets!$E:$T,2,FALSE),"") ->  | E36: =_xlfn.IFNA(VLOOKUP(CONCATENATE('Title page'!B$3,"-","7b","-",$Q36),Targets!$E:$T,3,FALSE),"") ->  | F36: =_xlfn.IFNA(VLOOKUP(CONCATENATE('Title page'!B$3,"-","7b","-",$Q36),Targets!$E:$T,4,FALSE),"") ->  | G36: =_xlfn.IFNA(VLOOKUP(CONCATENATE('Title page'!B$3,"-","7b","-",$Q36),Targets!$E:$T,5,FALSE),"") ->  | H36: =_xlfn.IFNA(VLOOKUP(CONCATENATE('Title page'!B$3,"-","7b","-",$Q36),Targets!$E:$T,6,FALSE),"") ->  | I36: =_xlfn.IFNA(VLOOKUP(CONCATENATE('Title page'!B$3,"-","7b","-",$Q36),Targets!$E:$T,7,FALSE),"") ->  | J36: =_xlfn.IFNA(VLOOKUP(CONCATENATE('Title page'!B$3,"-","7b","-",$Q36),Targets!$E:$T,8,FALSE),"") ->  | K36: =_xlfn.IFNA(VLOOKUP(CONCATENATE('Title page'!B$3,"-","7b","-",$Q36),Targets!$E:$T,9,FALSE),"") ->  | L36: =_xlfn.IFNA(VLOOKUP(CONCATENATE('Title page'!B$3,"-","7b","-",$Q36),Targets!$E:$T,10,FALSE),"") ->  | M36: =_xlfn.IFNA(VLOOKUP(CONCATENATE('Title page'!B$3,"-","7b","-",$Q36),Targets!$E:$T,11,FALSE),"") ->  | N36: =_xlfn.IFNA(VLOOKUP(CONCATENATE('Title page'!B$3,"-","7b","-",$Q36),Targets!$E:$T,12,FALSE),"") ->  | O36: =_xlfn.IFNA(VLOOKUP(CONCATENATE('Title page'!B$3,"-","7b","-",$Q36),Targets!$E:$T,13,FALSE),"") ->  | P36: =_xlfn.IFNA(VLOOKUP(CONCATENATE('Title page'!B$3,"-","7b","-",$Q36),Targets!$E:$T,14,FALSE),"") ->  | Q36: 31
B37: =_xlfn.IFNA(VLOOKUP(CONCATENATE('Title page'!B$3,"-","7b","-",Q37),Targets!$E:$T,15,FALSE),"") ->  | C37: =_xlfn.IFNA(VLOOKUP(CONCATENATE('Title page'!B$3,"-","7b","-",Q37),Targets!$E:$T,16,FALSE),"") ->  | D37: =_xlfn.IFNA(VLOOKUP(CONCATENATE('Title page'!B$3,"-","7b","-",Q37),Targets!$E:$T,2,FALSE),"") ->  | E37: =_xlfn.IFNA(VLOOKUP(CONCATENATE('Title page'!B$3,"-","7b","-",$Q37),Targets!$E:$T,3,FALSE),"") ->  | F37: =_xlfn.IFNA(VLOOKUP(CONCATENATE('Title page'!B$3,"-","7b","-",$Q37),Targets!$E:$T,4,FALSE),"") ->  | G37: =_xlfn.IFNA(VLOOKUP(CONCATENATE('Title page'!B$3,"-","7b","-",$Q37),Targets!$E:$T,5,FALSE),"") ->  | H37: =_xlfn.IFNA(VLOOKUP(CONCATENATE('Title page'!B$3,"-","7b","-",$Q37),Targets!$E:$T,6,FALSE),"") ->  | I37: =_xlfn.IFNA(VLOOKUP(CONCATENATE('Title page'!B$3,"-","7b","-",$Q37),Targets!$E:$T,7,FALSE),"") ->  | J37: =_xlfn.IFNA(VLOOKUP(CONCATENATE('Title page'!B$3,"-","7b","-",$Q37),Targets!$E:$T,8,FALSE),"") ->  | K37: =_xlfn.IFNA(VLOOKUP(CONCATENATE('Title page'!B$3,"-","7b","-",$Q37),Targets!$E:$T,9,FALSE),"") ->  | L37: =_xlfn.IFNA(VLOOKUP(CONCATENATE('Title page'!B$3,"-","7b","-",$Q37),Targets!$E:$T,10,FALSE),"") ->  | M37: =_xlfn.IFNA(VLOOKUP(CONCATENATE('Title page'!B$3,"-","7b","-",$Q37),Targets!$E:$T,11,FALSE),"") ->  | N37: =_xlfn.IFNA(VLOOKUP(CONCATENATE('Title page'!B$3,"-","7b","-",$Q37),Targets!$E:$T,12,FALSE),"") ->  | O37: =_xlfn.IFNA(VLOOKUP(CONCATENATE('Title page'!B$3,"-","7b","-",$Q37),Targets!$E:$T,13,FALSE),"") ->  | P37: =_xlfn.IFNA(VLOOKUP(CONCATENATE('Title page'!B$3,"-","7b","-",$Q37),Targets!$E:$T,14,FALSE),"") ->  | Q37: 32
B38: =_xlfn.IFNA(VLOOKUP(CONCATENATE('Title page'!B$3,"-","7b","-",Q38),Targets!$E:$T,15,FALSE),"") ->  | C38: =_xlfn.IFNA(VLOOKUP(CONCATENATE('Title page'!B$3,"-","7b","-",Q38),Targets!$E:$T,16,FALSE),"") ->  | D38: =_xlfn.IFNA(VLOOKUP(CONCATENATE('Title page'!B$3,"-","7b","-",Q38),Targets!$E:$T,2,FALSE),"") ->  | E38: =_xlfn.IFNA(VLOOKUP(CONCATENATE('Title page'!B$3,"-","7b","-",$Q38),Targets!$E:$T,3,FALSE),"") ->  | F38: =_xlfn.IFNA(VLOOKUP(CONCATENATE('Title page'!B$3,"-","7b","-",$Q38),Targets!$E:$T,4,FALSE),"") ->  | G38: =_xlfn.IFNA(VLOOKUP(CONCATENATE('Title page'!B$3,"-","7b","-",$Q38),Targets!$E:$T,5,FALSE),"") ->  | H38: =_xlfn.IFNA(VLOOKUP(CONCATENATE('Title page'!B$3,"-","7b","-",$Q38),Targets!$E:$T,6,FALSE),"") ->  | I38: =_xlfn.IFNA(VLOOKUP(CONCATENATE('Title page'!B$3,"-","7b","-",$Q38),Targets!$E:$T,7,FALSE),"") ->  | J38: =_xlfn.IFNA(VLOOKUP(CONCATENATE('Title page'!B$3,"-","7b","-",$Q38),Targets!$E:$T,8,FALSE),"") ->  | K38: =_xlfn.IFNA(VLOOKUP(CONCATENATE('Title page'!B$3,"-","7b","-",$Q38),Targets!$E:$T,9,FALSE),"") ->  | L38: =_xlfn.IFNA(VLOOKUP(CONCATENATE('Title page'!B$3,"-","7b","-",$Q38),Targets!$E:$T,10,FALSE),"") ->  | M38: =_xlfn.IFNA(VLOOKUP(CONCATENATE('Title page'!B$3,"-","7b","-",$Q38),Targets!$E:$T,11,FALSE),"") ->  | N38: =_xlfn.IFNA(VLOOKUP(CONCATENATE('Title page'!B$3,"-","7b","-",$Q38),Targets!$E:$T,12,FALSE),"") ->  | O38: =_xlfn.IFNA(VLOOKUP(CONCATENATE('Title page'!B$3,"-","7b","-",$Q38),Targets!$E:$T,13,FALSE),"") ->  | P38: =_xlfn.IFNA(VLOOKUP(CONCATENATE('Title page'!B$3,"-","7b","-",$Q38),Targets!$E:$T,14,FALSE),"") ->  | Q38: 33
B39: =_xlfn.IFNA(VLOOKUP(CONCATENATE('Title page'!B$3,"-","7b","-",Q39),Targets!$E:$T,15,FALSE),"") ->  | C39: =_xlfn.IFNA(VLOOKUP(CONCATENATE('Title page'!B$3,"-","7b","-",Q39),Targets!$E:$T,16,FALSE),"") ->  | D39: =_xlfn.IFNA(VLOOKUP(CONCATENATE('Title page'!B$3,"-","7b","-",Q39),Targets!$E:$T,2,FALSE),"") ->  | E39: =_xlfn.IFNA(VLOOKUP(CONCATENATE('Title page'!B$3,"-","7b","-",$Q39),Targets!$E:$T,3,FALSE),"") ->  | F39: =_xlfn.IFNA(VLOOKUP(CONCATENATE('Title page'!B$3,"-","7b","-",$Q39),Targets!$E:$T,4,FALSE),"") ->  | G39: =_xlfn.IFNA(VLOOKUP(CONCATENATE('Title page'!B$3,"-","7b","-",$Q39),Targets!$E:$T,5,FALSE),"") ->  | H39: =_xlfn.IFNA(VLOOKUP(CONCATENATE('Title page'!B$3,"-","7b","-",$Q39),Targets!$E:$T,6,FALSE),"") ->  | I39: =_xlfn.IFNA(VLOOKUP(CONCATENATE('Title page'!B$3,"-","7b","-",$Q39),Targets!$E:$T,7,FALSE),"") ->  | J39: =_xlfn.IFNA(VLOOKUP(CONCATENATE('Title page'!B$3,"-","7b","-",$Q39),Targets!$E:$T,8,FALSE),"") ->  | K39: =_xlfn.IFNA(VLOOKUP(CONCATENATE('Title page'!B$3,"-","7b","-",$Q39),Targets!$E:$T,9,FALSE),"") ->  | L39: =_xlfn.IFNA(VLOOKUP(CONCATENATE('Title page'!B$3,"-","7b","-",$Q39),Targets!$E:$T,10,FALSE),"") ->  | M39: =_xlfn.IFNA(VLOOKUP(CONCATENATE('Title page'!B$3,"-","7b","-",$Q39),Targets!$E:$T,11,FALSE),"") ->  | N39: =_xlfn.IFNA(VLOOKUP(CONCATENATE('Title page'!B$3,"-","7b","-",$Q39),Targets!$E:$T,12,FALSE),"") ->  | O39: =_xlfn.IFNA(VLOOKUP(CONCATENATE('Title page'!B$3,"-","7b","-",$Q39),Targets!$E:$T,13,FALSE),"") ->  | P39: =_xlfn.IFNA(VLOOKUP(CONCATENATE('Title page'!B$3,"-","7b","-",$Q39),Targets!$E:$T,14,FALSE),"") ->  | Q39: 34
B40: =_xlfn.IFNA(VLOOKUP(CONCATENATE('Title page'!B$3,"-","7b","-",Q40),Targets!$E:$T,15,FALSE),"") ->  | C40: =_xlfn.IFNA(VLOOKUP(CONCATENATE('Title page'!B$3,"-","7b","-",Q40),Targets!$E:$T,16,FALSE),"") ->  | D40: =_xlfn.IFNA(VLOOKUP(CONCATENATE('Title page'!B$3,"-","7b","-",Q40),Targets!$E:$T,2,FALSE),"") ->  | E40: =_xlfn.IFNA(VLOOKUP(CONCATENATE('Title page'!B$3,"-","7b","-",$Q40),Targets!$E:$T,3,FALSE),"") ->  | F40: =_xlfn.IFNA(VLOOKUP(CONCATENATE('Title page'!B$3,"-","7b","-",$Q40),Targets!$E:$T,4,FALSE),"") ->  | G40: =_xlfn.IFNA(VLOOKUP(CONCATENATE('Title page'!B$3,"-","7b","-",$Q40),Targets!$E:$T,5,FALSE),"") ->  | H40: =_xlfn.IFNA(VLOOKUP(CONCATENATE('Title page'!B$3,"-","7b","-",$Q40),Targets!$E:$T,6,FALSE),"") ->  | I40: =_xlfn.IFNA(VLOOKUP(CONCATENATE('Title page'!B$3,"-","7b","-",$Q40),Targets!$E:$T,7,FALSE),"") ->  | J40: =_xlfn.IFNA(VLOOKUP(CONCATENATE('Title page'!B$3,"-","7b","-",$Q40),Targets!$E:$T,8,FALSE),"") ->  | K40: =_xlfn.IFNA(VLOOKUP(CONCATENATE('Title page'!B$3,"-","7b","-",$Q40),Targets!$E:$T,9,FALSE),"") ->  | L40: =_xlfn.IFNA(VLOOKUP(CONCATENATE('Title page'!B$3,"-","7b","-",$Q40),Targets!$E:$T,10,FALSE),"") ->  | M40: =_xlfn.IFNA(VLOOKUP(CONCATENATE('Title page'!B$3,"-","7b","-",$Q40),Targets!$E:$T,11,FALSE),"") ->  | N40: =_xlfn.IFNA(VLOOKUP(CONCATENATE('Title page'!B$3,"-","7b","-",$Q40),Targets!$E:$T,12,FALSE),"") ->  | O40: =_xlfn.IFNA(VLOOKUP(CONCATENATE('Title page'!B$3,"-","7b","-",$Q40),Targets!$E:$T,13,FALSE),"") ->  | P40: =_xlfn.IFNA(VLOOKUP(CONCATENATE('Title page'!B$3,"-","7b","-",$Q40),Targets!$E:$T,14,FALSE),"") ->  | Q40: 35
B41: =_xlfn.IFNA(VLOOKUP(CONCATENATE('Title page'!B$3,"-","7b","-",Q41),Targets!$E:$T,15,FALSE),"") ->  | C41: =_xlfn.IFNA(VLOOKUP(CONCATENATE('Title page'!B$3,"-","7b","-",Q41),Targets!$E:$T,16,FALSE),"") ->  | D41: =_xlfn.IFNA(VLOOKUP(CONCATENATE('Title page'!B$3,"-","7b","-",Q41),Targets!$E:$T,2,FALSE),"") ->  | E41: =_xlfn.IFNA(VLOOKUP(CONCATENATE('Title page'!B$3,"-","7b","-",$Q41),Targets!$E:$T,3,FALSE),"") ->  | F41: =_xlfn.IFNA(VLOOKUP(CONCATENATE('Title page'!B$3,"-","7b","-",$Q41),Targets!$E:$T,4,FALSE),"") ->  | G41: =_xlfn.IFNA(VLOOKUP(CONCATENATE('Title page'!B$3,"-","7b","-",$Q41),Targets!$E:$T,5,FALSE),"") ->  | H41: =_xlfn.IFNA(VLOOKUP(CONCATENATE('Title page'!B$3,"-","7b","-",$Q41),Targets!$E:$T,6,FALSE),"") ->  | I41: =_xlfn.IFNA(VLOOKUP(CONCATENATE('Title page'!B$3,"-","7b","-",$Q41),Targets!$E:$T,7,FALSE),"") ->  | J41: =_xlfn.IFNA(VLOOKUP(CONCATENATE('Title page'!B$3,"-","7b","-",$Q41),Targets!$E:$T,8,FALSE),"") ->  | K41: =_xlfn.IFNA(VLOOKUP(CONCATENATE('Title page'!B$3,"-","7b","-",$Q41),Targets!$E:$T,9,FALSE),"") ->  | L41: =_xlfn.IFNA(VLOOKUP(CONCATENATE('Title page'!B$3,"-","7b","-",$Q41),Targets!$E:$T,10,FALSE),"") ->  | M41: =_xlfn.IFNA(VLOOKUP(CONCATENATE('Title page'!B$3,"-","7b","-",$Q41),Targets!$E:$T,11,FALSE),"") ->  | N41: =_xlfn.IFNA(VLOOKUP(CONCATENATE('Title page'!B$3,"-","7b","-",$Q41),Targets!$E:$T,12,FALSE),"") ->  | O41: =_xlfn.IFNA(VLOOKUP(CONCATENATE('Title page'!B$3,"-","7b","-",$Q41),Targets!$E:$T,13,FALSE),"") ->  | P41: =_xlfn.IFNA(VLOOKUP(CONCATENATE('Title page'!B$3,"-","7b","-",$Q41),Targets!$E:$T,14,FALSE),"") ->  | Q41: 36
B42: =_xlfn.IFNA(VLOOKUP(CONCATENATE('Title page'!B$3,"-","7b","-",Q42),Targets!$E:$T,15,FALSE),"") ->  | C42: =_xlfn.IFNA(VLOOKUP(CONCATENATE('Title page'!B$3,"-","7b","-",Q42),Targets!$E:$T,16,FALSE),"") ->  | D42: =_xlfn.IFNA(VLOOKUP(CONCATENATE('Title page'!B$3,"-","7b","-",Q42),Targets!$E:$T,2,FALSE),"") ->  | E42: =_xlfn.IFNA(VLOOKUP(CONCATENATE('Title page'!B$3,"-","7b","-",$Q42),Targets!$E:$T,3,FALSE),"") ->  | F42: =_xlfn.IFNA(VLOOKUP(CONCATENATE('Title page'!B$3,"-","7b","-",$Q42),Targets!$E:$T,4,FALSE),"") ->  | G42: =_xlfn.IFNA(VLOOKUP(CONCATENATE('Title page'!B$3,"-","7b","-",$Q42),Targets!$E:$T,5,FALSE),"") ->  | H42: =_xlfn.IFNA(VLOOKUP(CONCATENATE('Title page'!B$3,"-","7b","-",$Q42),Targets!$E:$T,6,FALSE),"") ->  | I42: =_xlfn.IFNA(VLOOKUP(CONCATENATE('Title page'!B$3,"-","7b","-",$Q42),Targets!$E:$T,7,FALSE),"") ->  | J42: =_xlfn.IFNA(VLOOKUP(CONCATENATE('Title page'!B$3,"-","7b","-",$Q42),Targets!$E:$T,8,FALSE),"") ->  | K42: =_xlfn.IFNA(VLOOKUP(CONCATENATE('Title page'!B$3,"-","7b","-",$Q42),Targets!$E:$T,9,FALSE),"") ->  | L42: =_xlfn.IFNA(VLOOKUP(CONCATENATE('Title page'!B$3,"-","7b","-",$Q42),Targets!$E:$T,10,FALSE),"") ->  | M42: =_xlfn.IFNA(VLOOKUP(CONCATENATE('Title page'!B$3,"-","7b","-",$Q42),Targets!$E:$T,11,FALSE),"") ->  | N42: =_xlfn.IFNA(VLOOKUP(CONCATENATE('Title page'!B$3,"-","7b","-",$Q42),Targets!$E:$T,12,FALSE),"") ->  | O42: =_xlfn.IFNA(VLOOKUP(CONCATENATE('Title page'!B$3,"-","7b","-",$Q42),Targets!$E:$T,13,FALSE),"") ->  | P42: =_xlfn.IFNA(VLOOKUP(CONCATENATE('Title page'!B$3,"-","7b","-",$Q42),Targets!$E:$T,14,FALSE),"") ->  | Q42: 37
B43: =_xlfn.IFNA(VLOOKUP(CONCATENATE('Title page'!B$3,"-","7b","-",Q43),Targets!$E:$T,15,FALSE),"") ->  | C43: =_xlfn.IFNA(VLOOKUP(CONCATENATE('Title page'!B$3,"-","7b","-",Q43),Targets!$E:$T,16,FALSE),"") ->  | D43: =_xlfn.IFNA(VLOOKUP(CONCATENATE('Title page'!B$3,"-","7b","-",Q43),Targets!$E:$T,2,FALSE),"") ->  | E43: =_xlfn.IFNA(VLOOKUP(CONCATENATE('Title page'!B$3,"-","7b","-",$Q43),Targets!$E:$T,3,FALSE),"") ->  | F43: =_xlfn.IFNA(VLOOKUP(CONCATENATE('Title page'!B$3,"-","7b","-",$Q43),Targets!$E:$T,4,FALSE),"") ->  | G43: =_xlfn.IFNA(VLOOKUP(CONCATENATE('Title page'!B$3,"-","7b","-",$Q43),Targets!$E:$T,5,FALSE),"") ->  | H43: =_xlfn.IFNA(VLOOKUP(CONCATENATE('Title page'!B$3,"-","7b","-",$Q43),Targets!$E:$T,6,FALSE),"") ->  | I43: =_xlfn.IFNA(VLOOKUP(CONCATENATE('Title page'!B$3,"-","7b","-",$Q43),Targets!$E:$T,7,FALSE),"") ->  | J43: =_xlfn.IFNA(VLOOKUP(CONCATENATE('Title page'!B$3,"-","7b","-",$Q43),Targets!$E:$T,8,FALSE),"") ->  | K43: =_xlfn.IFNA(VLOOKUP(CONCATENATE('Title page'!B$3,"-","7b","-",$Q43),Targets!$E:$T,9,FALSE),"") ->  | L43: =_xlfn.IFNA(VLOOKUP(CONCATENATE('Title page'!B$3,"-","7b","-",$Q43),Targets!$E:$T,10,FALSE),"") ->  | M43: =_xlfn.IFNA(VLOOKUP(CONCATENATE('Title page'!B$3,"-","7b","-",$Q43),Targets!$E:$T,11,FALSE),"") ->  | N43: =_xlfn.IFNA(VLOOKUP(CONCATENATE('Title page'!B$3,"-","7b","-",$Q43),Targets!$E:$T,12,FALSE),"") ->  | O43: =_xlfn.IFNA(VLOOKUP(CONCATENATE('Title page'!B$3,"-","7b","-",$Q43),Targets!$E:$T,13,FALSE),"") ->  | P43: =_xlfn.IFNA(VLOOKUP(CONCATENATE('Title page'!B$3,"-","7b","-",$Q43),Targets!$E:$T,14,FALSE),"") ->  | Q43: 38
B44: =_xlfn.IFNA(VLOOKUP(CONCATENATE('Title page'!B$3,"-","7b","-",Q44),Targets!$E:$T,15,FALSE),"") ->  | C44: =_xlfn.IFNA(VLOOKUP(CONCATENATE('Title page'!B$3,"-","7b","-",Q44),Targets!$E:$T,16,FALSE),"") ->  | D44: =_xlfn.IFNA(VLOOKUP(CONCATENATE('Title page'!B$3,"-","7b","-",Q44),Targets!$E:$T,2,FALSE),"") ->  | E44: =_xlfn.IFNA(VLOOKUP(CONCATENATE('Title page'!B$3,"-","7b","-",$Q44),Targets!$E:$T,3,FALSE),"") ->  | F44: =_xlfn.IFNA(VLOOKUP(CONCATENATE('Title page'!B$3,"-","7b","-",$Q44),Targets!$E:$T,4,FALSE),"") ->  | G44: =_xlfn.IFNA(VLOOKUP(CONCATENATE('Title page'!B$3,"-","7b","-",$Q44),Targets!$E:$T,5,FALSE),"") ->  | H44: =_xlfn.IFNA(VLOOKUP(CONCATENATE('Title page'!B$3,"-","7b","-",$Q44),Targets!$E:$T,6,FALSE),"") ->  | I44: =_xlfn.IFNA(VLOOKUP(CONCATENATE('Title page'!B$3,"-","7b","-",$Q44),Targets!$E:$T,7,FALSE),"") ->  | J44: =_xlfn.IFNA(VLOOKUP(CONCATENATE('Title page'!B$3,"-","7b","-",$Q44),Targets!$E:$T,8,FALSE),"") ->  | K44: =_xlfn.IFNA(VLOOKUP(CONCATENATE('Title page'!B$3,"-","7b","-",$Q44),Targets!$E:$T,9,FALSE),"") ->  | L44: =_xlfn.IFNA(VLOOKUP(CONCATENATE('Title page'!B$3,"-","7b","-",$Q44),Targets!$E:$T,10,FALSE),"") ->  | M44: =_xlfn.IFNA(VLOOKUP(CONCATENATE('Title page'!B$3,"-","7b","-",$Q44),Targets!$E:$T,11,FALSE),"") ->  | N44: =_xlfn.IFNA(VLOOKUP(CONCATENATE('Title page'!B$3,"-","7b","-",$Q44),Targets!$E:$T,12,FALSE),"") ->  | O44: =_xlfn.IFNA(VLOOKUP(CONCATENATE('Title page'!B$3,"-","7b","-",$Q44),Targets!$E:$T,13,FALSE),"") ->  | P44: =_xlfn.IFNA(VLOOKUP(CONCATENATE('Title page'!B$3,"-","7b","-",$Q44),Targets!$E:$T,14,FALSE),"") ->  | Q44: 39
B45: =_xlfn.IFNA(VLOOKUP(CONCATENATE('Title page'!B$3,"-","7b","-",Q45),Targets!$E:$T,15,FALSE),"") ->  | C45: =_xlfn.IFNA(VLOOKUP(CONCATENATE('Title page'!B$3,"-","7b","-",Q45),Targets!$E:$T,16,FALSE),"") ->  | D45: =_xlfn.IFNA(VLOOKUP(CONCATENATE('Title page'!B$3,"-","7b","-",Q45),Targets!$E:$T,2,FALSE),"") ->  | E45: =_xlfn.IFNA(VLOOKUP(CONCATENATE('Title page'!B$3,"-","7b","-",$Q45),Targets!$E:$T,3,FALSE),"") ->  | F45: =_xlfn.IFNA(VLOOKUP(CONCATENATE('Title page'!B$3,"-","7b","-",$Q45),Targets!$E:$T,4,FALSE),"") ->  | G45: =_xlfn.IFNA(VLOOKUP(CONCATENATE('Title page'!B$3,"-","7b","-",$Q45),Targets!$E:$T,5,FALSE),"") ->  | H45: =_xlfn.IFNA(VLOOKUP(CONCATENATE('Title page'!B$3,"-","7b","-",$Q45),Targets!$E:$T,6,FALSE),"") ->  | I45: =_xlfn.IFNA(VLOOKUP(CONCATENATE('Title page'!B$3,"-","7b","-",$Q45),Targets!$E:$T,7,FALSE),"") ->  | J45: =_xlfn.IFNA(VLOOKUP(CONCATENATE('Title page'!B$3,"-","7b","-",$Q45),Targets!$E:$T,8,FALSE),"") ->  | K45: =_xlfn.IFNA(VLOOKUP(CONCATENATE('Title page'!B$3,"-","7b","-",$Q45),Targets!$E:$T,9,FALSE),"") ->  | L45: =_xlfn.IFNA(VLOOKUP(CONCATENATE('Title page'!B$3,"-","7b","-",$Q45),Targets!$E:$T,10,FALSE),"") ->  | M45: =_xlfn.IFNA(VLOOKUP(CONCATENATE('Title page'!B$3,"-","7b","-",$Q45),Targets!$E:$T,11,FALSE),"") ->  | N45: =_xlfn.IFNA(VLOOKUP(CONCATENATE('Title page'!B$3,"-","7b","-",$Q45),Targets!$E:$T,12,FALSE),"") ->  | O45: =_xlfn.IFNA(VLOOKUP(CONCATENATE('Title page'!B$3,"-","7b","-",$Q45),Targets!$E:$T,13,FALSE),"") ->  | P45: =_xlfn.IFNA(VLOOKUP(CONCATENATE('Title page'!B$3,"-","7b","-",$Q45),Targets!$E:$T,14,FALSE),"") ->  | Q45: 40
B46: =_xlfn.IFNA(VLOOKUP(CONCATENATE('Title page'!B$3,"-","7b","-",Q46),Targets!$E:$T,15,FALSE),"") ->  | C46: =_xlfn.IFNA(VLOOKUP(CONCATENATE('Title page'!B$3,"-","7b","-",Q46),Targets!$E:$T,16,FALSE),"") ->  | D46: =_xlfn.IFNA(VLOOKUP(CONCATENATE('Title page'!B$3,"-","7b","-",Q46),Targets!$E:$T,2,FALSE),"") ->  | E46: =_xlfn.IFNA(VLOOKUP(CONCATENATE('Title page'!B$3,"-","7b","-",$Q46),Targets!$E:$T,3,FALSE),"") ->  | F46: =_xlfn.IFNA(VLOOKUP(CONCATENATE('Title page'!B$3,"-","7b","-",$Q46),Targets!$E:$T,4,FALSE),"") ->  | G46: =_xlfn.IFNA(VLOOKUP(CONCATENATE('Title page'!B$3,"-","7b","-",$Q46),Targets!$E:$T,5,FALSE),"") ->  | H46: =_xlfn.IFNA(VLOOKUP(CONCATENATE('Title page'!B$3,"-","7b","-",$Q46),Targets!$E:$T,6,FALSE),"") ->  | I46: =_xlfn.IFNA(VLOOKUP(CONCATENATE('Title page'!B$3,"-","7b","-",$Q46),Targets!$E:$T,7,FALSE),"") ->  | J46: =_xlfn.IFNA(VLOOKUP(CONCATENATE('Title page'!B$3,"-","7b","-",$Q46),Targets!$E:$T,8,FALSE),"") ->  | K46: =_xlfn.IFNA(VLOOKUP(CONCATENATE('Title page'!B$3,"-","7b","-",$Q46),Targets!$E:$T,9,FALSE),"") ->  | L46: =_xlfn.IFNA(VLOOKUP(CONCATENATE('Title page'!B$3,"-","7b","-",$Q46),Targets!$E:$T,10,FALSE),"") ->  | M46: =_xlfn.IFNA(VLOOKUP(CONCATENATE('Title page'!B$3,"-","7b","-",$Q46),Targets!$E:$T,11,FALSE),"") ->  | N46: =_xlfn.IFNA(VLOOKUP(CONCATENATE('Title page'!B$3,"-","7b","-",$Q46),Targets!$E:$T,12,FALSE),"") ->  | O46: =_xlfn.IFNA(VLOOKUP(CONCATENATE('Title page'!B$3,"-","7b","-",$Q46),Targets!$E:$T,13,FALSE),"") ->  | P46: =_xlfn.IFNA(VLOOKUP(CONCATENATE('Title page'!B$3,"-","7b","-",$Q46),Targets!$E:$T,14,FALSE),"") -> 
B47: =_xlfn.IFNA(VLOOKUP(CONCATENATE('Title page'!B$3,"-","7b","-",Q47),Targets!$E:$T,15,FALSE),"") ->  | C47: =_xlfn.IFNA(VLOOKUP(CONCATENATE('Title page'!B$3,"-","7b","-",Q47),Targets!$E:$T,16,FALSE),"") ->  | D47: =_xlfn.IFNA(VLOOKUP(CONCATENATE('Title page'!B$3,"-","7b","-",Q47),Targets!$E:$T,2,FALSE),"") ->  | E47: =_xlfn.IFNA(VLOOKUP(CONCATENATE('Title page'!B$3,"-","7b","-",$Q47),Targets!$E:$T,3,FALSE),"") ->  | F47: =_xlfn.IFNA(VLOOKUP(CONCATENATE('Title page'!B$3,"-","7b","-",$Q47),Targets!$E:$T,4,FALSE),"") ->  | G47: =_xlfn.IFNA(VLOOKUP(CONCATENATE('Title page'!B$3,"-","7b","-",$Q47),Targets!$E:$T,5,FALSE),"") ->  | H47: =_xlfn.IFNA(VLOOKUP(CONCATENATE('Title page'!B$3,"-","7b","-",$Q47),Targets!$E:$T,6,FALSE),"") ->  | I47: =_xlfn.IFNA(VLOOKUP(CONCATENATE('Title page'!B$3,"-","7b","-",$Q47),Targets!$E:$T,7,FALSE),"") ->  | J47: =_xlfn.IFNA(VLOOKUP(CONCATENATE('Title page'!B$3,"-","7b","-",$Q47),Targets!$E:$T,8,FALSE),"") ->  | K47: =_xlfn.IFNA(VLOOKUP(CONCATENATE('Title page'!B$3,"-","7b","-",$Q47),Targets!$E:$T,9,FALSE),"") ->  | L47: =_xlfn.IFNA(VLOOKUP(CONCATENATE('Title page'!B$3,"-","7b","-",$Q47),Targets!$E:$T,10,FALSE),"") ->  | M47: =_xlfn.IFNA(VLOOKUP(CONCATENATE('Title page'!B$3,"-","7b","-",$Q47),Targets!$E:$T,11,FALSE),"") ->  | N47: =_xlfn.IFNA(VLOOKUP(CONCATENATE('Title page'!B$3,"-","7b","-",$Q47),Targets!$E:$T,12,FALSE),"") ->  | O47: =_xlfn.IFNA(VLOOKUP(CONCATENATE('Title page'!B$3,"-","7b","-",$Q47),Targets!$E:$T,13,FALSE),"") ->  | P47: =_xlfn.IFNA(VLOOKUP(CONCATENATE('Title page'!B$3,"-","7b","-",$Q47),Targets!$E:$T,14,FALSE),"") -> 
B48: =_xlfn.IFNA(VLOOKUP(CONCATENATE('Title page'!B$3,"-","7b","-",Q48),Targets!$E:$T,15,FALSE),"") ->  | C48: =_xlfn.IFNA(VLOOKUP(CONCATENATE('Title page'!B$3,"-","7b","-",Q48),Targets!$E:$T,16,FALSE),"") ->  | D48: =_xlfn.IFNA(VLOOKUP(CONCATENATE('Title page'!B$3,"-","7b","-",Q48),Targets!$E:$T,2,FALSE),"") ->  | E48: =_xlfn.IFNA(VLOOKUP(CONCATENATE('Title page'!B$3,"-","7b","-",$Q48),Targets!$E:$T,3,FALSE),"") ->  | F48: =_xlfn.IFNA(VLOOKUP(CONCATENATE('Title page'!B$3,"-","7b","-",$Q48),Targets!$E:$T,4,FALSE),"") ->  | G48: =_xlfn.IFNA(VLOOKUP(CONCATENATE('Title page'!B$3,"-","7b","-",$Q48),Targets!$E:$T,5,FALSE),"") ->  | H48: =_xlfn.IFNA(VLOOKUP(CONCATENATE('Title page'!B$3,"-","7b","-",$Q48),Targets!$E:$T,6,FALSE),"") ->  | I48: =_xlfn.IFNA(VLOOKUP(CONCATENATE('Title page'!B$3,"-","7b","-",$Q48),Targets!$E:$T,7,FALSE),"") ->  | J48: =_xlfn.IFNA(VLOOKUP(CONCATENATE('Title page'!B$3,"-","7b","-",$Q48),Targets!$E:$T,8,FALSE),"") ->  | K48: =_xlfn.IFNA(VLOOKUP(CONCATENATE('Title page'!B$3,"-","7b","-",$Q48),Targets!$E:$T,9,FALSE),"") ->  | L48: =_xlfn.IFNA(VLOOKUP(CONCATENATE('Title page'!B$3,"-","7b","-",$Q48),Targets!$E:$T,10,FALSE),"") ->  | M48: =_xlfn.IFNA(VLOOKUP(CONCATENATE('Title page'!B$3,"-","7b","-",$Q48),Targets!$E:$T,11,FALSE),"") ->  | N48: =_xlfn.IFNA(VLOOKUP(CONCATENATE('Title page'!B$3,"-","7b","-",$Q48),Targets!$E:$T,12,FALSE),"") ->  | O48: =_xlfn.IFNA(VLOOKUP(CONCATENATE('Title page'!B$3,"-","7b","-",$Q48),Targets!$E:$T,13,FALSE),"") ->  | P48: =_xlfn.IFNA(VLOOKUP(CONCATENATE('Title page'!B$3,"-","7b","-",$Q48),Targets!$E:$T,14,FALSE),"") -> 
B49: =_xlfn.IFNA(VLOOKUP(CONCATENATE('Title page'!B$3,"-","7b","-",Q49),Targets!$E:$T,15,FALSE),"") ->  | C49: =_xlfn.IFNA(VLOOKUP(CONCATENATE('Title page'!B$3,"-","7b","-",Q49),Targets!$E:$T,16,FALSE),"") ->  | D49: =_xlfn.IFNA(VLOOKUP(CONCATENATE('Title page'!B$3,"-","7b","-",Q49),Targets!$E:$T,2,FALSE),"") ->  | E49: =_xlfn.IFNA(VLOOKUP(CONCATENATE('Title page'!B$3,"-","7b","-",$Q49),Targets!$E:$T,3,FALSE),"") ->  | F49: =_xlfn.IFNA(VLOOKUP(CONCATENATE('Title page'!B$3,"-","7b","-",$Q49),Targets!$E:$T,4,FALSE),"") ->  | G49: =_xlfn.IFNA(VLOOKUP(CONCATENATE('Title page'!B$3,"-","7b","-",$Q49),Targets!$E:$T,5,FALSE),"") ->  | H49: =_xlfn.IFNA(VLOOKUP(CONCATENATE('Title page'!B$3,"-","7b","-",$Q49),Targets!$E:$T,6,FALSE),"") ->  | I49: =_xlfn.IFNA(VLOOKUP(CONCATENATE('Title page'!B$3,"-","7b","-",$Q49),Targets!$E:$T,7,FALSE),"") ->  | J49: =_xlfn.IFNA(VLOOKUP(CONCATENATE('Title page'!B$3,"-","7b","-",$Q49),Targets!$E:$T,8,FALSE),"") ->  | K49: =_xlfn.IFNA(VLOOKUP(CONCATENATE('Title page'!B$3,"-","7b","-",$Q49),Targets!$E:$T,9,FALSE),"") ->  | L49: =_xlfn.IFNA(VLOOKUP(CONCATENATE('Title page'!B$3,"-","7b","-",$Q49),Targets!$E:$T,10,FALSE),"") ->  | M49: =_xlfn.IFNA(VLOOKUP(CONCATENATE('Title page'!B$3,"-","7b","-",$Q49),Targets!$E:$T,11,FALSE),"") ->  | N49: =_xlfn.IFNA(VLOOKUP(CONCATENATE('Title page'!B$3,"-","7b","-",$Q49),Targets!$E:$T,12,FALSE),"") ->  | O49: =_xlfn.IFNA(VLOOKUP(CONCATENATE('Title page'!B$3,"-","7b","-",$Q49),Targets!$E:$T,13,FALSE),"") ->  | P49: =_xlfn.IFNA(VLOOKUP(CONCATENATE('Title page'!B$3,"-","7b","-",$Q49),Targets!$E:$T,14,FALSE),"") -> 
B50: =_xlfn.IFNA(VLOOKUP(CONCATENATE('Title page'!B$3,"-","7b","-",Q50),Targets!$E:$T,15,FALSE),"") ->  | C50: =_xlfn.IFNA(VLOOKUP(CONCATENATE('Title page'!B$3,"-","7b","-",Q50),Targets!$E:$T,16,FALSE),"") ->  | D50: =_xlfn.IFNA(VLOOKUP(CONCATENATE('Title page'!B$3,"-","7b","-",Q50),Targets!$E:$T,2,FALSE),"") ->  | E50: =_xlfn.IFNA(VLOOKUP(CONCATENATE('Title page'!B$3,"-","7b","-",$Q50),Targets!$E:$T,3,FALSE),"") ->  | F50: =_xlfn.IFNA(VLOOKUP(CONCATENATE('Title page'!B$3,"-","7b","-",$Q50),Targets!$E:$T,4,FALSE),"") ->  | G50: =_xlfn.IFNA(VLOOKUP(CONCATENATE('Title page'!B$3,"-","7b","-",$Q50),Targets!$E:$T,5,FALSE),"") ->  | H50: =_xlfn.IFNA(VLOOKUP(CONCATENATE('Title page'!B$3,"-","7b","-",$Q50),Targets!$E:$T,6,FALSE),"") ->  | I50: =_xlfn.IFNA(VLOOKUP(CONCATENATE('Title page'!B$3,"-","7b","-",$Q50),Targets!$E:$T,7,FALSE),"") ->  | J50: =_xlfn.IFNA(VLOOKUP(CONCATENATE('Title page'!B$3,"-","7b","-",$Q50),Targets!$E:$T,8,FALSE),"") ->  | K50: =_xlfn.IFNA(VLOOKUP(CONCATENATE('Title page'!B$3,"-","7b","-",$Q50),Targets!$E:$T,9,FALSE),"") ->  | L50: =_xlfn.IFNA(VLOOKUP(CONCATENATE('Title page'!B$3,"-","7b","-",$Q50),Targets!$E:$T,10,FALSE),"") ->  | M50: =_xlfn.IFNA(VLOOKUP(CONCATENATE('Title page'!B$3,"-","7b","-",$Q50),Targets!$E:$T,11,FALSE),"") ->  | N50: =_xlfn.IFNA(VLOOKUP(CONCATENATE('Title page'!B$3,"-","7b","-",$Q50),Targets!$E:$T,12,FALSE),"") ->  | O50: =_xlfn.IFNA(VLOOKUP(CONCATENATE('Title page'!B$3,"-","7b","-",$Q50),Targets!$E:$T,13,FALSE),"") ->  | P50: =_xlfn.IFNA(VLOOKUP(CONCATENATE('Title page'!B$3,"-","7b","-",$Q50),Targets!$E:$T,14,FALSE),"") -> 
B51: =_xlfn.IFNA(VLOOKUP(CONCATENATE('Title page'!B$3,"-","7b","-",Q51),Targets!$E:$T,15,FALSE),"") ->  | C51: =_xlfn.IFNA(VLOOKUP(CONCATENATE('Title page'!B$3,"-","7b","-",Q51),Targets!$E:$T,16,FALSE),"") ->  | D51: =_xlfn.IFNA(VLOOKUP(CONCATENATE('Title page'!B$3,"-","7b","-",Q51),Targets!$E:$T,2,FALSE),"") ->  | E51: =_xlfn.IFNA(VLOOKUP(CONCATENATE('Title page'!B$3,"-","7b","-",$Q51),Targets!$E:$T,3,FALSE),"") ->  | F51: =_xlfn.IFNA(VLOOKUP(CONCATENATE('Title page'!B$3,"-","7b","-",$Q51),Targets!$E:$T,4,FALSE),"") ->  | G51: =_xlfn.IFNA(VLOOKUP(CONCATENATE('Title page'!B$3,"-","7b","-",$Q51),Targets!$E:$T,5,FALSE),"") ->  | H51: =_xlfn.IFNA(VLOOKUP(CONCATENATE('Title page'!B$3,"-","7b","-",$Q51),Targets!$E:$T,6,FALSE),"") ->  | I51: =_xlfn.IFNA(VLOOKUP(CONCATENATE('Title page'!B$3,"-","7b","-",$Q51),Targets!$E:$T,7,FALSE),"") ->  | J51: =_xlfn.IFNA(VLOOKUP(CONCATENATE('Title page'!B$3,"-","7b","-",$Q51),Targets!$E:$T,8,FALSE),"") ->  | K51: =_xlfn.IFNA(VLOOKUP(CONCATENATE('Title page'!B$3,"-","7b","-",$Q51),Targets!$E:$T,9,FALSE),"") ->  | L51: =_xlfn.IFNA(VLOOKUP(CONCATENATE('Title page'!B$3,"-","7b","-",$Q51),Targets!$E:$T,10,FALSE),"") ->  | M51: =_xlfn.IFNA(VLOOKUP(CONCATENATE('Title page'!B$3,"-","7b","-",$Q51),Targets!$E:$T,11,FALSE),"") ->  | N51: =_xlfn.IFNA(VLOOKUP(CONCATENATE('Title page'!B$3,"-","7b","-",$Q51),Targets!$E:$T,12,FALSE),"") ->  | O51: =_xlfn.IFNA(VLOOKUP(CONCATENATE('Title page'!B$3,"-","7b","-",$Q51),Targets!$E:$T,13,FALSE),"") ->  | P51: =_xlfn.IFNA(VLOOKUP(CONCATENATE('Title page'!B$3,"-","7b","-",$Q51),Targets!$E:$T,14,FALSE),"") -> 
B52: =_xlfn.IFNA(VLOOKUP(CONCATENATE('Title page'!B$3,"-","7b","-",Q52),Targets!$E:$T,15,FALSE),"") ->  | C52: =_xlfn.IFNA(VLOOKUP(CONCATENATE('Title page'!B$3,"-","7b","-",Q52),Targets!$E:$T,16,FALSE),"") ->  | D52: =_xlfn.IFNA(VLOOKUP(CONCATENATE('Title page'!B$3,"-","7b","-",Q52),Targets!$E:$T,2,FALSE),"") ->  | E52: =_xlfn.IFNA(VLOOKUP(CONCATENATE('Title page'!B$3,"-","7b","-",$Q52),Targets!$E:$T,3,FALSE),"") ->  | F52: =_xlfn.IFNA(VLOOKUP(CONCATENATE('Title page'!B$3,"-","7b","-",$Q52),Targets!$E:$T,4,FALSE),"") ->  | G52: =_xlfn.IFNA(VLOOKUP(CONCATENATE('Title page'!B$3,"-","7b","-",$Q52),Targets!$E:$T,5,FALSE),"") ->  | H52: =_xlfn.IFNA(VLOOKUP(CONCATENATE('Title page'!B$3,"-","7b","-",$Q52),Targets!$E:$T,6,FALSE),"") ->  | I52: =_xlfn.IFNA(VLOOKUP(CONCATENATE('Title page'!B$3,"-","7b","-",$Q52),Targets!$E:$T,7,FALSE),"") ->  | J52: =_xlfn.IFNA(VLOOKUP(CONCATENATE('Title page'!B$3,"-","7b","-",$Q52),Targets!$E:$T,8,FALSE),"") ->  | K52: =_xlfn.IFNA(VLOOKUP(CONCATENATE('Title page'!B$3,"-","7b","-",$Q52),Targets!$E:$T,9,FALSE),"") ->  | L52: =_xlfn.IFNA(VLOOKUP(CONCATENATE('Title page'!B$3,"-","7b","-",$Q52),Targets!$E:$T,10,FALSE),"") ->  | M52: =_xlfn.IFNA(VLOOKUP(CONCATENATE('Title page'!B$3,"-","7b","-",$Q52),Targets!$E:$T,11,FALSE),"") ->  | N52: =_xlfn.IFNA(VLOOKUP(CONCATENATE('Title page'!B$3,"-","7b","-",$Q52),Targets!$E:$T,12,FALSE),"") ->  | O52: =_xlfn.IFNA(VLOOKUP(CONCATENATE('Title page'!B$3,"-","7b","-",$Q52),Targets!$E:$T,13,FALSE),"") ->  | P52: =_xlfn.IFNA(VLOOKUP(CONCATENATE('Title page'!B$3,"-","7b","-",$Q52),Targets!$E:$T,14,FALSE),"") -> 

Sheet Table 8
A1: Table 8 - Institution's commentary on progress against access agreement milestones and targets
A2: =CONCATENATE("Institution name: ",'Title page'!B2) -> Institution name: Anglia Ruskin University
A4: Notes
A5: In this section, we invited institutions to: • comment on the level of progress made against the targets • set the figures in some context, for example if they may have been influenced by external factors • provide any explanations where targets haven’t been met or where progress has been less than anticipated • provide comment on key factors that have led to successful outcomes • provide explanation where targets have been amended or removed, and where these changes have been approved by OFFA
A7: a) Comments on the institution's overall level of progress against their targets.
A8: =VLOOKUP(CONCATENATE('Title page'!B3,"1"),Targets_comm!D:E,2,FALSE) -> In 2016/17 Anglia Ruskin University continued to attract a high number of students from widening participation backgrounds. We continue to strengthen our collaborative work with large events, such as Eyes on the Prize and The Big Bang, showcasing our ability to deliver excellent events for a large number of students with the support of other opportunity providers, including other HEIs.
A9: b) Commentary on key factors that the institution felt contributed to achieving successful outcomes
A10: =VLOOKUP(CONCATENATE('Title page'!B3,"2"),Targets_comm!D:E,2,FALSE) -> We continue to reduce the gap between % of white and BME students achieving good honour degrees (1st or 2:1) (New indicator in 2017/18 Access Agreement). We continue to embed equality analysis into all of our processes, including our academic annual monitoring processes. Further details are given in table 11a row 19. We are please there has been a reduction in the decline in part time student numbers (UK Domicile) at Anglia Ruskin (New indicator in 2017/18 Access Agreement). Given the national trends this has been particular challenging, but achieved through our continued dedication to give students the support they need to succeed. The gap between the degree attainment of disabled students and those who do not declare a disability (New indicator in 2017/18 Access Agreement) has continued to be very low at 1%. Our Disability Working Group has been successful at trialling and rolling out new initiatives to embed best practice. A great example is our work on inclusive assessment. We set up an Inclusive Assessment Work Group who identify principles for assessment practice that were inclusive in addition to meeting high pedagogic standards. We continue to use start and end of day questionnaires to evaluate the distance travelled of our visitors and these consistently demonstrate that our outreach students benefit from these events. In 2016/17 visiting students left our campuses with, on average, a 23% greater understanding of HE. We are also proactive in seeking feedback from our target schools to ensure they find our visits beneficial and valuable; once again feedback is positive and constructive.
A11: c) Commentary on key factors which the institution felt affected their ability to make progress.
A12: =VLOOKUP(CONCATENATE('Title page'!B3,"3"),Targets_comm!D:E,2,FALSE) -> Both of our non-continuation targets have not progressed well against our targets. Our Student Retention Steering Group has implemented an action plan to address the issues with all of our academic faculties analysing non continuation data and taking action. In 2017/18 this work has continued to grow. An example is a pilot initiative run for the first time in semester 1 of 2017/18 called Team Rhino, supporting new students to be successful. There has been a slight reduction in the participation of young students from state schools and colleges, but our intake remains a high percent of all students and above benchmark. Our Outreach Team continue to proactively engage with state secondary schools, increasing year on year the number of schools they work with, and changing programmes to meet the needs of the schools given feedback. There has been a reduction in all 3 of our access indicators looking at the participation of students from low participation neighbourhoods. Student maintenance grants were replaced with loans for new full-time students in England starting their courses in 2016, which may have discouraged some students from applying for university. Given a large percent of our students are from low income households this is likely to have affected our students. Encouraging participation from low participation neighbourhoods remains a key focus for our outreach and recruitment teams who continue to work with schools and communities in these areas.

Sheet MON_CONTROL (hidden)
A1: itemname repeat | B1: ukprn | C1: hesainst | D1: itemname | E1: Sortorder | F1: Inst_type | G1: Region | H1: Overregion | I1: Missiongroup | J1: GROUPKEY | K1: Dateloaded | L1: isvalid | M1: islocked | N1: Lockedby | O1: IncludeInst
A2: =control[[#This Row],[itemname]] -> Anglia Ruskin University | B2: 10000291 | C2: H-0047 | D2: Anglia Ruskin University | E2: 1 | F2: HEI | G2: ES | H2: LE | I2: Million+ | K2: 2018-01-16T18:01:11.093 | L2: TRUE | M2: FALSE
A3: =control[[#This Row],[itemname]] -> Askham Bryan College | B3: 10000415 | C3: L105948 | D3: Askham Bryan College | E3: 198 | F3: FEC | G3: YH | H3: N | I3: None-FEC | K3: 2018-01-31T10:10:02.790 | L3: TRUE | M3: FALSE
A4: =control[[#This Row],[itemname]] -> Aston University | B4: 10007759 | C4: H-0108 | D4: Aston University | E4: 4 | F4: HEI | G4: WM | H4: MS | I4: None-HEI | K4: 2018-02-08T10:16:31.127 | L4: TRUE | M4: FALSE
A5: =control[[#This Row],[itemname]] -> Bath Spa University | B5: 10000571 | C5: H-0048 | D5: Bath Spa University | E5: 6 | F5: HEI | G5: SW | H5: MS | I5: Million+ | K5: 2018-01-31T10:15:18.347 | L5: TRUE | M5: FALSE
A6: =control[[#This Row],[itemname]] -> Birkbeck College | B6: 10007760 | C6: H-0127 | D6: Birkbeck College | E6: 8 | F6: HEI | G6: GL | H6: LE | I6: 1994 Group | K6: 2018-01-16T18:12:59.103 | L6: TRUE | M6: FALSE
A7: =control[[#This Row],[itemname]] -> Birmingham City University | B7: 10007140 | C7: H-0052 | D7: Birmingham City University | E7: 11 | F7: HEI | G7: WM | H7: MS | I7: Million+ | K7: 2018-02-19T09:45:07.503 | L7: TRUE | M7: FALSE
A8: =control[[#This Row],[itemname]] -> Bishop Burton College | B8: 10000721 | C8: L105582 | D8: Bishop Burton College | E8: 221 | F8: FEC | G8: YH | H8: N | I8: None-FEC | K8: 2018-01-29T16:44:57.623 | L8: TRUE | M8: FALSE
A9: =control[[#This Row],[itemname]] -> Bishop Grosseteste University | B9: 10007811 | C9: H-0007 | D9: Bishop Grosseteste University | E9: 12 | F9: HEI | G9: EM | H9: MS | I9: GuildHE | K9: 2018-02-01T15:56:26.430 | L9: TRUE | M9: FALSE
A10: =control[[#This Row],[itemname]] -> Blackburn College | B10: 10000747 | C10: L106749 | D10: Blackburn College | E10: 222 | F10: FEC | G10: NW | H10: N | I10: None-FEC | K10: 2018-02-02T10:00:25.367 | L10: FALSE | M10: FALSE
A11: =control[[#This Row],[itemname]] -> Blackpool and the Fylde College | B11: 10000754 | C11: L108529 | D11: Blackpool and the Fylde College | E11: 223 | F11: FEC | G11: NW | H11: N | I11: None-FEC | K11: 2018-02-26T16:23:06.757 | L11: TRUE | M11: FALSE
A12: =control[[#This Row],[itemname]] -> Bournemouth University | B12: 10000824 | C12: H-0050 | D12: Bournemouth University | E12: 14 | F12: HEI | G12: SW | H12: MS | I12: University Alliance | K12: 2018-01-17T09:11:16.527 | L12: TRUE | M12: FALSE
A13: =control[[#This Row],[itemname]] -> Bradford College | B13: 10000840 | C13: L108311 | D13: Bradford College | E13: 233 | F13: FEC | G13: YH | H13: N | I13: None-FEC | K13: 2018-02-16T11:06:54.880 | L13: TRUE | M13: FALSE
A14: =control[[#This Row],[itemname]] -> Bridgwater & Taunton College | B14: 10000878 | C14: L107531 | D14: Bridgwater & Taunton College | E14: 235 | F14: FEC | G14: SW | H14: MS | I14: None-FEC | K14: 2018-02-02T16:07:00.290 | L14: TRUE | M14: FALSE
A15: =control[[#This Row],[itemname]] -> Brunel University London | B15: 10000961 | C15: H-0113 | D15: Brunel University London | E15: 21 | F15: HEI | G15: GL | H15: LE | I15: None-HEI | K15: 2018-01-24T12:48:18.780 | L15: TRUE | M15: FALSE
A16: =control[[#This Row],[itemname]] -> Buckinghamshire New University | B16: 10000975 | C16: H-0009 | D16: Buckinghamshire New University | E16: 22 | F16: HEI | G16: SE | H16: MS | I16: Million+ and GuildH | K16: 2018-01-30T14:18:34.570 | L16: TRUE | M16: FALSE
A17: =control[[#This Row],[itemname]] -> Burnley College | B17: 10001000 | C17: L106751 | D17: Burnley College | E17: 243 | F17: FEC | G17: NW | H17: N | I17: None | K17: 2018-02-13T13:41:55.213 | L17: TRUE | M17: FALSE
A18: =control[[#This Row],[itemname]] -> Bury College | B18: 10001005 | C18: L105763 | D18: Bury College | E18: 244 | F18: FEC | G18: NW | H18: N | I18: None-FEC | K18: 2018-01-31T15:20:24.793 | L18: TRUE | M18: FALSE
A19: =control[[#This Row],[itemname]] -> Canterbury Christ Church University | B19: 10001143 | C19: H-0012 | D19: Canterbury Christ Church University | E19: 24 | F19: HEI | G19: SE | H19: MS | I19: None-HEI | K19: 2018-02-01T15:29:25.093 | L19: TRUE | M19: FALSE
A20: =control[[#This Row],[itemname]] -> Central College Nottingham | B20: 10005991 | C20: L108485 | D20: Central College Nottingham | E20: 261 | F20: FEC | G20: EM | H20: MS | I20: None-FEC | K20: 2018-01-16T18:07:50.057 | L20: TRUE | M20: FALSE
A21: =control[[#This Row],[itemname]] -> City College Brighton and Hove | B21: 10001457 | C21: L106098 | D21: City College Brighton and Hove | E21: 272 | F21: FEC | G21: SE | H21: MS | I21: None | K21: 2018-02-06T14:13:33.090 | L21: TRUE | M21: FALSE
A22: =control[[#This Row],[itemname]] -> City College Norwich | B22: 10004772 | C22: L106947 | D22: City College Norwich | E22: 275 | F22: FEC | G22: ES | H22: LE | I22: None | K22: 2018-01-22T14:18:15.737 | L22: TRUE | M22: FALSE
A23: =control[[#This Row],[itemname]] -> City of Bath College | B23: 10001465 | C23: L105154 | D23: City of Bath College | E23: 279 | F23: FEC | G23: SW | H23: MS | I23: None-FEC | K23: 2018-02-19T12:24:14.083 | L23: TRUE | M23: FALSE
A24: =control[[#This Row],[itemname]] -> Cleveland College of Art and Design | B24: 10001503 | C24: L108536 | D24: Cleveland College of Art and Design | E24: 285 | F24: FEC | G24: NE | H24: N | I24: None-FEC | K24: 2018-01-31T15:31:03.803 | L24: TRUE | M24: FALSE
A25: =control[[#This Row],[itemname]] -> Colchester Institute | B25: 10001535 | C25: L106564 | D25: Colchester Institute | E25: 287 | F25: FEC | G25: ES | H25: LE | I25: None | K25: 2018-02-13T08:45:53.637 | L25: TRUE | M25: FALSE
A26: =control[[#This Row],[itemname]] -> Cornwall College | B26: 10001696 | C26: L106490 | D26: Cornwall College | E26: 290 | F26: FEC | G26: SW | H26: MS | I26: None | K26: 2018-02-19T11:09:51.750 | L26: TRUE | M26: FALSE
A27: =control[[#This Row],[itemname]] -> Courtauld Institute of Art | B27: 10007761 | C27: H-0201 | D27: Courtauld Institute of Art | E27: 33 | F27: HEI | G27: GL | H27: LE | I27: None-HEI | K27: 2018-01-18T16:06:17.313 | L27: TRUE | M27: FALSE
A28: =control[[#This Row],[itemname]] -> Coventry University | B28: 10001726 | C28: H-0056 | D28: Coventry University | E28: 34 | F28: HEI | G28: WM | H28: MS | I28: Million+ | K28: 2018-02-05T15:00:47.343 | L28: TRUE | M28: FALSE
A29: =control[[#This Row],[itemname]] -> Craven College | B29: 10001743 | C29: L107552 | D29: Craven College | E29: 293 | F29: FEC | G29: YH | H29: N | I29: None-FEC | K29: 2018-02-07T13:36:28.827 | L29: TRUE | M29: FALSE
A30: =control[[#This Row],[itemname]] -> De Montfort University | B30: 10001883 | C30: H-0068 | D30: De Montfort University | E30: 40 | F30: HEI | G30: EM | H30: MS | I30: University Alliance | K30: 2018-01-31T09:33:37.470 | L30: TRUE | M30: FALSE
A31: =control[[#This Row],[itemname]] -> Derby College | B31: 10001919 | C31: L112173 | D31: Derby College | E31: 300 | F31: FEC | G31: EM | H31: MS | I31: None-FEC | K31: 2018-01-31T10:20:39.557 | L31: TRUE | M31: FALSE
A32: =control[[#This Row],[itemname]] -> Doncaster College | B32: 10002005 | C32: L107019 | D32: Doncaster College | E32: 304 | F32: FEC | G32: YH | H32: N | I32: None-FEC | K32: 2018-01-17T11:09:26.507 | L32: TRUE | M32: FALSE
A33: =control[[#This Row],[itemname]] -> Edge Hill University | B33: 10007823 | C33: H-0016 | D33: Edge Hill University | E33: 45 | F33: HEI | G33: NW | H33: N | I33: None-HEI | K33: 2018-01-31T09:45:03.283 | L33: TRUE | M33: FALSE
A34: =control[[#This Row],[itemname]] -> Falmouth University | B34: 10008640 | C34: H-0017 | D34: Falmouth University | E34: 48 | F34: HEI | G34: SW | H34: MS | I34: GuildHE | K34: 2018-02-06T15:35:50.547 | L34: TRUE | M34: FALSE
A35: =control[[#This Row],[itemname]] -> Farnborough College of Technology | B35: 10002412 | C35: L106602 | D35: Farnborough College of Technology | E35: 328 | F35: FEC | G35: SE | H35: MS | I35: None-FEC | K35: 2018-01-17T10:27:06.050 | L35: TRUE | M35: FALSE
A36: =control[[#This Row],[itemname]] -> Goldsmiths' College | B36: 10002718 | C36: H-0131 | D36: Goldsmiths' College | E36: 50 | F36: HEI | G36: GL | H36: LE | I36: 1994 Group | K36: 2018-02-19T16:18:23.303 | L36: TRUE | M36: FALSE
A37: =control[[#This Row],[itemname]] -> Grimsby Institute of Further and Higher Education | B37: 10007938 | C37: L107632 | D37: Grimsby Institute of Further and Higher Education | E37: 343 | F37: FEC | G37: YH | H37: N | I37: None-FEC | K37: 2018-01-26T11:11:47.913 | L37: TRUE | M37: FALSE
A38: =control[[#This Row],[itemname]] -> Guildford College | B38: 10002815 | C38: L107909 | D38: Guildford College | E38: 344 | F38: FEC | G38: SE | H38: MS | I38: None-FEC | K38: 2018-02-06T08:38:43.810 | L38: TRUE | M38: FALSE
A39: =control[[#This Row],[itemname]] -> Guildhall School of Music & Drama | B39: 10007825 | C39: H-0208 | D39: Guildhall School of Music & Drama | E39: 53 | F39: HEI | G39: GL | H39: LE | I39: None-HEI | K39: 2018-01-18T13:22:35.190 | L39: TRUE | M39: FALSE
A40: =control[[#This Row],[itemname]] -> Harper Adams University | B40: 10040812 | C40: H-0018 | D40: Harper Adams University | E40: 54 | F40: HEI | G40: WM | H40: MS | I40: GuildHE | K40: 2018-02-01T10:28:03.457 | L40: FALSE | M40: FALSE
A41: =control[[#This Row],[itemname]] -> Hartpury College | B41: 10002919 | C41: L106586 | D41: Hartpury College | E41: 354 | F41: FEC | G41: SW | H41: MS | I41: None | K41: 2018-01-25T16:15:50.020 | L41: TRUE | M41: FALSE
A42: =control[[#This Row],[itemname]] -> Heart of Worcestershire College | B42: 10007977 | C42: L106641 | D42: Heart of Worcestershire College | E42: 359 | F42: FEC | G42: WM | H42: MS | I42: None-FEC | K42: 2018-02-02T12:59:26.053 | L42: TRUE | M42: FALSE
A43: =control[[#This Row],[itemname]] -> Hereford College of Arts | B43: 10003022 | C43: L108535 | D43: Hereford College of Arts | E43: 363 | F43: FEC | G43: WM | H43: MS | I43: None-FEC | K43: 2018-02-09T14:06:02.163 | L43: TRUE | M43: FALSE
A44: =control[[#This Row],[itemname]] -> Hugh Baird College | B44: 10003193 | C44: L106900 | D44: Hugh Baird College | E44: 378 | F44: FEC | G44: NW | H44: N | I44: None | K44: 2018-02-20T09:05:22.583 | L44: TRUE | M44: FALSE
A45: =control[[#This Row],[itemname]] -> Imperial College London | B45: 10003270 | C45: H-0132 | D45: Imperial College London | E45: 61 | F45: HEI | G45: GL | H45: LE | I45: Russell | K45: 2018-01-17T11:33:21.353 | L45: TRUE | M45: FALSE
A46: =control[[#This Row],[itemname]] -> King's College London | B46: 10003645 | C46: H-0134 | D46: King's College London | E46: 78 | F46: HEI | G46: GL | H46: LE | I46: Russell | K46: 2018-02-09T14:07:01.767 | L46: TRUE | M46: FALSE
A47: =control[[#This Row],[itemname]] -> Kingston College | B47: 10003674 | C47: L108514 | D47: Kingston College | E47: 396 | F47: FEC | G47: GL | H47: LE | I47: None-FEC | K47: 2018-02-12T15:52:29.387 | L47: TRUE | M47: FALSE
A48: =control[[#This Row],[itemname]] -> Kingston Maurward College | B48: 10003676 | C48: L106536 | D48: Kingston Maurward College | E48: 397 | F48: FEC | G48: SW | H48: MS | I48: None | K48: 2018-02-05T13:11:58.580 | L48: TRUE | M48: FALSE
A49: =control[[#This Row],[itemname]] -> Kingston University | B49: 10003678 | C49: H-0063 | D49: Kingston University | E49: 79 | F49: HEI | G49: GL | H49: LE | I49: Million+ | K49: 2018-01-22T11:22:19.920 | L49: TRUE | M49: FALSE
A50: =control[[#This Row],[itemname]] -> Leeds Arts University | B50: 10003854 | C50: H-0211 | D50: Leeds Arts University | E50: 84 | F50: HEI | G50: YH | H50: N | I50: None | K50: 2018-01-30T16:07:47.130 | L50: TRUE | M50: FALSE
A51: =control[[#This Row],[itemname]] -> Leeds Beckett University | B51: 10003861 | C51: H-0064 | D51: Leeds Beckett University | E51: 83 | F51: HEI | G51: YH | H51: N | I51: Million+ | K51: 2018-02-08T09:36:46.003 | L51: TRUE | M51: FALSE
A52: =control[[#This Row],[itemname]] -> Leeds City College | B52: 10024962 | C52: L118778 | D52: Leeds City College | E52: 406 | F52: FEC | G52: YH | H52: N | I52: None-FEC | K52: 2018-02-08T15:11:37.697 | L52: TRUE | M52: FALSE
A53: =control[[#This Row],[itemname]] -> Leeds Trinity University | B53: 10003863 | C53: H-0040 | D53: Leeds Trinity University | E53: 86 | F53: HEI | G53: YH | H53: N | I53: GuildHE | K53: 2018-02-07T15:03:21.640 | L53: TRUE | M53: FALSE
A54: =control[[#This Row],[itemname]] -> Lincoln College | B54: 10003928 | C54: L110223 | D54: Lincoln College | E54: 415 | F54: FEC | G54: EM | H54: MS | I54: None-FEC | K54: 2018-02-09T15:25:38.257 | L54: TRUE | M54: FALSE
A55: =control[[#This Row],[itemname]] -> Liverpool Hope University | B55: 10003956 | C55: H-0023 | D55: Liverpool Hope University | E55: 90 | F55: HEI | G55: NW | H55: N | I55: None-HEI | K55: 2018-02-02T09:06:42.833 | L55: FALSE | M55: FALSE
A56: =control[[#This Row],[itemname]] -> Liverpool John Moores University | B56: 10003957 | C56: H-0065 | D56: Liverpool John Moores University | E56: 92 | F56: HEI | G56: NW | H56: N | I56: University Alliance | K56: 2018-01-16T18:05:25.750 | L56: TRUE | M56: FALSE
A57: =control[[#This Row],[itemname]] -> London Metropolitan University | B57: 10004048 | C57: H-0202 | D57: London Metropolitan University | E57: 105 | F57: HEI | G57: GL | H57: LE | I57: Million+ | K57: 2018-02-08T15:25:41.213 | L57: TRUE | M57: FALSE
A58: =control[[#This Row],[itemname]] -> London South Bank University | B58: 10004078 | C58: H-0076 | D58: London South Bank University | E58: 108 | F58: HEI | G58: GL | H58: LE | I58: Million+ | K58: 2018-01-17T14:26:11.160 | L58: TRUE | M58: FALSE
A59: =control[[#This Row],[itemname]] -> Loughborough College | B59: 10004112 | C59: L109293 | D59: Loughborough College | E59: 418 | F59: FEC | G59: EM | H59: MS | I59: None-FEC | K59: 2018-01-26T15:19:48.030 | L59: TRUE | M59: FALSE
A60: =control[[#This Row],[itemname]] -> Loughborough University | B60: 10004113 | C60: H-0152 | D60: Loughborough University | E60: 109 | F60: HEI | G60: EM | H60: MS | I60: 1994 Group | K60: 2018-01-17T11:00:16.773 | L60: TRUE | M60: FALSE
A61: =control[[#This Row],[itemname]] -> Manchester Metropolitan University | B61: 10004180 | C61: H-0066 | D61: Manchester Metropolitan University | E61: 113 | F61: HEI | G61: NW | H61: N | I61: University Alliance | K61: 2018-01-29T14:36:49.723 | L61: TRUE | M61: FALSE
A62: =control[[#This Row],[itemname]] -> Middlesex University | B62: 10004351 | C62: H-0067 | D62: Middlesex University | E62: 115 | F62: HEI | G62: GL | H62: LE | I62: Million+ | K62: 2018-02-07T14:54:04.580 | L62: TRUE | M62: FALSE
A63: =control[[#This Row],[itemname]] -> Moulton College | B63: 10004442 | C63: L106966 | D63: Moulton College | E63: 437 | F63: FEC | G63: EM | H63: MS | I63: None-FEC | K63: 2018-02-26T09:25:55.710 | L63: TRUE | M63: FALSE
A64: =control[[#This Row],[itemname]] -> Myerscough College | B64: 10004478 | C64: L106924 | D64: Myerscough College | E64: 438 | F64: FEC | G64: NW | H64: N | I64: None | K64: 2018-02-06T11:56:14.973 | L64: TRUE | M64: FALSE
A65: =control[[#This Row],[itemname]] -> NCG | B65: 10004599 | C65: L107111 | D65: NCG | E65: 439 | F65: FEC | G65: NE | H65: N | I65: None-FEC | K65: 2018-01-31T08:05:10.193 | L65: TRUE | M65: FALSE
A66: =control[[#This Row],[itemname]] -> New College Durham | B66: 10004576 | C66: L108661 | D66: New College Durham | E66: 441 | F66: FEC | G66: NE | H66: N | I66: None-FEC | K66: 2018-02-14T14:19:06.743 | L66: TRUE | M66: FALSE
A67: =control[[#This Row],[itemname]] -> New College Nottingham (NCN) | B67: 10004577 | C67: L106985 | D67: New College Nottingham (NCN) | E67: 442 | F67: FEC | G67: EM | H67: MS | I67: None-FEC | K67: 2018-01-16T18:06:13.537 | L67: TRUE | M67: FALSE
A68: =control[[#This Row],[itemname]] -> New College Stamford | B68: 10006303 | C68: L107722 | D68: New College Stamford | E68: 444 | F68: FEC | G68: EM | H68: MS | I68: None-FEC | K68: 2018-02-08T14:56:13.827 | L68: TRUE | M68: FALSE
A69: =control[[#This Row],[itemname]] -> Newman University | B69: 10007832 | C69: H-0028 | D69: Newman University | E69: 119 | F69: HEI | G69: WM | H69: MS | I69: GuildHE | K69: 2018-01-18T13:37:01.180 | L69: TRUE | M69: FALSE
A70: =control[[#This Row],[itemname]] -> North East Surrey College of Technology (NESCOT) | B70: 10004686 | C70: L108505 | D70: North East Surrey College of Technology (NESCOT) | E70: 457 | F70: FEC | G70: SE | H70: MS | I70: None-FEC | K70: 2018-02-02T13:37:45.573 | L70: TRUE | M70: FALSE
A71: =control[[#This Row],[itemname]] -> Northbrook College Sussex | B71: 10004736 | C71: L108501 | D71: Northbrook College Sussex | E71: 468 | F71: FEC | G71: SE | H71: MS | I71: None-FEC | K71: 2018-01-29T14:16:58.020 | L71: TRUE | M71: FALSE
A72: =control[[#This Row],[itemname]] -> Norwich University of the Arts | B72: 10004775 | C72: H-0190 | D72: Norwich University of the Arts | E72: 125 | F72: HEI | G72: ES | H72: LE | I72: GuildHE | K72: 2018-02-09T14:01:18.867 | L72: TRUE | M72: FALSE
A73: =control[[#This Row],[itemname]] -> Nottingham Trent University | B73: 10004797 | C73: H-0071 | D73: Nottingham Trent University | E73: 127 | F73: HEI | G73: EM | H73: MS | I73: University Alliance | K73: 2018-01-31T13:28:51.610 | L73: TRUE | M73: FALSE
A74: =control[[#This Row],[itemname]] -> Oxford Brookes University | B74: 10004930 | C74: H-0072 | D74: Oxford Brookes University | E74: 131 | F74: HEI | G74: SE | H74: MS | I74: University Alliance | K74: 2018-02-06T17:00:12.957 | L74: TRUE | M74: FALSE
A75: =control[[#This Row],[itemname]] -> Petroc | B75: 10004676 | C75: L106509 | D75: Petroc | E75: 488 | F75: FEC | G75: SW | H75: MS | I75: None | K75: 2018-01-24T08:44:49.677 | L75: TRUE | M75: FALSE
A76: =control[[#This Row],[itemname]] -> Plumpton College | B76: 10005124 | C76: L107525 | D76: Plumpton College | E76: 491 | F76: FEC | G76: SE | H76: MS | I76: None | K76: 2018-02-05T11:07:43.703 | L76: TRUE | M76: FALSE
A77: =control[[#This Row],[itemname]] -> Plymouth College of Art | B77: 10005127 | C77: L106513 | D77: Plymouth College of Art | E77: 133 | F77: HEI | G77: SW | H77: MS | I77: None-FEC | K77: 2018-02-02T12:27:38.447 | L77: TRUE | M77: FALSE
A78: =control[[#This Row],[itemname]] -> Queen Mary University of London | B78: 10007775 | C78: H-0139 | D78: Queen Mary University of London | E78: 136 | F78: HEI | G78: GL | H78: LE | I78: Russell | K78: 2018-01-25T15:13:40.283 | L78: TRUE | M78: FALSE
A79: =control[[#This Row],[itemname]] -> Ravensbourne | B79: 10005389 | C79: H-0030 | D79: Ravensbourne | E79: 137 | F79: HEI | G79: GL | H79: LE | I79: GuildHE | K79: 2018-02-02T13:40:58.670 | L79: TRUE | M79: FALSE
A80: =control[[#This Row],[itemname]] -> Reaseheath College | B80: 10005404 | C80: L105301 | D80: Reaseheath College | E80: 499 | F80: FEC | G80: NW | H80: N | I80: None | K80: 2018-01-31T11:27:38.567 | L80: TRUE | M80: FALSE
A81: =control[[#This Row],[itemname]] -> Roehampton University | B81: 10007776 | C81: H-0031 | D81: Roehampton University | E81: 139 | F81: HEI | G81: GL | H81: LE | I81: Million+ | K81: 2018-02-06T14:41:03.557 | L81: TRUE | M81: FALSE
A82: =control[[#This Row],[itemname]] -> Rose Bruford College | B82: 10005523 | C82: H-0032 | D82: Rose Bruford College | E82: 140 | F82: HEI | G82: GL | H82: LE | I82: GuildHE | K82: 2018-02-08T13:45:39.230 | L82: TRUE | M82: FALSE
A83: =control[[#This Row],[itemname]] -> Royal Holloway, University of London | B83: 10005553 | C83: H-0141 | D83: Royal Holloway, University of London | E83: 148 | F83: HEI | G83: SE | H83: MS | I83: 1994 Group | K83: 2018-01-26T09:20:16.790 | L83: TRUE | M83: FALSE
A84: =control[[#This Row],[itemname]] -> Royal Northern College of Music | B84: 10007837 | C84: H-0035 | D84: Royal Northern College of Music | E84: 149 | F84: HEI | G84: NW | H84: N | I84: None-HEI | K84: 2018-02-15T12:40:03.023 | L84: TRUE | M84: FALSE
A85: =control[[#This Row],[itemname]] -> Ruskin College | B85: 10005583 | C85: L108348 | D85: Ruskin College | E85: 517 | F85: FEC | G85: SE | H85: MS | I85: None-FEC | K85: 2018-02-12T09:21:16.927 | L85: TRUE | M85: FALSE
A86: =control[[#This Row],[itemname]] -> Sheffield Hallam University | B86: 10005790 | C86: H-0075 | D86: Sheffield Hallam University | E86: 155 | F86: HEI | G86: YH | H86: N | I86: University Alliance | K86: 2018-02-07T12:06:55.793 | L86: TRUE | M86: FALSE
A87: =control[[#This Row],[itemname]] -> South Devon College | B87: 10005977 | C87: L108487 | D87: South Devon College | E87: 545 | F87: FEC | G87: SW | H87: MS | I87: None | K87: 2018-02-05T10:06:03.520 | L87: TRUE | M87: FALSE
A88: =control[[#This Row],[itemname]] -> South Essex College of Further and Higher Education | B88: 10005981 | C88: L106569 | D88: South Essex College of Further and Higher Education | E88: 548 | F88: FEC | G88: ES | H88: LE | I88: None | K88: 2018-01-29T14:42:29.747 | L88: TRUE | M88: FALSE
A89: =control[[#This Row],[itemname]] -> South Thames College | B89: 10005997 | C89: L108483 | D89: South Thames College | E89: 554 | F89: FEC | G89: GL | H89: LE | I89: None-FEC | L89: TRUE | M89: FALSE
A90: =control[[#This Row],[itemname]] -> Southampton Solent University | B90: 10006022 | C90: H-0037 | D90: Southampton Solent University | E90: 158 | F90: HEI | G90: SE | H90: MS | I90: Million+ | K90: 2018-01-18T10:46:24.010 | L90: TRUE | M90: FALSE
A91: =control[[#This Row],[itemname]] -> Sparsholt College | B91: 10006050 | C91: L106618 | D91: Sparsholt College | E91: 561 | F91: FEC | G91: SE | H91: MS | I91: None-FEC | K91: 2018-01-29T12:49:05.230 | L91: TRUE | M91: FALSE
A92: =control[[#This Row],[itemname]] -> St Helens College | B92: 10006174 | C92: L105907 | D92: St Helens College | E92: 568 | F92: FEC | G92: NW | H92: N | I92: None-FEC | K92: 2018-01-22T12:27:00.800 | L92: TRUE | M92: FALSE
A93: =control[[#This Row],[itemname]] -> St Mary's University, Twickenham | B93: 10007843 | C93: H-0039 | D93: St Mary's University, Twickenham | E93: 161 | F93: HEI | G93: GL | H93: LE | I93: GuildHE | K93: 2018-02-08T15:37:52.053 | L93: TRUE | M93: FALSE
A94: =control[[#This Row],[itemname]] -> St. George's, University of London | B94: 10007782 | C94: H-0145 | D94: St. George's, University of London | E94: 162 | F94: HEI | G94: GL | H94: LE | I94: None-HEI | K94: 2018-01-17T10:05:29.533 | L94: TRUE | M94: FALSE
A95: =control[[#This Row],[itemname]] -> Staffordshire University | B95: 10006299 | C95: H-0077 | D95: Staffordshire University | E95: 163 | F95: HEI | G95: WM | H95: MS | I95: Million+ | K95: 2018-02-06T14:27:47.973 | L95: TRUE | M95: FALSE
A96: =control[[#This Row],[itemname]] -> Stockport College | B96: 10006331 | C96: L106863 | D96: Stockport College | E96: 576 | F96: FEC | G96: NW | H96: N | I96: None-FEC | K96: 2018-02-08T11:22:56.267 | L96: TRUE | M96: FALSE
A97: =control[[#This Row],[itemname]] -> Strode College | B97: 10006378 | C97: L107542 | D97: Strode College | E97: 582 | F97: FEC | G97: SW | H97: MS | I97: None | K97: 2018-01-25T14:37:20.963 | L97: TRUE | M97: FALSE
A98: =control[[#This Row],[itemname]] -> Sussex Downs College | B98: 10006432 | C98: L111809 | D98: Sussex Downs College | E98: 588 | F98: FEC | G98: SE | H98: MS | I98: None | K98: 2018-02-05T11:31:28.850 | L98: TRUE | M98: FALSE
A99: =control[[#This Row],[itemname]] -> Teesside University | B99: 10007161 | C99: H-0079 | D99: Teesside University | E99: 169 | F99: HEI | G99: NE | H99: N | I99: Million+ | K99: 2018-02-07T17:32:59.760 | L99: TRUE | M99: FALSE
A100: =control[[#This Row],[itemname]] -> The Arts University Bournemouth | B100: 10000385 | C100: H-0197 | D100: The Arts University Bournemouth | E100: 2 | F100: HEI | G100: SW | H100: MS | I100: GuildHE | K100: 2018-02-13T14:06:22.703 | L100: TRUE | M100: FALSE
A101: =control[[#This Row],[itemname]] -> The Bournemouth and Poole College | B101: 10000820 | C101: L106532 | D101: The Bournemouth and Poole College | E101: 229 | F101: FEC | G101: SW | H101: MS | I101: None | K101: 2018-02-08T17:10:14.707 | L101: TRUE | M101: FALSE
A102: =control[[#This Row],[itemname]] -> The City of Liverpool College | B102: 10003955 | C102: L106915 | D102: The City of Liverpool College | E102: 281 | F102: FEC | G102: NW | H102: N | I102: None-FEC | K102: 2018-01-30T14:17:24.193 | L102: FALSE | M102: FALSE
A103: =control[[#This Row],[itemname]] -> The City University | B103: 10001478 | C103: H-0115 | D103: The City University | E103: 31 | F103: HEI | G103: GL | H103: LE | I103: None-HEI | K103: 2018-01-17T09:35:00.767 | L103: TRUE | M103: FALSE
A104: =control[[#This Row],[itemname]] -> The Conservatoire for Dance and Drama | B104: 10001653 | C104: H-0199 | D104: The Conservatoire for Dance and Drama | E104: 32 | F104: HEI | G104: GL | H104: LE | I104: None-HEI | K104: 2018-01-16T18:02:46.227 | L104: TRUE | M104: FALSE
A105: =control[[#This Row],[itemname]] -> The Liverpool Institute for Performing Arts | B105: 10003945 | C105: H-0209 | D105: The Liverpool Institute for Performing Arts | E105: 91 | F105: HEI | G105: NW | H105: N | I105: GuildHE | K105: 2018-01-16T18:05:08.470 | L105: TRUE | M105: FALSE
A106: =control[[#This Row],[itemname]] -> The London School of Economics and Political Science | B106: 10004063 | C106: H-0137 | D106: The London School of Economics and Political Science | E106: 106 | F106: HEI | G106: GL | H106: LE | I106: Russell | K106: 2018-02-09T14:06:48.080 | L106: TRUE | M106: FALSE
A107: =control[[#This Row],[itemname]] -> The Manchester College | B107: 10023139 | C107: L118446 | D107: The Manchester College | E107: 424 | F107: FEC | G107: NW | H107: N | I107: None-FEC | K107: 2018-01-30T12:19:59.483 | L107: FALSE | M107: FALSE
A108: =control[[#This Row],[itemname]] -> The Open University | B108: 10007773 | C108: H-0001 | D108: The Open University | E108: 128 | F108: HEI | G108: OU | H108: OU | I108: University Alliance | K108: 2018-01-16T18:13:53.573 | L108: TRUE | M108: FALSE
A109: =control[[#This Row],[itemname]] -> The Royal Academy of Music | B109: 10007835 | C109: H-0033 | D109: The Royal Academy of Music | E109: 141 | F109: HEI | G109: GL | H109: LE | I109: None-HEI | K109: 2018-01-22T14:38:53.440 | L109: TRUE | M109: FALSE
A110: =control[[#This Row],[itemname]] -> The Royal Agricultural University | B110: 10005545 | C110: H-0195 | D110: The Royal Agricultural University | E110: 142 | F110: HEI | G110: SW | H110: MS | I110: GuildHE | K110: 2018-02-08T19:16:31.297 | L110: TRUE | M110: FALSE
A111: =control[[#This Row],[itemname]] -> The Royal Central School of Speech and Drama | B111: 10007816 | C111: H-0010 | D111: The Royal Central School of Speech and Drama | E111: 143 | F111: HEI | G111: GL | H111: LE | I111: None-HEI | K111: 2018-01-29T16:16:11.767 | L111: TRUE | M111: FALSE
A112: =control[[#This Row],[itemname]] -> The Royal College of Music | B112: 10007778 | C112: H-0034 | D112: The Royal College of Music | E112: 145 | F112: HEI | G112: GL | H112: LE | I112: None-HEI | K112: 2018-01-16T18:14:41.003 | L112: TRUE | M112: FALSE
A113: =control[[#This Row],[itemname]] -> The Royal Veterinary College | B113: 10007779 | C113: H-0143 | D113: The Royal Veterinary College | E113: 151 | F113: HEI | G113: GL | H113: LE | I113: None-HEI | K113: 2018-02-02T10:45:47.527 | L113: TRUE | M113: FALSE
A114: =control[[#This Row],[itemname]] -> The School of Oriental and African Studies | B114: 10007780 | C114: H-0146 | D114: The School of Oriental and African Studies | E114: 129 | F114: HEI | G114: GL | H114: LE | I114: 1994 Group | K114: 2018-02-07T13:38:36.140 | L114: TRUE | M114: FALSE
A115: =control[[#This Row],[itemname]] -> The Sheffield College | B115: 10005788 | C115: L106996 | D115: The Sheffield College | E115: 527 | F115: FEC | G115: YH | H115: N | I115: None-FEC | K115: 2018-02-07T17:09:15.457 | L115: TRUE | M115: FALSE
A116: =control[[#This Row],[itemname]] -> The University College of Osteopathy | B116: 10000936 | C116: 10000936 | D116: The University College of Osteopathy | E116: 236 | F116: HEI | G116: GL | H116: LE | I116: None-HEI | K116: 2018-02-09T14:06:21.123 | L116: TRUE | M116: FALSE
A117: =control[[#This Row],[itemname]] -> The University of Bath | B117: 10007850 | C117: H-0109 | D117: The University of Bath | E117: 5 | F117: HEI | G117: SW | H117: MS | I117: 1994 Group | K117: 2018-01-31T11:11:07.773 | L117: TRUE | M117: FALSE
A118: =control[[#This Row],[itemname]] -> The University of Birmingham | B118: 10006840 | C118: H-0110 | D118: The University of Birmingham | E118: 9 | F118: HEI | G118: WM | H118: MS | I118: Russell | K118: 2018-02-02T10:36:33.750 | L118: TRUE | M118: FALSE
A119: =control[[#This Row],[itemname]] -> The University of Bolton | B119: 10006841 | C119: H-0049 | D119: The University of Bolton | E119: 13 | F119: HEI | G119: NW | H119: N | I119: Million+ | K119: 2018-02-15T16:48:34.303 | L119: TRUE | M119: FALSE
A120: =control[[#This Row],[itemname]] -> The University of Bradford | B120: 10007785 | C120: H-0111 | D120: The University of Bradford | E120: 15 | F120: HEI | G120: YH | H120: N | I120: University Alliance | K120: 2018-02-07T15:47:39.607 | L120: TRUE | M120: FALSE
A121: =control[[#This Row],[itemname]] -> The University of Chichester | B121: 10007137 | C121: H-0082 | D121: The University of Chichester | E121: 30 | F121: HEI | G121: SE | H121: MS | I121: None-HEI | K121: 2018-01-31T15:51:56.913 | L121: TRUE | M121: FALSE
A122: =control[[#This Row],[itemname]] -> The University of East Anglia | B122: 10007789 | C122: H-0117 | D122: The University of East Anglia | E122: 43 | F122: HEI | G122: ES | H122: LE | I122: 1994 Group | K122: 2018-01-17T15:58:43.370 | L122: TRUE | M122: FALSE
A123: =control[[#This Row],[itemname]] -> The University of Essex | B123: 10007791 | C123: H-0118 | D123: The University of Essex | E123: 46 | F123: HEI | G123: ES | H123: LE | I123: 1994 Group | K123: 2018-01-25T11:11:16.287 | L123: TRUE | M123: FALSE
A124: =control[[#This Row],[itemname]] -> The University of Huddersfield | B124: 10007148 | C124: H-0061 | D124: The University of Huddersfield | E124: 58 | F124: HEI | G124: YH | H124: N | I124: University Alliance | K124: 2018-01-17T12:37:01.530 | L124: TRUE | M124: FALSE
A125: =control[[#This Row],[itemname]] -> The University of Hull | B125: 10007149 | C125: H-0120 | D125: The University of Hull | E125: 59 | F125: HEI | G125: YH | H125: N | I125: None-HEI | K125: 2018-02-08T11:19:45.363 | L125: TRUE | M125: FALSE
A126: =control[[#This Row],[itemname]] -> The University of Keele | B126: 10007767 | C126: H-0121 | D126: The University of Keele | E126: 74 | F126: HEI | G126: WM | H126: MS | I126: None-HEI | K126: 2018-01-31T10:27:07.067 | L126: FALSE | M126: FALSE
A127: =control[[#This Row],[itemname]] -> The University of Kent | B127: 10007150 | C127: H-0122 | D127: The University of Kent | E127: 75 | F127: HEI | G127: SE | H127: MS | I127: University Alliance | K127: 2018-01-25T13:52:44.300 | L127: TRUE | M127: FALSE
A128: =control[[#This Row],[itemname]] -> The University of Lancaster | B128: 10007768 | C128: H-0123 | D128: The University of Lancaster | E128: 81 | F128: HEI | G128: NW | H128: N | I128: 1994 Group | K128: 2018-02-07T12:01:46.007 | L128: TRUE | M128: FALSE
A129: =control[[#This Row],[itemname]] -> The University of Leeds | B129: 10007795 | C129: H-0124 | D129: The University of Leeds | E129: 82 | F129: HEI | G129: YH | H129: N | I129: Russell | K129: 2018-02-06T09:53:02.097 | L129: TRUE | M129: FALSE
A130: =control[[#This Row],[itemname]] -> The University of Leicester | B130: 10007796 | C130: H-0125 | D130: The University of Leicester | E130: 87 | F130: HEI | G130: EM | H130: MS | I130: 1994 Group | K130: 2018-02-06T21:17:04.367 | L130: TRUE | M130: FALSE
A131: =control[[#This Row],[itemname]] -> The University of Liverpool | B131: 10006842 | C131: H-0126 | D131: The University of Liverpool | E131: 89 | F131: HEI | G131: NW | H131: N | I131: Russell | K131: 2018-02-02T13:55:17.473 | L131: TRUE | M131: FALSE
A132: =control[[#This Row],[itemname]] -> The University of Manchester | B132: 10007798 | C132: H-0204 | D132: The University of Manchester | E132: 111 | F132: HEI | G132: NW | H132: N | I132: Russell | K132: 2018-02-09T15:55:25.837 | L132: TRUE | M132: FALSE
A133: =control[[#This Row],[itemname]] -> The University of Northampton | B133: 10007138 | C133: H-0027 | D133: The University of Northampton | E133: 122 | F133: HEI | G133: EM | H133: MS | I133: Million+ | K133: 2018-01-25T14:46:47.350 | L133: TRUE | M133: FALSE
A134: =control[[#This Row],[itemname]] -> The University of Nottingham | B134: 10007154 | C134: H-0155 | D134: The University of Nottingham | E134: 126 | F134: HEI | G134: EM | H134: MS | I134: Russell | K134: 2018-01-19T09:22:44.943 | L134: TRUE | M134: FALSE
A135: =control[[#This Row],[itemname]] -> The University of Reading | B135: 10007802 | C135: H-0157 | D135: The University of Reading | E135: 138 | F135: HEI | G135: SE | H135: MS | I135: 1994 Group | K135: 2018-01-30T15:06:14.177 | L135: TRUE | M135: FALSE
A136: =control[[#This Row],[itemname]] -> The University of Salford | B136: 10007156 | C136: H-0158 | D136: The University of Salford | E136: 152 | F136: HEI | G136: NW | H136: N | I136: University Alliance | K136: 2018-02-08T15:49:11.690 | L136: TRUE | M136: FALSE
A137: =control[[#This Row],[itemname]] -> The University of Sheffield | B137: 10007157 | C137: H-0159 | D137: The University of Sheffield | E137: 154 | F137: HEI | G137: YH | H137: N | I137: Russell | K137: 2018-02-09T14:05:24.883 | L137: TRUE | M137: FALSE
A138: =control[[#This Row],[itemname]] -> The University of Southampton | B138: 10007158 | C138: H-0160 | D138: The University of Southampton | E138: 157 | F138: HEI | G138: SE | H138: MS | I138: Russell | K138: 2018-01-17T07:32:30.327 | L138: TRUE | M138: FALSE
A139: =control[[#This Row],[itemname]] -> The University of Surrey | B139: 10007160 | C139: H-0161 | D139: The University of Surrey | E139: 166 | F139: HEI | G139: SE | H139: MS | I139: 1994 Group | K139: 2018-01-19T09:09:16.063 | L139: TRUE | M139: FALSE
A140: =control[[#This Row],[itemname]] -> The University of Warwick | B140: 10007163 | C140: H-0163 | D140: The University of Warwick | E140: 174 | F140: HEI | G140: WM | H140: MS | I140: Russell | K140: 2018-02-13T19:31:09.063 | L140: TRUE | M140: FALSE
A141: =control[[#This Row],[itemname]] -> The University of West London | B141: 10006566 | C141: H-0080 | D141: The University of West London | E141: 175 | F141: HEI | G141: GL | H141: LE | I141: Million+ | K141: 2018-01-16T18:08:38.750 | L141: TRUE | M141: FALSE
A142: =control[[#This Row],[itemname]] -> The University of Westminster | B142: 10007165 | C142: H-0083 | D142: The University of Westminster | E142: 178 | F142: HEI | G142: GL | H142: LE | I142: None-HEI | K142: 2018-01-26T09:37:50.533 | L142: TRUE | M142: FALSE
A143: =control[[#This Row],[itemname]] -> The University of Wolverhampton | B143: 10007166 | C143: H-0085 | D143: The University of Wolverhampton | E143: 183 | F143: HEI | G143: WM | H143: MS | I143: Million+ | K143: 2018-01-16T18:12:16.920 | L143: TRUE | M143: FALSE
A144: =control[[#This Row],[itemname]] -> The University of York | B144: 10007167 | C144: H-0164 | D144: The University of York | E144: 187 | F144: HEI | G144: YH | H144: N | I144: Russell | K144: 2018-01-31T16:03:23.477 | L144: TRUE | M144: FALSE
A145: =control[[#This Row],[itemname]] -> Trinity Laban Conservatoire of Music and Dance Ltd | B145: 10008017 | C145: H-0041 | D145: Trinity Laban Conservatoire of Music and Dance Ltd | E145: 170 | F145: HEI | G145: GL | H145: LE | I145: None-HEI | K145: 2018-01-16T18:19:19.293 | L145: TRUE | M145: FALSE
A146: =control[[#This Row],[itemname]] -> Truro and Penwith College | B146: 10007063 | C146: L108441 | D146: Truro and Penwith College | E146: 602 | F146: FEC | G146: SW | H146: MS | I146: None | K146: 2018-01-16T18:09:12.510 | L146: TRUE | M146: FALSE
A147: =control[[#This Row],[itemname]] -> University Campus Suffolk Ltd | B147: 10014001 | C147: H-0210 | D147: University Campus Suffolk Ltd | E147: 164 | F147: HEI | G147: ES | H147: LE | I147: None-HEI | K147: 2018-01-16T18:19:32.747 | L147: TRUE | M147: FALSE
A148: =control[[#This Row],[itemname]] -> University College Birmingham | B148: 10000712 | C148: H-0200 | D148: University College Birmingham | E148: 10 | F148: HEI | G148: WM | H148: MS | I148: GuildHE | K148: 2018-02-08T17:46:16.003 | L148: TRUE | M148: FALSE
A149: =control[[#This Row],[itemname]] -> University College London | B149: 10007784 | C149: H-0149 | D149: University College London | E149: 94 | F149: HEI | G149: GL | H149: LE | I149: Russell | K149: 2018-01-22T11:11:07.980 | L149: TRUE | M149: FALSE
A150: =control[[#This Row],[itemname]] -> University for the Creative Arts | B150: 10006427 | C150: H-0206 | D150: University for the Creative Arts | E150: 36 | F150: HEI | G150: SE | H150: MS | I150: GuildHE | K150: 2018-02-05T11:58:09.827 | L150: TRUE | M150: FALSE
A151: =control[[#This Row],[itemname]] -> University of Bedfordshire | B151: 10007152 | C151: H-0026 | D151: University of Bedfordshire | E151: 7 | F151: HEI | G151: ES | H151: LE | I151: Million+ | K151: 2018-01-17T10:26:56.173 | L151: TRUE | M151: FALSE
A152: =control[[#This Row],[itemname]] -> University of Brighton | B152: 10000886 | C152: H-0051 | D152: University of Brighton | E152: 17 | F152: HEI | G152: SE | H152: MS | I152: None-HEI | K152: 2018-01-16T18:02:10.187 | L152: TRUE | M152: FALSE
A153: =control[[#This Row],[itemname]] -> University of Bristol | B153: 10007786 | C153: H-0112 | D153: University of Bristol | E153: 18 | F153: HEI | G153: SW | H153: MS | I153: Russell | K153: 2018-02-07T15:08:33.420 | L153: TRUE | M153: FALSE
A154: =control[[#This Row],[itemname]] -> University of Cambridge | B154: 10007788 | C154: H-0114 | D154: University of Cambridge | E154: 23 | F154: HEI | G154: ES | H154: LE | I154: Russell | K154: 2018-03-07T13:46:51.443 | L154: TRUE | M154: FALSE
A155: =control[[#This Row],[itemname]] -> University of Central Lancashire | B155: 10007141 | C155: H-0053 | D155: University of Central Lancashire | E155: 25 | F155: HEI | G155: NW | H155: N | I155: Million+ | K155: 2018-01-17T09:17:35.567 | L155: TRUE | M155: FALSE
A156: =control[[#This Row],[itemname]] -> University of Chester | B156: 10007848 | C156: H-0011 | D156: University of Chester | E156: 29 | F156: HEI | G156: NW | H156: N | I156: None-HEI | K156: 2018-01-16T18:19:04.767 | L156: TRUE | M156: FALSE
A157: =control[[#This Row],[itemname]] -> University of Cumbria | B157: 10007842 | C157: H-0038 | D157: University of Cumbria | E157: 37 | F157: HEI | G157: NW | H157: N | I157: GuildHE | K157: 2018-01-31T09:04:03.747 | L157: TRUE | M157: FALSE
A158: =control[[#This Row],[itemname]] -> University of Derby | B158: 10007851 | C158: H-0057 | D158: University of Derby | E158: 41 | F158: HEI | G158: EM | H158: MS | I158: Million+ | K158: 2018-02-09T15:42:05.390 | L158: TRUE | M158: FALSE
A159: =control[[#This Row],[itemname]] -> University of Durham | B159: 10007143 | C159: H-0116 | D159: University of Durham | E159: 42 | F159: HEI | G159: NE | H159: N | I159: Russell | K159: 2018-01-23T14:37:32.297 | L159: TRUE | M159: FALSE
A160: =control[[#This Row],[itemname]] -> University of East London | B160: 10007144 | C160: H-0058 | D160: University of East London | E160: 44 | F160: HEI | G160: GL | H160: LE | I160: Million+ | K160: 2018-01-17T15:56:33.507 | L160: TRUE | M160: FALSE
A161: =control[[#This Row],[itemname]] -> University of Exeter | B161: 10007792 | C161: H-0119 | D161: University of Exeter | E161: 47 | F161: HEI | G161: SW | H161: MS | I161: Russell | K161: 2018-02-09T14:05:43.587 | L161: TRUE | M161: FALSE
A162: =control[[#This Row],[itemname]] -> University of Gloucestershire | B162: 10007145 | C162: H-0054 | D162: University of Gloucestershire | E162: 49 | F162: HEI | G162: SW | H162: MS | I162: University Alliance | K162: 2018-02-02T16:29:03.943 | L162: FALSE | M162: FALSE
A163: =control[[#This Row],[itemname]] -> University of Greenwich | B163: 10007146 | C163: H-0059 | D163: University of Greenwich | E163: 51 | F163: HEI | G163: GL | H163: LE | I163: Million+ | K163: 2018-02-01T13:55:58.260 | L163: TRUE | M163: FALSE
A164: =control[[#This Row],[itemname]] -> University of Hertfordshire | B164: 10007147 | C164: H-0060 | D164: University of Hertfordshire | E164: 55 | F164: HEI | G164: ES | H164: LE | I164: University Alliance | K164: 2018-01-24T16:51:14.950 | L164: TRUE | M164: FALSE
A165: =control[[#This Row],[itemname]] -> University of Lincoln | B165: 10007151 | C165: H-0062 | D165: University of Lincoln | E165: 88 | F165: HEI | G165: EM | H165: MS | I165: University Alliance | K165: 2018-01-16T18:10:56.030 | L165: TRUE | M165: FALSE
A166: =control[[#This Row],[itemname]] -> University of Newcastle Upon Tyne | B166: 10007799 | C166: H-0154 | D166: University of Newcastle Upon Tyne | E166: 118 | F166: HEI | G166: NE | H166: N | I166: Russell | K166: 2018-02-06T13:35:00.617 | L166: TRUE | M166: FALSE
A167: =control[[#This Row],[itemname]] -> University of Northumbria at Newcastle | B167: 10001282 | C167: H-0069 | D167: University of Northumbria at Newcastle | E167: 124 | F167: HEI | G167: NE | H167: N | I167: University Alliance | K167: 2018-02-07T17:11:22.317 | L167: TRUE | M167: FALSE
A168: =control[[#This Row],[itemname]] -> University of Oxford | B168: 10007774 | C168: H-0156 | D168: University of Oxford | E168: 130 | F168: HEI | G168: SE | H168: MS | I168: Russell | K168: 2018-01-16T18:14:08.357 | L168: TRUE | M168: FALSE
A169: =control[[#This Row],[itemname]] -> University of Plymouth | B169: 10007801 | C169: H-0073 | D169: University of Plymouth | E169: 132 | F169: HEI | G169: SW | H169: MS | I169: University Alliance | K169: 2018-01-23T16:33:43.060 | L169: TRUE | M169: FALSE
A170: =control[[#This Row],[itemname]] -> University of Portsmouth | B170: 10007155 | C170: H-0074 | D170: University of Portsmouth | E170: 135 | F170: HEI | G170: SE | H170: MS | I170: University Alliance | K170: 2018-02-01T08:38:03.303 | L170: TRUE | M170: FALSE
A171: =control[[#This Row],[itemname]] -> University of St Mark & St John | B171: 10037449 | C171: H-0014 | D171: University of St Mark & St John | E171: 160 | F171: HEI | G171: SW | H171: MS | I171: GuildHE | K171: 2018-01-25T16:44:30.923 | L171: TRUE | M171: FALSE
A172: =control[[#This Row],[itemname]] -> University of Sunderland | B172: 10007159 | C172: H-0078 | D172: University of Sunderland | E172: 165 | F172: HEI | G172: NE | H172: N | I172: Million+ | K172: 2018-02-06T09:33:38.240 | L172: TRUE | M172: FALSE
A173: =control[[#This Row],[itemname]] -> University of Sussex | B173: 10007806 | C173: H-0162 | D173: University of Sussex | E173: 168 | F173: HEI | G173: SE | H173: MS | I173: 1994 Group | K173: 2018-01-16T18:18:10.863 | L173: TRUE | M173: FALSE
A174: =control[[#This Row],[itemname]] -> University of the Arts, London | B174: 10007162 | C174: H-0024 | D174: University of the Arts, London | E174: 3 | F174: HEI | G174: GL | H174: LE | I174: None-HEI | K174: 2018-01-17T11:10:46.960 | L174: TRUE | M174: FALSE
A175: =control[[#This Row],[itemname]] -> University of the West of England, Bristol | B175: 10007164 | C175: H-0081 | D175: University of the West of England, Bristol | E175: 176 | F175: HEI | G175: SW | H175: MS | I175: University Alliance | K175: 2018-02-12T11:21:53.740 | L175: TRUE | M175: FALSE
A176: =control[[#This Row],[itemname]] -> University of Winchester | B176: 10003614 | C176: H-0021 | D176: University of Winchester | E176: 181 | F176: HEI | G176: SE | H176: MS | I176: GuildHE | K176: 2018-01-22T16:23:21.427 | L176: TRUE | M176: FALSE
A177: =control[[#This Row],[itemname]] -> University of Worcester | B177: 10007139 | C177: H-0046 | D177: University of Worcester | E177: 184 | F177: HEI | G177: WM | H177: MS | I177: GuildHE | K177: 2018-01-30T15:07:23.473 | L177: TRUE | M177: FALSE
A178: =control[[#This Row],[itemname]] -> Wakefield College | B178: 10007289 | C178: L108440 | D178: Wakefield College | E178: 607 | F178: FEC | G178: YH | H178: N | I178: None-FEC | K178: 2018-01-16T18:12:43.093 | L178: TRUE | M178: FALSE
A179: =control[[#This Row],[itemname]] -> Walsall College | B179: 10007315 | C179: L105118 | D179: Walsall College | E179: 610 | F179: FEC | G179: WM | H179: MS | I179: None-FEC | K179: 2018-02-02T11:06:15.453 | L179: TRUE | M179: FALSE
A180: =control[[#This Row],[itemname]] -> Warwickshire College | B180: 10007859 | C180: L106448 | D180: Warwickshire College | E180: 613 | F180: FEC | G180: WM | H180: MS | I180: None-FEC | K180: 2018-02-21T16:00:10.593 | L180: TRUE | M180: FALSE
A181: =control[[#This Row],[itemname]] -> Weston College of Further and Higher Education | B181: 10007459 | C181: L105242 | D181: Weston College of Further and Higher Education | E181: 623 | F181: FEC | G181: SW | H181: MS | I181: None | K181: 2018-02-06T11:21:44.157 | L181: TRUE | M181: FALSE
A182: =control[[#This Row],[itemname]] -> Wigan and Leigh College | B182: 10007500 | C182: L107785 | D182: Wigan and Leigh College | E182: 626 | F182: FEC | G182: NW | H182: N | I182: None-FEC | K182: 2018-02-01T16:54:21.067 | L182: TRUE | M182: FALSE
A183: =control[[#This Row],[itemname]] -> Wiltshire College | B183: 10007527 | C183: L109912 | D183: Wiltshire College | E183: 628 | F183: FEC | G183: SW | H183: MS | I183: None-FEC | K183: 2018-02-01T15:42:44.957 | L183: TRUE | M183: FALSE
A184: =control[[#This Row],[itemname]] -> Writtle College | B184: 10007657 | C184: H-0189 | D184: Writtle College | E184: 185 | F184: HEI | G184: ES | H184: LE | I184: GuildHE | K184: 2018-02-05T17:28:35.037 | L184: TRUE | M184: FALSE
A185: =control[[#This Row],[itemname]] -> York St John University | B185: 10007713 | C185: H-0013 | D185: York St John University | E185: 188 | F185: HEI | G185: YH | H185: N | I185: GuildHE | K185: 2018-02-02T13:31:30.080 | L185: TRUE | M185: FALSE

Sheet Targets (hidden)
A1: ukprn | B1: Tab | C1: Row | D1: Column1 | E1: Column2 | F1: Target | G1: Description | H1: Collab | I1: Base_Data | J1: Base_yr | K1: Target_num | L1: Target_yr | M1: AY1213 | N1: AY1314 | O1: AY1415 | P1: AY1516 | Q1: AY1617 | R1: Perform_Sum | S1: Lifecycle | T1: Category
A2: 10001143 | B2: 7a | C2: 7 | D2: =CONCATENATE(Targets!$A2,"-",Targets!$B2) -> 10001143-7a | E2: =CONCATENATE(Targets!$A2,"-",Targets!$B2,"-",Targets!$C2) -> 10001143-7a-7 | F2: Other statistic - Socio-economic (please give details in the next column) | G2: Maintain, and slightly increase if possible, levels of recruitment from LPNs | H2: No | I2: 0.349 | J2: 2013-14 | K2: 0.37 | L2: 2019-20 | M2: 34.4 | N2: 34.9 | O2: 35.5 | P2: 35.8 | Q2: 36.47 | R2: b) Yearly milestone met | S2: Access | T2: Low participation neighbourhood (LPN)
A3: 10007157 | B3: 7b | C3: 1 | D3: =CONCATENATE(Targets!$A3,"-",Targets!$B3) -> 10007157-7b | E3: =CONCATENATE(Targets!$A3,"-",Targets!$B3,"-",Targets!$C3) -> 10007157-7b-1 | F3: Outreach / WP activity (collaborative - please give details in the next column) | G3: Realising Opportunities Targets for progression of RO participants to a research intensive university | H3: Yes | I3: N/A | J3: Other (please give details in Description column) | K3: 0.39 | L3: 2019-20 | M3: 0.36 | N3: 0.3 | O3: 0.24 | P3: 0.31 | Q3: 0.36 | R3: b) Yearly milestone met | S3: Access | T3: Multiple
A4: 10007138 | B4: 7b | C4: 9 | D4: =CONCATENATE(Targets!$A4,"-",Targets!$B4) -> 10007138-7b | E4: =CONCATENATE(Targets!$A4,"-",Targets!$B4,"-",Targets!$C4) -> 10007138-7b-9 | F4: Other (please give details in the next column) | G4: Number of disclosed UK/EU BME students engaged in work placements/volunteering placements for a minimum of 40 hours within social enterprises | H4: Yes | I4: 29 | J4: 2013-14 | K4: 250 | L4: 2019-20 | M4: - | N4: - | O4: - | P4: 63 | Q4: 112 | R4: b) Yearly milestone met | S4: Access, Student Success and Progression | T4: Ethnicity
A5: 10007138 | B5: 7b | C5: 10 | D5: =CONCATENATE(Targets!$A5,"-",Targets!$B5) -> 10007138-7b | E5: =CONCATENATE(Targets!$A5,"-",Targets!$B5,"-",Targets!$C5) -> 10007138-7b-10 | F5: Other (please give details in the next column) | G5: Number of students from disadvantaged backgrounds (students from 0-40% quintile IMD) undertaking 40 hours paid internship/work experience in a social enterprise/voluntary sector or community group. | H5: Yes | I5: 0 | J5: 2014-15 | K5: 250 | L5: 2019-20 | M5: - | N5: - | O5: - | P5: 184 | Q5: 152 | R5: b) Yearly milestone met | S5: Student Success and Progression | T5: Socio-economic
A6: 10006566 | B6: 7a | C6: 1 | D6: =CONCATENATE(Targets!$A6,"-",Targets!$B6) -> 10006566-7a | E6: =CONCATENATE(Targets!$A6,"-",Targets!$B6,"-",Targets!$C6) -> 10006566-7a-1 | F6: HESA T7 - Students in receipt of DSA (full-time, first degree entrants) | G6: To approach benchmark over 5 year period | H6: No | I6: 0.052 | J6: 2013-14 | K6: 0.078 | L6: 2019-20 | M6: 0.043 | N6: 0.052 | O6: 0.056 | P6: 0.052 | Q6: - | R6: d) No progress made against baseline | S6: Access | T6: Disability
A7: 10007138 | B7: 7b | C7: 11 | D7: =CONCATENATE(Targets!$A7,"-",Targets!$B7) -> 10007138-7b | E7: =CONCATENATE(Targets!$A7,"-",Targets!$B7,"-",Targets!$C7) -> 10007138-7b-11 | F7: Other (please give details in the next column) | G7: Number of students from disadvantaged backgrounds (students from 0-40% quintile IMD) undertaking 40 hours voluntary work in a social enterprise, voluntary sector organisation, or community group | H7: Yes | I7: 0 | J7: 2014-15 | K7: 225 | L7: 2019-20 | M7: - | N7: - | O7: - | P7: 132 | Q7: 164 | R7: b) Yearly milestone met | S7: Student Success and Progression | T7: Socio-economic
A8: 10007138 | B8: 7b | C8: 12 | D8: =CONCATENATE(Targets!$A8,"-",Targets!$B8) -> 10007138-7b | E8: =CONCATENATE(Targets!$A8,"-",Targets!$B8,"-",Targets!$C8) -> 10007138-7b-12 | F8: Outreach / WP activity (summer schools) | G8: Number of young people attending in reach/summer school activities | H8: Yes | I8: 257 | J8: 2013-14 | K8: 700 | L8: 2019-20 | M8: - | N8: - | O8: - | P8: 3273 | Q8: 464 | R8: b) Yearly milestone met | S8: Access | T8: State school
A9: 10007138 | B9: 7b | C9: 13 | D9: =CONCATENATE(Targets!$A9,"-",Targets!$B9) -> 10007138-7b | E9: =CONCATENATE(Targets!$A9,"-",Targets!$B9,"-",Targets!$C9) -> 10007138-7b-13 | F9: Outreach / WP activity (collaborative - please give details in the next column) | G9: Outreach with BME young people and adults | H9: Yes | I9: 136 | J9: 2013-14 | K9: 300 | L9: 2019-20 | M9: - | N9: - | O9: - | P9: 20 | Q9: 283 | R9: b) Yearly milestone met | S9: Access | T9: Ethnicity
A10: 10002919 | B10: 7b | C10: 1 | D10: =CONCATENATE(Targets!$A10,"-",Targets!$B10) -> 10002919-7b | E10: =CONCATENATE(Targets!$A10,"-",Targets!$B10,"-",Targets!$C10) -> 10002919-7b-1 | F10: Contextual data | G10: Commit to diseminating analysis of student success/achievement/ retention data through at least conference/journal output per year, which could include working with partner Colleges/Schools/HEIs | H10: Yes | I10: 1 | J10: 2015-16 | K10: 1 | L10: 2019-20 | M10: - | N10: - | O10: - | P10: 3 | Q10: 1 | R10: b) Yearly milestone met | S10: Other | T10: Multiple
A11: 10001143 | B11: 7a | C11: 8 | D11: =CONCATENATE(Targets!$A11,"-",Targets!$B11) -> 10001143-7a | E11: =CONCATENATE(Targets!$A11,"-",Targets!$B11,"-",Targets!$C11) -> 10001143-7a-8 | F11: Other statistic - Completion/Non continuation (please give details in the next column) | G11: Retention: reduce annual withdrawal level to less than 4% | H11: No | I11: 0.043 | J11: 2013-14 | K11: <4% | L11: 2019-20 | M11: 4.5 | N11: 4.3 | O11: 3.5 | P11: 3.2 | Q11: 4.7 | R11: e) Performance is below baseline | S11: Student Success | T11: Other
A12: 10007157 | B12: 7b | C12: 2 | D12: =CONCATENATE(Targets!$A12,"-",Targets!$B12) -> 10007157-7b | E12: =CONCATENATE(Targets!$A12,"-",Targets!$B12,"-",Targets!$C12) -> 10007157-7b-2 | F12: Outreach / WP activity (collaborative - please give details in the next column) | G12: Realising Opportunities Targets for progression of RO participants to an RO Partner university | H12: Yes | I12: N/A | J12: Other (please give details in Description column) | K12: 0.24 | L12: 2019-20 | M12: 0.29 | N12: 0.23 | O12: 0.18 | P12: 0.23 | Q12: 0.26 | R12: b) Yearly milestone met | S12: Access | T12: Multiple
A13: 10002919 | B13: 7b | C13: 2 | D13: =CONCATENATE(Targets!$A13,"-",Targets!$B13) -> 10002919-7b | E13: =CONCATENATE(Targets!$A13,"-",Targets!$B13,"-",Targets!$C13) -> 10002919-7b-2 | F13: Outreach / WP activity (collaborative - please give details in the next column) | G13: Advertise outreach opportunities to local schools through the NNCO | H13: Yes | I13: TBC | J13: 2015-16 | K13: TBC | L13: 2019-20 | M13: - | N13: - | O13: - | P13: NYK | Q13: NTK | R13: f) Target discontinued | S13: Access | T13: Multiple
A14: 10007792 | B14: 7b | C14: 3 | D14: =CONCATENATE(Targets!$A14,"-",Targets!$B14) -> 10007792-7b | E14: =CONCATENATE(Targets!$A14,"-",Targets!$B14,"-",Targets!$C14) -> 10007792-7b-3 | F14: Operational targets | G14: WP students securing quality placements though the Professional Pathways schemes | H14: No | I14: 0 | J14: 2014/15 | K14: 100 | L14: 2016/17 | M14: - | N14: - | O14: - | P14: 54 | Q14: 50 | R14: c) Progress made – but less than anticipated | S14: Student Success and Progression | T14: Multiple
A15: 10007157 | B15: 7b | C15: 3 | D15: =CONCATENATE(Targets!$A15,"-",Targets!$B15) -> 10007157-7b | E15: =CONCATENATE(Targets!$A15,"-",Targets!$B15,"-",Targets!$C15) -> 10007157-7b-3 | F15: Strategic partnerships (eg formal relationships with schools/colleges/employers) | G15: We will develop more formal partnership arrangements with schools and colleges as well as with Local Authority and other external agencies. | H15: No | I15: 1 HE/Schools partnership conference and 2 senior manager networking opportunities. | J15: 2013-14 | K15: 1 HE/Schools partnership conference and 2 senior manager networking opportunities. | L15: 2019-20 | M15: 1 conference wth 70 delegates plus 3 senior manager networking events with 48 stakeholders. Termly e-newsletter sent to >1000 external subscribers. | N15: 1 Schools conference with 73 delegates. Collaborative project with Master Cutler and DCS resulting in 405 interventions across 27 masterclasses and industry based workexp. Collaboration with National Childrens University. | O15: We successfully held our annual schools conference attended by 86 delegates, along with two educational stakeholder group meetings with attendance from senior management from local schools and colleges. | P15: We successfully held our annual schools conference attended by 80 delegates, along with two educational stakeholder group meetings with attendance from senior management from local schools and colleges. | Q15: We successfully held our annual schools conference attended by 94 delegates, along with two education stakeholder meetings with a total of 20 attendees from senior management from local schools and colleges. | R15: a) Overall target met/exceeded | S15: Access | T15: Multiple
A16: 10004063 | B16: 7b | C16: 1 | D16: =CONCATENATE(Targets!$A16,"-",Targets!$B16) -> 10004063-7b | E16: =CONCATENATE(Targets!$A16,"-",Targets!$B16,"-",Targets!$C16) -> 10004063-7b-1 | F16: Outreach / WP activity (other - please give details in the next column) | G16: Number of pre-university students engaged on our WP programmes | H16: No | I16: 1881 | J16: 2011-12 | K16: 2570 | L16: 2019-20 | M16: 2209 | N16: 2430 | O16: 2564 | P16: 2485 | Q16: 2716 | R16: a) Overall target met/exceeded | S16: Access | T16: Multiple
A17: 10004063 | B17: 7b | C17: 2 | D17: =CONCATENATE(Targets!$A17,"-",Targets!$B17) -> 10004063-7b | E17: =CONCATENATE(Targets!$A17,"-",Targets!$B17,"-",Targets!$C17) -> 10004063-7b-2 | F17: Management targets | G17: Number of students enrolled onto LSE undergraduate programmes from our pre-entry WP activities | H17: No | I17: 16 | J17: 2011-12 | K17: 40 | L17: 2019-20 | M17: 34 | N17: 23 | O17: 31 | P17: 18 | Q17: 31 | R17: b) Yearly milestone met | S17: Access | T17: Multiple
A18: 10001143 | B18: 7a | C18: 9 | D18: =CONCATENATE(Targets!$A18,"-",Targets!$B18) -> 10001143-7a | E18: =CONCATENATE(Targets!$A18,"-",Targets!$B18,"-",Targets!$C18) -> 10001143-7a-9 | F18: Other statistic - Completion/Non continuation (please give details in the next column) | G18: Maintain part-time continuation rates after 2 years of entry | H18: No | I18: 0.125 | J18: 2012-13 | K18: 0.132 | L18: 2019-20 | M18: 12.5 | N18: 21.5 | O18: 23 | P18: 25.5 | Q18: Available March 2018 | R18: d) No progress made against baseline | S18: Student Success | T18: Part-time
A19: 10002919 | B19: 7b | C19: 3 | D19: =CONCATENATE(Targets!$A19,"-",Targets!$B19) -> 10002919-7b | E19: =CONCATENATE(Targets!$A19,"-",Targets!$B19,"-",Targets!$C19) -> 10002919-7b-3 | F19: Outreach / WP activity (other - please give details in the next column) | G19: Subject and HE taster events | H19: No | I19: 1 | J19: 2014-15 | K19: 4 | L19: 2017/18 | M19: 1 | N19: 2 | O19: 4 | P19: 4 | Q19: 16 | R19: a) Overall target met/exceeded | S19: Access | T19: Multiple
A20: 10002919 | B20: 7b | C20: 4 | D20: =CONCATENATE(Targets!$A20,"-",Targets!$B20) -> 10002919-7b | E20: =CONCATENATE(Targets!$A20,"-",Targets!$B20,"-",Targets!$C20) -> 10002919-7b-4 | F20: Strategic partnerships (eg formal relationships with schools/colleges/employers) | G20: Progression and or scholarship agreements/accords | H20: No | I20: 3 | J20: 2014-15 | K20: 6 | L20: 2019-20 | M20: 0 | N20: 2 | O20: 3 | P20: 4 | Q20: 4 | R20: b) Yearly milestone met | S20: Access | T20: Multiple
A21: 10002919 | B21: 7b | C21: 5 | D21: =CONCATENATE(Targets!$A21,"-",Targets!$B21) -> 10002919-7b | E21: =CONCATENATE(Targets!$A21,"-",Targets!$B21,"-",Targets!$C21) -> 10002919-7b-5 | F21: Student support services | G21: Identify methods to support DSA students and develop a strategy to ensure sustainability, sharing good practice where possible. | H21: Yes | I21: TBC | J21: 2015-16 | K21: TBC | L21: 2019/20 | M21: - | N21: - | O21: - | P21: NYK | Q21: NYK | R21: f) Target discontinued | S21: Student Success | T21: Disability
A22: 10002919 | B22: 7b | C22: 6 | D22: =CONCATENATE(Targets!$A22,"-",Targets!$B22) -> 10002919-7b | E22: =CONCATENATE(Targets!$A22,"-",Targets!$B22,"-",Targets!$C22) -> 10002919-7b-6 | F22: Contextual data | G22: Commit to producing and reviewing data reports on the profile of E&D and WP target group student achievement/ retention/ success | H22: No | I22: 4 | J22: 2014-15 | K22: 4 | L22: 2019-20 | M22: - | N22: - | O22: - | P22: NYK | Q22: 4 | R22: b) Yearly milestone met | S22: Student Success | T22: Multiple
A23: 10002919 | B23: 7b | C23: 7 | D23: =CONCATENATE(Targets!$A23,"-",Targets!$B23) -> 10002919-7b | E23: =CONCATENATE(Targets!$A23,"-",Targets!$B23,"-",Targets!$C23) -> 10002919-7b-7 | F23: Mission targets | G23: Increase the number of activites and/or programmes with vocational qualifications linked specifically to successful completion of the programme | H23: Yes | I23: 4 | J23: 2014-15 | K23: 10 | L23: 2019-20 | M23: - | N23: - | O23: - | P23: 7 | Q23: 8 | R23: b) Yearly milestone met | S23: Progression | T23: Multiple
A24: 10007157 | B24: 7b | C24: 6 | D24: =CONCATENATE(Targets!$A24,"-",Targets!$B24) -> 10007157-7b | E24: =CONCATENATE(Targets!$A24,"-",Targets!$B24,"-",Targets!$C24) -> 10007157-7b-6 | F24: Student support services | G24: Enhanced support for commuter students | H24: No | I24: Support already in place but we envisage higher numbers of students choosing to commute, in order to overcome some financial hurdles. | J24: 2011-12 | K24: A minimum of three events targeting commuter students. Activities to include peer mentoring. | L24: 2019-20 | M24: 3 events delivered. Peer mentoring with 12 mentors and 80 mentees. | N24: One local/commuter welcome event. 18 Discovery week, 16 Intro week and 2 semester one ‘Fringe’ branded social events targeting commuter students. All highlighting well-being, welfare support and student community building. | O24: One local/commuter welcome event. Invitation to a full week (147 events) of tailored and supported induction and welcome activities during Orientation week, 10 Intro Week ‘Fringe’ branded social events. | P24: 1 local/commuter welcome event. Invitation to a full week of welcome induction activities through orientation week. Availability of a range of "Intro Week" activities including 10 "Fringe" and 100+ "give it a go" events. | Q24: one local/commuter welcome event. Invitation to a full week of welcome induction activities through orientation week. Availability of a range of "Intro Week" activities 100+ "give it a go" events. | R24: a) Overall target met/exceeded | S24: Student Success | T24: Multiple
A25: 10007157 | B25: 7b | C25: 7 | D25: =CONCATENATE(Targets!$A25,"-",Targets!$B25) -> 10007157-7b | E25: =CONCATENATE(Targets!$A25,"-",Targets!$B25,"-",Targets!$C25) -> 10007157-7b-7 | F25: Management targets | G25: (WPREU) WP Research and Evaluation Unit - Continue to develop the evaluation and research of the University's WP outreach activities. | H25: No | I25: N/A | J25: 2012-13 | K25: Continue to develop a toolkit and framework to support the consistent evaluation of, and research into, the University's WP outreach activities. Continue to develop and implement effective mechanisms for the review and response to research and evaluation outcomes and for the sharing of good practice both internall and externally. | L25: 2019-20 | M25: Formative evaluation framework in place and progress made in mapping full range of university WP activities. Full first year evaluation report due in time for 2015-16 Access Agreement planning round. Evaluation Strategy Phase 2 revised on basis of outcomes of Phase 1 (2012-13). | N25: First year evaluation report delivered and informed discussion for the 2015-16 Access Agreement. A number of evaluation projects delivered and completed. Development continued on evaluation toolkit, methodology and strategy. | O25: A number of outreach and student success and progression focused evaluation projects delivered and completed. 2nd years of interviews delivered for Sheffield Student 2013 project. Continued to develop and review toolkit. Phase 1 evaluation now embeded with practitioners. Phase 2 evaluation framework and tools under development. Potential development of new evaluation tools with academic colleagues from Department of Psychology. | P25: Continued to develop a toolkit and framework to support the consistent evaluation of, and research into, the University's WP outreach activities. Continued to develop and implement effective mechanisms for the review and response to research and evaluation outcomes and for the sharing of good practice both internall and externally. | Q25: We have expanded our research & evaluation capacity – to 2 FT evaluator/researchers + 2 post-doctoral researchers. We continue to develop a self-service evaluation process & are working with practitioners in the development of a new project for Y7-8 pupils & their parents. We continue to focus on Outreach evaluation methodology & strategies & are experimenting with ‘realist’ approaches –discussing this with colleagues across the sector. Our approach to outreach evaluation is becoming increasingly connected with our approach to student success & the 1st year transition process specifically. | R25: a) Overall target met/exceeded | S25: Access | T25: Multiple
A26: 10007157 | B26: 7b | C26: 14 | D26: =CONCATENATE(Targets!$A26,"-",Targets!$B26) -> 10007157-7b | E26: =CONCATENATE(Targets!$A26,"-",Targets!$B26,"-",Targets!$C26) -> 10007157-7b-14 | F26: Outreach / WP activity (collaborative - please give details in the next column) | G26: Continue to develop the HEPP partnership. Develop a project to test the effectiveness of longitudinal engagement with schools. | H26: Yes | I26: Develop a strategy to engage with a number of schools in one sub-region on a collective project. | J26: 2014-15 | K26: Consider rolling out to other schools in the sub-region, depending on future funding | L26: 2019-20 | M26: - | N26: - | O26: A strategy was developed to engage with 4 schools in North East Derbyshire. Activity is progressive; in each school, one outreach activity per year group for 30 students. | P26: The 'Raising Aspirations in N.E.Derbyshire ' project is underway and is now part of the school year plan embedded into 7 schools. | Q26: HEPP engaged with 422 students and 140 parents within 7 NE Derbyshire schools through the longitudinal Raising Aspirations programme in 2016/17, delivering a minimum of one activity per year group across years 7 to 11. Of evaluations received 69% of respondents stated they felt more confident about going to university after participating in the programme this year with 88% stating they were 'very' or 'fairly' likely to apply in the future | R26: a) Overall target met/exceeded | S26: Access | T26: Multiple
A27: 10003645 | B27: 7a | C27: 7 | D27: =CONCATENATE(Targets!$A27,"-",Targets!$B27) -> 10003645-7a | E27: =CONCATENATE(Targets!$A27,"-",Targets!$B27,"-",Targets!$C27) -> 10003645-7a-7 | F27: Other statistic - Other (please give details in the next column) | G27: Proportion of students starting the Realising Opportunities programme progressing to a research-intensive university | H27: Yes | I27: n/a | J27: Other (please give details in Description column) | K27: 39 | L27: 2019-20 | M27: 0.36 | N27: 0.3 | O27: 0.24 | P27: 0.31 | Q27: 0.36 | R27: b) Yearly milestone met | S27: Access | T27: Other
A28: 10003645 | B28: 7a | C28: 8 | D28: =CONCATENATE(Targets!$A28,"-",Targets!$B28) -> 10003645-7a | E28: =CONCATENATE(Targets!$A28,"-",Targets!$B28,"-",Targets!$C28) -> 10003645-7a-8 | F28: Other statistic - Other (please give details in the next column) | G28: Realising Opportunities: target for progression of RO participants to an RO partner university | H28: Yes | I28: n/a | J28: Other (please give details in Description column) | K28: 25 | L28: 2019-20 | M28: 0.26 | N28: 0.17 | O28: 0.17 | P28: 0.35 | Q28: 0.36 | R28: b) Yearly milestone met | S28: Access | T28: Other
A29: 10003863 | B29: 7a | C29: 4 | D29: =CONCATENATE(Targets!$A29,"-",Targets!$B29) -> 10003863-7a | E29: =CONCATENATE(Targets!$A29,"-",Targets!$B29,"-",Targets!$C29) -> 10003863-7a-4 | F29: HESA T3a - No longer in HE after 1 year (All, full-time, first degree entrants) | G29: % student non continuation in HE after year 1 | H29: No | I29: 0.114 | J29: 2012-13 | K29: 0.08 | L29: 2019-20 | M29: 0.114 | N29: 0.085 | O29: 0.086 | P29: Awaiting publication HESA data. | Q29: - | R29: a) Overall target met/exceeded | S29: Student Success | T29: Multiple
A30: 10005124 | B30: 7a | C30: 4 | D30: =CONCATENATE(Targets!$A30,"-",Targets!$B30) -> 10005124-7a | E30: =CONCATENATE(Targets!$A30,"-",Targets!$B30,"-",Targets!$C30) -> 10005124-7a-4 | F30: Other statistic - Care-leavers (please give details in the next column) | G30: Improve the proportion of Care-Leavers within the total student population | H30: No | I30: 0.005 | J30: 2014-15 | K30: 0.0175 | L30: 2019-20 | M30: - | N30: - | O30: 0.005 | P30: 0.3 | Q30: - | R30: f) Target discontinued | S30: Access | T30: Care leavers
A31: 10005124 | B31: 7a | C31: 5 | D31: =CONCATENATE(Targets!$A31,"-",Targets!$B31) -> 10005124-7a | E31: =CONCATENATE(Targets!$A31,"-",Targets!$B31,"-",Targets!$C31) -> 10005124-7a-5 | F31: Other statistic - Mature (please give details in the next column) | G31: Improve retention/success rate for students over 25 yrs old | H31: No | I31: 0.88 | J31: 2014-15 | K31: 0.93 | L31: 2019-20 | M31: - | N31: - | O31: 0.88 | P31: 82 | Q31: 0.89 | R31: c) Progress made – but less than anticipated | S31: Student Success | T31: Mature
A32: 10003863 | B32: 7a | C32: 5 | D32: =CONCATENATE(Targets!$A32,"-",Targets!$B32) -> 10003863-7a | E32: =CONCATENATE(Targets!$A32,"-",Targets!$B32,"-",Targets!$C32) -> 10003863-7a-5 | F32: HESA T5 - Projected degree (full-time, first degree entrants) | G32: % likelyhood of UG student achieving a degree | H32: No | I32: 0.766 | J32: 2012-13 | K32: 0.8 | L32: 2019-20 | M32: 0.766 | N32: 0.797 | O32: 0.834 | P32: Awaiting publication HESA data. | Q32: - | R32: a) Overall target met/exceeded | S32: Student Success | T32: Multiple
A33: 10005124 | B33: 7a | C33: 6 | D33: =CONCATENATE(Targets!$A33,"-",Targets!$B33) -> 10005124-7a | E33: =CONCATENATE(Targets!$A33,"-",Targets!$B33,"-",Targets!$C33) -> 10005124-7a-6 | F33: HESA T1b - State School (Young, full-time, undergraduate entrants) | G33: Increase the proportion of students within the whole student body that come from non-traditional backgrounds. | H33: No | I33: 0.22 | J33: 2014-15 | K33: 0.27 | L33: 2019-20 | M33: - | N33: - | O33: 0.22 | P33: 24 | Q33: 0.25 | R33: b) Yearly milestone met | S33: Access | T33: State school
A34: 10003863 | B34: 7a | C34: 6 | D34: =CONCATENATE(Targets!$A34,"-",Targets!$B34) -> 10003863-7a | E34: =CONCATENATE(Targets!$A34,"-",Targets!$B34,"-",Targets!$C34) -> 10003863-7a-6 | F34: Other statistic - Progression to employment or further study (please give details in the next column) | G34: % of full-time leavers in work or further study | H34: No | I34: 0.941 | J34: 2012-13 | K34: 0.94 | L34: 2019-20 | M34: 0.941 | N34: 0.951 | O34: 0.95 | P34: 0.968 | Q34: 0.97 | R34: a) Overall target met/exceeded | S34: Student Success and Progression | T34: Multiple
A35: 10007851 | B35: 7a | C35: 9 | D35: =CONCATENATE(Targets!$A35,"-",Targets!$B35) -> 10007851-7a | E35: =CONCATENATE(Targets!$A35,"-",Targets!$B35,"-",Targets!$C35) -> 10007851-7a-9 | F35: Other statistic - Other (please give details in the next column) | G35: Good honours - % full-time and part-time, first degree (UK domiciled BME) | H35: No | I35: 0.512 | J35: 2013-14 | K35: 0.6 | L35: 2019-20 | M35: 0.411 | N35: 0.512 | O35: 0.552 | P35: 0.588 | Q35: 0.53 | R35: c) Progress made – but less than anticipated | S35: Student Success | T35: Ethnicity
A36: 10000936 | B36: 7a | C36: 9 | D36: =CONCATENATE(Targets!$A36,"-",Targets!$B36) -> 10000936-7a | E36: =CONCATENATE(Targets!$A36,"-",Targets!$B36,"-",Targets!$C36) -> 10000936-7a-9 | F36: Other statistic - Progression to employment or further study (please give details in the next column) | G36: Maintain the proportion of graduates in graduate level employment or further study based on DELHE data | H36: No | I36: 1 | J36: 2014-15 | K36: 0.909 | L36: 2016-17 | M36: N/A | N36: N/A | O36: 1 | P36: N/A | Q36: No information provided by validating instution | R36: a) Overall target met/exceeded | S36: Student Success | T36: Attainment raising
A37: 10000936 | B37: 7a | C37: 10 | D37: =CONCATENATE(Targets!$A37,"-",Targets!$B37) -> 10000936-7a | E37: =CONCATENATE(Targets!$A37,"-",Targets!$B37,"-",Targets!$C37) -> 10000936-7a-10 | F37: HESA T1b - Low participation neighbourhoods (POLAR3) (Young, full-time, undergraduate entrants) | G37: Increase the percentage of young full-time undergraduate entrants from LPN quintile 1 | H37: No | I37: 3.4 | J37: 2014-15 | K37: 0.138 | L37: 2016-17 | M37: N/A | N37: N/A | O37: 3.4 | P37: N/A | Q37: 0.031 | R37: e) Performance is below baseline | S37: Access | T37: Low participation neighbourhoods (LPN)
A38: 10000936 | B38: 7a | C38: 11 | D38: =CONCATENATE(Targets!$A38,"-",Targets!$B38) -> 10000936-7a | E38: =CONCATENATE(Targets!$A38,"-",Targets!$B38,"-",Targets!$C38) -> 10000936-7a-11 | F38: HESA T1b - State School (Young, full-time, undergraduate entrants) | G38: Maintain percentage of young full-time undergraduate entrants from state schools | H38: No | I38: 0.909 | J38: 2014-15 | K38: 0.909 | L38: 2016-17 | M38: N/A | N38: N/A | O38: 0.909 | P38: N/A | Q38: 0.96 | R38: a) Overall target met/exceeded | S38: Access | T38: State school
A39: 10003863 | B39: 7b | C39: 3 | D39: =CONCATENATE(Targets!$A39,"-",Targets!$B39) -> 10003863-7b | E39: =CONCATENATE(Targets!$A39,"-",Targets!$B39,"-",Targets!$C39) -> 10003863-7b-3 | F39: Outreach / WP activity (other - please give details in the next column) | G39: To develop the Leeds Children's University | H39: No | I39: 0 | J39: 2012-13 | K39: 35 | L39: 2019-20 | M39: n/a | N39: 400 | O39: 420 | P39: 440 | Q39: 778 | R39: a) Overall target met/exceeded | S39: Access | T39: Multiple
A40: 10024962 | B40: 7a | C40: 3 | D40: =CONCATENATE(Targets!$A40,"-",Targets!$B40) -> 10024962-7a | E40: =CONCATENATE(Targets!$A40,"-",Targets!$B40,"-",Targets!$C40) -> 10024962-7a-3 | F40: Other statistic - Progression to employment or further study (please give details in the next column) | G40: LCOM only- increase progression from FE to HE for LCOM level 3 students | H40: No | I40: 0.55 | J40: 2011-12 | K40: 0.6 | L40: 2016-17 | M40: 0.63 | N40: 0.63 | O40: 0.68 | P40: 0.66 | Q40: 0.64 | R40: a) Overall target met/exceeded | S40: Access | T40: Other
A41: 10024962 | B41: 7a | C41: 4 | D41: =CONCATENATE(Targets!$A41,"-",Targets!$B41) -> 10024962-7a | E41: =CONCATENATE(Targets!$A41,"-",Targets!$B41,"-",Targets!$C41) -> 10024962-7a-4 | F41: Other statistic - Low-income backgrounds (please give details in the next column) | G41: LCOM only - increase percentage of students enrolling where household income is less than £25,000 | H41: No | I41: 0.33 | J41: 2011-12 | K41: 0.4 | L41: 2019-20 | M41: 0.33 | N41: 0.34 | O41: 0.37 | P41: 0.33 | Q41: 0.31 | R41: e) Performance is below baseline | S41: Access | T41: Socio-economic
A42: 10007786 | B42: 7a | C42: 4 | D42: =CONCATENATE(Targets!$A42,"-",Targets!$B42) -> 10007786-7a | E42: =CONCATENATE(Targets!$A42,"-",Targets!$B42,"-",Targets!$C42) -> 10007786-7a-4 | F42: Other statistic - Ethnicity (please give details in the next column) | G42: Applications from Black and minority ethnic groups | H42: No | I42: 0.178 | J42: 2013-14 | K42: 0.183 | L42: 2019-20 | M42: 15.1 | N42: 17.8 | O42: 18.7 | P42: 20 | Q42: 20 | R42: a) Overall target met/exceeded | S42: Access | T42: Ethnicity
A43: 10007786 | B43: 7a | C43: 5 | D43: =CONCATENATE(Targets!$A43,"-",Targets!$B43) -> 10007786-7a | E43: =CONCATENATE(Targets!$A43,"-",Targets!$B43,"-",Targets!$C43) -> 10007786-7a-5 | F43: Other statistic - Disabled (please give details in the next column) | G43: Applications from disabled students | H43: No | I43: 0.065 | J43: 2013-14 | K43: 0.07 | L43: 2019-20 | M43: 6.4 | N43: 6.5 | O43: 7 | P43: 7.3 | Q43: 8.2 | R43: a) Overall target met/exceeded | S43: Access | T43: Disability
A44: 10000936 | B44: 7a | C44: 12 | D44: =CONCATENATE(Targets!$A44,"-",Targets!$B44) -> 10000936-7a | E44: =CONCATENATE(Targets!$A44,"-",Targets!$B44,"-",Targets!$C44) -> 10000936-7a-12 | F44: Other statistic - Low-income backgrounds (please give details in the next column) | G44: Increase percentage of full-time undergraduate students from low income backgrounds who receive the full statutory Maintenance Grant (household income of £25,000 or less) | H44: No | I44: 53.1 | J44: 2014-15 | K44: 0.55 | L44: 2016-17 | M44: N/A | N44: N/A | O44: 53.1 | P44: N/A | Q44: 0.032 | R44: e) Performance is below baseline | S44: Access | T44: Low income background
A45: 10007851 | B45: 7b | C45: 4 | D45: =CONCATENATE(Targets!$A45,"-",Targets!$B45) -> 10007851-7b | E45: =CONCATENATE(Targets!$A45,"-",Targets!$B45,"-",Targets!$C45) -> 10007851-7b-4 | F45: Outreach / WP activity (collaborative - please give details in the next column) | G45: Lead and be an active partner in the North East Midlands Collaborative Outreach Network. Develop activities and resources that focus on and encourage the progression of learners into higher education from within the geographical reach of the network. | H45: Yes | I45: NEMCON network established | J45: 2014-15 | K45: If appropriate continue to develop NEMCON activity | L45: 2019-20 | M45: N/A | N45: N/A | O45: N/A | P45: NEMCON was reviewed through 15-16 and, due to the lack of continuation funding and the beginning of the NCOP programme, the decision was made by the Steering Group to cease activity in December 2016 | Q45: See separate word doc | R45: f) Target discontinued | S45: Access | T45: Low participation neighbourhood (LPN)
A46: 10007786 | B46: 7a | C46: 6 | D46: =CONCATENATE(Targets!$A46,"-",Targets!$B46) -> 10007786-7a | E46: =CONCATENATE(Targets!$A46,"-",Targets!$B46,"-",Targets!$C46) -> 10007786-7a-6 | F46: Other statistic - Location (please give details in the next column) | G46: Applications from students applying from BS and BA postcodes | H46: No | I46: 0.042 | J46: 2013-14 | K46: 0.055 | L46: 2019-20 | M46: 3.9 | N46: 4.2 | O46: 4.3 | P46: 4 | Q46: 4.2 | R46: d) No progress made against baseline | S46: Access | T46: Other
A47: 10007851 | B47: 7b | C47: 5 | D47: =CONCATENATE(Targets!$A47,"-",Targets!$B47) -> 10007851-7b | E47: =CONCATENATE(Targets!$A47,"-",Targets!$B47,"-",Targets!$C47) -> 10007851-7b-5 | F47: Outreach / WP activity (collaborative - please give details in the next column) | G47: Be an active partner in the Higher Horizons Network. Develop activities and resources that focus on and encourage the progression of learners into higher education from within the geographical reach of the network. | H47: Yes | I47: Higher Horizons network established | J47: 2014-15 | K47: Continue to develop the Higher Horizons network | L47: 2019-20 | M47: N/A | N47: N/A | O47: N/A | P47: Higher Horizon was reviewed through 15-16 and activity will continue beyond December 2016 as part of the Higher Horizons + NCOP | Q47: See separate word doc | R47: f) Target discontinued | S47: Access | T47: Other
A48: 10007851 | B48: 7b | C48: 6 | D48: =CONCATENATE(Targets!$A48,"-",Targets!$B48) -> 10007851-7b | E48: =CONCATENATE(Targets!$A48,"-",Targets!$B48,"-",Targets!$C48) -> 10007851-7b-6 | F48: Operational targets | G48: Evidence informed actions to improve graduate destinations based on graduate characteristics to ensure impact is achieved for that would benefit most. | H48: No | I48: N/A | J48: 2016-17 | K48: Evaluation of impact and review of targets to increase on baseline data | L48: 2019-20 | M48: N/A | N48: N/A | O48: N/A | P48: New target - from 2016-17 | Q48: Graduate destinations increased by 10 pp in 2016-17 | R48: a) Overall target met/exceeded | S48: Student Success and Progression | T48: Other
A49: 10007851 | B49: 7b | C49: 7 | D49: =CONCATENATE(Targets!$A49,"-",Targets!$B49) -> 10007851-7b | E49: =CONCATENATE(Targets!$A49,"-",Targets!$B49,"-",Targets!$C49) -> 10007851-7b-7 | F49: Student support services | G49: Pre-entry support and early induction for disabled students - Get Ahead - % attendees progressing to year 2 in line with cohort | H49: No | I49: N/A | J49: N/A | K49: 0.933 | L49: 2019-20 | M49: N/A | N49: N/A | O49: N/A | P49: New target - from 2016-17 | Q49: 0.928 | R49: b) Yearly milestone met | S49: Student Success | T49: Disability
A50: 10007851 | B50: 7b | C50: 8 | D50: =CONCATENATE(Targets!$A50,"-",Targets!$B50) -> 10007851-7b | E50: =CONCATENATE(Targets!$A50,"-",Targets!$B50,"-",Targets!$C50) -> 10007851-7b-8 | F50: Student support services | G50: On-Programme Support for disabled students - continued focus on intiatives to support the experience of disabled students on programme. Specific areas of work will include further progress on inclusive Learning Teaching & Assessment practice, mitigation of impacts of changes to DSA. | H50: No | I50: N/A | J50: N/A | K50: N/A | L50: N/A | M50: N/A | N50: N/A | O50: N/A | P50: New target - from 2016-17 | Q50: New academic staff have sessions on Inclusive Learning and Teaching in the PG Cert HE | R50: b) Yearly milestone met | S50: Student Success | T50: Disability
A51: 10007851 | B51: 7b | C51: 9 | D51: =CONCATENATE(Targets!$A51,"-",Targets!$B51) -> 10007851-7b | E51: =CONCATENATE(Targets!$A51,"-",Targets!$B51,"-",Targets!$C51) -> 10007851-7b-9 | F51: Student support services | G51: Continue to expand pre-entry model to reach other priority groups - develop a targeted communication strategy, academic and personal preparation activity and support, for groups including but not limited to identified WP groups, those without parental support, 2nd & 3rd year direct entrants. | H51: No | I51: N/A | J51: N/A | K51: N/A | L51: N/A | M51: N/A | N51: N/A | O51: N/A | P51: New target - beginning 2016-17 | Q51: See separate word doc | R51: b) Yearly milestone met | S51: Student Success | T51: Other
A52: 10007851 | B52: 7b | C52: 10 | D52: =CONCATENATE(Targets!$A52,"-",Targets!$B52) -> 10007851-7b | E52: =CONCATENATE(Targets!$A52,"-",Targets!$B52,"-",Targets!$C52) -> 10007851-7b-10 | F52: Student support services | G52: Pre-entry and transition support for Care Leavers/those without parental support - % retained and succeeding through 1st semester. Continue to develop our established pre-entry and transition work with: - increased focus on external partnerships to identify and support those with aspiration to study in HE. -develop and extend the mentoring and buddy programme - increase the numbers of care leavers in line with the institutional target | H52: No | I52: N/A | J52: N/A | K52: 0.8 | L52: 2019-20 | M52: N/A | N52: N/A | O52: N/A | P52: New target - from 2016-17 | Q52: 0.94 | R52: a) Overall target met/exceeded | S52: Student Success and Progression | T52: Care leavers
A53: 10007851 | B53: 7b | C53: 11 | D53: =CONCATENATE(Targets!$A53,"-",Targets!$B53) -> 10007851-7b | E53: =CONCATENATE(Targets!$A53,"-",Targets!$B53,"-",Targets!$C53) -> 10007851-7b-11 | F53: Student support services | G53: Transition support through on-programme educational workshops - % attendeed rating workshop input as useful on their programme. | H53: No | I53: N/A | J53: N/A | K53: 0.825 | L53: 2019-20 | M53: N/A | N53: N/A | O53: N/A | P53: New target - from 2016-17 | Q53: 0.861 | R53: a) Overall target met/exceeded | S53: Student Success and Progression | T53: Other
A54: 10005583 | B54: 7a | C54: 3 | D54: =CONCATENATE(Targets!$A54,"-",Targets!$B54) -> 10005583-7a | E54: =CONCATENATE(Targets!$A54,"-",Targets!$B54,"-",Targets!$C54) -> 10005583-7a-3 | F54: Other statistic - Low-income backgrounds (please give details in the next column) | G54: Number of entrants on full state support | H54: No | I54: 38 | J54: 2013-14 | K54: 41 | L54: 2019-20 | M54: - | N54: 35 | O54: 36 | P54: 40 | Q54: 33 | R54: e) Performance is below baseline | S54: Access | T54: Low participation neighbourhood (LPN)
A55: 10040812 | B55: 7b | C55: 15 | D55: =CONCATENATE(Targets!$A55,"-",Targets!$B55) -> 10040812-7b | E55: =CONCATENATE(Targets!$A55,"-",Targets!$B55,"-",Targets!$C55) -> 10040812-7b-15 | F55: Outreach / WP activity (other - please give details in the next column) | G55: Taster Days | H55: Yes | I55: 0 | J55: 2010-11 | K55: 2 | L55: 2016-17 | M55: 8 | N55: 6 | O55: 12 | P55: 12 | Q55: 10 | R55: a) Overall target met/exceeded | S55: Access | T55: Multiple
A56: 10040812 | B56: 7b | C56: 16 | D56: =CONCATENATE(Targets!$A56,"-",Targets!$B56) -> 10040812-7b | E56: =CONCATENATE(Targets!$A56,"-",Targets!$B56,"-",Targets!$C56) -> 10040812-7b-16 | F56: Outreach / WP activity (other - please give details in the next column) | G56: Events with University Technical Colleges to raise awareness | H56: Yes | I56: 0 | J56: 2010-11 | K56: 2 | L56: 2017-17 | M56: 0 | N56: 0 | O56: 2 | P56: 4 | Q56: 2 | R56: a) Overall target met/exceeded | S56: Access | T56: Multiple
A57: 10040812 | B57: 7b | C57: 17 | D57: =CONCATENATE(Targets!$A57,"-",Targets!$B57) -> 10040812-7b | E57: =CONCATENATE(Targets!$A57,"-",Targets!$B57,"-",Targets!$C57) -> 10040812-7b-17 | F57: Outreach / WP activity (other - please give details in the next column) | G57: Technical Event Days | H57: Yes | I57: 0 | J57: 2010-11 | K57: 3 | L57: 2016-17 | M57: 0 | N57: 17 | O57: 6 | P57: 3 | Q57: 1 | R57: c) Progress made – but less than anticipated | S57: Access | T57: Multiple
A58: 10004676 | B58: 7a | C58: 5 | D58: =CONCATENATE(Targets!$A58,"-",Targets!$B58) -> 10004676-7a | E58: =CONCATENATE(Targets!$A58,"-",Targets!$B58,"-",Targets!$C58) -> 10004676-7a-5 | F58: Other statistic - Socio-economic (please give details in the next column) | G58: Introduce hardship fund to support students suffering extreme financal difficulty whilst on programme | H58: No | I58: 0 | J58: 2014-15 | K58: 4 | L58: 2019-20 | M58: - | N58: - | O58: - | P58: 0 | Q58: 2 | R58: c) Progress made – but less than anticipated | S58: Student Success | T58: Socio-economic
A59: 10040812 | B59: 7b | C59: 18 | D59: =CONCATENATE(Targets!$A59,"-",Targets!$B59) -> 10040812-7b | E59: =CONCATENATE(Targets!$A59,"-",Targets!$B59,"-",Targets!$C59) -> 10040812-7b-18 | F59: Outreach / WP activity (other - please give details in the next column) | G59: Teacher and careers advisor conference | H59: No | I59: 0 | J59: 2010-11 | K59: 1 | L59: 2016-17 | M59: 0 | N59: 1 | O59: 1 | P59: 1 | Q59: 1 | R59: a) Overall target met/exceeded | S59: Access | T59: Multiple
A60: 10040812 | B60: 7b | C60: 19 | D60: =CONCATENATE(Targets!$A60,"-",Targets!$B60) -> 10040812-7b | E60: =CONCATENATE(Targets!$A60,"-",Targets!$B60,"-",Targets!$C60) -> 10040812-7b-19 | F60: Outreach / WP activity (other - please give details in the next column) | G60: Student ambassador development to better engage with and support non-traditional students | H60: No | I60: 0 | J60: 2010-11 | K60: 15 | L60: 2016-17 | M60: 234 | N60: 203 | O60: 198 | P60: 193 | Q60: 230 | R60: a) Overall target met/exceeded | S60: Access | T60: Multiple
A61: 10003957 | B61: 7a | C61: 1 | D61: =CONCATENATE(Targets!$A61,"-",Targets!$B61) -> 10003957-7a | E61: =CONCATENATE(Targets!$A61,"-",Targets!$B61,"-",Targets!$C61) -> 10003957-7a-1 | F61: HESA T1a - State School (Young, full-time, first degree entrants) | G61: Maintain LJMU's current strong position against sector benchmark and location adjusted benchmark | H61: No | I61: 0.975 | J61: 2013-14 | K61: 0.975 | L61: 2019-20 | M61: - | N61: 0.975 | O61: 0.966 | P61: 0.98 | Q61: 0.983 | R61: a) Overall target met/exceeded | S61: Access | T61: State school
A62: 10040812 | B62: 7b | C62: 20 | D62: =CONCATENATE(Targets!$A62,"-",Targets!$B62) -> 10040812-7b | E62: =CONCATENATE(Targets!$A62,"-",Targets!$B62,"-",Targets!$C62) -> 10040812-7b-20 | F62: Strategic partnerships (eg formal relationships with schools/colleges/employers) | G62: North West Midlands primary school activities | H62: Yes | I62: 0 | J62: 2012-13 | K62: 2 | L62: 2016-17 | M62: - | N62: 0 | O62: 2 | P62: 4 | Q62: 4 | R62: a) Overall target met/exceeded | S62: Access | T62: Multiple
A63: 10040812 | B63: 7b | C63: 21 | D63: =CONCATENATE(Targets!$A63,"-",Targets!$B63) -> 10040812-7b | E63: =CONCATENATE(Targets!$A63,"-",Targets!$B63,"-",Targets!$C63) -> 10040812-7b-21 | F63: Strategic partnerships (eg formal relationships with schools/colleges/employers) | G63: Telford and Wrekin schools targeted activities | H63: No | I63: 0 | J63: 2012-13 | K63: 3 | L63: 2016-17 | M63: - | N63: 0 | O63: 4 | P63: 5 | Q63: 6 | R63: a) Overall target met/exceeded | S63: Access | T63: Multiple
A64: 10040812 | B64: 7b | C64: 22 | D64: =CONCATENATE(Targets!$A64,"-",Targets!$B64) -> 10040812-7b | E64: =CONCATENATE(Targets!$A64,"-",Targets!$B64,"-",Targets!$C64) -> 10040812-7b-22 | F64: Operational targets | G64: Children's University collaborative activity | H64: Yes | I64: 0 | J64: 2011-12 | K64: 1 | L64: 2016-17 | M64: - | N64: 1 | O64: 1 | P64: 1 | Q64: 0 | R64: d) No progress made against baseline | S64: Access | T64: Multiple
A65: 10040812 | B65: 7b | C65: 23 | D65: =CONCATENATE(Targets!$A65,"-",Targets!$B65) -> 10040812-7b | E65: =CONCATENATE(Targets!$A65,"-",Targets!$B65,"-",Targets!$C65) -> 10040812-7b-23 | F65: Outreach / WP activity (other - please give details in the next column) | G65: Community Events - people involved | H65: No | I65: 0 | J65: 2014-15 | K65: 10000 | L65: 2019-20 | M65: - | N65: - | O65: 0 | P65: 3700 | Q65: 2200 | R65: b) Yearly milestone met | S65: Access | T65: Multiple
A66: 10040812 | B66: 7b | C66: 24 | D66: =CONCATENATE(Targets!$A66,"-",Targets!$B66) -> 10040812-7b | E66: =CONCATENATE(Targets!$A66,"-",Targets!$B66,"-",Targets!$C66) -> 10040812-7b-24 | F66: Outreach / WP activity (other - please give details in the next column) | G66: Primary school profile raising in Wales - children involved | H66: Yes | I66: 0 | J66: 2014-15 | K66: 150 | L66: 2017-18 | M66: - | N66: - | O66: 0 | P66: 158 | Q66: 168 | R66: a) Overall target met/exceeded | S66: Access | T66: Multiple
A67: 10006432 | B67: 7a | C67: 1 | D67: =CONCATENATE(Targets!$A67,"-",Targets!$B67) -> 10006432-7a | E67: =CONCATENATE(Targets!$A67,"-",Targets!$B67,"-",Targets!$C67) -> 10006432-7a-1 | F67: HESA T1a - State School (Young, full-time, first degree entrants) | G67: To develop a more diverse student profile and a more balanced representation across curriculum areas. Especially from families with a below average income. | H67: No | I67: 0.83 | J67: 2011-12 | K67: 0.85 | L67: 2019-20 | M67: - | N67: - | O67: - | P67: 84.3 | Q67: 0.856 | R67: a) Overall target met/exceeded | S67: Access | T67: Low participation neighbourhoods (LPN)
A68: 10007164 | B68: 7a | C68: 9 | D68: =CONCATENATE(Targets!$A68,"-",Targets!$B68) -> 10007164-7a | E68: =CONCATENATE(Targets!$A68,"-",Targets!$B68,"-",Targets!$C68) -> 10007164-7a-9 | F68: HESA T7 - Students in receipt of DSA (full-time, all undergraduate entrants) | G68: Increase number of students in receipt of DSA | H68: No | I68: 7.5 | J68: 2011-12 | K68: 10.2 | L68: 2019-20 | M68: 0.085 | N68: 0.091 | O68: 0.094 | P68: 0.095 | Q68: - | R68: b) Yearly milestone met | S68: Student Success | T68: Disability
A69: 10007164 | B69: 7a | C69: 10 | D69: =CONCATENATE(Targets!$A69,"-",Targets!$B69) -> 10007164-7a | E69: =CONCATENATE(Targets!$A69,"-",Targets!$B69,"-",Targets!$C69) -> 10007164-7a-10 | F69: Other statistic - Ethnicity (please give details in the next column) | G69: Increase enrolment of BME students to level representative of Bristol | H69: No | I69: 13 | J69: 2011-12 | K69: 22.2 | L69: 2019-20 | M69: 0.13 | N69: 0.149 | O69: 0.146 | P69: 0.149 | Q69: 0.153 | R69: c) Progress made – but less than anticipated | S69: Access | T69: Ethnicity
A70: 10007164 | B70: 7a | C70: 11 | D70: =CONCATENATE(Targets!$A70,"-",Targets!$B70) -> 10007164-7a | E70: =CONCATENATE(Targets!$A70,"-",Targets!$B70,"-",Targets!$C70) -> 10007164-7a-11 | F70: Other statistic - Care-leavers (please give details in the next column) | G70: Increase enrolment of care leavers | H70: No | I70: 23 | J70: 2011-12 | K70: 32 | L70: 2019-20 | M70: 49 | N70: 37 | O70: 41 | P70: 45 | Q70: 57 | R70: a) Overall target met/exceeded | S70: Access | T70: Care leavers
A71: 10007164 | B71: 7b | C71: 1 | D71: =CONCATENATE(Targets!$A71,"-",Targets!$B71) -> 10007164-7b | E71: =CONCATENATE(Targets!$A71,"-",Targets!$B71,"-",Targets!$C71) -> 10007164-7b-1 | F71: Outreach / WP activity (collaborative - please give details in the next column) | G71: Delivery of South Bristol Youth collaborative activity in Year 8 and 10 with University of Bristol | H71: Yes | I71: Year 8 programme - 120 young people; year 10 progamme - 120 young people | J71: 2014-15 | K71: Year 8 programme - 120 young people; year 10 progamme - 120 young people | L71: 2019-20 | M71: n/a | N71: n/a | O71: Year 8 - 120 students; Year 10 - 120 students | P71: Year 8 - 120 students; Year 10 - 120 students | Q71: Year 7 and year 8 programme delivered | R71: a) Overall target met/exceeded | S71: Access | T71: Low participation neighbourhood (LPN)
A72: 10007164 | B72: 7b | C72: 2 | D72: =CONCATENATE(Targets!$A72,"-",Targets!$B72) -> 10007164-7b | E72: =CONCATENATE(Targets!$A72,"-",Targets!$B72,"-",Targets!$C72) -> 10007164-7b-2 | F72: Strategic partnerships (eg formal relationships with schools/colleges/employers) | G72: Strategic partnerships with 3 Colleges and Enhanced Partnerships with local school trusts/federations | H72: No | I72: 3 colleges + 3 school partnerships | J72: 2014-15 | K72: 3 colleges + 4 school partnerships | L72: 2019-20 | M72: n/a | N72: n/a | O72: 3 schools +3 school partnerships | P72: 3 colleges + 5 school partnerships | Q72: 3 colleges + 5 school partnerships | R72: a) Overall target met/exceeded | S72: Access | T72: Multiple
A73: 10007164 | B73: 7b | C73: 3 | D73: =CONCATENATE(Targets!$A73,"-",Targets!$B73) -> 10007164-7b | E73: =CONCATENATE(Targets!$A73,"-",Targets!$B73,"-",Targets!$C73) -> 10007164-7b-3 | F73: Student support services | G73: Maintain Financial Health Check Service for students in financial difficulties | H73: No | I73: 134 appointments | J73: 2013-14 | K73: 140 appointments | L73: 2019-20 | M73: n/a | N73: 134 | O73: 134 | P73: 136 | Q73: 170 | R73: a) Overall target met/exceeded | S73: Student Success | T73: Socio-economic
A74: 10007164 | B74: 7b | C74: 4 | D74: =CONCATENATE(Targets!$A74,"-",Targets!$B74) -> 10007164-7b | E74: =CONCATENATE(Targets!$A74,"-",Targets!$B74,"-",Targets!$C74) -> 10007164-7b-4 | F74: Student support services | G74: Support at least 1000 students with bursary provision | H74: No | I74: 1058 | J74: 2013-14 | K74: 1300 | L74: 2019-20 | M74: n/a | N74: 1058 | O74: 1401 | P74: 1300 | Q74: 1460 | R74: a) Overall target met/exceeded | S74: Student Success | T74: Socio-economic
A75: 10007164 | B75: 7b | C75: 5 | D75: =CONCATENATE(Targets!$A75,"-",Targets!$B75) -> 10007164-7b | E75: =CONCATENATE(Targets!$A75,"-",Targets!$B75,"-",Targets!$C75) -> 10007164-7b-5 | F75: Operational targets | G75: Increase proportion of PAL leaders meeting a WP criteria to 50% | H75: No | I75: 45% PAL leaders meet WP criteria | J75: 2014-15 | K75: 0.5 | L75: 2019-20 | M75: n/a | N75: 0.42 | O75: 0.43 | P75: 0.46 | Q75: 0.5 | R75: a) Overall target met/exceeded | S75: Student Success and Progression | T75: Multiple
A76: 10004775 | B76: 7a | C76: 1 | D76: =CONCATENATE(Targets!$A76,"-",Targets!$B76) -> 10004775-7a | E76: =CONCATENATE(Targets!$A76,"-",Targets!$B76,"-",Targets!$C76) -> 10004775-7a-1 | F76: HESA T1a - Low participation neighbourhoods (POLAR3) (Young, full-time, first degree entrants) | G76: To increase the proportion of young full-time undergraduate entrants from Low Participation Neighbourhoods and to remain above the location adjusted benchmark in all years | H76: No | I76: 0.173 | J76: 2013-14 | K76: 0.21 | L76: 2019-20 | M76: 0.182 | N76: 0.173 | O76: 0.158 | P76: 0.132 | Q76: 0.125 | R76: e) Performance is below baseline | S76: Access | T76: Low participation neighbourhood (LPN)
A77: 10004775 | B77: 7a | C77: 2 | D77: =CONCATENATE(Targets!$A77,"-",Targets!$B77) -> 10004775-7a | E77: =CONCATENATE(Targets!$A77,"-",Targets!$B77,"-",Targets!$C77) -> 10004775-7a-2 | F77: HESA T2a - (Mature, full-time, first degree entrants) | G77: To increase the proportion of mature full-time undergraduate entrants | H77: No | I77: 0.153 | J77: 2013-14 | K77: 0.2 | L77: 2019-20 | M77: 0.13 | N77: 0.153 | O77: 0.141 | P77: 0.122 | Q77: 0.1 | R77: e) Performance is below baseline | S77: Access | T77: Mature
A78: 10004775 | B78: 7a | C78: 3 | D78: =CONCATENATE(Targets!$A78,"-",Targets!$B78) -> 10004775-7a | E78: =CONCATENATE(Targets!$A78,"-",Targets!$B78,"-",Targets!$C78) -> 10004775-7a-3 | F78: HESA T3a - No longer in HE after 1 year (Young, full-time, first degree entrants) | G78: Retention: to continue to ensure that the percentage of young entrants who drop out of Higher Education falls below 5% and the percentage is lower than the HESA benchmark | H78: No | I78: 0.08 | J78: 2013-14 | K78: 0.04 | L78: 2019-20 | M78: 0.05 | N78: 0.08 | O78: 0.055 | P78: 0.06 | Q78: Hesa Pis not yet published | R78: b) Yearly milestone met | S78: Student Success | T78: State school
A79: 10004775 | B79: 7a | C79: 4 | D79: =CONCATENATE(Targets!$A79,"-",Targets!$B79) -> 10004775-7a | E79: =CONCATENATE(Targets!$A79,"-",Targets!$B79,"-",Targets!$C79) -> 10004775-7a-4 | F79: HESA T3a - No longer in HE after 1 year (Mature, full-time, first degree entrants) | G79: Retention: to continue to ensure that the percentage of mature entrants who drop out of Higher Education falls below 10% and the percentage is lower than the HESA benchmark. | H79: No | I79: 0.137 | J79: 2013-14 | K79: 0.09 | L79: 2019-20 | M79: 0.08 | N79: 0.137 | O79: 0.056 | P79: 0.129 | Q79: Hesa Pis not yet published | R79: b) Yearly milestone met | S79: Student Success | T79: Mature
A80: 10001143 | B80: 7b | C80: 4 | D80: =CONCATENATE(Targets!$A80,"-",Targets!$B80) -> 10001143-7b | E80: =CONCATENATE(Targets!$A80,"-",Targets!$B80,"-",Targets!$C80) -> 10001143-7b-4 | F80: Outreach / WP activity (collaborative - please give details in the next column) | G80: Ensure a range of year groups participate in outreach programmes and maintain levels of engagement across schools - year 10 | H80: Yes | I80: Yr 10, 2987 | J80: 2013-14 | K80: 2987 | L80: 2019-20 | M80: 1392 | N80: 2130 | O80: 1381 | P80: 1928 | Q80: 1660 | R80: e) Performance is below baseline | S80: Access | T80: Multiple
A81: 10001143 | B81: 7b | C81: 5 | D81: =CONCATENATE(Targets!$A81,"-",Targets!$B81) -> 10001143-7b | E81: =CONCATENATE(Targets!$A81,"-",Targets!$B81,"-",Targets!$C81) -> 10001143-7b-5 | F81: Outreach / WP activity (collaborative - please give details in the next column) | G81: Ensure a range of year groups participate in outreach programmes and maintain levels of engagement across schools - year 11 | H81: Yes | I81: Yr 11, 4907 | J81: 2013-14 | K81: 4907 | L81: 2019-20 | M81: 2830 | N81: 1178 | O81: 1269 | P81: 2769 | Q81: 1243 | R81: e) Performance is below baseline | S81: Access | T81: Multiple
A82: 10001143 | B82: 7b | C82: 6 | D82: =CONCATENATE(Targets!$A82,"-",Targets!$B82) -> 10001143-7b | E82: =CONCATENATE(Targets!$A82,"-",Targets!$B82,"-",Targets!$C82) -> 10001143-7b-6 | F82: Outreach / WP activity (collaborative - please give details in the next column) | G82: Ensure a range of year groups participate in outreach programmes and maintain levels of engagement across schools - years 12/13 | H82: Yes | I82: Yr 12-13, 7110 | J82: 2013-14 | K82: 7110 | L82: 2019-20 | M82: 5018 | N82: 3462 | O82: 4887 | P82: 5059 | Q82: 6979 | R82: b) Yearly milestone met | S82: Access | T82: Multiple
A83: 10004676 | B83: 7a | C83: 6 | D83: =CONCATENATE(Targets!$A83,"-",Targets!$B83) -> 10004676-7a | E83: =CONCATENATE(Targets!$A83,"-",Targets!$B83,"-",Targets!$C83) -> 10004676-7a-6 | F83: HESA T2a - (Mature, full-time, first degree entrants) | G83: Introduce taught sesions through summer vacation to support students who failed June examination board | H83: No | I83: 0 | J83: 2014-15 | K83: 6 | L83: 2019-20 | M83: - | N83: - | O83: - | P83: 0 | Q83: 4 | R83: c) Progress made – but less than anticipated | S83: Student Success | T83: Multiple
A84: 10001143 | B84: 7b | C84: 7 | D84: =CONCATENATE(Targets!$A84,"-",Targets!$B84) -> 10001143-7b | E84: =CONCATENATE(Targets!$A84,"-",Targets!$B84,"-",Targets!$C84) -> 10001143-7b-7 | F84: Outreach / WP activity (collaborative - please give details in the next column) | G84: KS4 Destination - – Increase proportion who stay on in education after KS4 | H84: Yes | I84: KMPF - 81% | J84: 2013-14 | K84: 0.84 | L84: 2019-20 | M84: 0.81 | N84: 0.81 | O84: 0.86 | P84: 0.86 | Q84: 0.86 | R84: a) Overall target met/exceeded | S84: Access | T84: Multiple
A85: 10003957 | B85: 7b | C85: 7 | D85: =CONCATENATE(Targets!$A85,"-",Targets!$B85) -> 10003957-7b | E85: =CONCATENATE(Targets!$A85,"-",Targets!$B85,"-",Targets!$C85) -> 10003957-7b-7 | F85: Outreach / WP activity (other - please give details in the next column) | G85: Work with mature learners to help increase level 4 skills | H85: No | I85: 20 colleges | J85: 2013-14 | K85: 25 colleges | L85: 2019-20 | M85: - | N85: 20 colleages | O85: 23 colleges | P85: 28 colleges | Q85: 29 | R85: a) Overall target met/exceeded | S85: Access | T85: Mature
A86: 10003957 | B86: 7b | C86: 8 | D86: =CONCATENATE(Targets!$A86,"-",Targets!$B86) -> 10003957-7b | E86: =CONCATENATE(Targets!$A86,"-",Targets!$B86,"-",Targets!$C86) -> 10003957-7b-8 | F86: Outreach / WP activity (other - please give details in the next column) | G86: Engaging student advocates in WP outreach activities | H86: No | I86: 40 students | J86: 2013-14 | K86: 80 students | L86: 2019-20 | M86: - | N86: 40 students | O86: 100 students | P86: 107 students | Q86: 107 | R86: a) Overall target met/exceeded | S86: Access | T86: Multiple
A87: 10001143 | B87: 7b | C87: 8 | D87: =CONCATENATE(Targets!$A87,"-",Targets!$B87) -> 10001143-7b | E87: =CONCATENATE(Targets!$A87,"-",Targets!$B87,"-",Targets!$C87) -> 10001143-7b-8 | F87: Outreach / WP activity (collaborative - please give details in the next column) | G87: Improve KS4 results of disadvantage students 5A*-C including English and Maths | H87: Yes | I87: 0.3 | J87: 2013-14 | K87: Milestones to be reviewed and recalculated in light of new curriculum changes | L87: 2019-20 | M87: 0.3 | N87: 0.3 | O87: 0.26 | P87: 0.25 | Q87: - | R87: f) Target discontinued | S87: Access | T87: Multiple
A88: 10001143 | B88: 7b | C88: 9 | D88: =CONCATENATE(Targets!$A88,"-",Targets!$B88) -> 10001143-7b | E88: =CONCATENATE(Targets!$A88,"-",Targets!$B88,"-",Targets!$C88) -> 10001143-7b-9 | F88: Outreach / WP activity (collaborative - please give details in the next column) | G88: Increase UCAS applicant rate as % of students | H88: Yes | I88: 0.52 | J88: 2013-14 | K88: Milestones to be reviewed and recalculated in light of new curriculum changes | L88: 2019-20 | M88: 0.49 | N88: 0.52 | O88: 0.53 | P88: 0.54 | Q88: - | R88: f) Target discontinued | S88: Access | T88: Multiple
A89: 10007527 | B89: 7a | C89: 5 | D89: =CONCATENATE(Targets!$A89,"-",Targets!$B89) -> 10007527-7a | E89: =CONCATENATE(Targets!$A89,"-",Targets!$B89,"-",Targets!$C89) -> 10007527-7a-5 | F89: Other statistic - Other (please give details in the next column) | G89: To increase BME representation on College HE courses | H89: No | I89: 4% BME students | J89: 2014-15 | K89: 0.08 | L89: 2019-20 | M89: 0.115 | N89: 0.094 | O89: 0.04 | P89: 0.06 | Q89: 0.033 | R89: d) No progress made against baseline | S89: Access | T89: Ethnicity
A90: 10007500 | B90: 7b | C90: 3 | D90: =CONCATENATE(Targets!$A90,"-",Targets!$B90) -> 10007500-7b | E90: =CONCATENATE(Targets!$A90,"-",Targets!$B90,"-",Targets!$C90) -> 10007500-7b-3 | F90: Student support services | G90: develop and hold an HE careers/employer event | H90: No | I90: 0 | J90: 2014-15 | K90: 3 | L90: 2021-22 | M90: - | N90: - | O90: 0 | P90: 0 | Q90: 1 | R90: b) Yearly milestone met | S90: Progression | T90: Other (please give details in Description column)
A91: 10007500 | B91: 7b | C91: 4 | D91: =CONCATENATE(Targets!$A91,"-",Targets!$B91) -> 10007500-7b | E91: =CONCATENATE(Targets!$A91,"-",Targets!$B91,"-",Targets!$C91) -> 10007500-7b-4 | F91: Outreach / WP activity (collaborative - please give details in the next column) | G91: GM Higher is a collaboration of universities and further education colleges from Greater Manachester working together to provide high quality outreach activities for local schools and colleges | H91: Yes | I91: 87 | J91: 2014-15 | K91: 130 | L91: 2021-22 | M91: - | N91: - | O91: 87 | P91: - | Q91: 98 | R91: b) Yearly milestone met | S91: Access | T91: Low participation neighbourhoods (LPN)
A92: 10003956 | B92: 7a | C92: 3 | D92: =CONCATENATE(Targets!$A92,"-",Targets!$B92) -> 10003956-7a | E92: =CONCATENATE(Targets!$A92,"-",Targets!$B92,"-",Targets!$C92) -> 10003956-7a-3 | F92: HESA T7 - Students in receipt of DSA (full-time, first degree entrants) | G92: Full-time, first degree entrants in receipt of DSA | H92: No | I92: 7.8% against benchmark of 7.6% | J92: 2013-14 | K92: 7-9% | L92: 2019-20 | M92: 8 | N92: 7.8 | O92: 9.3 | P92: 9 | Q92: 8.8 | R92: f) Target discontinued | S92: Access | T92: Disabled
A93: 10003956 | B93: 7a | C93: 4 | D93: =CONCATENATE(Targets!$A93,"-",Targets!$B93) -> 10003956-7a | E93: =CONCATENATE(Targets!$A93,"-",Targets!$B93,"-",Targets!$C93) -> 10003956-7a-4 | F93: HESA T3b - No longer in HE after 1 year & in low participation neighbourhoods (POLAR 3) (Young, full-time, first degree entrants) | G93: Continuation of young, full-time, first degree entrants from Low Participation Neighbourhoods after 1 year | H93: No | I93: 10.4% against benchmark of 9.0% | J93: 2013-14 | K93: 7-10% | L93: 2019-20 | M93: 10.8 | N93: 10.4 | O93: 12.2 | P93: n/a | Q93: n/a | R93: d) No progress made against baseline | S93: Student Success | T93: Low participation neighbourhoods (LPN)
A94: 10003956 | B94: 7a | C94: 5 | D94: =CONCATENATE(Targets!$A94,"-",Targets!$B94) -> 10003956-7a | E94: =CONCATENATE(Targets!$A94,"-",Targets!$B94,"-",Targets!$C94) -> 10003956-7a-5 | F94: HESA T3a - No longer in HE after 1 year (All, full-time, first degree entrants) | G94: Continuation of all, full-time, first degree entrants after 1 year | H94: No | I94: 8.6% against benchmark of 8.0% | J94: 2012-13 | K94: 6-8% | L94: 2019-20 | M94: 8.6 | N94: 9 | O94: 10.8 | P94: n/a | Q94: n/a | R94: d) No progress made against baseline | S94: Student Success | T94: Multiple
A95: 10003956 | B95: 7a | C95: 6 | D95: =CONCATENATE(Targets!$A95,"-",Targets!$B95) -> 10003956-7a | E95: =CONCATENATE(Targets!$A95,"-",Targets!$B95,"-",Targets!$C95) -> 10003956-7a-6 | F95: HESA T3a - No longer in HE after 1 year (Mature, full-time, first degree entrants) | G95: Continuation of mature, full-time, first degree entrants after 1 year | H95: No | I95: 10.8% against benchmark of 12.3% | J95: 2013-14 | K95: 10-14% | L95: 2019-20 | M95: 14.2 | N95: 10.8 | O95: 14.6 | P95: n/a | Q95: n/a | R95: d) No progress made against baseline | S95: Student Success | T95: Mature
A96: 10003956 | B96: 7a | C96: 7 | D96: =CONCATENATE(Targets!$A96,"-",Targets!$B96) -> 10003956-7a | E96: =CONCATENATE(Targets!$A96,"-",Targets!$B96,"-",Targets!$C96) -> 10003956-7a-7 | F96: HESA T5 - Projected degree (full-time, first degree entrants) | G96: Neither award nor transfer projected | H96: No | I96: 11.8% against benchmark of 11.5% | J96: 2013-14 | K96: 9-12% | L96: 2019-20 | M96: 10.8 | N96: 11.8 | O96: 12.2 | P96: n/a | Q96: n/a | R96: d) No progress made against baseline | S96: Student Success | T96: Multiple
A97: 10003956 | B97: 7a | C97: 8 | D97: =CONCATENATE(Targets!$A97,"-",Targets!$B97) -> 10003956-7a | E97: =CONCATENATE(Targets!$A97,"-",Targets!$B97,"-",Targets!$C97) -> 10003956-7a-8 | F97: Other statistic - Disabled (please give details in the next column) | G97: Total number of undergraduate students with a declared disability | H97: No | I97: 16% of registered undergraduate students in 2014/15 had a declared disability (HESA Data) | J97: 2014-15 | K97: >=16% | L97: 2019-20 | M97: - | N97: - | O97: - | P97: 0.19 | Q97: 0.2 | R97: a) Overall target met/exceeded | S97: Access | T97: Disabled
A98: 10000747 | B98: 7a | C98: 3 | D98: =CONCATENATE(Targets!$A98,"-",Targets!$B98) -> 10000747-7a | E98: =CONCATENATE(Targets!$A98,"-",Targets!$B98,"-",Targets!$C98) -> 10000747-7a-3 | F98: Other statistic - Disabled (please give details in the next column) | G98: Engagement with disability services (DSA) target will continue to be monitored as evidence suggests that this as a positive impact upon retention, achievement and success. The data shows a conversion rate of 50.2% based on 577 students who engaged with the service (excludes a further 11 where not eligible for HEFCE funding) of which 277 became DSA claimants (12% of the student population). The pattern has been 2015/16 at 52%, 2014-15 at 46% and 2013-14 at 45%, which shows a slight decrease from 2015-16. This is reflected in the overall student numbers being lower in this year, | H98: No | I98: 0.45 | J98: 2013-14 | K98: 0.575 | L98: 2019-20 | M98: - | N98: 0.45 | O98: 0.46 | P98: 0.52 | Q98: 0.5 | R98: c) Progress made – but less than anticipated | S98: Access | T98: Disability
A99: 10000747 | B99: 7a | C99: 4 | D99: =CONCATENATE(Targets!$A99,"-",Targets!$B99) -> 10000747-7a | E99: =CONCATENATE(Targets!$A99,"-",Targets!$B99,"-",Targets!$C99) -> 10000747-7a-4 | F99: Other statistic - Gender (please give details in the next column) | G99: For the last four years the proportion of females entering into high education has remained higher than males. The proportion of males remains comparable at 41% which is -2% on the previous 2 years. The target is to increase the proportion of male to female students (although current trends indicate it may be challenging, hence the small targeted increase). Targetted analysis and research is planned with regards to this issue, including age (ie. young white males under 21). The percentage of male students against female has dropped by 3% in 16/17 compared to a sustained 41% in the previous two years and the learner profile reduced by 164 males (1055 down to 891) . | H99: No | I99: 0.41 | J99: 2014-15 | K99: 0.45 | L99: 2019-20 | M99: 0.43 | N99: 0.43 | O99: 0.41 | P99: 0.41 | Q99: 0.38 | R99: e) Performance is below baseline | S99: Access | T99: Gender
A100: 10000747 | B100: 7b | C100: 1 | D100: =CONCATENATE(Targets!$A100,"-",Targets!$B100) -> 10000747-7b | E100: =CONCATENATE(Targets!$A100,"-",Targets!$B100,"-",Targets!$C100) -> 10000747-7b-1 | F100: Strategic partnerships (eg formal relationships with schools/colleges/employers) | G100: To re evaluate and increase formal partnerships on reflection of the work of the NNCO, specifically with Schools and Sixth Forms and those not engaged in HEI outreach activity. Progress has been made through the NNCO and several projects took place to develop working relationships and awareness. The Head of HE Student Experience was part of the NNCO working group in developing and leading on some of the projects ensuring sustainability wherever appropriate. The collaboration continues with the work in relation to NCOP | H100: No | I100: NA | J100: 2014-15 | K100: NA | L100: NA | M100: NA | N100: NA | O100: NA | P100: NA | Q100: NA | R100: b) Yearly milestone met | S100: Access | T100: Multiple
A101: 10000747 | B101: 7b | C101: 2 | D101: =CONCATENATE(Targets!$A101,"-",Targets!$B101) -> 10000747-7b | E101: =CONCATENATE(Targets!$A101,"-",Targets!$B101,"-",Targets!$C101) -> 10000747-7b-2 | F101: Management targets | G101: Retention rates remain complex and a challenge given the high proportion of students from a disadvantaged post code. Retention remains comparable over the last two years. Analysis and research is being carried out as to reasons for retention and possibilities of early intervention | H101: No | I101: 0.76 | J101: 2014-15 | K101: 0.84 | L101: 2019-20 | M101: not available | N101: not available | O101: 0.77 | P101: 0.74 | Q101: 0.74 | R101: d) No progress made against baseline | S101: Student Success and Progression | T101: Socio-economic
A102: 10000747 | B102: 7b | C102: 3 | D102: =CONCATENATE(Targets!$A102,"-",Targets!$B102) -> 10000747-7b | E102: =CONCATENATE(Targets!$A102,"-",Targets!$B102,"-",Targets!$C102) -> 10000747-7b-3 | F102: Outreach / WP activity (other - please give details in the next column) | G102: To increase participation and activity with The Childrens' University. The number of schools and pupils has increased year on year. The initial pupil numbers were 120 and have risen to just short of 500 in 15-16. Pupils numbers in 2016-2017 rose to 619 with a number of success activities taking place. | H102: No | I102: 4 | J102: 2011-12 | K102: 16 | L102: 2019-20 | M102: 6 | N102: 6 | O102: 6 | P102: 6 | Q102: 6 | R102: a) Overall target met/exceeded | S102: Access | T102: Other
A103: 10000747 | B103: 7b | C103: 4 | D103: =CONCATENATE(Targets!$A103,"-",Targets!$B103) -> 10000747-7b | E103: =CONCATENATE(Targets!$A103,"-",Targets!$B103,"-",Targets!$C103) -> 10000747-7b-4 | F103: Student support services | G103: To offer a one stop shop support service for students which provides a wrap around service. The college teams work collaboratively in term sof wrap around support to all students | H103: No | I103: NA | J103: 2013-14 | K103: NA | L103: NA | M103: NA | N103: NA | O103: NA | P103: NA | Q103: NA | R103: b) Yearly milestone met | S103: Access, Student Success and Progression | T103: Multiple
A104: 10000747 | B104: 7b | C104: 5 | D104: =CONCATENATE(Targets!$A104,"-",Targets!$B104) -> 10000747-7b | E104: =CONCATENATE(Targets!$A104,"-",Targets!$B104,"-",Targets!$C104) -> 10000747-7b-5 | F104: Outreach / WP activity (summer schools) | G104: To continue the development of a comprehensive study skills support for Higeher Education students including a wide range of summer school options and a yearly cycle of responsive intervention strategies to improve skills and progression between levels. The number quoted for 2016-2017 also includes winter school and second language support programme | H104: No | I104: 150 students | J104: 2014-15 | K104: 200 | L104: 2019-20 | M104: 282 | N104: 360 | O104: 200 | P104: 350 | Q104: 355 | R104: a) Overall target met/exceeded | S104: Access | T104: Multiple
A105: 10007155 | B105: 7b | C105: 6 | D105: =CONCATENATE(Targets!$A105,"-",Targets!$B105) -> 10007155-7b | E105: =CONCATENATE(Targets!$A105,"-",Targets!$B105,"-",Targets!$C105) -> 10007155-7b-6 | F105: Outreach / WP activity (other - please give details in the next column) | G105: Mature learners: 'Why HE?'and transition events targeted at mature learners | H105: No | I105: 50 adults | J105: 2011-12 | K105: 100 adults | L105: 2019-20 | M105: 321 | N105: 139 | O105: 119 | P105: 108 | Q105: 100 | R105: a) Overall target met/exceeded | S105: Access | T105: Mature
A106: 10003957 | B106: 7b | C106: 9 | D106: =CONCATENATE(Targets!$A106,"-",Targets!$B106) -> 10003957-7b | E106: =CONCATENATE(Targets!$A106,"-",Targets!$B106,"-",Targets!$C106) -> 10003957-7b-9 | F106: Outreach / WP activity (other - please give details in the next column) | G106: Outreach in targeted primary schools that feed into progression curriculum secondary schools | H106: No | I106: 10 schools | J106: 2013-14 | K106: 15 schools | L106: 2019-20 | M106: - | N106: 10 schools | O106: 12 schools | P106: 13 schools | Q106: 18 | R106: a) Overall target met/exceeded | S106: Access | T106: Multiple
A107: 10003957 | B107: 7b | C107: 10 | D107: =CONCATENATE(Targets!$A107,"-",Targets!$B107) -> 10003957-7b | E107: =CONCATENATE(Targets!$A107,"-",Targets!$B107,"-",Targets!$C107) -> 10003957-7b-10 | F107: Outreach / WP activity (summer schools) | G107: Summer schools for secondary school/college pupils from the local area | H107: No | I107: 200 pupils | J107: 2013-14 | K107: 300 pupils | L107: 2019-20 | M107: - | N107: 200 pupils | O107: 297 pupils | P107: 233 pupils | Q107: 269 | R107: b) Yearly milestone met | S107: Access | T107: Multiple
A108: 10006840 | B108: 7a | C108: 5 | D108: =CONCATENATE(Targets!$A108,"-",Targets!$B108) -> 10006840-7a | E108: =CONCATENATE(Targets!$A108,"-",Targets!$B108,"-",Targets!$C108) -> 10006840-7a-5 | F108: Other statistic - Other (please give details in the next column) | G108: Number of students entering Medicine via Access to Birmingham | H108: No | I108: 19 | J108: 2013-14 | K108: 31 | L108: 2019-20 | M108: NA | N108: NA | O108: 28 | P108: 34 | Q108: 34 | R108: a) Overall target met/exceeded | S108: Access | T108: Multiple
A109: 10006840 | B109: 7a | C109: 6 | D109: =CONCATENATE(Targets!$A109,"-",Targets!$B109) -> 10006840-7a | E109: =CONCATENATE(Targets!$A109,"-",Targets!$B109,"-",Targets!$C109) -> 10006840-7a-6 | F109: Other statistic - Other (please give details in the next column) | G109: Progression of students who entered via A2B is comparable to overall cohort | H109: No | I109: 0.93 | J109: 2011-12 | K109: 0.96 | L109: 2019-20 | M109: 0.95 | N109: 0.93 | O109: 0.95 | P109: 0.95 | Q109: 0.96 | R109: a) Overall target met/exceeded | S109: Student Success | T109: Multiple
A110: 10006840 | B110: 7a | C110: 7 | D110: =CONCATENATE(Targets!$A110,"-",Targets!$B110) -> 10006840-7a | E110: =CONCATENATE(Targets!$A110,"-",Targets!$B110,"-",Targets!$C110) -> 10006840-7a-7 | F110: Other statistic - Completion/Non continuation (please give details in the next column) | G110: Percentage of students who entered via A2B gaining 2.1 or above | H110: No | I110: 0.68 | J110: 2011-12 | K110: 0.75 | L110: 2019-20 | M110: 0.8 | N110: 0.84 | O110: 0.824 | P110: 0.81 | Q110: 0.819 | R110: a) Overall target met/exceeded | S110: Student Success | T110: Multiple
A111: 10006840 | B111: 7a | C111: 8 | D111: =CONCATENATE(Targets!$A111,"-",Targets!$B111) -> 10006840-7a | E111: =CONCATENATE(Targets!$A111,"-",Targets!$B111,"-",Targets!$C111) -> 10006840-7a-8 | F111: Other statistic - Progression to employment or further study (please give details in the next column) | G111: Percentage of students who entered via A2B gaining a graduate level job within 6 months of graduating. | H111: No | I111: 0.76 | J111: 2011-12 | K111: 0.8 | L111: 2019-20 | M111: 0.775 | N111: 0.82 | O111: 0.85 | P111: 0.844 | Q111: Data not available yet | R111: a) Overall target met/exceeded | S111: Progression | T111: Multiple
A112: 10006840 | B112: 7b | C112: 1 | D112: =CONCATENATE(Targets!$A112,"-",Targets!$B112) -> 10006840-7b | E112: =CONCATENATE(Targets!$A112,"-",Targets!$B112,"-",Targets!$C112) -> 10006840-7b-1 | F112: Outreach / WP activity (other - please give details in the next column) | G112: Number of students engaged in on-campus WP activity (e.g tailored school visits, Raise Programme and Masterclass Programme) | H112: No | I112: 5000 | J112: 2009-10 | K112: 6000 | L112: 2019-20 | M112: 11682 | N112: 9988 | O112: 9051 | P112: 10450 | Q112: 10303 | R112: a) Overall target met/exceeded | S112: Access | T112: Multiple
A113: 10006840 | B113: 7b | C113: 2 | D113: =CONCATENATE(Targets!$A113,"-",Targets!$B113) -> 10006840-7b | E113: =CONCATENATE(Targets!$A113,"-",Targets!$B113,"-",Targets!$C113) -> 10006840-7b-2 | F113: Outreach / WP activity (collaborative - please give details in the next column) | G113: Number of young people from disadvantaged backgrounds engaged in intensive activty with collaborative partnership using a basket of indicators. Baseline year is 2010/11 to enable overall growth in beneficiaries since the inception of the project to be reported. | H113: Yes | I113: 500 | J113: Other (please give details in Description column) | K113: 1000 | L113: 2019-20 | M113: 660 | N113: 768 | O113: 1001 | P113: 1021 | Q113: 1108 | R113: a) Overall target met/exceeded | S113: Access | T113: Multiple
A114: 10006840 | B114: 7b | C114: 3 | D114: =CONCATENATE(Targets!$A114,"-",Targets!$B114) -> 10006840-7b | E114: =CONCATENATE(Targets!$A114,"-",Targets!$B114,"-",Targets!$C114) -> 10006840-7b-3 | F114: Outreach / WP activity (collaborative - please give details in the next column) | G114: Proportion of engaged young people from disadvantaged backgrounds attaining 5 x GCSE A* to C inc English and Maths is greater than local average for young people from disadvantaged backgrounds, using a basket of indicators Baseline year for overall longitudinal tracking remains 2010/11 but impact on each cohort passing this milestone will be reported against the relevant benchmarking data for the academic year in which they complete Key Stage 4. | H114: Yes | I114: 44.1% FSM pupils (Birmingham) 32.3% FSM Pupils (Solihull) | J114: Other (please give details in Description column) | K114: 4% over baseline | L114: 2019-20 | M114: 76.9%(baseline 39.6%) | N114: 60.2% (Baseline 34.3%) | O114: 58.4% (Baseline 33.4%) | P114: Awaiting NPD Request | Q114: N/A | R114: b) Yearly milestone met | S114: Access | T114: Multiple
A115: 10006840 | B115: 7b | C115: 4 | D115: =CONCATENATE(Targets!$A115,"-",Targets!$B115) -> 10006840-7b | E115: =CONCATENATE(Targets!$A115,"-",Targets!$B115,"-",Targets!$C115) -> 10006840-7b-4 | F115: Outreach / WP activity (collaborative - please give details in the next column) | G115: Proportion of young people from disadvantaged backgrounds in intensive activty target group applying for FT place in HE is greater than local average for YP from disadvantaged backgrounds, using a basket of indicators Baseline year for overall longitudinal tracking remains 2010/11 but impact on each cohort passing this milestone will be reported against the relevant benchmarking data for the academic year in which they complete Key Stage 5. | H115: Yes | I115: 58.75% disadvantaged IMD, 40.8% NS-SEC 4 to 7, 38.21% LPN (POLAR 2 qs 1 and 2), 9.74% disabled | J115: Other (please give details in Description column) | K115: 4% over baseline | L115: 2019-20 | M115: N/A | N115: 31.6% FSM6 ( baseline 22%) 40% Polar 3 Q1 ( baseline 12.4%) | O115: 36.7%FSM6 (baseline 24%) Polar 3 Q1 32.4% (Baseline 13.4%) | P115: Awaiting NPD Request | Q115: N/A | R115: b) Yearly milestone met | S115: Access | T115: Multiple
A116: 10006840 | B116: 7b | C116: 5 | D116: =CONCATENATE(Targets!$A116,"-",Targets!$B116) -> 10006840-7b | E116: =CONCATENATE(Targets!$A116,"-",Targets!$B116,"-",Targets!$C116) -> 10006840-7b-5 | F116: Outreach / WP activity (collaborative - please give details in the next column) | G116: Realising Opportunities Targets for progression of RO participants to a research intensive university | H116: Yes | I116: 0.27 | J116: 2010-11 | K116: 0.38 | L116: 2019-20 | M116: 0.36 | N116: 0.3 | O116: 0.24 | P116: 0.31 | Q116: 0.36 | R116: b) Yearly milestone met | S116: Access | T116: Multiple
A117: 10006378 | B117: 7a | C117: 1 | D117: =CONCATENATE(Targets!$A117,"-",Targets!$B117) -> 10006378-7a | E117: =CONCATENATE(Targets!$A117,"-",Targets!$B117,"-",Targets!$C117) -> 10006378-7a-1 | F117: HESA T2a - (Mature, full-time, first degree entrants) | G117: increase the numbers of mature students (over 25) participating in HE study | H117: No | I117: 0.45 | J117: 2013-14 | K117: 0.45 | L117: 2019-20 | M117: - | N117: 0.45 | O117: 0.37 | P117: 0.29 | Q117: 0.37 | R117: e) Performance is below baseline | S117: Access | T117: Mature
A118: 10007155 | B118: 7b | C118: 10 | D118: =CONCATENATE(Targets!$A118,"-",Targets!$B118) -> 10007155-7b | E118: =CONCATENATE(Targets!$A118,"-",Targets!$B118,"-",Targets!$C118) -> 10007155-7b-10 | F118: Outreach / WP activity (collaborative - please give details in the next column) | G118: SUN will develop and extend collaborative projects which support the progression of students with disabilities drawing on the expertise of specialists within our universities, our students with disabilities and those working in this field. | H118: Yes | I118: SUN Disability Group in Place | J118: 2015-16 | K118: Collaborative activities agreed in previous year delivered | L118: 2019-20 | M118: - | N118: - | O118: - | P118: The SUN Disability group continue to meet termly and run institutional events. The SUN website includes a link to Disabled Students Allowances (DSA) and links to disability support for each institution in the network. The SUN Ambassadors receive additional training which includes more in-depth detail about the support available. The SUN have also developed a pilot on-line training tool for student ambassadors. | Q118: SUN website disability resources section developed. Continued working with student minds to develop an online resource for transition to HE. Collaborative event attended by 3 HEI's. | R118: c) Progress made – but less than anticipated | S118: Access and Progression | T118: Disability
A119: 10007713 | B119: 7b | C119: 1 | D119: =CONCATENATE(Targets!$A119,"-",Targets!$B119) -> 10007713-7b | E119: =CONCATENATE(Targets!$A119,"-",Targets!$B119,"-",Targets!$C119) -> 10007713-7b-1 | F119: Outreach / WP activity (summer schools) | G119: Part of a broader series of work with schools which are in the lowest POLAR quintiles, have high levels of FSM and a low GCSE attainment level | H119: No | I119: 8 | J119: 2012-13 | K119: 50 | L119: 2019-20 | M119: 8 | N119: 11 | O119: 11 | P119: 18 | Q119: 29 | R119: c) Progress made – but less than anticipated | S119: Access | T119: Low participation neighbourhood (LPN)
A120: 10007786 | B120: 7a | C120: 9 | D120: =CONCATENATE(Targets!$A120,"-",Targets!$B120) -> 10007786-7a | E120: =CONCATENATE(Targets!$A120,"-",Targets!$B120,"-",Targets!$C120) -> 10007786-7a-9 | F120: Other statistic - Other (please give details in the next column) | G120: Conversion rates: application to intake rates for students from low performing schools and colleges | H120: No | I120: 0.12 | J120: 2013-14 | K120: 0.135 | L120: 2019-20 | M120: 12.5 | N120: 12 | O120: 13.6 | P120: 12.9 | Q120: 13.8 | R120: a) Overall target met/exceeded | S120: Access | T120: Other
A121: 10006378 | B121: 7a | C121: 2 | D121: =CONCATENATE(Targets!$A121,"-",Targets!$B121) -> 10006378-7a | E121: =CONCATENATE(Targets!$A121,"-",Targets!$B121,"-",Targets!$C121) -> 10006378-7a-2 | F121: Other statistic - Ethnicity (please give details in the next column) | G121: increase the number of students from ethnic minority backgrounds over the course of the access agreement through targeted allocations of cash bursaries | H121: No | I121: 0.07 | J121: 2013-14 | K121: 0.07 | L121: 2019-20 | M121: - | N121: 0.07 | O121: 0.075 | P121: 0.044 | Q121: 0.05 | R121: e) Performance is below baseline | S121: Access | T121: Ethnicity
A122: 10006378 | B122: 7a | C122: 3 | D122: =CONCATENATE(Targets!$A122,"-",Targets!$B122) -> 10006378-7a | E122: =CONCATENATE(Targets!$A122,"-",Targets!$B122,"-",Targets!$C122) -> 10006378-7a-3 | F122: Other statistic - Disabled (please give details in the next column) | G122: increase the number of students with disabilities over the course of tha access agreement through targetted cash bursaries | H122: No | I122: 0.19 | J122: 2013-14 | K122: 0.19 | L122: 2019-20 | M122: - | N122: 0.19 | O122: 0.25 | P122: 0.27 | Q122: 0.24 | R122: a) Overall target met/exceeded | S122: Access | T122: Disability
A123: 10007163 | B123: 7b | C123: 1 | D123: =CONCATENATE(Targets!$A123,"-",Targets!$B123) -> 10007163-7b | E123: =CONCATENATE(Targets!$A123,"-",Targets!$B123,"-",Targets!$C123) -> 10007163-7b-1 | F123: Outreach / WP activity (other - please give details in the next column) | G123: Increase the number of secondary schools/colleges in Coventry and Warwickshire that we work with to 40 by 2016/17 | H123: No | I123: 32 | J123: Other (please give details in Description column) | K123: 40 | L123: 2016-17 | M123: 38 | N123: 30 | O123: 38 | P123: 39 | Q123: - | R123: f) Target discontinued | S123: Access | T123: Other
A124: 10006566 | B124: 7a | C124: 2 | D124: =CONCATENATE(Targets!$A124,"-",Targets!$B124) -> 10006566-7a | E124: =CONCATENATE(Targets!$A124,"-",Targets!$B124,"-",Targets!$C124) -> 10006566-7a-2 | F124: HESA T1a - State School (Young, full-time, first degree entrants) | G124: To maintain representation from state schools at above the location-adjusted benchmark or above 95% | H124: No | I124: 0.966 | J124: 2013-14 | K124: 0.966 | L124: 2019-20 | M124: 0.963 | N124: 0.966 | O124: 0.981 | P124: 0.969 | Q124: - | R124: a) Overall target met/exceeded | S124: Access | T124: State school
A125: 10006566 | B125: 7a | C125: 3 | D125: =CONCATENATE(Targets!$A125,"-",Targets!$B125) -> 10006566-7a | E125: =CONCATENATE(Targets!$A125,"-",Targets!$B125,"-",Targets!$C125) -> 10006566-7a-3 | F125: HESA T1a - Low participation neighbourhoods (POLAR3) (Young, full-time, first degree entrants) | G125: Maintain position at or above location-adjusted benchmark | H125: No | I125: 0.087 | J125: 2013-14 | K125: 0.092 | L125: 2019-20 | M125: 0.098 | N125: 0.087 | O125: 0.099 | P125: 0.093 | Q125: - | R125: a) Overall target met/exceeded | S125: Access | T125: Low participation neighbourhood (LPN)
A126: 10006566 | B126: 7a | C126: 4 | D126: =CONCATENATE(Targets!$A126,"-",Targets!$B126) -> 10006566-7a | E126: =CONCATENATE(Targets!$A126,"-",Targets!$B126,"-",Targets!$C126) -> 10006566-7a-4 | F126: HESA T3a - No longer in HE after 1 year (Young, full-time, first degree entrants) | G126: Non-continuation rates to be lower than benchmark. The year here refers to the entry cohort of degree students; improvement will not be visible until following year. | H126: No | I126: 0.114 | J126: 2012-13 | K126: 0.08 | L126: 2019-20 | M126: 0.114 | N126: 0.122 | O126: 0.098 | P126: - | Q126: - | R126: b) Yearly milestone met | S126: Student Success | T126: Other
A127: 10006566 | B127: 7a | C127: 5 | D127: =CONCATENATE(Targets!$A127,"-",Targets!$B127) -> 10006566-7a | E127: =CONCATENATE(Targets!$A127,"-",Targets!$B127,"-",Targets!$C127) -> 10006566-7a-5 | F127: HESA T3a - No longer in HE after 1 year (Mature, full-time, first degree entrants) | G127: Non-continuation rates to be lower than benchmark. The year here refers to the entry cohort of degree students; improvement will not be visible until following year. | H127: No | I127: 0.166 | J127: 2012-13 | K127: 0.14 | L127: 2019-20 | M127: 0.166 | N127: 0.143 | O127: 0.117 | P127: - | Q127: - | R127: a) Overall target met/exceeded | S127: Student Success | T127: Mature
A128: 10006566 | B128: 7a | C128: 6 | D128: =CONCATENATE(Targets!$A128,"-",Targets!$B128) -> 10006566-7a | E128: =CONCATENATE(Targets!$A128,"-",Targets!$B128,"-",Targets!$C128) -> 10006566-7a-6 | F128: HESA T3b - No longer in HE after 1 year & in low participation neighbourhoods (POLAR 3) (Young, full-time, first degree entrants) | G128: To maintain position beneath benchmark | H128: No | I128: 0.128 | J128: 2012-13 | K128: 0.098 | L128: 2019-20 | M128: 0.128 | N128: 0.144 | O128: 0.088 | P128: - | Q128: - | R128: a) Overall target met/exceeded | S128: Student Success | T128: Low participation neighbourhood (LPN)
A129: 10006566 | B129: 7a | C129: 7 | D129: =CONCATENATE(Targets!$A129,"-",Targets!$B129) -> 10006566-7a | E129: =CONCATENATE(Targets!$A129,"-",Targets!$B129,"-",Targets!$C129) -> 10006566-7a-7 | F129: Other statistic - Other (please give details in the next column) | G129: Table E1a - Employment indicator: leavers obtaining first degrees from full-time courses. | H129: No | I129: 0.95 | J129: 2012-13 | K129: To maintain or improve on 95% | L129: 2019-20 | M129: 0.949 | N129: 0.959 | O129: 0.961 | P129: 0.971 | Q129: - | R129: a) Overall target met/exceeded | S129: Progression | T129: Other
A130: 10006566 | B130: 7a | C130: 8 | D130: =CONCATENATE(Targets!$A130,"-",Targets!$B130) -> 10006566-7a | E130: =CONCATENATE(Targets!$A130,"-",Targets!$B130,"-",Targets!$C130) -> 10006566-7a-8 | F130: Other statistic - Part-time (please give details in the next column) | G130: To increase part-time undergraduate student headcount intake by at least 3% year on year (HESA Student return) | H130: No | I130: 193 | J130: 2014-15 | K130: 200 | L130: 2019-20 | M130: - | N130: - | O130: 193 | P130: 176 | Q130: 163 | R130: d) No progress made against baseline | S130: Access | T130: Part-time
A131: 10005583 | B131: 7b | C131: 2 | D131: =CONCATENATE(Targets!$A131,"-",Targets!$B131) -> 10005583-7b | E131: =CONCATENATE(Targets!$A131,"-",Targets!$B131,"-",Targets!$C131) -> 10005583-7b-2 | F131: Strategic partnerships (eg formal relationships with schools/colleges/employers) | G131: Develop progression accords with two local FE colleges. Oxford & Cherwell Valley College and Abingdon & Witney college in relation to Access programmes | H131: Yes | I131: 2 | J131: 2013-14 | K131: 2 | L131: 2019-20 | M131: - | N131: 2 | O131: 2 | P131: 2 | Q131: - | R131: b) Yearly milestone met | S131: Access | T131: Socio-economic
